Workbook

Sheet RESUMO MODULO TOTAL
B1: CONTRATAÇÃO DE SERVIÇOS DE PAVIMENTAÇÃO ASFÁLTICA COM CONCRETO BETUMINOSO USINADO A QUENTE (CBUQ) EM VIAS URBANAS E RURAIS INSERIDAS NA ÁREA DE ATUAÇÃO DA CODEVASF, NO ESTADO DO AMAPÁ (REGIÃO PORTO GRANDE)
M2: SICRO: | N2: ='SINTÉTICO SICRO'!B2 -> Amapá - Abril/2024
M3: SINAPI: | N3: =RIGHT('INSUMOS SINAPI'!A3,7) -> 07/2024
M4: Data Base do Orçamento | N4: 2024-09-01
B5: =B1 -> CONTRATAÇÃO DE SERVIÇOS DE PAVIMENTAÇÃO ASFÁLTICA COM CONCRETO BETUMINOSO USINADO A QUENTE (CBUQ) EM VIAS URBANAS E RURAIS INSERIDAS NA ÁREA DE ATUAÇÃO DA CODEVASF, NO ESTADO DO AMAPÁ (REGIÃO PORTO GRANDE)
B6: ITEM | C6: ORIGEM COMPOSIÇÃO | D6: CÓDIGO COMPOSIÇÃO | E6: DISCRIMINAÇÃO DOS SERVIÇOS | I6: BDI % = | J6: =BDI!C17 -> 0.2339 | K6: BDI DIFERENCIADO% = | L6: =BDI!C68 -> 0.15 | M6: R$/m² | N6: =N61/I8 -> 166.33
I7: Total de m² | J7: Encargos Sociais: | K7: Horista | L7: Mensalista | M7: PREÇO UNITÁRIO COM BDI | N7: PREÇO TOTAL COM BDI
I8: ='MC MODULO'!G1*'MC MODULO'!C1*'MC MODULO'!C2 -> 154000 | K8: ='ENC. SOCIAIS'!E47 -> 114.44 | L8: ='ENC. SOCIAIS'!F47 -> 70.71
I9: UND | J9: QTDE. | K9: BDI | L9: PREÇO UNITÁRIO
E10: MOBILIZAÇÃO/DESMOBILIZAÇÃO
B11: 1 | C11: Codevasf | D11: Mob | E11: Mobilização | I11: kmxfrente | J11: =Mob!B65*Mob!H6 -> 1232 | K11: =(M11/L11-1) -> 0.2339 | L11: =Mob!B62 -> 275.58116 | M11: =Mob!B64 -> 340.0395933 | N11: =M11*J11 -> 418928.779 | O11: =N11/$N$61 -> 0.01635493745 | P11: INCC | R11: N1 | S11: TERRAPLENAGEM | T11: =(SUMIF(P:P,"TERRAPLENAGEM",N:N)/$N$61) -> 0.02689906468 | U11: =(SUMIF(P:P,"TERRAPLENAGEM",N:N)) -> 689014.7
B12: 2 | C12: Codevasf | D12: Mob | E12: Desmobilização | I12: kmxfrente | J12: =Mob!B65*Mob!H6 -> 1232 | K12: =(M12/L12-1) -> 0.2339 | L12: =Mob!B62 -> 275.58116 | M12: =Mob!B64 -> 340.0395933 | N12: =M12*J12 -> 418928.779 | O12: =N12/$N$61 -> 0.01635493745 | P12: INCC | R12: N2 | S12: PAVIMENTAÇÃO | T12: =SUMIF(P:P,"PAVIMENTAÇÃO",N:N)/$N$61 -> 0.7586812365 | U12: =(SUMIF(P:P,"PAVIMENTAÇÃO",N:N)) -> 19433483.31
E13: INSTALAÇÃO DE CANTEIRO | R13: N3 | S13: CONSULTORIA | T13: =SUMIF(P:P,"CONSULTORIA",N:N)/$N$61 -> 0 | U13: =(SUMIF(P:P,"CONSULTORIA",N:N)) -> 0
B14: 3 | C14: Codevasf | D14: Canteiro | E14: Canteiro de Obras e Almoxarifado | I14: frente | J14: ='MC MODULO'!G1 -> 11 | K14: =(M14/L14-1) -> 0.2339 | L14: =' Canteiro'!F11 -> 19147.44 | M14: =' Canteiro'!F13 -> 23626.02622 | N14: =ROUND(ROUND(J14,2)*ROUND(M14,6),2) -> 259886.29 | O14: =N14/N61 -> 0.01014593466 | P14: INCC | R14: N4 | S14: DRENAGEM | T14: =SUMIF(P:P,"DRENAGEM",N:N)/$N$61 -> 0.07829575613 | U14: =(SUMIF(P:P,"DRENAGEM",N:N)) -> 2005531.7
B15: 4 | C15: SICRO | D15: 903808 | E15: =VLOOKUP(D15,'SINTÉTICO SICRO'!A:D,2,FALSE) -> Instalação da usina misturadora de solos com capacidade de 300 t/h | I15: frente | J15: 3 | K15: 0.2339 | L15: =VLOOKUP(D15,'SINTÉTICO SICRO'!A:D,4,FALSE) -> 123573.36 | M15: =L15*(1+K15) -> 152477.1689 | N15: =ROUND(ROUND(J15,2)*ROUND(M15,6),2) -> 457431.51
B16: 5 | C16: SINAPI | D16: 103689 | E16: Fornecimento e instalação de placa de obra com chapa galvanizada e estrutura de madeira. af_03/2022_ps | I16: m² | J16: ='MC MODULO'!H25 -> 176 | K16: =(M16/L16-1) -> 0.2339 | L16: =VLOOKUP(D16,'COMP Sint. Sinapi'!G7:K1048576,5,0) -> 311.73 | M16: =L16*(1+$J$6) -> 384.643647 | N16: =ROUND(ROUND(J16,2)*ROUND(M16,6),2) -> 67697.28 | P16: INCC | R16: N5 | S16: ADMINISTRAÇÃO LOCAL | T16: =SUMIF(P:P,"ADMINISTRAÇÃO LOCAL",N:N)/$N$61 -> 0 | U16: =(SUMIF(P:P,"ADMINISTRAÇÃO LOCAL",N:N)) -> 0
E17: ADMINISTRAÇÃO LOCAL DA OBRA | R17: N6 | S17: SINALIZAÇÃO VERTICAL | T17: =SUMIF(P:P,"SINALIZAÇÃO VERTICAL",N:N)/$N$61 -> 0 | U17: =(SUMIF(P:P,"SINALIZAÇÃO VERTICAL",N:N)) -> 0
B18: 6 | C18: Codevasf | D18: Adm Local | E18: Administração Local da Obra | I18: und | J18: 1 | K18: =(M18/L18-1) -> 0.2339 | L18: ='Adm Local'!J249 -> 966895.7887 | M18: ='Adm Local'!I251 -> 1193052.714 | N18: =ROUND(ROUND(J18,2)*ROUND(M18,6),2) -> 1193052.71 | O18: =N18/N61 -> 0.04657665797 | P18: INCC | R18: N7 | S18: SINALIZAÇÃO HORIZONTAL | T18: =SUMIF(P:P,"SINALIZAÇÃO HORIZONTAL",N:N)/$N$61 -> 0 | U18: =(SUMIF(P:P,"SINALIZAÇÃO HORIZONTAL",N:N)) -> 0
E19: TERRAPLANAGEM | R19: N8 | S19: CAP | T19: =(SUMIF(P:P,"CAP",N:N))/$N$61 -> 0 | U19: =(SUMIF(P:P,"CAP",N:N)) -> 0
B20: 7 | C20: SICRO | D20: 5502114 | E20: =VLOOKUP(D20,'SINTÉTICO SICRO'!$A$4:$D$1048576,2,0) -> Escavação, carga e transporte de material de 1ª categoria - DMT de 1.000 a 1.200 m - caminho de serviço em leito natural - com escavadeira e caminhão basculante de 14 m³ | I20: m³ | J20: ='MC MODULO'!H37 -> 53900 | K20: =M20/L20-1 -> 0.2339 | L20: =ROUND(IF(C20="CODEVASF",VLOOKUP(D20,'CPU CODEVASF'!E:I,5,FALSE),VLOOKUP(D20,'SINTÉTICO SICRO'!A:D,4,FALSE)),6) -> 8.28 | M20: =ROUND(IF(C20="CODEVASF",VLOOKUP(D20,'CPU CODEVASF'!E:H,4,FALSE),VLOOKUP(D20,'SINTÉTICO SICRO'!A:D,4,FALSE)*(1+$J$6)),6) -> 10.216692 | N20: =ROUND(ROUND(J20,2)*ROUND(M20,6),2) -> 550679.7 | P20: TERRAPLENAGEM | R20: N9 | S20: IMPRIMAÇÃO | T20: =(SUMIF(P:P,"IMPRIMAÇÃO",N:N))/$N$61 -> 0 | U20: =(SUMIF(P:P,"IMPRIMAÇÃO",N:N)) -> 0
B21: 8 | C21: SICRO | D21: 4413942 | E21: =VLOOKUP(D21,'SINTÉTICO SICRO'!$A$4:$D$1048576,2,0) -> Espalhamento de material em bota-fora | I21: m³ | J21: ='MC MODULO'!H44 -> 53900 | K21: 0.2339 | L21: =ROUND(IF(C21="CODEVASF",VLOOKUP(D21,'CPU CODEVASF'!E:I,5,FALSE),VLOOKUP(D21,'SINTÉTICO SICRO'!A:D,4,FALSE)),6) -> 2.08 | M21: =ROUND(IF(C21="CODEVASF",VLOOKUP(D21,'CPU CODEVASF'!E:H,4,FALSE),VLOOKUP(D21,'SINTÉTICO SICRO'!A:D,4,FALSE)*(1+$J$6)),6) -> 2.566512 | N21: 138335 | P21: TERRAPLENAGEM | R21: N10 | S21: EMULSÃO ASFÁLTICA | T21: =(SUMIF(P:P,"EMULSÃO ASFÁLTICA",N:N))/$N$61 -> 0 | U21: =(SUMIF(P:P,"EMULSÃO ASFÁLTICA",N:N)) -> 0 | AJ21: 1
E22: PAVIMENTAÇÃO | R22: N11 | S22: OBRAS COMPLEMENTARES | T22: =(SUMIF(P:P,"OBRAS COMPLEMENTARES",N:N))/$N$61 -> 0 | U22: =(SUMIF(P:P,"OBRAS COMPLEMENTARES",N:N)) -> 0
B23: 9 | C23: SICRO | D23: 4011463 | E23: =VLOOKUP(D23,'SINTÉTICO SICRO'!$A$4:$D$1048576,2,0) -> Concreto asfáltico - faixa C - areia e brita comerciais | I23: t | J23: ='MC MODULO'!H51 -> 18480 | K23: =M23/L23-1 -> 0.2339 | L23: =ROUND(IF(C23="CODEVASF",VLOOKUP(D23,'CPU CODEVASF'!E:I,5,FALSE),VLOOKUP(D23,'SINTÉTICO SICRO'!A:D,4,FALSE)),6) -> 245.16 | M23: =ROUND(IF(C23="CODEVASF",VLOOKUP(D23,'CPU CODEVASF'!E:H,4,FALSE),VLOOKUP(D23,'SINTÉTICO SICRO'!A:D,4,FALSE)*(1+$J$6)),6) -> 302.502924 | N23: =ROUND(ROUND(J23,2)*ROUND(M23,6),2) -> 5590254.04 | P23: PAVIMENTAÇÃO | R23: N12 | S23: MOBILIZAÇÃO | T23: =(SUMIF(P:P,"MOBILIZAÇÃO",N:N))/$N$61 -> 0 | U23: =(SUMIF(P:P,"MOBILIZAÇÃO",N:N)) -> 0
B24: 10 | C24: SICRO | D24: 4011352 | E24: =VLOOKUP(D24,'SINTÉTICO SICRO'!$A$4:$D$1048576,2,0) -> Imprimação com emulsão asfáltica | I24: m² | J24: ='MC MODULO'!H57 -> 154000 | K24: 0.2339 | L24: =ROUND(IF(C24="CODEVASF",VLOOKUP(D24,'CPU CODEVASF'!E:I,5,FALSE),VLOOKUP(D24,'SINTÉTICO SICRO'!A:D,4,FALSE)),6) -> 0.41 | M24: =ROUND(IF(C24="CODEVASF",VLOOKUP(D24,'CPU CODEVASF'!E:H,4,FALSE),VLOOKUP(D24,'SINTÉTICO SICRO'!A:D,4,FALSE)*(1+$J$6)),6) -> 0.505899 | N24: 77908.45 | P24: PAVIMENTAÇÃO | R24: N13 | S24: INCC | T24: =(SUMIF(P:P,"INCC",N:N))/$N$61 -> 0.1182658925 | U24: =(SUMIF(P:P,"INCC",N:N)) -> 3029359.548
B25: 11 | C25: SICRO | D25: 4011353 | E25: =VLOOKUP(D25,'SINTÉTICO SICRO'!$A$4:$D$1048576,2,0) -> Pintura de ligação | I25: m² | J25: ='MC MODULO'!H63 -> 154000 | K25: 0.2339 | L25: =ROUND(IF(C25="CODEVASF",VLOOKUP(D25,'CPU CODEVASF'!E:I,5,FALSE),VLOOKUP(D25,'SINTÉTICO SICRO'!A:D,4,FALSE)),6) -> 0.28 | M25: =ROUND(IF(C25="CODEVASF",VLOOKUP(D25,'CPU CODEVASF'!E:H,4,FALSE),VLOOKUP(D25,'SINTÉTICO SICRO'!A:D,4,FALSE)*(1+$J$6)),6) -> 0.345492 | N25: 53205.77 | P25: PAVIMENTAÇÃO
B26: 12 | C26: CODEVASF | D26: CPU-20 | E26: Base estabilizada granulometricamente com mistura solo areia (70% - 30%) na pista com material de jazida e areia comercial | I26: m³ | J26: ='MC MODULO'!H68 -> 23100 | K26: 0.2339 | L26: ='CPU CODEVASF2'!I36 -> 76,77 | M26: =L26+(L26*J6) -> 94.726503 | N26: 2188182.22 | P26: PAVIMENTAÇÃO
B27: 13 | C27: SICRO | D27: 4011227 | E27: =VLOOKUP(D27,'SINTÉTICO SICRO'!$A$4:$D$1048576,2,0) -> Sub-base de solo estabilizado granulometricamente sem mistura com material de jazida | I27: m³ | J27: ='MC MODULO'!H74 -> 23100 | K27: 0.2339 | L27: =ROUND(IF(C27="CODEVASF",VLOOKUP(D27,'CPU CODEVASF'!E:I,5,FALSE),VLOOKUP(D27,'SINTÉTICO SICRO'!A:D,4,FALSE)),6) -> 12.02 | M27: =ROUND(IF(C27="CODEVASF",VLOOKUP(D27,'CPU CODEVASF'!E:H,4,FALSE),VLOOKUP(D27,'SINTÉTICO SICRO'!A:D,4,FALSE)*(1+$J$6)),6) -> 14.831478 | N27: 342607.14 | P27: PAVIMENTAÇÃO
B28: 14 | C28: SICRO | D28: 4011209 | E28: =VLOOKUP(D28,'SINTÉTICO SICRO'!$A$4:$D$1048576,2,0) -> Regularização do subleito | I28: m² | J28: ='MC MODULO'!H80 -> 154000 | K28: 0.2339 | L28: =ROUND(IF(C28="CODEVASF",VLOOKUP(D28,'CPU CODEVASF'!E:I,5,FALSE),VLOOKUP(D28,'SINTÉTICO SICRO'!A:D,4,FALSE)),6) -> 1.22 | M28: =ROUND(IF(C28="CODEVASF",VLOOKUP(D28,'CPU CODEVASF'!E:H,4,FALSE),VLOOKUP(D28,'SINTÉTICO SICRO'!A:D,4,FALSE)*(1+$J$6)),6) -> 1.505358 | N28: 231825.13 | P28: PAVIMENTAÇÃO
E29: AQUISIÇÃO E TRANSPORTE DO MATERIAL BETUMINOSO
B30: 15 | C30: CODEVASF | D30: CPU-13 | E30: AQUISIÇÃO DE CIMENTO ASFALTICO CAP 50/70 | I30: t | J30: =' CONSUMO DE MAT. B TOTAL'!P13 -> 1168.49 | K30: =M30/L30-1 -> 0.1500000002 | L30: =ROUND(IF(C30="CODEVASF",VLOOKUP(D30,'CPU CODEVASF'!E:I,5,FALSE),VLOOKUP(D30,'SINTÉTICO SICRO'!A:D,4,FALSE)),6) -> 4596.061062 | M30: =ROUND(IF(C30="CODEVASF",VLOOKUP(D30,'CPU CODEVASF'!E:H,4,FALSE),VLOOKUP(D30,'SINTÉTICO SICRO'!A:D,4,FALSE)*(1+$J$6)),6) -> 5285.470222 | N30: =ROUND(ROUND(J30,2)*ROUND(M30,6),2) -> 6176019.1 | P30: PAVIMENTAÇÃO
B31: 16 | C31: CODEVASF | D31: CPU-17 | E31: TRANSPORTE CAP 50/70 | I31: t | J31: =' CONSUMO DE MAT. B TOTAL'!P13 -> 1168.49 | K31: 0.15 | L31: =ROUND(IF(C31="CODEVASF",VLOOKUP(D31,'CPU CODEVASF'!E:I,5,FALSE),VLOOKUP(D31,'SINTÉTICO SICRO'!A:D,4,FALSE)),6) -> 1400.08 | M31: =ROUND(IF(C31="CODEVASF",VLOOKUP(D31,'CPU CODEVASF'!E:H,4,FALSE),VLOOKUP(D31,'SINTÉTICO SICRO'!A:D,4,FALSE)*(1+$J$6)),6) -> 1610.092 | N31: 1881376.4 | P31: PAVIMENTAÇÃO
B32: 17 | C32: CODEVASF | D32: CPU-14 | E32: AQUISIÇÃO DE EAI | I32: t | J32: =' CONSUMO DE MAT. B TOTAL'!P8 -> 200.2 | K32: 0.1500000001 | L32: =ROUND(IF(C32="CODEVASF",VLOOKUP(D32,'CPU CODEVASF'!E:I,5,FALSE),VLOOKUP(D32,'SINTÉTICO SICRO'!A:D,4,FALSE)),6) -> 2748.453519 | M32: =ROUND(IF(C32="CODEVASF",VLOOKUP(D32,'CPU CODEVASF'!E:H,4,FALSE),VLOOKUP(D32,'SINTÉTICO SICRO'!A:D,4,FALSE)*(1+$J$6)),6) -> 3160.721547 | N32: 632776.45 | P32: PAVIMENTAÇÃO
B33: 18 | C33: CODEVASF | D33: CPU-18 | E33: TRANSPORTE DE EAI | I33: t | J33: =' CONSUMO DE MAT. B TOTAL'!P8 -> 200.2 | K33: 0.1500000001 | L33: =ROUND(IF(C33="CODEVASF",VLOOKUP(D33,'CPU CODEVASF'!E:I,5,FALSE),VLOOKUP(D33,'SINTÉTICO SICRO'!A:D,4,FALSE)),6) -> 1967.017512 | M33: =ROUND(IF(C33="CODEVASF",VLOOKUP(D33,'CPU CODEVASF'!E:H,4,FALSE),VLOOKUP(D33,'SINTÉTICO SICRO'!A:D,4,FALSE)*(1+$J$6)),6) -> 2262.070139 | N33: 452866.44 | P33: PAVIMENTAÇÃO
B34: 19 | C34: CODEVASF | D34: CPU-15 | E34: AQUISIÇÃO DE EMULSÃO ASFÁLTICA RR-1C | I34: t | J34: =' CONSUMO DE MAT. B TOTAL'!P11 -> 69.3 | K34: 0.1500000256 | L34: =ROUND(IF(C34="CODEVASF",VLOOKUP(D34,'CPU CODEVASF'!E:I,5,FALSE),VLOOKUP(D34,'SINTÉTICO SICRO'!A:D,4,FALSE)),6) -> 3274.929441 | M34: =ROUND(IF(C34="CODEVASF",VLOOKUP(D34,'CPU CODEVASF'!E:H,4,FALSE),VLOOKUP(D34,'SINTÉTICO SICRO'!A:D,4,FALSE)*(1+$J$6)),6) -> 3766.168941 | N34: 260995.51 | P34: PAVIMENTAÇÃO
B35: 20 | C35: CODEVASF | D35: CPU-19 | E35: TRANSPORTE RR-1C | I35: t | J35: =' CONSUMO DE MAT. B TOTAL'!P11 -> 69.3 | K35: 0.1500000002 | L35: =ROUND(IF(C35="CODEVASF",VLOOKUP(D35,'CPU CODEVASF'!E:I,5,FALSE),VLOOKUP(D35,'SINTÉTICO SICRO'!A:D,4,FALSE)),6) -> 1713.338571 | M35: =ROUND(IF(C35="CODEVASF",VLOOKUP(D35,'CPU CODEVASF'!E:H,4,FALSE),VLOOKUP(D35,'SINTÉTICO SICRO'!A:D,4,FALSE)*(1+$J$6)),6) -> 1970.339357 | N35: 136544.52 | P35: PAVIMENTAÇÃO
E36: SINALIZAÇÃO
B37: 21 | C37: SICRO | D37: 5213440 | E37: =VLOOKUP(D37,'SINTÉTICO SICRO'!$A$4:$D$1048576,2,0) -> Placa de regulamentação em aço D = 0,60 m - película retrorrefletiva tipo I + SI - fornecimento e implantação | I37: und | J37: ='MC MODULO'!H87 -> 66 | K37: =M37/L37-1 -> 0.2339 | L37: =ROUND(IF(C37="CODEVASF",VLOOKUP(D37,'CPU CODEVASF'!E:I,5,FALSE),VLOOKUP(D37,'SINTÉTICO SICRO'!A:D,4,FALSE)),6) -> 259.78 | M37: =ROUND(IF(C37="CODEVASF",VLOOKUP(D37,'CPU CODEVASF'!E:H,4,FALSE),VLOOKUP(D37,'SINTÉTICO SICRO'!A:D,4,FALSE)*(1+$J$6)),6) -> 320.542542 | N37: =ROUND(ROUND(J37,2)*ROUND(M37,6),2) -> 21155.81 | P37: INCC
B38: 22 | C38: SICRO | D38: 5213464 | E38: =VLOOKUP(D38,'SINTÉTICO SICRO'!$A$4:$D$1048576,2,0) -> Placa de advertência em aço, lado de 0,60 m - película retrorrefletiva tipo I + SI - fornecimento e implantação | I38: und | J38: ='MC MODULO'!H92 -> 66 | K38: =M38/L38-1 -> 0.2339 | L38: =ROUND(IF(C38="CODEVASF",VLOOKUP(D38,'CPU CODEVASF'!E:I,5,FALSE),VLOOKUP(D38,'SINTÉTICO SICRO'!A:D,4,FALSE)),6) -> 259.82 | M38: =ROUND(IF(C38="CODEVASF",VLOOKUP(D38,'CPU CODEVASF'!E:H,4,FALSE),VLOOKUP(D38,'SINTÉTICO SICRO'!A:D,4,FALSE)*(1+$J$6)),6) -> 320.591898 | N38: =ROUND(ROUND(J38,2)*ROUND(M38,6),2) -> 21159.07 | P38: INCC
B39: 23 | C39: SICRO | D39: 5213863 | E39: =VLOOKUP(D39,'SINTÉTICO SICRO'!$A$4:$D$1048576,2,0) -> Suporte metálico galvanizado para placa de advertência ou regulamentação - lado ou diâmetro de 0,60 m - fornecimento e implantação | I39: und | J39: ='MC MODULO'!H98 -> 132 | K39: 0.2339 | L39: =ROUND(IF(C39="CODEVASF",VLOOKUP(D39,'CPU CODEVASF'!E:I,5,FALSE),VLOOKUP(D39,'SINTÉTICO SICRO'!A:D,4,FALSE)),6) -> 456.06 | M39: =ROUND(IF(C39="CODEVASF",VLOOKUP(D39,'CPU CODEVASF'!E:H,4,FALSE),VLOOKUP(D39,'SINTÉTICO SICRO'!A:D,4,FALSE)*(1+$J$6)),6) -> 562.732434 | N39: 74280.68 | P39: INCC
B40: 24 | C40: SICRO | D40: 5213400 | E40: =VLOOKUP(D40,'SINTÉTICO SICRO'!$A$4:$D$1048576,2,0) -> Pintura de faixa com tinta acrílica - espessura de 0,4 mm | I40: m² | J40: ='MC MODULO'!H103+'MC MODULO'!H108 -> 6160 | K40: 0.2339 | L40: =ROUND(IF(C40="CODEVASF",VLOOKUP(D40,'CPU CODEVASF'!E:I,5,FALSE),VLOOKUP(D40,'SINTÉTICO SICRO'!A:D,4,FALSE)),6) -> 25.03 | M40: =ROUND(IF(C40="CODEVASF",VLOOKUP(D40,'CPU CODEVASF'!E:H,4,FALSE),VLOOKUP(D40,'SINTÉTICO SICRO'!A:D,4,FALSE)*(1+$J$6)),6) -> 30.884517 | N40: 190248.62 | P40: INCC
E41: DRENAGEM
B42: 25 | C42: SICRO | D42: 2003943 | E42: =VLOOKUP(D42,'SINTÉTICO SICRO'!$A$4:$D$1048576,2,0) -> Meio-fio de concreto - MFC 03 moldado no local com extrusora e concreto usinado - areia e brita comerciais | I42: m | J42: ='MC MODULO'!H115 -> 44000 | K42: =M42/L42-1 -> 0.2339 | L42: =ROUND(IF(C42="CODEVASF",VLOOKUP(D42,'CPU CODEVASF'!E:I,5,FALSE),VLOOKUP(D42,'SINTÉTICO SICRO'!A:D,4,FALSE)),6) -> 36.94 | M42: =ROUND(IF(C42="CODEVASF",VLOOKUP(D42,'CPU CODEVASF'!E:H,4,FALSE),VLOOKUP(D42,'SINTÉTICO SICRO'!A:D,4,FALSE)*(1+$J$6)),6) -> 45.580266 | N42: =ROUND(ROUND(J42,2)*ROUND(M42,6),2) -> 2005531.7 | P42: DRENAGEM
B43: 26 | C43: SICRO | D43: 4915724 | E43: =VLOOKUP(D43,'SINTÉTICO SICRO'!$A$4:$D$1048576,2,0) -> Caiação mecanizada com fixador de cal | I43: m² | J43: ='MC MODULO'!H120 -> 5280 | K43: =(M43/L43-1) -> 0.2339 | L43: =ROUND(IF(C43="CODEVASF",VLOOKUP(D43,'CPU CODEVASF'!E:I,5,FALSE),VLOOKUP(D43,'SINTÉTICO SICRO'!A:D,4,FALSE)),6) -> 2.14 | M43: =ROUND(IF(C43="CODEVASF",VLOOKUP(D43,'CPU CODEVASF'!E:H,4,FALSE),VLOOKUP(D43,'SINTÉTICO SICRO'!A:D,4,FALSE)*(1+$J$6)),6) -> 2.640546 | N43: =ROUND(ROUND(J43,2)*ROUND(M43,6),2) -> 13942.08 | P43: INCC | AE43: 4514640
E44: SERVIÇOS COMPLEMENTARES
B45: 27 | C45: Codevasf | D45: CPU-12 | E45: Conserto de quebra no ramal na rua sem pavimento com fornecimento de material hidráulico | I45: m | J45: ='MC MODULO'!H127 -> 2200 | K45: =M45/L45-1 -> 0.233899984 | L45: =ROUND(IF(C45="CODEVASF",VLOOKUP(D45,'CPU CODEVASF'!E:I,5,FALSE),VLOOKUP(D45,'SINTÉTICO SICRO'!A:D,4,FALSE)),6) -> 15.23396 | M45: =ROUND(IF(C45="CODEVASF",VLOOKUP(D45,'CPU CODEVASF'!E:H,4,FALSE),VLOOKUP(D45,'SINTÉTICO SICRO'!A:D,4,FALSE)*(1+$J$6)),6) -> 18.797183 | N45: =ROUND(ROUND(J45,2)*ROUND(M45,6),2) -> 41353.8 | P45: INCC
E46: PROJETO EXECUTIVO
B47: 28 | C47: Codevasf | D47: Composição Própria | E47: Projeto Executivo | I47: m² | J47: ='MC MODULO'!H134 -> 154000 | K47: =M47/L47-1 -> 0.2338997572 | L47: =ROUND(('Projeto Executivo'!G27)/(1+$J$6),6) -> 1.624696 | M47: =ROUND(('Projeto Executivo'!G27),6) -> 2.004712 | N47: =ROUND(ROUND(J47,2)*ROUND(M47,6),2) -> 308725.65 | P47: INCC
E48: MOMENTO DE TRANSPORTE
B49: 29 | C49: SICRO | D49: 5914359 | E49: =VLOOKUP(D49,'SINTÉTICO SICRO'!$A$4:$D$1048576,2,0) -> Transporte com caminhão basculante de 10 m³ - rodovia em leito natural | I49: tkm | J49: =ROUND(SUMIF('MOMENTO DE TRANSPORTE - PRINC'!A:A,'RESUMO MODULO TOTAL'!D49,'MOMENTO DE TRANSPORTE - PRINC'!K:K)+SUMIF('MOMENTO DE TRANSPORTE - AUX'!A:A,'RESUMO MODULO TOTAL'!D49,'MOMENTO DE TRANSPORTE - AUX'!K:K),2) -> 125291.63 | K49: =M49/L49-1 -> 0.2339 | L49: =ROUND(IF(C49="CODEVASF",VLOOKUP(D49,'CPU CODEVASF'!E:I,5,FALSE),VLOOKUP(D49,'SINTÉTICO SICRO'!A:D,4,FALSE)),6) -> 1.3 | M49: =ROUND(IF(C49="CODEVASF",VLOOKUP(D49,'CPU CODEVASF'!E:H,4,FALSE),VLOOKUP(D49,'SINTÉTICO SICRO'!A:D,4,FALSE)*(1+$J$6)),6) -> 1.60407 | N49: =ROUND(ROUND(J49,2)*ROUND(M49,6),2) -> 200976.54 | P49: PAVIMENTAÇÃO
B50: 30 | C50: SICRO | D50: 5914374 | E50: =VLOOKUP(D50,'SINTÉTICO SICRO'!$A$4:$D$1048576,2,0) -> Transporte com caminhão basculante de 10 m³ - rodovia em revestimento primário | I50: tkm | J50: =ROUND(SUMIF('MOMENTO DE TRANSPORTE - PRINC'!A:A,'RESUMO MODULO TOTAL'!D50,'MOMENTO DE TRANSPORTE - PRINC'!K:K)+SUMIF('MOMENTO DE TRANSPORTE - AUX'!A:A,'RESUMO MODULO TOTAL'!D50,'MOMENTO DE TRANSPORTE - AUX'!K:K),2) -> 0 | K50: 0.2339 | L50: =ROUND(IF(C50="CODEVASF",VLOOKUP(D50,'CPU CODEVASF'!E:I,5,FALSE),VLOOKUP(D50,'SINTÉTICO SICRO'!A:D,4,FALSE)),6) -> 1.04 | M50: =ROUND(IF(C50="CODEVASF",VLOOKUP(D50,'CPU CODEVASF'!E:H,4,FALSE),VLOOKUP(D50,'SINTÉTICO SICRO'!A:D,4,FALSE)*(1+$J$6)),6) -> 1.283256 | N50: 0 | P50: PAVIMENTAÇÃO
B51: 31 | C51: SICRO | D51: 5914389 | E51: =VLOOKUP(D51,'SINTÉTICO SICRO'!$A$4:$D$1048576,2,0) -> Transporte com caminhão basculante de 10 m³ - rodovia pavimentada | I51: tkm | J51: =ROUND(SUMIF('MOMENTO DE TRANSPORTE - PRINC'!A:A,'RESUMO MODULO TOTAL'!D51,'MOMENTO DE TRANSPORTE - PRINC'!K:K)+SUMIF('MOMENTO DE TRANSPORTE - AUX'!A:A,'RESUMO MODULO TOTAL'!D51,'MOMENTO DE TRANSPORTE - AUX'!K:K),2) -> 1151375.15 | K51: 0.2339 | L51: =ROUND(IF(C51="CODEVASF",VLOOKUP(D51,'CPU CODEVASF'!E:I,5,FALSE),VLOOKUP(D51,'SINTÉTICO SICRO'!A:D,4,FALSE)),6) -> 0.81 | M51: =ROUND(IF(C51="CODEVASF",VLOOKUP(D51,'CPU CODEVASF'!E:H,4,FALSE),VLOOKUP(D51,'SINTÉTICO SICRO'!A:D,4,FALSE)*(1+$J$6)),6) -> 0.999459 | N51: 1150752.26 | P51: PAVIMENTAÇÃO
B52: 32 | C52: SICRO | D52: 5914449 | E52: =VLOOKUP(D52,'SINTÉTICO SICRO'!$A$4:$D$1048576,2,0) -> Transporte com caminhão carroceria de 15 t - rodovia em leito natural | I52: tkm | J52: =ROUND(SUMIF('MOMENTO DE TRANSPORTE - PRINC'!A:A,'RESUMO MODULO TOTAL'!D52,'MOMENTO DE TRANSPORTE - PRINC'!K:K)+SUMIF('MOMENTO DE TRANSPORTE - AUX'!A:A,'RESUMO MODULO TOTAL'!D52,'MOMENTO DE TRANSPORTE - AUX'!K:K),2) -> 0 | K52: 0.2339 | L52: =ROUND(IF(C52="CODEVASF",VLOOKUP(D52,'CPU CODEVASF'!E:I,5,FALSE),VLOOKUP(D52,'SINTÉTICO SICRO'!A:D,4,FALSE)),6) -> 1.15 | M52: =ROUND(IF(C52="CODEVASF",VLOOKUP(D52,'CPU CODEVASF'!E:H,4,FALSE),VLOOKUP(D52,'SINTÉTICO SICRO'!A:D,4,FALSE)*(1+$J$6)),6) -> 1.418985 | N52: 0 | P52: PAVIMENTAÇÃO
B53: 33 | C53: SICRO | D53: 5914464 | E53: =VLOOKUP(D53,'SINTÉTICO SICRO'!$A$4:$D$1048576,2,0) -> Transporte com caminhão carroceria de 15 t - rodovia em revestimento primário | I53: tkm | J53: =ROUND(SUMIF('MOMENTO DE TRANSPORTE - PRINC'!A:A,'RESUMO MODULO TOTAL'!D53,'MOMENTO DE TRANSPORTE - PRINC'!K:K)+SUMIF('MOMENTO DE TRANSPORTE - AUX'!A:A,'RESUMO MODULO TOTAL'!D53,'MOMENTO DE TRANSPORTE - AUX'!K:K),2) -> 0 | K53: 0.2339 | L53: =ROUND(IF(C53="CODEVASF",VLOOKUP(D53,'CPU CODEVASF'!E:I,5,FALSE),VLOOKUP(D53,'SINTÉTICO SICRO'!A:D,4,FALSE)),6) -> 0.92 | M53: =ROUND(IF(C53="CODEVASF",VLOOKUP(D53,'CPU CODEVASF'!E:H,4,FALSE),VLOOKUP(D53,'SINTÉTICO SICRO'!A:D,4,FALSE)*(1+$J$6)),6) -> 1.135188 | N53: 0 | P53: PAVIMENTAÇÃO
B54: 34 | C54: SICRO | D54: 5914479 | E54: =VLOOKUP(D54,'SINTÉTICO SICRO'!$A$4:$D$1048576,2,0) -> Transporte com caminhão carroceria de 15 t - rodovia pavimentada | I54: tkm | J54: =ROUND(SUMIF('MOMENTO DE TRANSPORTE - PRINC'!A:A,'RESUMO MODULO TOTAL'!D54,'MOMENTO DE TRANSPORTE - PRINC'!K:K)+SUMIF('MOMENTO DE TRANSPORTE - AUX'!A:A,'RESUMO MODULO TOTAL'!D54,'MOMENTO DE TRANSPORTE - AUX'!K:K),2) -> 713.73 | K54: 0.2339 | L54: =ROUND(IF(C54="CODEVASF",VLOOKUP(D54,'CPU CODEVASF'!E:I,5,FALSE),VLOOKUP(D54,'SINTÉTICO SICRO'!A:D,4,FALSE)),6) -> 0.72 | M54: =ROUND(IF(C54="CODEVASF",VLOOKUP(D54,'CPU CODEVASF'!E:H,4,FALSE),VLOOKUP(D54,'SINTÉTICO SICRO'!A:D,4,FALSE)*(1+$J$6)),6) -> 0.888408 | N54: 634.08 | P54: PAVIMENTAÇÃO
B55: 35 | C55: SICRO | D55: 5914364 | E55: =VLOOKUP(D55,'SINTÉTICO SICRO'!$A$4:$D$1048576,2,0) -> Transporte de cimento ou cal hidratada a granel com caminhão silo de 30 m³ - rodovia em leito natural | I55: tkm | J55: =ROUND(SUMIF('MOMENTO DE TRANSPORTE - PRINC'!A:A,'RESUMO MODULO TOTAL'!D55,'MOMENTO DE TRANSPORTE - PRINC'!K:K)+SUMIF('MOMENTO DE TRANSPORTE - AUX'!A:A,'RESUMO MODULO TOTAL'!D55,'MOMENTO DE TRANSPORTE - AUX'!K:K),2) -> 0 | K55: =M55/L55-1 -> 0.2339 | L55: =ROUND(IF(C55="CODEVASF",VLOOKUP(D55,'CPU CODEVASF'!E:I,5,FALSE),VLOOKUP(D55,'SINTÉTICO SICRO'!A:D,4,FALSE)),6) -> 0.95 | M55: =ROUND(IF(C55="CODEVASF",VLOOKUP(D55,'CPU CODEVASF'!E:H,4,FALSE),VLOOKUP(D55,'SINTÉTICO SICRO'!A:D,4,FALSE)*(1+$J$6)),6) -> 1.172205 | N55: =ROUND(ROUND(J55,2)*ROUND(M55,6),2) -> 0 | P55: PAVIMENTAÇÃO
B56: 36 | C56: SICRO | D56: 5914365 | E56: =VLOOKUP(D56,'SINTÉTICO SICRO'!$A$4:$D$1048576,2,0) -> Transporte de cimento ou cal hidratada a granel com caminhão silo de 30 m³ - rodovia em revestimento primário | I56: tkm | J56: =ROUND(SUMIF('MOMENTO DE TRANSPORTE - PRINC'!A:A,'RESUMO MODULO TOTAL'!D56,'MOMENTO DE TRANSPORTE - PRINC'!K:K)+SUMIF('MOMENTO DE TRANSPORTE - AUX'!A:A,'RESUMO MODULO TOTAL'!D56,'MOMENTO DE TRANSPORTE - AUX'!K:K),2) -> 0 | K56: 0.2339 | L56: =ROUND(IF(C56="CODEVASF",VLOOKUP(D56,'CPU CODEVASF'!E:I,5,FALSE),VLOOKUP(D56,'SINTÉTICO SICRO'!A:D,4,FALSE)),6) -> 0.76 | M56: =ROUND(IF(C56="CODEVASF",VLOOKUP(D56,'CPU CODEVASF'!E:H,4,FALSE),VLOOKUP(D56,'SINTÉTICO SICRO'!A:D,4,FALSE)*(1+$J$6)),6) -> 0.937764 | N56: 0 | P56: PAVIMENTAÇÃO
B57: 37 | C57: SICRO | D57: 5914366 | E57: =VLOOKUP(D57,'SINTÉTICO SICRO'!$A$4:$D$1048576,2,0) -> Transporte de cimento ou cal hidratada a granel com caminhão silo de 30 m³ - rodovia pavimentada | I57: tkm | J57: =ROUND(SUMIF('MOMENTO DE TRANSPORTE - PRINC'!A:A,'RESUMO MODULO TOTAL'!D57,'MOMENTO DE TRANSPORTE - PRINC'!K:K)+SUMIF('MOMENTO DE TRANSPORTE - AUX'!A:A,'RESUMO MODULO TOTAL'!D57,'MOMENTO DE TRANSPORTE - AUX'!K:K),2) -> 0 | K57: =M57/L57-1 -> 0.2339 | L57: =ROUND(IF(C57="CODEVASF",VLOOKUP(D57,'CPU CODEVASF'!E:I,5,FALSE),VLOOKUP(D57,'SINTÉTICO SICRO'!A:D,4,FALSE)),6) -> 0.59 | M57: =ROUND(IF(C57="CODEVASF",VLOOKUP(D57,'CPU CODEVASF'!E:H,4,FALSE),VLOOKUP(D57,'SINTÉTICO SICRO'!A:D,4,FALSE)*(1+$J$6)),6) -> 0.728001 | N57: =ROUND(ROUND(J57,2)*ROUND(M57,6),2) -> 0 | P57: PAVIMENTAÇÃO
B58: 38 | C58: SICRO | D58: 5914539 | E58: =VLOOKUP(D58,'SINTÉTICO SICRO'!$A$4:$D$1048576,2,0) -> Transporte com caminhão betoneira - rodovia em leito natural | I58: tkm | J58: =ROUND(SUMIF('MOMENTO DE TRANSPORTE - PRINC'!A:A,'RESUMO MODULO TOTAL'!D58,'MOMENTO DE TRANSPORTE - PRINC'!K:K)+SUMIF('MOMENTO DE TRANSPORTE - AUX'!A:A,'RESUMO MODULO TOTAL'!D58,'MOMENTO DE TRANSPORTE - AUX'!K:K),2) -> 6652.8 | K58: 0.2339 | L58: =ROUND(IF(C58="CODEVASF",VLOOKUP(D58,'CPU CODEVASF'!E:I,5,FALSE),VLOOKUP(D58,'SINTÉTICO SICRO'!A:D,4,FALSE)),6) -> 1.04 | M58: =ROUND(IF(C58="CODEVASF",VLOOKUP(D58,'CPU CODEVASF'!E:H,4,FALSE),VLOOKUP(D58,'SINTÉTICO SICRO'!A:D,4,FALSE)*(1+$J$6)),6) -> 1.283256 | N58: 8537.25 | P58: PAVIMENTAÇÃO
B59: 39 | C59: SICRO | D59: 5914554 | E59: =VLOOKUP(D59,'SINTÉTICO SICRO'!$A$4:$D$1048576,2,0) -> Transporte com caminhão betoneira - rodovia em revestimento primário | I59: tkm | J59: =ROUND(SUMIF('MOMENTO DE TRANSPORTE - PRINC'!A:A,'RESUMO MODULO TOTAL'!D59,'MOMENTO DE TRANSPORTE - PRINC'!K:K)+SUMIF('MOMENTO DE TRANSPORTE - AUX'!A:A,'RESUMO MODULO TOTAL'!D59,'MOMENTO DE TRANSPORTE - AUX'!K:K),2) -> 0 | K59: 0.2339 | L59: =ROUND(IF(C59="CODEVASF",VLOOKUP(D59,'CPU CODEVASF'!E:I,5,FALSE),VLOOKUP(D59,'SINTÉTICO SICRO'!A:D,4,FALSE)),6) -> 0.83 | M59: =ROUND(IF(C59="CODEVASF",VLOOKUP(D59,'CPU CODEVASF'!E:H,4,FALSE),VLOOKUP(D59,'SINTÉTICO SICRO'!A:D,4,FALSE)*(1+$J$6)),6) -> 1.024137 | N59: 0 | P59: PAVIMENTAÇÃO
B60: 40 | C60: SICRO | D60: 5914569 | E60: =VLOOKUP(D60,'SINTÉTICO SICRO'!$A$4:$D$1048576,2,0) -> Transporte com caminhão betoneira - rodovia pavimentada | I60: tkm | J60: =ROUND(SUMIF('MOMENTO DE TRANSPORTE - PRINC'!A:A,'RESUMO MODULO TOTAL'!D60,'MOMENTO DE TRANSPORTE - PRINC'!K:K)+SUMIF('MOMENTO DE TRANSPORTE - AUX'!A:A,'RESUMO MODULO TOTAL'!D60,'MOMENTO DE TRANSPORTE - AUX'!K:K),2) -> 59875.2 | K60: =M60/L60-1 -> 0.2339 | L60: =ROUND(IF(C60="CODEVASF",VLOOKUP(D60,'CPU CODEVASF'!E:I,5,FALSE),VLOOKUP(D60,'SINTÉTICO SICRO'!A:D,4,FALSE)),6) -> 0.65 | M60: =ROUND(IF(C60="CODEVASF",VLOOKUP(D60,'CPU CODEVASF'!E:H,4,FALSE),VLOOKUP(D60,'SINTÉTICO SICRO'!A:D,4,FALSE)*(1+$J$6)),6) -> 0.802035 | N60: =ROUND(ROUND(J60,2)*ROUND(M60,6),2) -> 48022.01 | P60: PAVIMENTAÇÃO
B61: VALOR TOTAL DO SRP | N61: =INT(SUM(N11:N60)) -> 25614820
B62: Obs.: Os valores estão apresentados com apenas 2 casas decimais, mas os valores da presente planilha foram calculados utilizando a precisão de 6 casas decimais.
N63: =166.33*I8 -> 25614820

Sheet CRONOGRAMA TOTAL
A2: ='RESUMO MODULO TOTAL'!B1 -> CONTRATAÇÃO DE SERVIÇOS DE PAVIMENTAÇÃO ASFÁLTICA COM CONCRETO BETUMINOSO USINADO A QUENTE (CBUQ) EM VIAS URBANAS E RURAIS INSERIDAS NA ÁREA DE ATUAÇÃO DA CODEVASF, NO ESTADO DO AMAPÁ (REGIÃO PORTO GRANDE)
A3: Cronograma Físico e Financeiro
A4: Item | B4: Descrição | C4: Total Por Etapa | D4: 30 DIAS | E4: 60 DIAS | F4: 90 DIAS | G4: 120 DIAS | H4: 150 DIAS | I4: 180 DIAS | J4: 210 DIAS | K4: 240 DIAS | L4: 270 DIAS | M4: 300 DIAS | N4: 330 DIAS | O4: 360 DIAS
B5: ='RESUMO MODULO TOTAL'!E10 -> MOBILIZAÇÃO/DESMOBILIZAÇÃO | C5: =SUM(D5:O5) -> 1 | D5: 0.5 | O5: 0.5
C6: =SUM('RESUMO MODULO TOTAL'!N11:N12) -> 837857.558 | D6: =$C$6*D5 -> 418928.779 | O6: =$C$6*O5 -> 418928.779 | P6: =SUM(D6:O6) -> 837857.558 | Q6: =IF(P6=C6,"OK","") -> OK
B7: ='RESUMO MODULO TOTAL'!E13 -> INSTALAÇÃO DE CANTEIRO | C7: =SUM(D7:O7) -> 1 | D7: 0.1 | E7: 0.5 | F7: 0.4
C8: =SUM('RESUMO MODULO TOTAL'!N14:N16) -> 785015.08 | D8: =$C$8*D7 -> 78501.508 | E8: =$C$8*E7 -> 392507.54 | F8: 314006.032 | G8: 0 | H8: 0 | I8: 0 | J8: 0 | K8: 0 | L8: 0 | M8: 0 | N8: 0 | O8: 0 | P8: =SUM(D8:O8) -> 785015.08 | Q8: =IF(P8=C8,"OK","") -> OK
B9: ='RESUMO MODULO TOTAL'!E17 -> ADMINISTRAÇÃO LOCAL DA OBRA | C9: =SUM(D9:O9) -> 1.000000031 | D9: =(D6+D8+D12+D14+D16+D18+D20+D22+D24+D26)/($O$33-$C$10) -> 0.0330097297 | E9: 0.01607203669 | F9: 0.02568003837 | G9: 0.01282240901 | H9: 0.01366906764 | I9: 0.1395624806 | J9: 0.1287779752 | K9: 0.1287779752 | L9: 0.1287779752 | M9: 0.1287779752 | N9: 0.17012375 | O9: =(O6+O8+O12+O14+O16+O18+O20+O22+O24+O26)/($O$33-$C$10) -> 0.07394861865
C10: =SUM('RESUMO MODULO TOTAL'!N18) -> 1193052.71 | D10: =$C$10*D9 -> 39382.34747 | E10: =$C$10*E9 -> 19174.78693 | F10: =$C$10*F9 -> 30637.63937 | G10: 15297.80982 | H10: 16307.91819 | I10: 166505.3957 | J10: 153638.9123 | K10: 153638.9123 | L10: 153638.9123 | M10: 153638.9123 | N10: 202966.6009 | O10: 88224.59988 | P10: =SUM(D10:O10) -> 1193052.748 | Q10: =IF(P10=C10,"OK","") -> 
B11: ='RESUMO MODULO TOTAL'!E19 -> TERRAPLANAGEM | C11: =SUM(D11:O11) -> 1 | F11: =1/4 -> 0.25 | G11: =1/4 -> 0.25 | H11: =1/4 -> 0.25 | I11: =1/4 -> 0.25
C12: =SUM('RESUMO MODULO TOTAL'!N20:N21) -> 689014.7 | D12: =$C$14*D11 -> 0 | E12: =$C$12*E11 -> 0 | F12: 172253.675 | G12: 172253.675 | H12: 172253.675 | I12: 172253.675 | J12: 0 | K12: 0 | L12: 0 | M12: 0 | N12: 0 | O12: 0 | P12: =SUM(D12:O12) -> 689014.7 | Q12: =IF(P12=C12,"OK","") -> OK
B13: ='RESUMO MODULO TOTAL'!E22 -> PAVIMENTAÇÃO | C13: =SUM(D13:O13) -> 1 | I13: =1/6 -> 0.1666666667 | J13: =1/6 -> 0.1666666667 | K13: 0.1666666667 | L13: 0.1666666667 | M13: 0.1666666667 | N13: 0.1666666667
C14: =SUM('RESUMO MODULO TOTAL'!N23:N28) -> 8483982.75 | D14: =$C$14*D13 -> 0 | E14: =$C$14*E13 -> 0 | F14: 0 | G14: 0 | H14: 0 | I14: 1413997.125 | J14: 1413997.125 | K14: 1413997.125 | L14: 1413997.125 | M14: 1413997.125 | N14: 1413997.125 | O14: 0 | P14: =SUM(D14:O14) -> 8483982.75 | Q14: =IF(P14=C14,"OK","") -> OK
B15: AQUISIÇÃO E TRANSPORTE DE MATERIAL BETUMINOSO | C15: =SUM(D15:O15) -> 1 | I15: =1/6 -> 0.1666666667 | J15: 0.1666666667 | K15: 0.1666666667 | L15: 0.1666666667 | M15: 0.1666666667 | N15: 0.1666666667
C16: =SUM('RESUMO MODULO TOTAL'!N30:N35) -> 9540578.42 | D16: =$C$16*D15 -> 0 | E16: =$C$16*E15 -> 0 | F16: 0 | G16: 0 | H16: 0 | I16: 1590096.403 | J16: 1590096.403 | K16: 1590096.403 | L16: 1590096.403 | M16: 1590096.403 | N16: 1590096.403 | O16: 0 | P16: =SUM(D16:O16) -> 9540578.42 | Q16: =IF(P16=C16,"OK","") -> OK
B17: ='RESUMO MODULO TOTAL'!E36 -> SINALIZAÇÃO | C17: =SUM(D17:O17) -> 1 | O17: 1
C18: =SUM('RESUMO MODULO TOTAL'!N37:N40) -> 306844.18 | D18: =$C$18*D17 -> 0 | E18: =$C$18*E17 -> 0 | F18: 0 | G18: 0 | H18: 0 | I18: 0 | J18: 0 | K18: 0 | L18: 0 | M18: 0 | N18: 0 | O18: 306844.18 | P18: =SUM(D18:O18) -> 306844.18 | Q18: =IF(P18=C18,"OK","") -> OK
B19: ='RESUMO MODULO TOTAL'!E41 -> DRENAGEM | C19: =SUM(D19:O19) -> 1 | N19: 0.5 | O19: 0.5
C20: =SUM('RESUMO MODULO TOTAL'!N42:N43) -> 2019473.78 | D20: =$C$20*D19 -> 0 | E20: =$C$20*E19 -> 0 | F20: 0 | G20: 0 | H20: 0 | I20: 0 | J20: 0 | K20: 0 | L20: 0 | M20: 0 | N20: 1009736.89 | O20: 1009736.89 | P20: =SUM(D20:O20) -> 2019473.78 | Q20: =IF(P20=C20,"OK","") -> OK
B21: ='RESUMO MODULO TOTAL'!E44 -> SERVIÇOS COMPLEMENTARES | C21: =SUM(D21:O21) -> 1 | H21: 0.5 | I21: 0.5
C22: =SUM('RESUMO MODULO TOTAL'!N45) -> 41353.8 | D22: =$C$22*D21 -> 0 | E22: =$C$22*E21 -> 0 | F22: 0 | G22: 0 | H22: 20676.9 | I22: 20676.9 | J22: 0 | K22: 0 | L22: 0 | M22: 0 | N22: 0 | O22: 0 | P22: =SUM(D22:O22) -> 41353.8 | Q22: =IF(P22=C22,"OK","") -> OK
B23: ='RESUMO MODULO TOTAL'!E46 -> PROJETO EXECUTIVO | C23: =SUM(D23:O23) -> 1 | D23: 1
C24: ='RESUMO MODULO TOTAL'!N47 -> 308725.65 | D24: =$C$24*D23 -> 308725.65 | E24: =$C$24*E23 -> 0 | F24: 0 | G24: 0 | H24: 0 | I24: 0 | J24: 0 | K24: 0 | L24: 0 | M24: 0 | N24: 0 | O24: 0 | P24: =SUM(D24:O24) -> 308725.65 | Q24: =IF(P24=C24,"OK","") -> OK
B25: ='RESUMO MODULO TOTAL'!E48 -> MOMENTO DE TRANSPORTE | C25: =SUM(D25:O25) -> 1 | F25: 0.1 | G25: 0.1 | H25: 0.1 | I25: 0.15 | J25: 0.1 | K25: 0.1 | L25: 0.1 | M25: 0.1 | N25: 0.1 | O25: 0.05
C26: =SUM('RESUMO MODULO TOTAL'!N49:N60) -> 1408922.14 | D26: =$C$26*D25 -> 0 | E26: =$C$26*E25 -> 0 | F26: 140892.214 | G26: 140892.214 | H26: 140892.214 | I26: 211338.321 | J26: 140892.214 | K26: 140892.214 | L26: 140892.214 | M26: 140892.214 | N26: 140892.214 | O26: 70446.107 | P26: =SUM(D26:O26) -> 1408922.14 | Q26: =IF(P26=C26,"OK","") -> OK
A28: Porcentagem | D28: =SUM(D6+D8+D10+D12+D14+D16+D18+D20+D22+D24+D26)/$O$33 -> 0.0330097297 | E28: =SUM(E6+E8+E10+E12+E14+E16+E18+E20+E22+E24+E26)/$O$33 -> 0.01607203669 | F28: 0.02568003837 | G28: 0.01282240901 | H28: 0.01366906764 | I28: 0.1395624806 | J28: 0.1287779752 | K28: 0.1287779752 | L28: 0.1287779752 | M28: 0.1287779752 | N28: 0.17012375 | O28: =SUM(O6+O8+O10+O12+O14+O16+O18+O20+O22+O24+O26)/$O$33 -> 0.07394861865
A29: Custo | D29: =$O$33*D28 -> 845538.2844 | E29: =$O$33*E28 -> 411682.3269 | F29: =$O$33*F28 -> 657789.5604 | G29: 328443.6988 | H29: 350130.7072 | I29: 3574867.82 | J29: 3298624.655 | K29: 3298624.655 | L29: 3298624.655 | M29: 3298624.655 | N29: 4357689.233 | O29: 1894180.556
A30: Porcentagem Acumulado | D30: =D28 -> 0.0330097297 | E30: =D30+E28 -> 0.04908176639 | F30: =E30+F28 -> 0.07476180476 | G30: 0.08758421377 | H30: 0.1012532814 | I30: 0.240815762 | J30: 0.3695937372 | K30: 0.4983717124 | L30: 0.6271496876 | M30: 0.7559276628 | N30: 0.9260514128 | O30: =N30+O28 -> 1.000000031
A31: Custo Acumulado | D31: =D29 -> 845538.2844 | E31: =D31+E29 -> 1257220.611 | F31: 1915010.172 | G31: 2243453.871 | H31: 2593584.578 | I31: 6168452.398 | J31: 9467077.052 | K31: 12765701.71 | L31: 16064326.36 | M31: 19362951.02 | N31: 23720640.25 | O31: =INT(N31+O29) -> 25614820
D33: Total Geral | N33: R$ | O33: =INT(C6+C8+C10+C12+C14+C16+C18+C20+C22+C24+C26) -> 25614820
O36: =O31-O33 -> 0

Sheet CONSUMO DE MAT. B TOTAL
B3: CONSUMO DO MATERIAL BETUMINOSO TOTAL
B5: TRECHO | D5: QUANTIDADES | M5: MAT. BETUMINOSO
B6: Inicio (km) | C6: Fim (km) | D6: Extensão (m) | E6: Largura (m) | F6: Espess. (m) | G6: Área (m2) | H6: Volume (m3) | I6: Densidade (t/m3) | J6: Massa (t) | K6: Unid | L6: Quant. | M6: Tipo | N6: Consumo Taxa de Aplicação | O6: Unid. | P6: Quant.
B7: IMPRIMAÇÃO
F8: 1 | G8: ='MC MODULO'!H57 -> 154000 | M8: EAI | N8: 1,3 l/m2 | O8: t | P8: =ROUND((G8*1.3)/1000,2) -> 200.2
F9: 1 | H9: =G9*F9 -> 0 | M9: CM-30 | N9: 1,2 l/m2 | O9: t | P9: =ROUND((G9*1.2)/1000,2) -> 0
B10: PINTURA DE LIGAÇÃO
F11: 1 | G11: ='MC MODULO'!H63 -> 154000 | H11: =G11*F11 -> 154000 | M11: RR-1C | N11: 0,45 l/m2 | O11: t | P11: =ROUND((G11*0.45)/1000,2) -> 69.3
B12: CBUQ FAIXA "C"
H13: =G13*F13 -> 0 | J13: ='MC MODULO'!H51 -> 18480 | M13: CAP-50/70 | N13: 64,49 t/m3 | O13: t | P13: =ROUND((J13*63.23)/1000,2) -> 1168.49
B14: CBUQ FAIXA "B"
H15: =G15*F15 -> 0 | M15: CAP-50/70 | N15: 56,60 t/m3 | O15: t | P15: =ROUND((J15*56.6)/1000,2) -> 0
H17: =G17*F17 -> 0

Sheet Mob
A4: ='RESUMO MODULO TOTAL'!B1 -> CONTRATAÇÃO DE SERVIÇOS DE PAVIMENTAÇÃO ASFÁLTICA COM CONCRETO BETUMINOSO USINADO A QUENTE (CBUQ) EM VIAS URBANAS E RURAIS INSERIDAS NA ÁREA DE ATUAÇÃO DA CODEVASF, NO ESTADO DO AMAPÁ (REGIÃO PORTO GRANDE)
A5: MOBILIZAÇÃO/DESMOBILIZAÇÃO (MOB) | F5: Frentes de serviços | H5: ='MC MODULO'!G1 -> 11
F6: Distância da Capital ao Canteiro: | H6: 112 | I6: Fica a cargo de cada SR colocar a distancia adequada de acordo com o historico de mobilização
F8: Velocidade média de transporte (pavim.): | H8: 60
A10: Transporte dos equipamentos
A11: CODIGO | B11: EQUIPAMENTO | C11: VEÍCULO TRANSPORTADOR | D11: QTDE | E11: K | F11: FU | G11: CUSTO DO TRANSPORTE
G12: (R$/h) | H12: (R$)/km
A13: E9524 | B13: =VLOOKUP(A13,Equipamentos!$A:$K,2,FALSE) -> Motoniveladora - 93 kW | C13: =IFERROR(INDEX('Tabelas 2 e 3 mob'!A:K,MATCH(A13,'Tabelas 2 e 3 mob'!A:A,0),9),"ERRO") -> E9665 | D13: 1 | E13: 2 | F13: 1 | G13: =IF(C13="Veículo(s) da própria frota.",0,INDEX(Equipamentos!B:K,MATCH(C13,Equipamentos!A:A,0),9)) -> 394.6665 | H13: =((D13*E13*F13)/$H$8)*G13 -> 13.15555
A14: E9526 | B14: =VLOOKUP(A14,Equipamentos!$A:$K,2,FALSE) -> Retroescavadeira de pneus - capacidade da caçamba da pá-carregadeira de 0,76 m³ e da retroescavadeira de 0,29 m³ - 58 kW | C14: =IFERROR(INDEX('Tabelas 2 e 3 mob'!A:K,MATCH(A14,'Tabelas 2 e 3 mob'!A:A,0),9),"ERRO") -> E9665 | D14: 1 | E14: 2 | F14: 1 | G14: =IF(C14="Veículo(s) da própria frota.",0,INDEX(Equipamentos!B:K,MATCH(C14,Equipamentos!A:A,0),9)) -> 394.6665 | H14: =((D14*E14*F14)/$H$8)*G14 -> 13.15555
A15: E9577 | B15: =VLOOKUP(A15,Equipamentos!$A:$K,2,FALSE) -> Trator agrícola sobre pneus - 77 kW | C15: =IFERROR(INDEX('Tabelas 2 e 3 mob'!A:K,MATCH(A15,'Tabelas 2 e 3 mob'!A:A,0),9),"ERRO") -> E9665 | D15: 1 | E15: 2 | F15: 0.5 | G15: =IF(C15="Veículo(s) da própria frota.",0,INDEX(Equipamentos!B:K,MATCH(C15,Equipamentos!A:A,0),9)) -> 394.6665 | H15: 6.577775
A16: E9518 | B16: =VLOOKUP(A16,Equipamentos!$A:$K,2,FALSE) -> Grade de 24 discos rebocável de D = 60 cm (24") | C16: =IFERROR(INDEX('Tabelas 2 e 3 mob'!A:K,MATCH(A16,'Tabelas 2 e 3 mob'!A:A,0),9),"ERRO") -> Veículo(s) da própria frota. | D16: 1 | E16: 2 | F16: 0 | G16: =IF(C16="Veículo(s) da própria frota.",0,INDEX(Equipamentos!B:K,MATCH(C16,Equipamentos!A:A,0),9)) -> 0 | H16: 0
A17: E9615 | B17: =VLOOKUP(A17,Equipamentos!$A:$K,2,FALSE) -> Usina misturadora de solos com capacidade de 300 t/h - 44 kW | C17: =IFERROR(INDEX('Tabelas 2 e 3 mob'!A:K,MATCH(A17,'Tabelas 2 e 3 mob'!A:A,0),9),"ERRO") -> E9018 | D17: 1 | E17: 2 | F17: 2 | G17: =IF(C17="Veículo(s) da própria frota.",0,INDEX(Equipamentos!B:K,MATCH(C17,Equipamentos!A:A,0),9)) -> 530.8761 | H17: 35.39174
A18: E9530 | B18: =VLOOKUP(A18,Equipamentos!$A:$K,2,FALSE) -> Rolo compactador liso vibratório autopropelido por pneus de 11 t - 97 kW | C18: =IFERROR(INDEX('Tabelas 2 e 3 mob'!A:K,MATCH(A18,'Tabelas 2 e 3 mob'!A:A,0),9),"ERRO") -> E9666 | D18: 1 | E18: 2 | F18: 0.5 | G18: =IF(C18="Veículo(s) da própria frota.",0,INDEX(Equipamentos!B:K,MATCH(C18,Equipamentos!A:A,0),9)) -> 421.7378 | H18: 7.028963333
A19: E9558 | B19: =VLOOKUP(A19,Equipamentos!$A:$K,2,FALSE) -> Tanque de estocagem de asfalto com capacidade de 30.000 l | C19: =IFERROR(INDEX('Tabelas 2 e 3 mob'!A:K,MATCH(A19,'Tabelas 2 e 3 mob'!A:A,0),9),"ERRO") -> E9665 | D19: 1 | E19: 2 | F19: 1 | G19: =IF(C19="Veículo(s) da própria frota.",0,INDEX(Equipamentos!B:K,MATCH(C19,Equipamentos!A:A,0),9)) -> 394.6665 | H19: 13.15555
A20: E9758 | B20: =VLOOKUP(A20,Equipamentos!$A:$K,2,FALSE) -> Vibroacabadora de asfalto sobre pneus - 82 kW | C20: =IFERROR(INDEX('Tabelas 2 e 3 mob'!A:K,MATCH(A20,'Tabelas 2 e 3 mob'!A:A,0),9),"ERRO") -> E9018 | D20: 1 | E20: 2 | F20: 0.5 | G20: =IF(C20="Veículo(s) da própria frota.",0,INDEX(Equipamentos!B:K,MATCH(C20,Equipamentos!A:A,0),9)) -> 530.8761 | H20: 8.847935
A21: E9685 | B21: =VLOOKUP(A21,Equipamentos!$A:$K,2,FALSE) -> Rolo compactador pé de carneiro vibratório autopropelido por pneus de 11,6 t - 82 kW | C21: =IFERROR(INDEX('Tabelas 2 e 3 mob'!A:K,MATCH(A21,'Tabelas 2 e 3 mob'!A:A,0),9),"ERRO") -> E9666 | D21: 1 | E21: 2 | F21: 0.5 | G21: =IF(C21="Veículo(s) da própria frota.",0,INDEX(Equipamentos!B:K,MATCH(C21,Equipamentos!A:A,0),9)) -> 421.7378 | H21: 7.028963333
A22: E9605 | B22: =VLOOKUP(A22,Equipamentos!$A:$K,2,FALSE) -> Caminhão tanque com capacidade de 6.000 l - 136 kW | C22: =IFERROR(INDEX('Tabelas 2 e 3 mob'!A:K,MATCH(A22,'Tabelas 2 e 3 mob'!A:A,0),9),"ERRO") -> E9605 | D22: 1 | E22: 1 | F22: 1 | G22: =IF(C22="Veículo(s) da própria frota.",0,INDEX(Equipamentos!B:K,MATCH(C22,Equipamentos!A:A,0),9)) -> 252.1003 | H22: 4.201671667
A23: E9579 | B23: =VLOOKUP(A23,Equipamentos!$A:$K,2,FALSE) -> Caminhão basculante com capacidade de 10 m³ - 210 kW | C23: =IFERROR(INDEX('Tabelas 2 e 3 mob'!A:K,MATCH(A23,'Tabelas 2 e 3 mob'!A:A,0),9),"ERRO") -> E9579 | D23: 5 | E23: 1 | F23: 1 | G23: =IF(C23="Veículo(s) da própria frota.",0,INDEX(Equipamentos!B:K,MATCH(C23,Equipamentos!A:A,0),9)) -> 303.2303 | H23: 25.26919167
A24: E9509 | B24: =VLOOKUP(A24,Equipamentos!$A:$K,2,FALSE) -> Caminhão tanque distribuidor de asfalto com capacidade de 6.000 l - 7 kW/136 kW | C24: =IFERROR(INDEX('Tabelas 2 e 3 mob'!A:K,MATCH(A24,'Tabelas 2 e 3 mob'!A:A,0),9),"ERRO") -> E9509 | D24: 1 | E24: 1 | F24: 1 | G24: =IF(C24="Veículo(s) da própria frota.",0,INDEX(Equipamentos!B:K,MATCH(C24,Equipamentos!A:A,0),9)) -> 263.5835 | H24: 4.393058333
A25: E9762 | B25: =VLOOKUP(A25,Equipamentos!$A:$K,2,FALSE) -> Rolo compactador de pneus autopropelido de 27 t - 85 kW | C25: =IFERROR(INDEX('Tabelas 2 e 3 mob'!A:K,MATCH(A25,'Tabelas 2 e 3 mob'!A:A,0),9),"ERRO") -> E9666 | D25: 1 | E25: 2 | F25: 0.5 | G25: =IF(C25="Veículo(s) da própria frota.",0,INDEX(Equipamentos!B:K,MATCH(C25,Equipamentos!A:A,0),9)) -> 421.7378 | H25: 7.028963333
A26: E9681 | B26: =VLOOKUP(A26,Equipamentos!$A:$K,2,FALSE) -> Rolo compactador liso tandem vibratório autopropelido de 10,4 t - 82 kW | C26: =IFERROR(INDEX('Tabelas 2 e 3 mob'!A:K,MATCH(A26,'Tabelas 2 e 3 mob'!A:A,0),9),"ERRO") -> E9666 | D26: 1 | E26: 2 | F26: 0.5 | G26: =IF(C26="Veículo(s) da própria frota.",0,INDEX(Equipamentos!B:K,MATCH(C26,Equipamentos!A:A,0),9)) -> 421.7378 | H26: 7.028963333
A27: E9545 | B27: =VLOOKUP(A27,Equipamentos!$A:$K,2,FALSE) -> Vibroacabadora de asfalto sobre esteiras - 82 kW | C27: =IFERROR(INDEX('Tabelas 2 e 3 mob'!A:K,MATCH(A27,'Tabelas 2 e 3 mob'!A:A,0),9),"ERRO") -> E9018 | D27: 1 | E27: 2 | F27: 0.5 | G27: =IF(C27="Veículo(s) da própria frota.",0,INDEX(Equipamentos!B:K,MATCH(C27,Equipamentos!A:A,0),9)) -> 530.8761 | H27: 8.847935
A28: E9571 | B28: =VLOOKUP(A28,Equipamentos!$A:$K,2,FALSE) -> Caminhão tanque com capacidade de 10.000 l - 188 kW | C28: =IFERROR(INDEX('Tabelas 2 e 3 mob'!A:K,MATCH(A28,'Tabelas 2 e 3 mob'!A:A,0),9),"ERRO") -> E9571 | D28: 1 | E28: 1 | F28: 1 | G28: =IF(C28="Veículo(s) da própria frota.",0,INDEX(Equipamentos!B:K,MATCH(C28,Equipamentos!A:A,0),9)) -> 330.9726 | H28: 5.51621
A29: E9514 | B29: =VLOOKUP(A29,Equipamentos!$A:$K,2,FALSE) -> Distribuidor de agregados sobre pneus autopropelido - 130 kW | C29: =IFERROR(INDEX('Tabelas 2 e 3 mob'!A:K,MATCH(A29,'Tabelas 2 e 3 mob'!A:A,0),9),"ERRO") -> E9665 | D29: 1 | E29: 2 | F29: 0.5 | G29: =IF(C29="Veículo(s) da própria frota.",0,INDEX(Equipamentos!B:K,MATCH(C29,Equipamentos!A:A,0),9)) -> 394.6665 | H29: 6.577775
A30: E9511 | B30: =VLOOKUP(A30,Equipamentos!$A:$K,2,FALSE) -> Carregadeira de pneus com capacidade de 3,40 m³ - 195 kW | C30: =IFERROR(INDEX('Tabelas 2 e 3 mob'!A:K,MATCH(A30,'Tabelas 2 e 3 mob'!A:A,0),9),"ERRO") -> E9665 | D30: 1 | E30: 2 | F30: 1 | G30: =IF(C30="Veículo(s) da própria frota.",0,INDEX(Equipamentos!B:K,MATCH(C30,Equipamentos!A:A,0),9)) -> 394.6665 | H30: 13.15555
A31: E9779 | B31: =VLOOKUP(A31,Equipamentos!$A:$K,2,FALSE) -> Grupo gerador - 113 kVA | C31: =IFERROR(INDEX('Tabelas 2 e 3 mob'!A:K,MATCH(A31,'Tabelas 2 e 3 mob'!A:A,0),9),"ERRO") -> Veículo(s) da própria frota. | D31: 1 | E31: 2 | F31: 0 | G31: =IF(C31="Veículo(s) da própria frota.",0,INDEX(Equipamentos!B:K,MATCH(C31,Equipamentos!A:A,0),9)) -> 0 | H31: 0
A32: E9559 | B32: =VLOOKUP(A32,Equipamentos!$A:$K,2,FALSE) -> Aquecedor de fluido térmico - 12 kW | C32: =IFERROR(INDEX('Tabelas 2 e 3 mob'!A:K,MATCH(A32,'Tabelas 2 e 3 mob'!A:A,0),9),"ERRO") -> Veículo(s) da própria frota. | D32: 1 | E32: 2 | F32: 0 | G32: =IF(C32="Veículo(s) da própria frota.",0,INDEX(Equipamentos!B:K,MATCH(C32,Equipamentos!A:A,0),9)) -> 0 | H32: 0
A33: E9584 | B33: =VLOOKUP(A33,Equipamentos!$A:$K,2,FALSE) -> Carregadeira de pneus com capacidade de 1,72 m³ - 113 kW | C33: =IFERROR(INDEX('Tabelas 2 e 3 mob'!A:K,MATCH(A33,'Tabelas 2 e 3 mob'!A:A,0),9),"ERRO") -> E9665 | D33: 1 | E33: 2 | F33: 1 | G33: =IF(C33="Veículo(s) da própria frota.",0,INDEX(Equipamentos!B:K,MATCH(C33,Equipamentos!A:A,0),9)) -> 394.6665 | H33: 13.15555
A34: E9021 | B34: =VLOOKUP(A34,Equipamentos!$A:$K,2,FALSE) -> Grupo gerador - 456 kVA | C34: =IFERROR(INDEX('Tabelas 2 e 3 mob'!A:K,MATCH(A34,'Tabelas 2 e 3 mob'!A:A,0),9),"ERRO") -> E9508 | D34: 1 | E34: 2 | F34: 1 | G34: =IF(C34="Veículo(s) da própria frota.",0,INDEX(Equipamentos!B:K,MATCH(C34,Equipamentos!A:A,0),9)) -> 185.1405 | H34: 6.17135
A35: E9687 | B35: =VLOOKUP(A35,Equipamentos!$A:$K,2,FALSE) -> Caminhão carroceria com capacidade de 5 t - 115 kW | C35: =IFERROR(INDEX('Tabelas 2 e 3 mob'!A:K,MATCH(A35,'Tabelas 2 e 3 mob'!A:A,0),9),"ERRO") -> E9687 | D35: 1 | E35: 1 | F35: 1 | G35: =IF(C35="Veículo(s) da própria frota.",0,INDEX(Equipamentos!B:K,MATCH(C35,Equipamentos!A:A,0),9)) -> 151.9075 | H35: 2.531791667
A36: E9667 | B36: =VLOOKUP(A36,Equipamentos!$A:$K,2,FALSE) -> Caminhão basculante com capacidade de 14 m³ - 210 kW | C36: =IFERROR(INDEX('Tabelas 2 e 3 mob'!A:K,MATCH(A36,'Tabelas 2 e 3 mob'!A:A,0),9),"ERRO") -> E9667 | D36: 1 | E36: 1 | F36: 1 | G36: =IF(C36="Veículo(s) da própria frota.",0,INDEX(Equipamentos!B:K,MATCH(C36,Equipamentos!A:A,0),9)) -> 304.3057 | H36: 5.071761667
A37: E9644 | B37: =VLOOKUP(A37,Equipamentos!$A:$K,2,FALSE) -> Caminhão demarcador de faixas com sistema de pintura a frio - 28 kW/115 kW | C37: =IFERROR(INDEX('Tabelas 2 e 3 mob'!A:K,MATCH(A37,'Tabelas 2 e 3 mob'!A:A,0),9),"ERRO") -> E9644 | D37: 1 | E37: 1 | F37: 1 | G37: =IF(C37="Veículo(s) da própria frota.",0,INDEX(Equipamentos!B:K,MATCH(C37,Equipamentos!A:A,0),9)) -> 380.3797 | H37: 6.339661667
A38: E9592 | B38: =VLOOKUP(A38,Equipamentos!$A:$K,2,FALSE) -> Caminhão carroceria com capacidade de 15 t - 188 kW | C38: =IFERROR(INDEX('Tabelas 2 e 3 mob'!A:K,MATCH(A38,'Tabelas 2 e 3 mob'!A:A,0),9),"ERRO") -> E9592 | D38: 1 | E38: 1 | F38: 1 | G38: =IF(C38="Veículo(s) da própria frota.",0,INDEX(Equipamentos!B:K,MATCH(C38,Equipamentos!A:A,0),9)) -> 269.7472 | H38: 4.495786667
A39: E9540 | B39: =VLOOKUP(A39,Equipamentos!$A:$K,2,FALSE) -> Trator sobre esteiras com lâmina - 127 kW | C39: =IFERROR(INDEX('Tabelas 2 e 3 mob'!A:K,MATCH(A39,'Tabelas 2 e 3 mob'!A:A,0),9),"ERRO") -> E9018 | D39: 1 | E39: 2 | F39: 0.5 | G39: =IF(C39="Veículo(s) da própria frota.",0,INDEX(Equipamentos!B:K,MATCH(C39,Equipamentos!A:A,0),9)) -> 530.8761 | H39: 8.847935
A40: E9515 | B40: =VLOOKUP(A40,Equipamentos!$A:$K,2,FALSE) -> Escavadeira hidráulica sobre esteiras com caçamba com capacidade de 1,56 m³ - 118 kW | C40: =IFERROR(INDEX('Tabelas 2 e 3 mob'!A:K,MATCH(A40,'Tabelas 2 e 3 mob'!A:A,0),9),"ERRO") -> E9666 | D40: 1 | E40: 2 | F40: 1 | G40: =IF(C40="Veículo(s) da própria frota.",0,INDEX(Equipamentos!B:K,MATCH(C40,Equipamentos!A:A,0),9)) -> 421.7378 | H40: 14.05792667
A41: E9506 | B41: =VLOOKUP(A41,Equipamentos!$A:$K,2,FALSE) -> Caminhão basculante com capacidade de 6 m³ - 136 kW | C41: =IFERROR(INDEX('Tabelas 2 e 3 mob'!A:K,MATCH(A41,'Tabelas 2 e 3 mob'!A:A,0),9),"ERRO") -> E9506 | D41: 1 | E41: 1 | F41: 1 | G41: =IF(C41="Veículo(s) da própria frota.",0,INDEX(Equipamentos!B:K,MATCH(C41,Equipamentos!A:A,0),9)) -> 185.7182 | H41: 3.095303333
A42: E9256 | B42: =VLOOKUP(A42,Equipamentos!$A:$K,2,FALSE) -> Equipamento para pintura com cal rebocável com dois bicos aplicadores e capacidade de 2.200 l | C42: =IFERROR(INDEX('Tabelas 2 e 3 mob'!A:K,MATCH(A42,'Tabelas 2 e 3 mob'!A:A,0),9),"ERRO") -> Veículo(s) da própria frota. | D42: 1 | E42: 2 | F42: 0 | G42: =IF(C42="Veículo(s) da própria frota.",0,INDEX(Equipamentos!B:K,MATCH(C42,Equipamentos!A:A,0),9)) -> 0 | H42: 0
A43: E9156 | B43: =VLOOKUP(A43,Equipamentos!$A:$K,2,FALSE) -> Soprador de ar costal - 2,6 kW | C43: =IFERROR(INDEX('Tabelas 2 e 3 mob'!A:K,MATCH(A43,'Tabelas 2 e 3 mob'!A:A,0),9),"ERRO") -> Veículo(s) da própria frota. | D43: 1 | E43: 2 | F43: 0 | G43: =IF(C43="Veículo(s) da própria frota.",0,INDEX(Equipamentos!B:K,MATCH(C43,Equipamentos!A:A,0),9)) -> 0 | H43: 0
A44: E9146 | B44: =VLOOKUP(A44,Equipamentos!$A:$K,2,FALSE) -> Caminhão silo com capacidade de 30 m³ - 265 kW | C44: =IFERROR(INDEX('Tabelas 2 e 3 mob'!A:K,MATCH(A44,'Tabelas 2 e 3 mob'!A:A,0),9),"ERRO") -> E9146 | D44: 1 | E44: 1 | F44: 1 | G44: =IF(C44="Veículo(s) da própria frota.",0,INDEX(Equipamentos!B:K,MATCH(C44,Equipamentos!A:A,0),9)) -> 465.4127 | H44: 7.756878333
A45: E9599 | B45: =VLOOKUP(A45,Equipamentos!$A:$K,2,FALSE) -> Central de concreto com capacidade de 30 m³/h - dosadora RS | C45: =IFERROR(INDEX('Tabelas 2 e 3 mob'!A:K,MATCH(A45,'Tabelas 2 e 3 mob'!A:A,0),9),"ERRO") -> E9018 | D45: 1 | E45: 2 | F45: 1 | G45: =IF(C45="Veículo(s) da própria frota.",0,INDEX(Equipamentos!B:K,MATCH(C45,Equipamentos!A:A,0),9)) -> 530.8761 | H45: 17.69587
A46: E9103 | B46: =VLOOKUP(A46,Equipamentos!$A:$K,2,FALSE) -> Extrusora para meio-fio de concreto - 10,44 kW | C46: =IFERROR(INDEX('Tabelas 2 e 3 mob'!A:K,MATCH(A46,'Tabelas 2 e 3 mob'!A:A,0),9),"ERRO") -> Veículo(s) da própria frota. | D46: 1 | E46: 2 | F46: 0 | G46: =IF(C46="Veículo(s) da própria frota.",0,INDEX(Equipamentos!B:K,MATCH(C46,Equipamentos!A:A,0),9)) -> 0 | H46: 0
A47: E9071 | B47: =VLOOKUP(A47,Equipamentos!$A:$K,2,FALSE) -> Transportador manual carrinho de mão com capacidade de 80 l | C47: =IFERROR(INDEX('Tabelas 2 e 3 mob'!A:K,MATCH(A47,'Tabelas 2 e 3 mob'!A:A,0),9),"ERRO") -> Veículo(s) da própria frota. | D47: 0 | E47: 2 | F47: 0 | G47: =IF(C47="Veículo(s) da própria frota.",0,INDEX(Equipamentos!B:K,MATCH(C47,Equipamentos!A:A,0),9)) -> 0 | H47: 0
A48: E9064 | B48: =VLOOKUP(A48,Equipamentos!$A:$K,2,FALSE) -> Transportador manual gerica com capacidade de 180 l | C48: =IFERROR(INDEX('Tabelas 2 e 3 mob'!A:K,MATCH(A48,'Tabelas 2 e 3 mob'!A:A,0),9),"ERRO") -> Veículo(s) da própria frota. | D48: 0 | E48: 2 | F48: 0 | G48: =IF(C48="Veículo(s) da própria frota.",0,INDEX(Equipamentos!B:K,MATCH(C48,Equipamentos!A:A,0),9)) -> 0 | H48: 0
A49: E9066 | B49: =VLOOKUP(A49,Equipamentos!$A:$K,2,FALSE) -> Grupo gerador - 14 kVA | C49: =IFERROR(INDEX('Tabelas 2 e 3 mob'!A:K,MATCH(A49,'Tabelas 2 e 3 mob'!A:A,0),9),"ERRO") -> Veículo(s) da própria frota. | D49: 0 | E49: 2 | F49: 0 | G49: =IF(C49="Veículo(s) da própria frota.",0,INDEX(Equipamentos!B:K,MATCH(C49,Equipamentos!A:A,0),9)) -> 0 | H49: 0
A50: E9535 | B50: =VLOOKUP(A50,Equipamentos!$A:$K,2,FALSE) -> Serra circular com bancada - D = 30 cm - 4 kW | C50: =IFERROR(INDEX('Tabelas 2 e 3 mob'!A:K,MATCH(A50,'Tabelas 2 e 3 mob'!A:A,0),9),"ERRO") -> Veículo(s) da própria frota. | D50: 0 | E50: 2 | F50: 0 | G50: =IF(C50="Veículo(s) da própria frota.",0,INDEX(Equipamentos!B:K,MATCH(C50,Equipamentos!A:A,0),9)) -> 0 | H50: 0
A51: E9507 | B51: =VLOOKUP(A51,Equipamentos!$A:$K,2,FALSE) -> Plotadora de recorte com computador e programa computacional | C51: =IFERROR(INDEX('Tabelas 2 e 3 mob'!A:K,MATCH(A51,'Tabelas 2 e 3 mob'!A:A,0),9),"ERRO") -> Veículo(s) da própria frota. | D51: 0 | E51: 2 | F51: 0 | G51: =IF(C51="Veículo(s) da própria frota.",0,INDEX(Equipamentos!B:K,MATCH(C51,Equipamentos!A:A,0),9)) -> 0 | H51: 0
A52: E9568 | B52: =VLOOKUP(A52,Equipamentos!$A:$K,2,FALSE) -> Furadeira de impacto de 12,5 mm - 0,80 kW | C52: =IFERROR(INDEX('Tabelas 2 e 3 mob'!A:K,MATCH(A52,'Tabelas 2 e 3 mob'!A:A,0),9),"ERRO") -> Veículo(s) da própria frota. | D52: 0 | E52: 2 | F52: 0 | G52: =IF(C52="Veículo(s) da própria frota.",0,INDEX(Equipamentos!B:K,MATCH(C52,Equipamentos!A:A,0),9)) -> 0 | H52: 0
A53: E9753 | B53: =VLOOKUP(A53,Equipamentos!$A:$K,2,FALSE) -> Grupo gerador - 23 kVA | C53: =IFERROR(INDEX('Tabelas 2 e 3 mob'!A:K,MATCH(A53,'Tabelas 2 e 3 mob'!A:A,0),9),"ERRO") -> Veículo(s) da própria frota. | D53: 0 | E53: 2 | F53: 0 | G53: =IF(C53="Veículo(s) da própria frota.",0,INDEX(Equipamentos!B:K,MATCH(C53,Equipamentos!A:A,0),9)) -> 0 | H53: 0
A54: E9623 | B54: =VLOOKUP(A54,Equipamentos!$A:$K,2,FALSE) -> Máquina de bancada guilhotina - 4,00 kW | C54: =IFERROR(INDEX('Tabelas 2 e 3 mob'!A:K,MATCH(A54,'Tabelas 2 e 3 mob'!A:A,0),9),"ERRO") -> Veículo(s) da própria frota. | D54: 0 | E54: 2 | F54: 0 | G54: =IF(C54="Veículo(s) da própria frota.",0,INDEX(Equipamentos!B:K,MATCH(C54,Equipamentos!A:A,0),9)) -> 0 | H54: 0
A55: E9622 | B55: =VLOOKUP(A55,Equipamentos!$A:$K,2,FALSE) -> Máquina de bancada universal para corte de chapa - 1,50 kW | C55: =IFERROR(INDEX('Tabelas 2 e 3 mob'!A:K,MATCH(A55,'Tabelas 2 e 3 mob'!A:A,0),9),"ERRO") -> Veículo(s) da própria frota. | D55: 0 | E55: 2 | F55: 0 | G55: =IF(C55="Veículo(s) da própria frota.",0,INDEX(Equipamentos!B:K,MATCH(C55,Equipamentos!A:A,0),9)) -> 0 | H55: 0
A56: E9678 | B56: =VLOOKUP(A56,Equipamentos!$A:$K,2,FALSE) -> Fresadora a frio - 455 kW | C56: =IFERROR(INDEX('Tabelas 2 e 3 mob'!A:K,MATCH(A56,'Tabelas 2 e 3 mob'!A:A,0),9),"ERRO") -> E9666 | D56: 0 | E56: 2 | F56: 1 | G56: =IF(C56="Veículo(s) da própria frota.",0,INDEX(Equipamentos!B:K,MATCH(C56,Equipamentos!A:A,0),9)) -> 421.7378 | H56: 0
G57: TOTAL | H57: =SUM(H13:H56) -> 275.58116
A60: CUSTO TOTAL MOBILIZAÇÃO E DESMOBILIZAÇÃO
A61: DESCRIÇÃO | B61: VALOR
A62: Custo Mobilização (km) | B62: =H57 -> 275.58116
A63: BDI (%) | B63: =BDI!C17 -> 0.2339
A64: Custo Mobilização (R$/km) com BDI | B64: =B62+(B62*B63) -> 340.0395933
A65: Total de Frentes | B65: ='MC MODULO'!G1 -> 11
A66: Custo Mobilização (frentes x distancia) | B66: =B64*H6*B65 -> 418928.779

Sheet Canteiro
A4: CANTEIRO DE OBRAS PARA CONSTRUÇAO RODOVIÁRIA
A5: Descrição dos serviços | B5: Tipo de container | C5: Unidade | D5: Quantidade | E5: Preço unitário (R$) | F5: Total (R$)
A6: Escritório e seção técnica
A7: =VLOOKUP(B7,'INSUMOS SINAPI'!A:E,2,0) -> LOCACAO DE CONTAINER 2,30 X 6,00 M, ALT. 2,50 M, PARA ESCRITORIO, SEM DIVISORIAS INTERNAS E SEM SANITARIO (NAO INCLUI MOBILIZACAO/DESMOBILIZACAO) | B7: 10776 | C7: und | D7: 1 | E7: =VLOOKUP(B7,'INSUMOS SINAPI'!A:E,5,0) -> 650.39 | F7: =TRUNC(D7*E7,2) -> 650.39
A8: Banheiro e vestiário
A9: =VLOOKUP(B9,'INSUMOS SINAPI'!A:E,2,0) -> LOCACAO DE CONTAINER 2,30 X 4,30 M, ALT. 2,50 M, PARA SANITARIO, COM 3 BACIAS, 4 CHUVEIROS, 1 LAVATORIO E 1 MICTORIO (NAO INCLUI MOBILIZACAO/DESMOBILIZACAO) | B9: 10777 | C9: und | D9: 1 | E9: =VLOOKUP(B9,'INSUMOS SINAPI'!A:E,5,0) -> 945.23 | F9: =TRUNC(D9*E9,2) -> 945.23
D10: TOTAL DO CANTEIRO | F10: =SUM(F7:F9) -> 1595.62
D11: DURAÇÃO (MESES) | E11: 12 | F11: =F10*E11 -> 19147.44
D12: BDI | F12: =BDI!C17 -> 0.2339
D13: TOTAL DO CANTEIRO (com BDI) | F13: =F11+(F11*F12) -> 23626.02622

Sheet CPU CODEVASF
A4: ='RESUMO MODULO TOTAL'!B1 -> CONTRATAÇÃO DE SERVIÇOS DE PAVIMENTAÇÃO ASFÁLTICA COM CONCRETO BETUMINOSO USINADO A QUENTE (CBUQ) EM VIAS URBANAS E RURAIS INSERIDAS NA ÁREA DE ATUAÇÃO DA CODEVASF, NO ESTADO DO AMAPÁ (REGIÃO PORTO GRANDE)
F5: BDI %: | G5: =BDI!$C$17 -> 0.2339
E6: Encargos Sociais: | G6: Horista | H6: Mensalista
G7: ='ENC. SOCIAIS'!E51/100 -> 0 | H7: ='ENC. SOCIAIS'!F51/100 -> 0
A8: COMPOSIÇÕES DE CUSTO UNITARIO
A9: CPU-12 | B9: CODEVASF | D9: Correção de vazamentos no ramal na rua sem pavimento com fornecimento do material hidráulico | E9: M | F9: COEF. | G9: PRECO UNITÁRIO (R$) | H9: TOTAL (R$)
A11: SICRO | B11: SICRO | C11: P9824 | D11: =VLOOKUP(C11,'Pessoal Sicro'!$A$5:$G$1048576,2,0) -> Servente | E11: H | F11: 0.2 | G11: =VLOOKUP(C11,'Pessoal Sicro'!$A$5:$G$1048576,6,0) -> 21.1436 | H11: =F11*G11 -> 4.22872
A12: SICRO | B12: SICRO | C12: P9807 | D12: =VLOOKUP(C12,'Pessoal Sicro'!$A$5:$G$1048576,2,0) -> Bombeiro hidráulico | E12: H | F12: 0.1 | G12: =VLOOKUP(C12,'Pessoal Sicro'!$A$5:$G$1048576,6,0) -> 35.1524 | H12: 3.51524
A13: INS. SINAPI | B13: SINAPI | C13: 9867 | D13: TUBO PVC, SOLDAVEL, DN 20 MM, AGUA FRIA (NBR-5648) | E13: m | F13: 1 | G13: =IFERROR(VLOOKUP(C13,'INSUMOS SINAPI'!A:E,5,FALSE),VLOOKUP(C13,'COMP Sint. Sinapi'!G:K,5,FALSE)) -> 3.03 | H13: 3.03
A14: INSUMO | B14: ORSE | C14: 10585 | D14: Arco de serra | E14: un | F14: 0.1 | G14: 22.8 | H14: 2.28
A15: INS. SINAPI | B15: SINAPI | C15: 3859 | D15: LUVA SOLDAVEL COM ROSCA, PVC, 20 MM X 1/2", PARA AGUA FRIA PREDIAL | E15: un | F15: 2 | G15: =IFERROR(VLOOKUP(C15,'INSUMOS SINAPI'!A:E,5,FALSE),VLOOKUP(C15,'COMP Sint. Sinapi'!G:K,5,FALSE)) -> 1.09 | H15: 2.18
E16: Sub total: | H16: =SUM(H11:H15) -> 15.23396
F17: BDI | G17: =BDI!$C$17 -> 0.2339 | H17: =H16*G17 -> 3.563223244
G18: Total Serviços: | H18: =H16+H17 -> 18.79718324
E19: =A9 -> CPU-12 | F19: PREÇO UNITÁRIO TOTAL: | H19: =H18 -> 18.79718324 | I19: =H16 -> 15.23396
A21: CPU-13 | B21: CODEVASF | D21: AQUISIÇÃO DE CIMENTO ASFALTICO CAP 50/70 | E21: t | F21: COEF. | G21: PRECO UNITÁRIO (R$) | H21: TOTAL (R$)
D23: CIMENTO ASFALTICO 50/70 | E23: t | F23: 1 | G23: =RESUMO_Transp!$V$17 -> 4596.061062 | H23: =F23*G23 -> 4596.061062
E24: Sub total: | H24: =SUM(H23) -> 4596.061062
F25: BDI | G25: 0.15 | H25: =H24*G25 -> 689.4091594
G26: Total Serviços: | H26: =H24+H25 -> 5285.470222
E27: =A21 -> CPU-13 | F27: PREÇO UNITÁRIO TOTAL: | H27: =H26 -> 5285.470222 | I27: =H24 -> 4596.061062
A29: CPU-14 | B29: CODEVASF | D29: AQUISIÇÃO DE EAI | E29: t | F29: COEF. | G29: PRECO UNITÁRIO (R$) | H29: TOTAL (R$)
D31: EAI | E31: t | F31: 1 | G31: =RESUMO_Transp!$V$35 -> 2748.453519 | H31: =F31*G31 -> 2748.453519
E32: Sub total: | H32: =SUM(H31) -> 2748.453519
F33: BDI | G33: 0.15 | H33: =H32*G33 -> 412.2680279
G34: Total Serviços: | H34: =H32+H33 -> 3160.721547
E35: =A29 -> CPU-14 | F35: PREÇO UNITÁRIO TOTAL: | H35: =H34 -> 3160.721547 | I35: =H32 -> 2748.453519
A37: CPU-15 | B37: CODEVASF | D37: AQUISIÇÃO DE EMULSÃO ASFÁLTICA RR-1C | E37: t | F37: COEF. | G37: PRECO UNITÁRIO (R$) | H37: TOTAL (R$)
D39: EMULSÃO ASFÁLTICA RR-1C | E39: t | F39: 1 | G39: =RESUMO_Transp!$V$42 -> 3274.929441 | H39: =F39*G39 -> 3274.929441
E40: Sub total: | H40: =SUM(H39) -> 3274.929441
F41: BDI | G41: 0.15 | H41: =ROUND(H40,2)*ROUND(G41,4) -> 491.2395
G42: Total Serviços: | H42: =H40+H41 -> 3766.168941
E43: =A37 -> CPU-15 | F43: PREÇO UNITÁRIO TOTAL: | H43: =H42 -> 3766.168941 | I43: =H40 -> 3274.929441
A45: CPU-17 | B45: CODEVASF | D45: TRANSPORTE DE CIMENTO ASFALTICO CAP 50/70 | E45: t | F45: COEF. | G45: PRECO UNITÁRIO (R$) | H45: TOTAL (R$)
D47: TRANSPORTE DE CIMENTO ASFALTICO 50/70 | E47: t | F47: 1 | G47: =RESUMO_Transp!$U$17 -> 1400.08 | H47: =F47*G47 -> 1400.08
E48: Sub total: | H48: =SUM(H47) -> 1400.08
F49: BDI | G49: 0.15 | H49: =H48*G49 -> 210.012
G50: Total Serviços: | H50: =H48+H49 -> 1610.092
E51: =A45 -> CPU-17 | F51: PREÇO UNITÁRIO TOTAL: | H51: =H50 -> 1610.092 | I51: =H48 -> 1400.08
A53: CPU-18 | B53: CODEVASF | D53: TRANSPORTE DE EAI | E53: t | F53: COEF. | G53: PRECO UNITÁRIO (R$) | H53: TOTAL (R$)
D55: TRANSPORTE DE EAI | E55: t | F55: 1 | G55: =RESUMO_Transp!$U$35 -> 1967.017512 | H55: =F55*G55 -> 1967.017512
E56: Sub total: | H56: =SUM(H55) -> 1967.017512
F57: BDI | G57: 0.15 | H57: =H56*G57 -> 295.0526269
G58: Total Serviços: | H58: =H56+H57 -> 2262.070139
E59: =A53 -> CPU-18 | F59: PREÇO UNITÁRIO TOTAL: | H59: =H58 -> 2262.070139 | I59: =H56 -> 1967.017512
A61: CPU-19 | B61: CODEVASF | D61: TRANSPORTE DE EMULSÃO ASFÁLTICA RR-1C | E61: t | F61: COEF. | G61: PRECO UNITÁRIO (R$) | H61: TOTAL (R$)
D63: TRANSPORTE DE EMULSÃO ASFÁLTICA RR-1C | E63: t | F63: 1 | G63: =RESUMO_Transp!$U$42 -> 1713.338571 | H63: =F63*G63 -> 1713.338571
E64: Sub total: | H64: =SUM(H63) -> 1713.338571
F65: BDI | G65: 0.15 | H65: =H64*G65 -> 257.0007857
G66: Total Serviços: | H66: =H64+H65 -> 1970.339357
E67: =A61 -> CPU-19 | F67: PREÇO UNITÁRIO TOTAL: | H67: =H66 -> 1970.339357 | I67: =H64 -> 1713.338571

Sheet CPU CODEVASF2
A4: ='RESUMO MODULO TOTAL'!B1 -> CONTRATAÇÃO DE SERVIÇOS DE PAVIMENTAÇÃO ASFÁLTICA COM CONCRETO BETUMINOSO USINADO A QUENTE (CBUQ) EM VIAS URBANAS E RURAIS INSERIDAS NA ÁREA DE ATUAÇÃO DA CODEVASF, NO ESTADO DO AMAPÁ (REGIÃO PORTO GRANDE)
A5: Código | C5: CPU-20
A6: Descrição | C6: BASE ESTABILIZADA GRANULOMETRICAMENTE COM MISTURA SOLO AREIA (70% - 30%) NA PISTA COM MATERIAL DE JAZIDA E AREIA COMERCIAL
A7: Data | C7: 05/2024
A8: Estado | C8: Amapá
A9: Unidade | C9: M³
A10: Produção de Equipe | C10: 150,88 M³
A11: A | B11: Equipamentos | D11: Quant. | E11: Utilização | G11: Custo Operacional | I11: Custo Horário
E12: Operativa | F12: Improdutiva | G12: Operativa | H12: Improdutiva
A13: E9571 | B13: Caminhão tanque com capacidade de 10.000 l - 188 kW | D13: 1,00000 | E13: 0,83 | F13: 0,17 | G13: 342,0178 | H13: 85,6579 | I13: 298,4366
A14: E9518 | B14: Grade de 24 discos rebocável de D = 60 cm (24") | D14: 1,00000 | E14: 0,62 | F14: 0,38 | G14: 4,6834 | H14: 3,2614 | I14: 4,1430
A15: E9524 | B15: Motoniveladora - 93 kW | D15: 1,00000 | E15: 1,00 | F15: 0,00 | G15: 292,7617 | H15: 125,4479 | I15: 292,7617
A16: E9762 | B16: Rolo compactador de pneus autopropelido de 27 t - 85 kW | D16: 1,00000 | E16: 0,86 | F16: 0,14 | G16: 259,8311 | H16: 124,7040 | I16: 240,9133
A17: E9685 | B17: Rolo compactador pé de carneiro vibratório autopropelido por pneus de 11,6 t - 82 kW | D17: 1,00000 | E17: 0,90 | F17: 0,10 | G17: 220,2421 | H17: 95,9465 | I17: 207,8125
A18: E9577 | B18: Trator agrícola sobre pneus - 77 kW | D18: 1,00000 | E18: 0,62 | F18: 0,38 | G18: 148,5860 | H18: 52,1939 | I18: 111,9570
A19: Custo Horário de Equipamentos | I19: 1.156,0242
A20: B | B20: Mão de Obra | D20: Quant. | E20: Unidade | F20: Custo Horário | I20: Custo Horário
A21: P9824 | B21: Servente | D21: 1,00000 | E21: h | F21: 20,9484 | I21: 20,9484
A22: Custo horário total de mão de obra | I22: 20,9484
A23: Custo horário total de execução | I23: 1.176,9726
A24: Custo Unitário de Execução | I24: 7,8007
A25: Fator de Influencia da Chuva - FIC | I25: 0,5008
A26: C | B26: Material | D26: Quant. | E26: Unidade | F26: Preço Unitário | I26: Custo Horário
A27: M0028 | B27: Areia média | D27: 0,41260 | E27: m³ | F27: 154,1420 | I27: 63,5990
A28: Custo unitário total de material | I28: 0,0000
A29: D | B29: Atividades Auxiliares | D29: Quant. | E29: Unidade | F29: Preço Unitário | I29: Custo Horário
A30: 4016096 | B30: Escavação e carga de material de jazida com escavadeira hidráulica de 1,56 m³ | D30: 0,77019 | E30: m³ | F30: 1,4500 | I30: 1,12
A31: Custo Total das Atividades | I31: 0,0000
A32: E | B32: Tempos Fixos | D32: Quant. | E32: Unidade | F32: Preço Unitário | I32: Custo Horário
A33: 4016096 - 5914354 | B33: Escavação e carga de material de jazida com escavadeira hidráulica de 1,56 m³ - Carga, manobra e descarga de agregados ou solos em caminhão basculante de 10 m³ - carga com escavadeira de 1,56 m³ (exclusa) e descarga livre | D33: 1,44411 | E33: t | F33: 1,8500 | I33: 2,67
A34: M0028 - 5914647 | B34: Areia média - Carga, manobra e descarga de agregados ou solos em caminhão basculante de 10 m³ - carga com carregadeira de 3,40 m³ (exclusa) e descarga livre | D34: 0,61890 | E34: t | F34: 1,7800 | I34: 1,10
A35: Custo Total dos Tempos Fixos | I35: 0,0000
A36: Custo Unitário Direto Total | I36: 76,77

Sheet Adm Local
A2: parcela fixa da administração local (mão de obra)
A3: Código | B3: Discriminação | C3: Unidade | D3: Quantidade | F3: Custo Unitário (R$) | H3: Custo Total (R$)
B4: Mão de Obra
B5: Gerência Técnica
B6: Geral
A7: P9955 | B7: Engenheiro chefe | C7: mês | D7: 0.5 | F7: =VLOOKUP(A7,'Pessoal Sicro'!$A$6:$G$118,6,0) -> 28742.6778 | H7: =F7*D7 -> 14371.3389
A8: P9840 | B8: Encarregado geral | C8: mês | D8: 0.5 | F8: =VLOOKUP(A8,'Pessoal Sicro'!$A$6:$G$118,6,0) -> 10416.0147 | H8: =F8*D8 -> 5208.00735
A9: P9897 | B9: Técnico de meio ambiente | C9: mês | D9: 0 | F9: =VLOOKUP(A9,'Pessoal Sicro'!$A$6:$G$118,6,0) -> 7726.4929 | H9: =F9*D9 -> 0
A10: P9948 | B10: Motorista | C10: mês | D10: 0 | F10: =VLOOKUP(A10,'Pessoal Sicro'!$A$6:$G$118,6,0) -> 4946.3317 | H10: =F10*D10 -> 0
A11: P9878 | B11: Secretária | C11: mês | D11: 0 | F11: =VLOOKUP(A11,'Pessoal Sicro'!$A$6:$G$118,6,0) -> 6302.0703 | H11: =F11*D11 -> 0
F12: Subtotal do Item 1.1 | H12: =SUM(H7:I11) -> 19579.34625
B13: Auxiliar
A14: P9946 | B14: Engenheiro auxiliar | C14: mês | D14: 1 | F14: =VLOOKUP(A14,'Pessoal Sicro'!$A$6:$G$118,6,0) -> 22131.892 | H14: =D14*F14 -> 22131.892
A15: P9903 | B15: Auxiliar técnico | C15: mês | D15: 0 | F15: =VLOOKUP(A15,'Pessoal Sicro'!$A$6:$G$118,6,0) -> 4801.2272 | H15: =D15*F15 -> 0
F16: Subtotal do Item 1.2 | H16: =SUM(H14:I15) -> 22131.892
B17: Gerência Administrativa
B18: Geral
A19: P9883 | B19: Chefe do setor administrativo | C19: mês | D19: 1 | F19: =VLOOKUP(A19,'Pessoal Sicro'!$A$6:$G$118,6,0) -> 8008.6977 | H19: =F19*D19 -> 8008.6977
A20: P9809 | B20: Encarregado administrativo | C20: mês | D20: 0 | F20: =VLOOKUP(A20,'Pessoal Sicro'!$A$6:$G$118,6,0) -> 8008.6642 | H20: =F20*D20 -> 0
A21: P9896 | B21: Porteiro | C21: mês | D21: 0 | F21: =VLOOKUP(A21,'Pessoal Sicro'!$A$6:$G$118,6,0) -> 4473.4789 | H21: =F21*D21 -> 0
A22: P9827 | B22: Vigia | C22: mês | D22: 0 | F22: =VLOOKUP(A22,'Pessoal Sicro'!$A$6:$G$118,6,0) -> 4809.3191 | H22: =F22*D22 -> 0
A23: P9948 | B23: Motorista | C23: mês | D23: 0 | F23: =VLOOKUP(A23,'Pessoal Sicro'!$A$6:$G$118,6,0) -> 4946.3317 | H23: =F23*D23 -> 0
F24: Subtotal do Item 1.3 | H24: =SUM(H19:I23) -> 8008.6977
B25: Auxiliar
A26: P9806 | B26: Auxiliar administrativo | C26: mês | D26: 1 | F26: =VLOOKUP(A26,'Pessoal Sicro'!$A$6:$G$118,6,0) -> 4965.0169 | H26: =F26*D26 -> 4965.0169
A27: P9842 | B27: Faxineiro | C27: mês | D27: 0 | F27: =VLOOKUP(A27,'Pessoal Sicro'!$A$6:$G$118,6,0) -> 4111.6911 | H27: =F27*D27 -> 0
F28: Subtotal do Item 1.4 | H28: =SUM(H26:I27) -> 4965.0169
H29: Total da Mão de Obra da Parcela Fixa | I29: =H28+H24+H16+H12 -> 54684.95285
A31: parcela fixa da administração local (veículos)
A32: Código | B32: Discriminação | C32: Unidade | D32: Quantidade | E32: Utilização Produtiva | F32: Utilização Improdutiva | G32: Custo Horário Produtivo (R$) | H32: Custo Horário Improdutivo (R$) | I32: Custo Total (R$)
A33: 2 | B33: Veículos
B34: Gerência Técnica
A35: 2.1 | B35: Geral
A36: E9093 | B36: Veículo Leve 53 kw | C36: mês | D36: 1 | E36: 44 | F36: 176 | G36: =VLOOKUP(A36,Equipamentos!$A$4:$K$541,10,0) -> 34.9382 | H36: =VLOOKUP(A36,Equipamentos!$A$4:$K$541,11,0) -> 6.1504 | I36: =((E36*G36)+(F36*H36))*D36 -> 2619.7512
A37: E9560 | B37: Ônibus coletivo - 175 kw | C37: mês | D37: 0 | E37: 44 | F37: 176 | G37: =VLOOKUP(A37,Equipamentos!$A$4:$K$541,10,0) -> 357.2021 | H37: =VLOOKUP(A37,Equipamentos!$A$4:$K$541,11,0) -> 103.8866 | I37: =((E37*G37)+(F37*H37))*D37 -> 0
H38: Subtotal do Item 2 | I38: =SUM(I36:I37) -> 2619.7512
A39: 2.2 | B39: Auxiliar
A40: E9093 | B40: Veículo Leve 53 kw | C40: mês | D40: 0 | E40: 44 | F40: 176 | G40: =G36 -> 34.9382 | H40: =H36 -> 6.1504 | I40: =((E40*G40)+(F40*H40))*D40 -> 0
H41: Subtotal do Item 2 | I41: =SUM(I40) -> 0
A42: 2.3 | B42: Gerência Administrativa
A43: E9093 | B43: Veículo Leve 53 kw | C43: mês | D43: 0 | E43: 44 | F43: 176 | G43: =G36 -> 34.9382 | H43: =H36 -> 6.1504 | I43: =((E43*G43)+(F43*H43))*D43 -> 0
H44: Subtotal do Item 2 | I44: =I43 -> 0
H45: Total dos Veículos da Parcela Fixa | I45: =I44+I41+I38 -> 2619.7512
A47: Composição de custo da equipe de produção de terraplenagem
A48: Código | B48: Discriminação | C48: Unidade | D48: Quantidade | F48: Custo Unitário (R$) | H48: Custo Total (R$)
B49: Equipe de Produção de Terraplenagem
A50: 3.1 | B50: Mão de Obra
A51: ='Pessoal Sicro'!A65 -> P9892 | B51: Encarregado de produção | C51: mês | D51: 1 | F51: =VLOOKUP(A51,'Pessoal Sicro'!$A$6:$G$118,6,0) -> 34.4007 | H51: =F51*D51 -> 34.4007
F52: Subtotal do Item 3.1 | H52: =SUM(H51:H51) -> 34.4007
A53: Código | B53: Discriminação | C53: Unidade | D53: Quantidade | E53: Utilização Produtiva | F53: Utilização Improdutiva | G53: Custo Horário Produtivo (R$) | H53: Custo Horário Improdutivo (R$) | I53: Custo Total (R$)
A54: 3.2 | B54: Veículos
B55: Veículo Leve 53 kw | C55: mês | D55: 1 | E55: 44 | F55: 176 | G55: =G36 -> 34.9382 | H55: =H36 -> 6.1504 | I55: =((E55*G55)+(F55*H55))*D55 -> 2619.7512
H56: Subtotal do Item 3.2 | I56: =SUM(I55:I55) -> 2619.7512
H57: Total da Equipe de Produção de Terraplenagem | I57: =I56+H52 -> 2654.1519
A59: Composição de custo da equipe de produção de pavimentação
A60: Código | B60: Discriminação | C60: Unidade | D60: Quantidade | F60: Custo Unitário (R$) | H60: Custo Total (R$)
B61: Equipe de Produção de Pavimentação
A62: 3.1 | B62: Mão de Obra
A63: ='Pessoal Sicro'!$A$70 -> P9901 | B63: Encarregado de produção | C63: mês | D63: 1 | F63: =VLOOKUP(A63,'Pessoal Sicro'!$A$6:$G$118,6,0) -> 7200.018 | H63: =F63*D63 -> 7200.018
F64: Subtotal do Item 3.1 | H64: =SUM(H63:H63) -> 7200.018
A65: Código | B65: Discriminação | C65: Unidade | D65: Quantidade | E65: Utilização Produtiva | F65: Utilização Improdutiva | G65: Custo Horário Produtivo (R$) | H65: Custo Horário Improdutivo (R$) | I65: Custo Total (R$)
A66: 3.2 | B66: Veículos
B67: Veículo Leve 53 kw | C67: mês | D67: 1 | E67: 44 | F67: 176 | G67: =$G$36 -> 34.9382 | H67: =$H$36 -> 6.1504 | I67: =((E67*G67)+(F67*H67))*D67 -> 2619.7512
H68: Subtotal do Item 3.2 | I68: =SUM(I67:I67) -> 2619.7512
H69: Total da Equipe de Produção de Pavimentação | I69: =I68+H64 -> 9819.7692
A71: Composição de custo da equipe de produção de drenagem
A72: Código | B72: Discriminação | C72: Unidade | D72: Quantidade | F72: Custo Unitário (R$) | H72: Custo Total (R$)
B73: Equipe de Produção de Pavimentação
A74: 3.1 | B74: Mão de Obra
A75: ='Pessoal Sicro'!$A$70 -> P9901 | B75: Encarregado de produção | C75: mês | D75: 1 | F75: =VLOOKUP(A75,'Pessoal Sicro'!$A$6:$G$118,6,0) -> 7200.018 | H75: =F75*D75 -> 7200.018
F76: Subtotal do Item 3.1 | H76: =SUM(H75:H75) -> 7200.018
A77: Código | B77: Discriminação | C77: Unidade | D77: Quantidade | E77: Utilização Produtiva | F77: Utilização Improdutiva | G77: Custo Horário Produtivo (R$) | H77: Custo Horário Improdutivo (R$) | I77: Custo Total (R$)
A78: 3.2 | B78: Veículos
B79: Veículo Leve 53 kw | C79: mês | D79: 1 | E79: 44 | F79: 176 | G79: =$G$36 -> 34.9382 | H79: =$H$36 -> 6.1504 | I79: =((E79*G79)+(F79*H79))*D79 -> 2619.7512
H80: Subtotal do Item 3.2 | I80: =SUM(I79:I79) -> 2619.7512
H81: Total da Equipe de Produção de Pavimentação | I81: =I80+H76 -> 9819.7692
A83: Composição de custo da equipe de produção de sinalização
A84: Código | B84: Discriminação | C84: Unidade | D84: Quantidade | F84: Custo Unitário (R$) | H84: Custo Total (R$)
B85: Equipe de Produção de Pavimentação
A86: 3.1 | B86: Mão de Obra
A87: ='Pessoal Sicro'!$A$70 -> P9901 | B87: Encarregado de produção | C87: mês | D87: 1 | F87: =VLOOKUP(A87,'Pessoal Sicro'!$A$6:$G$118,6,0) -> 7200.018 | H87: =F87*D87 -> 7200.018
F88: Subtotal do Item 3.1 | H88: =SUM(H87:H87) -> 7200.018
A89: Código | B89: Discriminação | C89: Unidade | D89: Quantidade | E89: Utilização Produtiva | F89: Utilização Improdutiva | G89: Custo Horário Produtivo (R$) | H89: Custo Horário Improdutivo (R$) | I89: Custo Total (R$)
A90: 3.2 | B90: Veículos
B91: Veículo Leve 53 kw | C91: mês | D91: 1 | E91: 44 | F91: 176 | G91: =$G$36 -> 34.9382 | H91: =$H$36 -> 6.1504 | I91: =((E91*G91)+(F91*H91))*D91 -> 2619.7512
H92: Subtotal do Item 3.2 | I92: =SUM(I91:I91) -> 2619.7512
H93: Total da Equipe de Produção de Pavimentação | I93: =I92+H88 -> 9819.7692
A95: Composição de custo da equipe topografia
A96: Código | B96: Discriminação | C96: Unidade | D96: Quantidade | F96: Custo Unitário (R$) | H96: Custo Total (R$)
B97: Equipe de Topografia
A98: 3.1 | B98: Mão de Obra
A99: P9949 | B99: Topográfo | C99: mês | D99: 1 | F99: =VLOOKUP(A99,'Pessoal Sicro'!$A$6:$G$118,6,0) -> 7926.4674 | H99: =F99*D99 -> 7926.4674
A100: P9950 | B100: Auxiliar de topografia | C100: mês | D100: 1 | F100: =VLOOKUP(A100,'Pessoal Sicro'!$A$6:$G$118,6,0) -> 4519.6557 | H100: =F100*D100 -> 4519.6557
F101: Subtotal do Item 3.1 | H101: =SUM(H99:I100) -> 12446.1231
A102: Código | B102: Discriminação | C102: Unidade | D102: Quantidade | E102: Utilização Produtiva | F102: Utilização Improdutiva | G102: Custo Horário Produtivo (R$) | H102: Custo Horário Improdutivo (R$) | I102: Custo Total (R$)
A103: 3.2 | B103: Veículos
B104: Veículo Leve 53 kw | C104: mês | D104: 1 | E104: 44 | F104: 176 | G104: =G36 -> 34.9382 | H104: =H36 -> 6.1504 | I104: =((E104*G104)+(F104*H104))*D104 -> 2619.7512
H105: Subtotal do Item 3.2 | I105: =SUM(I104:I104) -> 2619.7512
H106: Total da Equipe de Produção de Topografia | I106: =I105+H101 -> 15065.8743
A108: Composição de custo do setor de medicina e segurança do trabalho
A109: Código | B109: Discriminação | C109: Unidade | D109: Quantidade | F109: Custo Unitário (R$) | H109: Custo Total (R$)
A110: 4 | B110: Setor de Medicina e Segurança do Trabalho
A111: P9876 | B111: Técnico de segurança do trabalho | C111: mês | D111: 1 | F111: =VLOOKUP(A111,'Pessoal Sicro'!$A$6:$G$118,6,0) -> 7858.4849 | H111: =F111*D111 -> 7858.4849
A112: P9864 | B112: Engenheiro de segurança do trabalho | C112: mês | D112: 0 | F112: =VLOOKUP(A112,'Pessoal Sicro'!$A$6:$G$118,6,0) -> 22611.822 | H112: =F112*D112 -> 0
A113: P9851 | B113: Médico do trabalho | C113: mês | D113: 0 | F113: =VLOOKUP(A113,'Pessoal Sicro'!$A$6:$G$118,6,0) -> 18030.894 | H113: =F113*D113 -> 0
A114: P9951 | B114: Médico de câmara hiperbárica | C114: mês | D114: 0 | F114: =VLOOKUP(A114,'Pessoal Sicro'!$A$6:$G$118,6,0) -> 19979.6114 | H114: =F114*D114 -> 0
F115: Subtotal do Item 4 | H115: =SUM(H111:I114) -> 7858.4849
A117: Parcela Variável - Composição de custo da equipe de frente de serviço
A118: Código | B118: Discriminação | C118: Unidade | D118: Quantidade | F118: Custo Unitário (R$) | H118: Custo Total (R$)
A119: 5 | B119: Equipe de Frente de Serviço | C119: equipexmês
A120: P9875 | B120: Encarregado de Turma | C120: mês | D120: 1 | F120: =VLOOKUP(A120,'Pessoal Sicro'!$A$6:$G$118,6,0) -> 5346.6369 | H120: =F120*D120 -> 5346.6369
A121: P9804 | B121: Apontador | C121: mês | D121: 0.5 | F121: =VLOOKUP(A121,'Pessoal Sicro'!$A$6:$G$118,6,0) -> 5003.4385 | H121: =F121*D121 -> 2501.71925
F122: Subtotal do Item 5 | H122: =SUM(H120:I121) -> 7848.35615
A124: Parcela Variável - Composição de custo da equipe de frente de serviço (Terraplenagem) - Somente Compactação
A125: Código | B125: Discriminação | C125: Unidade | D125: Quantidade | F125: Produção Horária (und/h) | H125: Efs
A126: 5.1 | B126: Equipe de Frente de Serviço | C126: equipexmês
C127: mês | H127: =(D127)/(F127*182.49) -> 
C128: mês | H128: =(D128)/(F128*182.49) -> 
C129: mês | H129: =(D129)/(F129*182.49) -> 
F130: Total de Equipes para Terraplenagem | H130: =SUM(H129:I129) -> 
A132: Parcela Variável - Composição de custo da acompanhamento das frentes de serviço de pavimentação
A133: Código | B133: Discriminação | C133: Unidade | D133: Quantidade | F133: Produção Horária (und/h) | H133: Efs
A134: 5.2 | B134: Equipe de Frente de Serviço | C134: equipe x mês
A135: 4011463 | B135: =VLOOKUP(A135,'SINTÉTICO SICRO'!$A$4:$D$6373,2,0) -> Concreto asfáltico - faixa C - areia e brita comerciais | C135: m² | D135: ='RESUMO MODULO TOTAL'!J23 -> 18480 | F135: 99.6 | H135: =(D135)/(F135*182.49) -> 1.016725128
A136: 4011351 | B136: =VLOOKUP(A136,'SINTÉTICO SICRO'!$A$4:$D$6373,2,0) -> Imprimação com asfalto diluído | C136: m² | D136: ='RESUMO MODULO TOTAL'!J24 -> 154000 | F136: 1125 | H136: 0.7501172058
A137: 4011353 | B137: =VLOOKUP(A137,'SINTÉTICO SICRO'!$A$4:$D$6373,2,0) -> Pintura de ligação | C137: m² | D137: ='RESUMO MODULO TOTAL'!J25 -> 154000 | F137: 1500 | H137: 0.5625879044
A138: 4011268 | B138: =VLOOKUP(A138,'SINTÉTICO SICRO'!$A$4:$D$6373,2,0) -> Base estabilizada granulometricamente com mistura solo brita (70% - 30%) em usina com material de jazida e brita comercial | C138: m³ | D138: ='RESUMO MODULO TOTAL'!J26 -> 23100 | F138: 120.7 | H138: 1.048734702
A139: 4011235 | B139: =VLOOKUP(A139,'SINTÉTICO SICRO'!$A$4:$D$6373,2,0) -> Sub-base estabilizada granulometricamente com mistura solo brita (70% - 30%) em usina com material de jazida e brita comercial | C139: m³ | D139: ='RESUMO MODULO TOTAL'!J27 -> 23100 | F139: 120.7 | H139: 1.048734702
A140: 4011209 | B140: =VLOOKUP(A140,'SINTÉTICO SICRO'!$A$4:$D$6373,2,0) -> Regularização do subleito | C140: m² | D140: ='RESUMO MODULO TOTAL'!J28 -> 154000 | F140: 1121.33 | H140: 0.7525722638
F141: Total de Equipes para Pavimentação | H141: =SUM(H135:I140) -> 5.179471905
A143: Parcela Variável - Composição de custo da acompanhamento das frentes de serviço de drenagem
A144: Código | B144: Discriminação | C144: Unidade | D144: Quantidade | F144: Efsdu | H144: Efs
A145: 5.3 | B145: Frentes de Serviço para Drenagem | C145: equipe x mês
A146: ='RESUMO MODULO TOTAL'!D42 -> 2003943 | B146: =VLOOKUP(A146,'SINTÉTICO SICRO'!$A$4:$D$6373,2,0) -> Meio-fio de concreto - MFC 03 moldado no local com extrusora e concreto usinado - areia e brita comerciais | C146: m | D146: ='RESUMO MODULO TOTAL'!J42 -> 44000 | F146: 0.00021 | H146: =D146*F146 -> 9.24
F147: Total de Equipes para Drenagem | H147: =H146 -> 9.24
A149: Parcela Variável - Composição de custo da acompanhamento das frentes de serviço de sinalização
A150: Código | B150: Discriminação | C150: Unidade | D150: Quantidade | F150: Produção Horária (und/h) | H150: Efs
A151: 5.4 | B151: Frentes de Serviço para Sinalização | C151: equipe x mês
A152: ='RESUMO MODULO TOTAL'!D37 -> 5213440 | B152: =VLOOKUP(A152,'SINTÉTICO SICRO'!$A$4:$D$6373,2,0) -> Placa de regulamentação em aço D = 0,60 m - película retrorrefletiva tipo I + SI - fornecimento e implantação | C152: Unidade | D152: ='RESUMO MODULO TOTAL'!J37 -> 66 | F152: 3 | H152: =0.2*((D152)/(F152*182.49)) -> 0.02411091019
A153: ='RESUMO MODULO TOTAL'!D38 -> 5213464 | B153: =VLOOKUP(A153,'SINTÉTICO SICRO'!$A$4:$D$6373,2,0) -> Placa de advertência em aço, lado de 0,60 m - película retrorrefletiva tipo I + SI - fornecimento e implantação | C153: Unidade | D153: ='RESUMO MODULO TOTAL'!J38 -> 66 | F153: 3 | H153: =0.2*((D153)/(F153*182.49)) -> 0.02411091019
A154: ='RESUMO MODULO TOTAL'!D39 -> 5213863 | B154: =VLOOKUP(A154,'SINTÉTICO SICRO'!$A$4:$D$6373,2,0) -> Suporte metálico galvanizado para placa de advertência ou regulamentação - lado ou diâmetro de 0,60 m - fornecimento e implantação | C154: Unidade | D154: ='RESUMO MODULO TOTAL'!J39 -> 132 | F154: 4.1 | H154: =0.2*((D154)/(F154*182.49)) -> 0.03528425881
A155: ='RESUMO MODULO TOTAL'!D40 -> 5213400 | B155: =VLOOKUP(A155,'SINTÉTICO SICRO'!$A$4:$D$6373,2,0) -> Pintura de faixa com tinta acrílica - espessura de 0,4 mm | C155: m² | D155: ='RESUMO MODULO TOTAL'!J40 -> 6160 | F155: 177.07 | H155: 0.03812647457
F156: Total de Equipes para Sinalização | H156: =SUM(H152:I155) -> 0.1216325538 | J156: =H156+H147 -> 9.361632554
A158: 3. PARCELA VARIÁVEL - EQUIPE DE CONTROLE TECNOLÓGICO
A159: LABORATÓRIO DE SOLOS
A160: Item | B160: Discriminação | F160: Unidade | G160: Quantidade | H160: Custo Unitário (R$) | I160: Custo Total (R$)
B161: Laboratório de Solos (equipe x mês)
B162: Mão de Obra
A163: P9858 | B163: Laboratorista | F163: func./mês | G163: 1 | H163: =VLOOKUP(A163,'Pessoal Sicro'!$A$6:$G$118,6,0) -> 6685.437 | I163: =TRUNC(G163*H163,2) -> 6685.43
A164: P9833 | B164: Auxiliar de laboratório | F164: func./mês | G164: 1 | H164: =VLOOKUP(A164,'Pessoal Sicro'!$A$6:$G$118,6,0) -> 4544.6137 | I164: =TRUNC(G164*H164,2) -> 4544.61
H165: Subtotal do Item | I165: =SUM(I163:I164) -> 11230.04
A166: Item | B166: Discriminação | C166: Und | D166: Quant | E166: Utilização Produtiva | F166: Utilização Improdutiva | G166: Horário Produtivo (R$) | H166: Horário Improdutivo (R$) | I166: Total (R$)
B167: Equipe de Controle Tecnológico
B168: Veículos
A169: E9125 | B169: Van furgão a diesel - 93 kW | C169: veic./mês | D169: 0.5 | E169: 44 | F169: 176 | G169: =VLOOKUP(A169,Equipamentos!$A$4:$K$533,10,0) -> 81.7029 | H169: =VLOOKUP(A169,Equipamentos!$A$4:$K$533,11,0) -> 44.4435 | I169: =D169*((E169*G169)+(F169*H169)) -> 5708.4918
H170: Subtotal do Item | I170: =SUM(I169:I169) -> 5708.4918
H171: Total da Equipe do Laboratório de Solos | I171: =I165+I170 -> 16938.5318
A173: 3. PARCELA VARIÁVEL - EQUIPE DE CONTROLE TECNOLÓGICO
A174: LABORATÓRIO DE ASFALTOS
A175: Item | B175: Discriminação | F175: Unidade | G175: Quantidade | H175: Custo Unitário (R$) | I175: Custo Total (R$)
B176: Laboratório de Solos (equipe x mês)
B177: Mão de Obra
A178: P9858 | B178: Laboratorista | F178: func./mês | G178: 1 | H178: =VLOOKUP(A178,'Pessoal Sicro'!$A$6:$G$118,6,0) -> 6685.437 | I178: =TRUNC(G178*H178,2) -> 6685.43
A179: P9833 | B179: Auxiliar de laboratório | F179: func./mês | G179: 1 | H179: =VLOOKUP(A179,'Pessoal Sicro'!$A$6:$G$118,6,0) -> 4544.6137 | I179: =TRUNC(G179*H179,2) -> 4544.61
H180: Subtotal do Item | I180: =SUM(I178:I179) -> 11230.04
A181: Item | B181: Discriminação | C181: Und | D181: Quant | E181: Utilização Produtiva | F181: Utilização Improdutiva | G181: Horário Produtivo (R$) | H181: Horário Improdutivo (R$) | I181: Total (R$)
B182: Equipe de Controle Tecnológico
B183: Veículos
A184: E9125 | B184: Van furgão a diesel - 93 kW | C184: veic./mês | D184: 0.5 | E184: 44 | F184: 176 | G184: =VLOOKUP(A184,Equipamentos!$A$4:$K$533,10,0) -> 81.7029 | H184: =VLOOKUP(A184,Equipamentos!$A$4:$K$533,11,0) -> 44.4435 | I184: =D184*((E184*G184)+(F184*H184)) -> 5708.4918
H185: Subtotal do Item | I185: =SUM(I184:I184) -> 5708.4918
H186: Total da Equipe do Laboratório de Asfaltos | I186: =I180+I185 -> 16938.5318
A188: Equipes de laboratório de solos para pavimentação
A189: Item | B189: Discriminação | F189: Und | G189: Quant | H189: QE | I189: Els
A190: ='RESUMO MODULO TOTAL'!D26 -> CPU-20 | B190: =VLOOKUP(A190,'SINTÉTICO SICRO'!A:D,2,0) ->  | F190: =VLOOKUP(A190,'SINTÉTICO SICRO'!A:D,3,0) ->  | G190: ='RESUMO MODULO TOTAL'!J26 -> 23100 | H190: 21900 | I190: =G190/H190 -> 1.054794521
A191: ='RESUMO MODULO TOTAL'!D27 -> 4011227 | B191: =VLOOKUP(A191,'SINTÉTICO SICRO'!A:D,2,0) -> Sub-base de solo estabilizado granulometricamente sem mistura com material de jazida | F191: =VLOOKUP(A191,'SINTÉTICO SICRO'!A:D,3,0) -> m³ | G191: ='RESUMO MODULO TOTAL'!J27 -> 23100 | H191: 21900 | I191: =G191/H191 -> 1.054794521
A192: ='RESUMO MODULO TOTAL'!D28 -> 4011209 | B192: =VLOOKUP(A192,'SINTÉTICO SICRO'!A:D,2,0) -> Regularização do subleito | F192: =VLOOKUP(A192,'SINTÉTICO SICRO'!A:D,3,0) -> m² | G192: ='RESUMO MODULO TOTAL'!J28 -> 154000 | H192: 21900 | I192: =G192/H192 -> 7.03196347
H193: Total de equipes de Laboratório de Solos para Pavimentação | I193: =SUM(I190:I192) -> 9.141552511
A195: Equipes de laboratório de Asfalto
A196: Item | B196: Discriminação | F196: Und | G196: Quant | H196: QE | I196: Ela
A197: ='RESUMO MODULO TOTAL'!D23 -> 4011463 | B197: =VLOOKUP(A197,'SINTÉTICO SICRO'!A:D,2,0) -> Concreto asfáltico - faixa C - areia e brita comerciais | F197: =VLOOKUP(A197,'SINTÉTICO SICRO'!A:D,3,0) -> t | G197: ='RESUMO MODULO TOTAL'!J23 -> 18480 | H197: 9000 | I197: =G197/H197 -> 2.053333333
A198: ='RESUMO MODULO TOTAL'!D24 -> 4011352 | B198: =VLOOKUP(A198,'SINTÉTICO SICRO'!A:D,2,0) -> Imprimação com emulsão asfáltica | F198: =VLOOKUP(A198,'SINTÉTICO SICRO'!A:D,3,0) -> m² | G198: ='RESUMO MODULO TOTAL'!J24 -> 154000 | H198: 1610000 | I198: =G198/H198 -> 0.09565217391
A199: ='RESUMO MODULO TOTAL'!D25 -> 4011353 | B199: =VLOOKUP(A199,'SINTÉTICO SICRO'!A:D,2,0) -> Pintura de ligação | F199: =VLOOKUP(A199,'SINTÉTICO SICRO'!A:D,3,0) -> m² | G199: ='RESUMO MODULO TOTAL'!J25 -> 154000 | H199: 3610000 | I199: =G199/H199 -> 0.04265927978
H200: Total de equipes de Laboratório de Asfaltos | I200: =SUM(I197:I199) -> 2.191644787
A202: manutenção do canteiro de obras e acampamentos
A203: Código | B203: Discriminação | C203: Unidade | D203: Quantidade | F203: Custo Unitário (R$) | H203: Custo Total (R$)
B204: Manutenção do Canteiro de Obras e Acampamentos
A205: 6.1 | B205: Mão de Obra
A206: P9952 | B206: Pedreiro | C206: mês | D206: 0 | F206: =VLOOKUP(A206,'Pessoal Sicro'!$A$6:$G$118,6,0) -> 4995.5403 | H206: =F206*D206 -> 0
A207: P9954 | B207: Servente | C207: mês | D207: 0 | F207: =VLOOKUP(A207,'Pessoal Sicro'!$A$6:$G$118,6,0) -> 3913.9219 | H207: =F207*D207 -> 0
A208: P9953 | B208: Eletricista | C208: mês | D208: 0 | F208: =VLOOKUP(A208,'Pessoal Sicro'!$A$6:$G$118,6,0) -> 5598.4153 | H208: =F208*D208 -> 0
F209: Subtotal do Item 6.1 | H209: =SUM(H206:I208) -> 0
A211: Código | B211: Discriminação | C211: Unidade | D211: Quantidade | F211: Custo Produtivo (R$) | H211: Custo Total (R$)
A212: 6.2 | B212: Equipamentos
B213: Caminhão guindauto de 6 toneladas | C213: h/mês | D213: 0 | H213: =F213*D213 -> 0
B214: Caminhão tanque de 8.000 litros | C214: h/mês | D214: 0 | H214: =F214*D214 -> 0
A215: E9524 | B215: Motoniveladora | C215: h/mês | D215: 0 | F215: =Equipamentos!J168 -> 288.5033 | H215: =F215*D215 -> 0
F216: Subtotal do Item 6.2 | H216: =SUM(H213:I215) -> 0
G217: Total da Manutenção do Canteiro de Obras e Acampamentos | H217: =H216+H209 -> 0
A221: Resumo das parcelas de administração local
A222: Código | B222: Discriminação | C222: Unidade | D222: Quantidade | F222: Custo Unitário (R$) | H222: Custo Total (R$)
... 29 more rows

Sheet Projeto Executivo
A2: COMPOSIÇAO PREÇO PROJETO EXECUTIVO
A4: DISCRIMINAÇAO | F4: Pr. Unit. | G4: Pr. Total
A6: A· EOUIPE TECNICA | G6: =G7+G10 -> 14372.93169
B7: A. 1 - Pessoal de Nível Superior | C7: Unidade | D7: Quantitativo | E7: SICRO e Rel.Custos Gerais | G7: =G8+G9 -> 11407.36113
B8: Engenheiro | C8: mês | D8: 0.4 | E8: P9812 | F8: =VLOOKUP(E8,'Pessoal Sicro'!A:G,6,0) -> 23564.3607 | G8: =F8*D8 -> 9425.74428
B9: Topógrafo | C9: mês | D9: 0.25 | E9: P9949 | F9: =VLOOKUP(E9,'Pessoal Sicro'!A:G,6,0) -> 7926.4674 | G9: =F9*D9 -> 1981.61685
B10: A.2 - Pessoal de Nível Técnico e Aux. | G10: =G11+G12 -> 2965.570563
B11: Auxiliar de topógrafo | C11: mês | D11: 0.125 | E11: P9950 | F11: =VLOOKUP(E11,'Pessoal Sicro'!A:G,6,0) -> 4519.6557 | G11: =F11*D11 -> 564.9569625
B12: Auxiliar Técnico/Assistente de Engenharia | C12: mês | D12: 0.5 | E12: P9903 | F12: =VLOOKUP(E12,'Pessoal Sicro'!A:G,6,0) -> 4801.2272 | G12: =F12*D12 -> 2400.6136
A13: B - ENCARGOS SOCIAIS | G13: =G14 -> 0
B14: =CONCATENATE("Taxas ",'ENC. SOCIAIS'!E51,"%") -> Taxas % | C14: JÁ INCLUSAS EM "A"
A15: C - DESPESAS GERAIS | G15: =G16+G18+G17 -> 4973.536084
B16: C.1 - MATERIAIS DE CONSUMO | C16: Estimativa % como referência de equipe técnica com encargos sociais | D16: 0.03 | F16: =G6+G14 -> 14372.93169 | G16: =F16*D16 -> 431.1879508
B17: C.2 - VEÍCULOS (Veículo leve picape 4 x 4 com capacidade de 1,10 t - 147 kW) | C17: h | D17: 40 | E17: E9684 | F17: =VLOOKUP(E17,Equipamentos!A:K,10,0) -> 106.9319 | G17: =F17*D17 -> 4277.276
B18: C.3 - Estação total eletrônica com alcance máximo de 3.000 m | C18: h | D18: 52.24331532 | E18: E9553 | F18: =VLOOKUP(E18,Equipamentos!A:K,10,0) -> 5.0738 | G18: =F18*D18 -> 265.0721332
A19: D - ENSAIOS | G19: =SUM(G20:G23) -> 3399.277212
B20: Laboratorista | C20: mês | D20: =1/4 -> 0.25 | E20: P9858 | F20: =VLOOKUP(E20,'Pessoal Sicro'!A:G,6,0) -> 6685.437 | G20: =F20*D20 -> 1671.35925
B21: Auxiliar de Laboratório | C21: mês | D21: =1/8 -> 0.125 | E21: P9833 | F21: =VLOOKUP(E21,'Pessoal Sicro'!A:G,6,0) -> 4544.6137 | G21: =F21*D21 -> 568.0767125
B22: Laboratório de solos | C22: mês | D22: =1/8 -> 0.125 | E22: B8957 | F22: =VLOOKUP(E22,'Tabelas 1 e 2'!C14:G23,5,0) -> 4073.25 | G22: =F22*D22 -> 509.15625
B23: Laboratório de asfalto | C23: mês | D23: 0.125 | E23: B8955 | F23: =VLOOKUP(E23,'Tabelas 1 e 2'!C15:G24,5,0) -> 5205.48 | G23: =F23*D23 -> 650.685
A24: I - SOMA (A+B+C+D) | G24: =G6+G13+G15+G19 -> 22745.74499
A25: II - CUSTOS ADMINISTRATIVOS | D25: =BDI!C17 -> 0.2339 | G25: =D25*G24 -> 5320.229753
A26: TOTAL | G26: =G24+G25 -> 28065.97474
F27: Por m²: | G27: =G26/('MC MODULO'!C1*'MC MODULO'!C2) -> 2.004712482

Sheet BDI
A2: OBRA:
A3: LOCAL:
A4: DATA BASE:
A5: DETALHAMENTO DO BDI - SEM DESONERAÇÃO
A6: ='RESUMO MODULO TOTAL'!B1 -> CONTRATAÇÃO DE SERVIÇOS DE PAVIMENTAÇÃO ASFÁLTICA COM CONCRETO BETUMINOSO USINADO A QUENTE (CBUQ) EM VIAS URBANAS E RURAIS INSERIDAS NA ÁREA DE ATUAÇÃO DA CODEVASF, NO ESTADO DO AMAPÁ (REGIÃO PORTO GRANDE)
A7: DESCRIÇÃO DOS SERVIÇOS | B7: PREÇO DE VENDA (%) | C7: CUSTO DIRETO (%)
A8: ADMINISTRAÇÃO CENTRAL | C8: 0.06
A9: DESPESA FINANCEIRAS | B9: 0.0102
A10: SEGUROS E GARANTIAS CONTRATUAIS | B10: 0.0025
A11: RISCOS | B11: 0.005
A12: LUCRO OPERACIONAL | C12: 0.07
A13: PIS | B13: 0.0065
A14: COFINS | B14: 0.03
A15: ISSQN | B15: 0.03
A16: Contribuição Previdenciaria | B16: 0
B17: BDI | C17: =ROUND((1+(C8+C12))/(1-(B9+B10+B11+B13+B14+B15+B16))-1,4) -> 0.2339
A18: Observação: O percentual de ISSQN aqui utilizado consiste apenas em um referencial médio.
B19: O valor real do ISSQN a ser adotado deve ser aquele proveniente das alíquotas dos municípios situados na área de
B20: influência das obras.
A55: DETALHAMENTO DO BDI DIFERENCIADO - SEM DESONERAÇÃO
A56: ='RESUMO MODULO TOTAL'!B1 -> CONTRATAÇÃO DE SERVIÇOS DE PAVIMENTAÇÃO ASFÁLTICA COM CONCRETO BETUMINOSO USINADO A QUENTE (CBUQ) EM VIAS URBANAS E RURAIS INSERIDAS NA ÁREA DE ATUAÇÃO DA CODEVASF, NO ESTADO DO AMAPÁ (REGIÃO PORTO GRANDE)
A58: DESCRIÇÃO DOS SERVIÇOS | B58: PREÇO DE VENDA (%) | C58: CUSTO DIRETO (%)
A59: ADMINISTRAÇÃO CENTRAL | C59: 0.0377
A60: DESPESA FINANCEIRAS | B60: 0.0102
A61: SEGUROS E GARANTIAS CONTRATUAIS | B61: 0.0025
A62: RISCOS | B62: 0.005
A63: LUCRO OPERACIONAL | C63: 0.05
A64: PIS | B64: 0.0065
A65: COFINS | B65: 0.03
A66: ISSQN | B66: 0
A67: Contribuição Previdenciaria | B67: 0
B68: BDI | C68: =ROUND((1+(C59+C63))/(1-(B60+B61+B62+B64+B65+B66+B67))-1,4) -> 0.15
A69: Fonte da composição, valores de referência e fórmula do BDI: Instrução Normativa N° 62/DNIT SEDE

Sheet ENC. SOCIAIS
A5: ='[215]RESUMO MODULO TOTAL'!B1 -> EXECUÇÃO DE CAPA ASFÁLTICA EM CONCRETO BETUMINOSO USINADO A QUENTE (CBUQ), EM VIAS DE MUNICÍPIOS DIVERSOS INSERIDOS NA ÁREA DE ATUAÇÃO DA CODEVASF, NO ESTADO DO AMAPÁ (REGIÃO SANTANA)
A7: DETALHAMENTO DOS ENCARGOS SOCIAIS (%)
A8: VIGÊNCIA A PARTIR DE 12/2022 | C8: COM DESONERAÇÃO | E8: SEM DESONERAÇÃO
C10: HORISTA | D10: MENSALISTA | E10: HORISTA | F10: MENSALISTA
A12: GRUPO A
A13: A1 | B13: INSS | C13: 0 | D13: 0 | E13: 20 | F13: 20
A14: A2 | B14: SESI | C14: 1.5 | D14: 1.5 | E14: 1.5 | F14: 1.5
A15: A3 | B15: SENAI | C15: 1 | D15: 1 | E15: 1 | F15: 1
A16: A4 | B16: INCRA | C16: 0.2 | D16: 0.2 | E16: 0.2 | F16: 0.2
A17: A5 | B17: SEBRAE | C17: 0.6 | D17: 0.6 | E17: 0.6 | F17: 0.6
A18: A6 | B18: Salário Educação | C18: 2.5 | D18: 2.5 | E18: 2.5 | F18: 2.5
A19: A7 | B19: Seguro Contra Acidentes de Trabalho | C19: 3 | D19: 3 | E19: 3 | F19: 3
A20: A8 | B20: FGTS | C20: 8 | D20: 8 | E20: 8 | F20: 8
A21: A9 | B21: SECONCI | C21: 1 | D21: 1 | E21: 1 | F21: 1
A22: A | B22: Total | C22: =SUM(C13:C21) -> 17.8 | D22: =SUM(D13:D21) -> 17.8 | E22: =SUM(E13:E21) -> 37.8 | F22: =SUM(F13:F21) -> 37.8
A23: GRUPO B
A24: B1 | B24: Repouso Semanal Remunerado | C24: 17.88 | D24: - | E24: 17.96 | F24: -
A25: B2 | B25: Feriados | C25: 3.94 | D25: - | E25: 4.01 | F25: -
A26: B3 | B26: Auxílio-enfermidade | C26: 0.91 | D26: 0.69 | E26: 0.85 | F26: 0.64
A27: B4 | B27: 13° salário | C27: 10.98 | D27: 8.33 | E27: 11.05 | F27: 8.33
A28: B5 | B28: Licença-paternidade | C28: 0.07 | D28: 0.06 | E28: 0.06 | F28: 0.04
A29: B6 | B29: Faltas Justificadas | C29: 0.73 | D29: 0.56 | E29: 0.74 | F29: 0.56
A30: B7 | B30: Dias de chuva | C30: 1.45 | D30: - | E30: 1.97 | F30: -
A31: B8 | B31: Auxílio Acidente de Trabalho | C31: 0.11 | D31: 0.09 | E31: 0.1 | F31: 0.08
A32: B9 | B32: Férias Gozadas | C32: 11.35 | D32: 8.62 | E32: 11.74 | F32: 8.85
A33: B10 | B33: Salário Maternidade | C33: 0.03 | D33: 0.03 | E33: 0.04 | F33: 0.03 | L33: =(#REF!)/(1+#REF!) ->  | M33: =(#REF!) -> 
A34: B | B34: Total | C34: =SUM(C24:C33) -> 47.45 | D34: =SUM(D24:D33) -> 18.38 | E34: =SUM(E24:E33) -> 48.52 | F34: =SUM(F24:F33) -> 18.53
A35: GRUPO C
A36: C1 | B36: Aviso Prévio Indenizado | C36: 6.76 | D36: 5.14 | E36: 4.41 | F36: 3.33
A37: C2 | B37: Aviso Prévio Trabalhado | C37: 0.16 | D37: 0.12 | E37: 0.1 | F37: 0.08
A38: C3 | B38: Férias Indenizadas | C38: 2.28 | D38: 1.73 | E38: 2.09 | F38: 1.57
A39: C4 | B39: Depósito Rescisão Sem Justa Causa | C39: 3.81 | D39: 2.89 | E39: 2.42 | F39: 1.82
A40: C5 | B40: Indenização Adicional | C40: 0.57 | D40: 0.43 | E40: 0.37 | F40: 0.28
A41: C | B41: Total | C41: =SUM(C36:C40) -> 13.58 | D41: =SUM(D36:D40) -> 10.31 | E41: =SUM(E36:E40) -> 9.39 | F41: =SUM(F36:F40) -> 7.08
A42: GRUPO D
A43: D1 | B43: Reincidência de A sobre B | C43: 8.45 | D43: 3.27 | E43: 18.34 | F43: 7
A44: D2 | B44: Reincidência de Grupo A sobre Aviso Prévio Trabalhado e Reincidência do FGTS sobre Aviso Prévio Indenizado | C44: 0.57 | D44: 0.43 | E44: 0.39 | F44: 0.3
A45: D | B45: Total | C45: =SUM(C43:C44) -> 9.02 | D45: =SUM(D43:D44) -> 3.7 | E45: =SUM(E43:E44) -> 18.73 | F45: =SUM(F43:F44) -> 7.3
A47: T O T A L (%) | C47: =C22+C34+C41+C45 -> 87.85 | D47: =D22+D34+D41+D45 -> 50.19 | E47: =E22+E34+E41+E45 -> 114.44 | F47: =F22+F34+F41+F45 -> 70.71
H51: Fonte: Sinapi Cálculos e Parâmetros 5ª Edição - Atualizada em Agosto 2023

Sheet Transporte Cap 50-70
C2: MEMÓRIA DE CÁLCULO
C7: REAJUSTE | F7: TIPOLOGIA DO MATERIAL | I7: CIMENTOS ASFÁLTICOS CAP-50-70 | M7: IMPOSTOS | N7: COFINS | O7: 0.0065 | P7: 0.0065
G8: ÍNDICE DE PAVIMENTAÇÃO DNIT | H8: 2014-07-01 | I8: ÍNDICE INICIAL | J8: 270.237 | N8: PIS | O8: 0.03 | P8: 0.03 | T8: LEGENDA | AC8: As empresas tributadas pelo Lucro Presumido pagam 0,65% de PIS e 3% de COFINS
H9: 2024-07-01 | I9: ÍNDICE FINAL | J9: 574.257 | N9: ICMS | O9: 0.18 | P9: 0.18 | Q9: =1-(O9/1) -> 0.82 | R9: =1-(P9/1) -> 0.82 | S9: =1-(Q9/1) -> 0.18 | T9: ENTRADA DE DADOS | AC9: As empresas tributadas pelo Lucro Real pagam 1,65% de PIS e 7,60% de COFINS
F10: CAP50/70 | G10: Data ANP | H10: 2024-07-01
C11: DATA-BASE | D11: PRODUTOS | E11: LOCALIDADES | J11: CUSTO ANP (R$/Kg) | L11: CUSTO ANP | M11: IMPOSTOS DO PRODUTO | N11: CUSTO DO PRODUTO COM IMPOSTOS | O11: DMT's | P11: DMT's FLUVIAL | Q11: CUSTO DO TRANSPORTE RODOVIA PAVIMENTADA | R11: CUSTO DO TRANSPORTE FLUVIAL | S11: CUSTO DO TRANSPORTE TOTAL | T11: ICMS | U11: ATUALIZAÇÃO DO CUSTO DE TRANSPORTE | V11: CUSTO DO TRANSPORTE RODOVIA PAVIMENTADA COM IMPOSTOS E ATUALIZAÇÃO MONETÁRIA | W11: PEDÁGIO | Y11: TOTAL TRANSPORTE | Z11: AQUISIÇÃO DO PRODUTO | AA11: TOTAL GERAL ( TRANSP + AQUISIÇÃO) | AC11: 1 | AD11: 2 | AE11: 3
C12: =H9 -> 2024-07-01 | E12: REFINARIAS | F12: ENDEREÇO | G12: ESTADO | H12: CIDADE | I12: DESTINO | J12: ESTADO | K12: REGIÃO | L12: R$/t | M12: R$/t | N12: R$/t | O12: KM | P12: KM | Q12: R$/t | R12: R$/t | S12: R$/t | T12: R$/t | U12: R$/t | V12: R$/t | W12: CUSTO | X12: R$/t | Y12: R$/t | Z12: R$/t | AA12: R$/t | AC12: TOTAL GERAL ( TRANSP + AQUISIÇÃO) | AD12: TOTAL TRANSPORTE | AE12: AQUISIÇÃO DO PRODUTO
B13: =AA13 -> 6629.294987 | C13: 1 | D13: =I7 -> CIMENTOS ASFÁLTICOS CAP-50-70 | E13: Refinaria Abreu e Lima | F13: Rodovia PE 60, Km 10 - Ipojuca - PE CEP:55590-000 | G13: Pernambuco | H13: IPOJUCA - PE | I13: Porto Grande -AP | J13: =VLOOKUP('Transporte Cap 50-70'!G13,OFFSET('ANP ESTADO'!$A$1,MATCH('Transporte Cap 50-70'!$I$7,'ANP ESTADO'!B:B,0)+MATCH('Transporte Cap 50-70'!$H$10,OFFSET('ANP ESTADO'!$A$1,MATCH('Transporte Cap 50-70'!$I$7,'ANP ESTADO'!B:B,0),0,100000,1),0),2,100000,2),2,FALSE) -> - | K13: =VLOOKUP($H$10,OFFSET('ANP REGIÃO'!$A$9,MATCH('Transporte Cap 50-70'!$I$7,'ANP REGIÃO'!A:A,0),1,10000,10000),MATCH('Transporte Cap 50-70'!AH13,'ANP REGIÃO'!$B$8:$G$8,0),FALSE) -> 3.823804987 | L13: =IF(AND(J13="-",K13="-"),"",IF(AND(J13<>0,K13="-"),J13*1000,IF(AND(J13="-",K13<>0),K13*1000,IF(AND(J13<>0,K13<>0),J13*1000,"")))) -> 3823.804987 | M13: =ROUND(((L13/(1-$O$7-$O$8-$O$9))-L13),2) -> 1056.61 | N13: =L13+M13 -> 4880.414987 | O13: 2118 | P13: 547 | Q13: =ROUND((26.939+0.253*O13),2) -> 562.79 | R13: =ROUND((24.3894+0.1603*P13),2) -> 112.07 | S13: =Q13+R13 -> 674.86 | T13: =TRUNC(S13*($O$9/(1-$O$9)),2) -> 148.14 | U13: =TRUNC(IF($J$8="","",(($J$9-$J$8)/$J$8)*(S13+T13)),2) -> 925.88 | V13: =S13+T13+U13 -> 1748.88 | W13: 0 | X13: =EVEN(' CONSUMO DE MAT. B TOTAL'!$P$13*2/28)*W13/' CONSUMO DE MAT. B TOTAL'!$P$13 -> 0 | Y13: =IF(AND(Q13="",T13=""),"",V13+X13) -> 1748.88 | Z13: =IF(OR(L13="",M13=""),"",L13+M13) -> 4880.414987 | AA13: =IF(OR(Y13="",Z13=""),"",Y13+Z13) -> 6629.294987 | AC13: =AA13 -> 6629.294987 | AD13: =Y13 -> 1748.88 | AE13: =Z13 -> 4880.414987 | AH13: =IF(OR(G13=$D$52,G13=$D$53,G13=$D$55,G13=$D$61,G13=$D$45,G13=$D$41,G13=$D$37,G13=$D$50,G13=$D$40),"NORDESTE",IF(OR(G13=$D$36,G13=$D$38,G13=$D$39,G13=$D$49,G13=$D$57,G13=$D$58,G13=$D$62),"NORTE",IF(OR(G13=$D$42,G13=$D$44,G13=$D$46,G13=$D$47),"CENTRO-OESTE",IF(OR(G13=$D$60,G13=$D$54,G13=$D$48,G13=$D$43),"SUDESTE",IF(OR(G13=$D$59,G13=$D$51,G13=$D$56),"SUL",""))))) -> NORDESTE
B14: =AA14 -> 7612.39322 | C14: 2 | E14: ISAC SAABA | F14: Rua Rio Quixito, 1, Vila Buriti - Distrito Industrial - Manaus - AM CEP: 69072-070 | G14: Amazonas | H14: MANAUS-AM | I14: Porto Grande -AP | J14: =VLOOKUP('Transporte Cap 50-70'!G14,OFFSET('ANP ESTADO'!$A$1,MATCH('Transporte Cap 50-70'!$I$7,'ANP ESTADO'!B:B,0)+MATCH('Transporte Cap 50-70'!$H$10,OFFSET('ANP ESTADO'!$A$1,MATCH('Transporte Cap 50-70'!$I$7,'ANP ESTADO'!B:B,0),0,100000,1),0),2,100000,2),2,FALSE) -> 4.37636322 | K14: =VLOOKUP($H$10,OFFSET('ANP REGIÃO'!$A$9,MATCH('Transporte Cap 50-70'!$I$7,'ANP REGIÃO'!A:A,0),1,10000,10000),MATCH('Transporte Cap 50-70'!AH14,'ANP REGIÃO'!$B$8:$G$8,0),FALSE) -> 3.869839388 | L14: =IF(AND(J14="-",K14=""),"",IF(AND(J14<>0,K14=""),J14*1000,IF(AND(J14="-",K14<>0),K14*1000,IF(AND(J14<>0,K14<>0),J14*1000,"")))) -> 4376.36322 | M14: =ROUND(((L14/(1-$O$7-$O$8-$O$9))-L14),2) -> 1209.3 | N14: =L14+M14 -> 5585.66322 | O14: 2882 | P14: 10 | Q14: =ROUND((26.939+0.253*O14),2) -> 756.09 | R14: =ROUND((24.3894+0.1603*P14),2) -> 25.99 | S14: =Q14+R14 -> 782.08 | T14: =TRUNC(S14*($O$9/(1-$O$9)),2) -> 171.67 | U14: =TRUNC(IF($J$8="","",(($J$9-$J$8)/$J$8)*(S14+T14)),2) -> 1072.98 | V14: =S14+T14+U14 -> 2026.73 | W14: 0 | X14: =EVEN(' CONSUMO DE MAT. B TOTAL'!$P$13*2/28)*W14/' CONSUMO DE MAT. B TOTAL'!$P$13 -> 0 | Y14: 2026.73 | Z14: 5585.66322 | AA14: =IF(OR(Y14="",Z14=""),"",Y14+Z14) -> 7612.39322 | AC14: =AA14 -> 7612.39322 | AD14: =Y14 -> 2026.73 | AE14: 5585.66322 | AH14: =IF(OR(G14=$D$52,G14=$D$53,G14=$D$55,G14=$D$61,G14=$D$45,G14=$D$41,G14=$D$37,G14=$D$50,G14=$D$40),"NORDESTE",IF(OR(G14=$D$36,G14=$D$38,G14=$D$39,G14=$D$49,G14=$D$57,G14=$D$58,G14=$D$62),"NORTE",IF(OR(G14=$D$42,G14=$D$44,G14=$D$46,G14=$D$47),"CENTRO-OESTE",IF(OR(G14=$D$60,G14=$D$54,G14=$D$48,G14=$D$43),"SUDESTE",IF(OR(G14=$D$59,G14=$D$51,G14=$D$56),"SUL",""))))) -> NORTE
B15: 6494.254987 | C15: 2 | E15: Refinaria Potiguar Clara Camarão | F15: Rodovia RN 221, KM 25 - Guamaré - RN CEP:59598-000 | G15: Rio Grande do Norte | H15: GUAMARÉ - RN | I15: Porto Grande -AP | J15: =VLOOKUP('Transporte Cap 50-70'!G15,OFFSET('ANP ESTADO'!$A$1,MATCH('Transporte Cap 50-70'!$I$7,'ANP ESTADO'!B:B,0)+MATCH('Transporte Cap 50-70'!$H$10,OFFSET('ANP ESTADO'!$A$1,MATCH('Transporte Cap 50-70'!$I$7,'ANP ESTADO'!B:B,0),0,100000,1),0),2,100000,2),2,FALSE) -> - | K15: =VLOOKUP($H$10,OFFSET('ANP REGIÃO'!$A$9,MATCH('Transporte Cap 50-70'!$I$7,'ANP REGIÃO'!A:A,0),1,10000,10000),MATCH('Transporte Cap 50-70'!AH15,'ANP REGIÃO'!$B$8:$G$8,0),FALSE) -> 3.823804987 | L15: 3823.804987 | M15: =ROUND(((L15/(1-$O$7-$O$8-$O$9))-L15),2) -> 1056.61 | N15: 4880.414987 | O15: 1912 | P15: 547 | Q15: =ROUND((26.939+0.253*O15),2) -> 510.68 | R15: 112.07 | S15: 622.75 | T15: 136.7 | U15: 854.39 | V15: 1613.84 | W15: 0 | X15: =EVEN(' CONSUMO DE MAT. B TOTAL'!$P$13*2/28)*W15/' CONSUMO DE MAT. B TOTAL'!$P$13 -> 0 | Y15: 1613.84 | Z15: 4880.414987 | AA15: 6494.254987 | AC15: 6494.254987 | AD15: 1613.84 | AE15: 4880.414987 | AH15: NORDESTE
B16: 6755.63013 | C16: 3 | E16: Refinaria Landulpho Alves (RLAM) | F16: Rodovia BA 523, KM 4 – Mataripe São Francisco do Conde - BA CEP:43900-000 | G16: Bahia | H16: SÃO FRANCISCO DO CONDE - BA | I16: Porto Grande -AP | J16: =VLOOKUP('Transporte Cap 50-70'!G16,OFFSET('ANP ESTADO'!$A$1,MATCH('Transporte Cap 50-70'!$I$7,'ANP ESTADO'!B:B,0)+MATCH('Transporte Cap 50-70'!$H$10,OFFSET('ANP ESTADO'!$A$1,MATCH('Transporte Cap 50-70'!$I$7,'ANP ESTADO'!B:B,0),0,100000,1),0),2,100000,2),2,FALSE) -> 3.93496049 | K16: =VLOOKUP($H$10,OFFSET('ANP REGIÃO'!$A$9,MATCH('Transporte Cap 50-70'!$I$7,'ANP REGIÃO'!A:A,0),1,10000,10000),MATCH('Transporte Cap 50-70'!AH16,'ANP REGIÃO'!$B$8:$G$8,0),FALSE) -> 3.823804987 | L16: 3934.96049 | M16: =ROUND(((L16/(1-$O$7-$O$8-$O$9))-L16),2) -> 1087.32 | N16: 5022.28049 | O16: 2092 | P16: 547 | Q16: =ROUND((26.939+0.253*O16),2) -> 556.22 | R16: 112.07 | S16: 668.29 | T16: 146.69 | U16: 916.86 | V16: 1731.84 | W16: 21 | X16: =EVEN(' CONSUMO DE MAT. B TOTAL'!$P$13*2/28)*W16/' CONSUMO DE MAT. B TOTAL'!$P$13 -> 1.509640647 | Y16: 1733.349641 | Z16: 5022.28049 | AA16: 6755.63013 | AC16: 6755.63013 | AD16: 1733.349641 | AE16: 5022.28049 | AH16: NORDESTE
A17: 2403 | B17: 5996.141062 | C17: 4 | E17: Refinaria Lubrificantes e Derivados do Nordeste (Lubnor) | F17: Av. Leite Barbosa, s/nº - Mucuripe Fortaleza - Ceará CEP:60180-420 | G17: Ceará | H17: FORTALEZA - CE | I17: Porto Grande -AP | J17: =VLOOKUP('Transporte Cap 50-70'!G17,OFFSET('ANP ESTADO'!$A$1,MATCH('Transporte Cap 50-70'!$I$7,'ANP ESTADO'!B:B,0)+MATCH('Transporte Cap 50-70'!$H$10,OFFSET('ANP ESTADO'!$A$1,MATCH('Transporte Cap 50-70'!$I$7,'ANP ESTADO'!B:B,0),0,100000,1),0),2,100000,2),2,FALSE) -> 3.601011062 | K17: =VLOOKUP($H$10,OFFSET('ANP REGIÃO'!$A$9,MATCH('Transporte Cap 50-70'!$I$7,'ANP REGIÃO'!A:A,0),1,10000,10000),MATCH('Transporte Cap 50-70'!AH17,'ANP REGIÃO'!$B$8:$G$8,0),FALSE) -> 3.823804987 | L17: =IF(AND(J17="-",K17=""),"",IF(AND(J17<>0,K17=""),J17*1000,IF(AND(J17="-",K17<>0),K17*1000,IF(AND(J17<>0,K17<>0),J17*1000,"")))) -> 3601.011062 | M17: =ROUND(((L17/(1-$O$7-$O$8-$O$9))-L17),2) -> 995.05 | N17: 4596.061062 | O17: 1586 | P17: 547 | Q17: 428.2 | R17: 112.07 | S17: 540.27 | T17: 118.59 | U17: 741.22 | V17: 1400.08 | W17: 0 | X17: =EVEN(' CONSUMO DE MAT. B TOTAL'!$P$13*2/28)*W17/' CONSUMO DE MAT. B TOTAL'!$P$13 -> 0 | Y17: 1400.08 | Z17: 4596.061062 | AA17: 5996.141062 | AC17: 5996.141062 | AD17: 1400.08 | AE17: 4596.061062 | AH17: NORDESTE
B18: 6685.47892 | C18: 5 | E18: Refinaria Capuava (Recap) | F18: Av. Alberto Soares Sampaio, 2122-A Capuava – Mauá - SP | G18: São Paulo | H18: MAUÁ - SP | I18: Porto Grande -AP | J18: =VLOOKUP('Transporte Cap 50-70'!G18,OFFSET('ANP ESTADO'!$A$1,MATCH('Transporte Cap 50-70'!$I$7,'ANP ESTADO'!B:B,0)+MATCH('Transporte Cap 50-70'!$H$10,OFFSET('ANP ESTADO'!$A$1,MATCH('Transporte Cap 50-70'!$I$7,'ANP ESTADO'!B:B,0),0,100000,1),0),2,100000,2),2,FALSE) -> 3.341281628 | K18: =VLOOKUP($H$10,OFFSET('ANP REGIÃO'!$A$9,MATCH('Transporte Cap 50-70'!$I$7,'ANP REGIÃO'!A:A,0),1,10000,10000),MATCH('Transporte Cap 50-70'!AH18,'ANP REGIÃO'!$B$8:$G$8,0),FALSE) -> 3.343745889 | L18: 3341.281628 | M18: =ROUND(((L18/(1-$O$7-$O$8-$O$9))-L18),2) -> 923.28 | N18: 4264.561628 | O18: 2985 | P18: 547 | Q18: 782.14 | R18: 112.07 | S18: 894.21 | T18: 196.29 | U18: 1226.82 | V18: 2317.32 | W18: 1441.1 | X18: =EVEN(' CONSUMO DE MAT. B TOTAL'!$P$13*2/28)*W18/' CONSUMO DE MAT. B TOTAL'!$P$13 -> 103.5972922 | Y18: 2420.917292 | Z18: 4264.561628 | AA18: 6685.47892 | AC18: 6685.47892 | AD18: 2420.917292 | AE18: 4264.561628 | AH18: SUDESTE
B19: 6679.703612 | C19: 6 | E19: Refinaria Duque de Caxias (Reduc) | F19: Rodovia Washington Luiz, km 113,7 Campos Elíseos – Duque de Caxias - RJ CEP:25213-005 | G19: Rio de Janeiro | H19: DUQUE DE CAXIAS - RJ | I19: Porto Grande -AP | J19: =VLOOKUP('Transporte Cap 50-70'!G19,OFFSET('ANP ESTADO'!$A$1,MATCH('Transporte Cap 50-70'!$I$7,'ANP ESTADO'!B:B,0)+MATCH('Transporte Cap 50-70'!$H$10,OFFSET('ANP ESTADO'!$A$1,MATCH('Transporte Cap 50-70'!$I$7,'ANP ESTADO'!B:B,0),0,100000,1),0),2,100000,2),2,FALSE) -> 3.225667238 | K19: =VLOOKUP($H$10,OFFSET('ANP REGIÃO'!$A$9,MATCH('Transporte Cap 50-70'!$I$7,'ANP REGIÃO'!A:A,0),1,10000,10000),MATCH('Transporte Cap 50-70'!AH19,'ANP REGIÃO'!$B$8:$G$8,0),FALSE) -> 3.343745889 | L19: 3225.667238 | M19: 891.33 | N19: 4116.997238 | O19: 3239 | P19: 547 | Q19: 846.41 | R19: 112.07 | S19: 958.48 | T19: 210.39 | U19: 1314.99 | V19: 2483.86 | W19: 1096.8 | X19: =EVEN(' CONSUMO DE MAT. B TOTAL'!$P$13*2/28)*W19/' CONSUMO DE MAT. B TOTAL'!$P$13 -> 78.84637438 | Y19: 2562.706374 | Z19: 4116.997238 | AA19: 6679.703612 | AC19: 6679.703612 | AD19: 2562.706374 | AE19: 4116.997238 | AH19: SUDESTE
B20: 7525.943965 | C20: 7 | E20: Refinaria Alberto Pasqualini (Refap) | F20: Avenida Getúlio Vargas, 11001 - Bairro Brigadeira Canoas - RS - Brasil CEP:92420-221 | G20: Rio grande do sul | H20: CANOAS - RS | I20: Porto Grande -AP | J20: =VLOOKUP('Transporte Cap 50-70'!G20,OFFSET('ANP ESTADO'!$A$1,MATCH('Transporte Cap 50-70'!$I$7,'ANP ESTADO'!B:B,0)+MATCH('Transporte Cap 50-70'!$H$10,OFFSET('ANP ESTADO'!$A$1,MATCH('Transporte Cap 50-70'!$I$7,'ANP ESTADO'!B:B,0),0,100000,1),0),2,100000,2),2,FALSE) -> 3.417243597 | K20: =VLOOKUP($H$10,OFFSET('ANP REGIÃO'!$A$9,MATCH('Transporte Cap 50-70'!$I$7,'ANP REGIÃO'!A:A,0),1,10000,10000),MATCH('Transporte Cap 50-70'!AH20,'ANP REGIÃO'!$B$8:$G$8,0),FALSE) -> 3.417322232 | L20: 3417.243597 | M20: 944.27 | N20: 4361.513597 | O20: 4049 | P20: 547 | Q20: 1051.34 | R20: 112.07 | S20: 1163.41 | T20: 255.38 | U20: 1596.15 | V20: 3014.94 | W20: 2079.5 | X20: =EVEN(' CONSUMO DE MAT. B TOTAL'!$P$13*2/28)*W20/' CONSUMO DE MAT. B TOTAL'!$P$13 -> 149.4903679 | Y20: 3164.430368 | Z20: 4361.513597 | AA20: 7525.943965 | AC20: 7525.943965 | AD20: 3164.430368 | AE20: 4361.513597 | AH20: SUL
B21: 6969.760635 | C21: 8 | E21: Unidade de Industrialização do Xisto (SIX) | F21: Rodovia do Xisto, BR 476, km 153 São Mateus do Sul – PR CEP 83900-000 | G21: Paraná | H21: SÃO MATEUS DO SUL - PR | I21: Porto Grande -AP | J21: =VLOOKUP('Transporte Cap 50-70'!G21,OFFSET('ANP ESTADO'!$A$1,MATCH('Transporte Cap 50-70'!$I$7,'ANP ESTADO'!B:B,0)+MATCH('Transporte Cap 50-70'!$H$10,OFFSET('ANP ESTADO'!$A$1,MATCH('Transporte Cap 50-70'!$I$7,'ANP ESTADO'!B:B,0),0,100000,1),0),2,100000,2),2,FALSE) -> 3.417370179 | K21: =VLOOKUP($H$10,OFFSET('ANP REGIÃO'!$A$9,MATCH('Transporte Cap 50-70'!$I$7,'ANP REGIÃO'!A:A,0),1,10000,10000),MATCH('Transporte Cap 50-70'!AH21,'ANP REGIÃO'!$B$8:$G$8,0),FALSE) -> 3.417322232 | L21: 3417.370179 | M21: 944.3 | N21: 4361.670179 | O21: 3281 | P21: 547 | Q21: 857.03 | R21: 112.07 | S21: 969.1 | T21: 212.72 | U21: 1329.56 | V21: 2511.38 | W21: 1345.3 | X21: =EVEN(' CONSUMO DE MAT. B TOTAL'!$P$13*2/28)*W21/' CONSUMO DE MAT. B TOTAL'!$P$13 -> 96.71045537 | Y21: 2608.090455 | Z21: 4361.670179 | AA21: 6969.760635 | AC21: 6969.760635 | AD21: 2608.090455 | AE21: 4361.670179 | AH21: SUL
B22: 6490.134831 | C22: 9 | E22: Refinaria Gabriel Passos (Regap) | F22: Av. Refinaria Gabriel Passos, 690 Distrito Industrial Paulo Camilo Sul Betim - MG CEP:32669-205 | G22: Minas Gerais | H22: BETIM - MG | I22: Porto Grande -AP | J22: =VLOOKUP('Transporte Cap 50-70'!G22,OFFSET('ANP ESTADO'!$A$1,MATCH('Transporte Cap 50-70'!$I$7,'ANP ESTADO'!B:B,0)+MATCH('Transporte Cap 50-70'!$H$10,OFFSET('ANP ESTADO'!$A$1,MATCH('Transporte Cap 50-70'!$I$7,'ANP ESTADO'!B:B,0),0,100000,1),0),2,100000,2),2,FALSE) -> 3.307833193 | K22: =VLOOKUP($H$10,OFFSET('ANP REGIÃO'!$A$9,MATCH('Transporte Cap 50-70'!$I$7,'ANP REGIÃO'!A:A,0),1,10000,10000),MATCH('Transporte Cap 50-70'!AH22,'ANP REGIÃO'!$B$8:$G$8,0),FALSE) -> 3.343745889 | L22: 3307.833193 | M22: 914.03 | N22: 4221.863193 | O22: 2831 | P22: 547 | Q22: 743.18 | R22: 112.07 | S22: 855.25 | T22: 187.73 | U22: 1173.36 | V22: 2216.34 | W22: 722.4 | X22: =EVEN(' CONSUMO DE MAT. B TOTAL'!$P$13*2/28)*W22/' CONSUMO DE MAT. B TOTAL'!$P$13 -> 51.93163827 | Y22: 2268.271638 | Z22: 4221.863193 | AA22: =IF(OR(Y22="",Z22=""),"",Y22+Z22) -> 6490.134831 | AC22: 6490.134831 | AD22: 2268.271638 | AE22: 4221.863193 | AH22: SUDESTE
B23: 6981.743271 | C23: 10 | E23: Refinaria Presidente Getúlio Vargas (Repar) | F23: Rodovia do Xisto, BR 476, km 16 Araucária - PR CEP:83707-440 | G23: Paraná | H23: ARAUCÁRIA - PR | I23: Porto Grande -AP | J23: =VLOOKUP('Transporte Cap 50-70'!G23,OFFSET('ANP ESTADO'!$A$1,MATCH('Transporte Cap 50-70'!$I$7,'ANP ESTADO'!B:B,0)+MATCH('Transporte Cap 50-70'!$H$10,OFFSET('ANP ESTADO'!$A$1,MATCH('Transporte Cap 50-70'!$I$7,'ANP ESTADO'!B:B,0),0,100000,1),0),2,100000,2),2,FALSE) -> 3.417370179 | K23: =VLOOKUP($H$10,OFFSET('ANP REGIÃO'!$A$9,MATCH('Transporte Cap 50-70'!$I$7,'ANP REGIÃO'!A:A,0),1,10000,10000),MATCH('Transporte Cap 50-70'!AH23,'ANP REGIÃO'!$B$8:$G$8,0),FALSE) -> 3.417322232 | L23: 3417.370179 | M23: 944.3 | N23: 4361.670179 | O23: 3271 | P23: 547 | Q23: 854.5 | R23: 112.07 | S23: 966.57 | T23: 212.17 | U23: 1326.09 | V23: 2504.83 | W23: 1603.1 | X23: =EVEN(' CONSUMO DE MAT. B TOTAL'!$P$13*2/28)*W23/' CONSUMO DE MAT. B TOTAL'!$P$13 -> 115.2430915 | Y23: 2620.073092 | Z23: 4361.670179 | AA23: 6981.743271 | AC23: 6981.743271 | AD23: 2620.073092 | AE23: 4361.670179 | AH23: SUL
B24: 6711.04892 | C24: 11 | E24: Refinaria Presidente Bernardes (RPBC) | F24: Av. 9 de abril, 777 - Jardim das Indústrias Cubatão - SP CEP:11505-000 | G24: São Paulo | H24: CUBATÃO - SP | I24: Porto Grande -AP | J24: =VLOOKUP('Transporte Cap 50-70'!G24,OFFSET('ANP ESTADO'!$A$1,MATCH('Transporte Cap 50-70'!$I$7,'ANP ESTADO'!B:B,0)+MATCH('Transporte Cap 50-70'!$H$10,OFFSET('ANP ESTADO'!$A$1,MATCH('Transporte Cap 50-70'!$I$7,'ANP ESTADO'!B:B,0),0,100000,1),0),2,100000,2),2,FALSE) -> 3.341281628 | K24: =VLOOKUP($H$10,OFFSET('ANP REGIÃO'!$A$9,MATCH('Transporte Cap 50-70'!$I$7,'ANP REGIÃO'!A:A,0),1,10000,10000),MATCH('Transporte Cap 50-70'!AH24,'ANP REGIÃO'!$B$8:$G$8,0),FALSE) -> 3.343745889 | L24: 3341.281628 | M24: 923.28 | N24: 4264.561628 | O24: 3024 | P24: 547 | Q24: 792.01 | R24: 112.07 | S24: 904.08 | T24: 198.45 | U24: 1240.36 | V24: 2342.89 | W24: 1441.1 | X24: =EVEN(' CONSUMO DE MAT. B TOTAL'!$P$13*2/28)*W24/' CONSUMO DE MAT. B TOTAL'!$P$13 -> 103.5972922 | Y24: 2446.487292 | Z24: 4264.561628 | AA24: 6711.04892 | AC24: 6711.04892 | AD24: 2446.487292 | AE24: 4264.561628 | AH24: SUDESTE
B25: 6575.350712 | C25: 12 | E25: Refinaria de Paulínia (Replan) | F25: Rodovia SP 332 - Km. 130 Bonfim - Paulínia – SP CEP:13140-000 | G25: São Paulo | H25: PAULÍNIA - SP | I25: Porto Grande -AP | J25: =VLOOKUP('Transporte Cap 50-70'!G25,OFFSET('ANP ESTADO'!$A$1,MATCH('Transporte Cap 50-70'!$I$7,'ANP ESTADO'!B:B,0)+MATCH('Transporte Cap 50-70'!$H$10,OFFSET('ANP ESTADO'!$A$1,MATCH('Transporte Cap 50-70'!$I$7,'ANP ESTADO'!B:B,0),0,100000,1),0),2,100000,2),2,FALSE) -> 3.341281628 | K25: =VLOOKUP($H$10,OFFSET('ANP REGIÃO'!$A$9,MATCH('Transporte Cap 50-70'!$I$7,'ANP REGIÃO'!A:A,0),1,10000,10000),MATCH('Transporte Cap 50-70'!AH25,'ANP REGIÃO'!$B$8:$G$8,0),FALSE) -> 3.343745889 | L25: 3341.281628 | M25: 923.28 | N25: 4264.561628 | O25: 2834 | P25: 547 | Q25: 743.94 | R25: 112.07 | S25: 856.01 | T25: 187.9 | U25: 1174.41 | V25: 2218.32 | W25: 1286.3 | X25: =EVEN(' CONSUMO DE MAT. B TOTAL'!$P$13*2/28)*W25/' CONSUMO DE MAT. B TOTAL'!$P$13 -> 92.46908403 | Y25: 2310.789084 | Z25: 4264.561628 | AA25: 6575.350712 | AC25: 6575.350712 | AD25: 2310.789084 | AE25: 4264.561628 | AH25: SUDESTE
B26: 6702.989532 | C26: 13 | E26: Refinaria Henrique Lage (Revap) | F26: Rodovia Presidente Dutra, KM 143, S/N Bairro Jardim Diamante - São José dos Campos – SP CEP:12223-900 | G26: São Paulo | H26: SÃO JOSÉ DOS CAMPOS - SP | I26: Porto Grande -AP | J26: =VLOOKUP('Transporte Cap 50-70'!G26,OFFSET('ANP ESTADO'!$A$1,MATCH('Transporte Cap 50-70'!$I$7,'ANP ESTADO'!B:B,0)+MATCH('Transporte Cap 50-70'!$H$10,OFFSET('ANP ESTADO'!$A$1,MATCH('Transporte Cap 50-70'!$I$7,'ANP ESTADO'!B:B,0),0,100000,1),0),2,100000,2),2,FALSE) -> 3.341281628 | K26: =VLOOKUP($H$10,OFFSET('ANP REGIÃO'!$A$9,MATCH('Transporte Cap 50-70'!$I$7,'ANP REGIÃO'!A:A,0),1,10000,10000),MATCH('Transporte Cap 50-70'!AH26,'ANP REGIÃO'!$B$8:$G$8,0),FALSE) -> 3.343745889 | L26: 3341.281628 | M26: 923.28 | N26: 4264.561628 | O26: 3001 | P26: 547 | Q26: 786.19 | R26: 112.07 | S26: 898.26 | T26: 197.17 | U26: 1232.37 | V26: 2327.8 | W26: 1538.9 | X26: =EVEN(' CONSUMO DE MAT. B TOTAL'!$P$13*2/28)*W26/' CONSUMO DE MAT. B TOTAL'!$P$13 -> 110.6279044 | Y26: 2438.427904 | Z26: 4264.561628 | AA26: 6702.989532 | AC26: 6702.989532 | AD26: 2438.427904 | AE26: 4264.561628 | AH26: SUDESTE
D36: Acre
D37: Alagoas
D38: Amapá
D39: Amazonas
D40: Bahia
D41: Ceará
D42: Distrito Federal
D43: Espírito Santo
D44: Goiás
D45: Maranhão
D46: Mato Grosso
D47: Mato Grosso do Sul
D48: Minas Gerais
D49: Pará
D50: Paraíba
D51: Paraná
D52: Pernambuco
D53: Piauí
D54: Rio de Janeiro
D55: Rio Grande do Norte
D56: Rio Grande do Sul
D57: Rondônia
D58: Roraima
D59: Santa Catarina
D60: São Paulo
D61: Sergipe
D62: Tocantins
D66: ASFALTOS DILUÍDOS CM-30
D67: ASFALTOS DILUÍDOS CM-70
D68: ASFALTOS DILUÍDOS CR-250
D69: ASFALTOS DILUÍDOS CR-70
D70: CAP MODIFICADO POR BORRACHA DE PNEU AB22
D71: CAP MODIFICADO POR BORRACHA DE PNEU AB8
D72: CAP MODIFICADO POR POLÍMERO 55-75-E
D73: CAP MODIFICADO POR POLÍMERO 60-85-E
D74: CAP MODIFICADO POR POLÍMERO 65-90-E
D75: CIMENTOS ASFÁLTICOS CAP-150-200
D76: CIMENTOS ASFÁLTICOS CAP-30-45
D77: CIMENTOS ASFÁLTICOS CAP-50-70
D78: CIMENTOS ASFÁLTICOS CAP-85-100
D79: EMULSÃO ASFÁLTICA CATIÔNICA DE RUPTURA CONTROLADA PARA SERVIÇO DE LAMA ASFÁLTICA
D80: EMULSÃO ASFÁLTICA DE RUPTURA LENTA CATIÔNICA PARA SERVIÇO DE LAMA ASFÁLTICA
D81: EMULSÃO ASFÁLTICA DE RUPTURA LENTA DE CARGA NEUTRA PARA SERVIÇO DE LAMA ASFÁLTICA
D82: EMULSÃO ASFÁLTICA PARA SERVIÇO DE IMPRIMAÇÃO
D83: EMULSÕES ASF. MOD. POR POLÍMEROS RC1C-E
D84: EMULSÕES ASF. MOD. POR POLÍMEROS RL1C-E
D85: EMULSÕES ASF. MOD. POR POLÍMEROS RM1C-E
D86: EMULSÕES ASF. MOD. POR POLÍMEROS RR1C-E
D87: EMULSÕES ASF. MOD. POR POLÍMEROS RR2C-E
D88: EMULSÕES ASFÁLTICAS RL-1C
D89: EMULSÕES ASFÁLTICAS RM-1C
D90: EMULSÕES ASFÁLTICAS RM-2C
D91: EMULSÕES ASFÁLTICAS RR-1C
D92: EMULSÕES ASFÁLTICAS RR-2C

Sheet Transporte EAI
C2: MEMÓRIA DE CÁLCULO
C7: REAJUSTE | F7: TIPOLOGIA DO MATERIAL | I7: EMULSÃO ASFÁLTICA PARA SERVIÇO DE IMPRIMAÇÃO | M7: IMPOSTOS | N7: COFINS | O7: 0.0065 | P7: 0.0065
G8: ÍNDICE DE PAVIMENTAÇÃO DNIT | H8: 2014-07-01 | I8: ÍNDICE INICIAL | J8: 270.237 | N8: PIS | O8: 0.03 | P8: 0.03 | T8: LEGENDA | AC8: As empresas tributadas pelo Lucro Presumido pagam 0,65% de PIS e 3% de COFINS
H9: ='Transporte Cap 50-70'!H9 -> 2024-07-01 | I9: ÍNDICE FINAL | J9: ='Transporte Cap 50-70'!J9 -> 574.257 | N9: ICMS | O9: 0.18 | P9: 0.18 | Q9: =1-(O9/1) -> 0.82 | R9: =1-(P9/1) -> 0.82 | S9: =1-(Q9/1) -> 0.18 | T9: ENTRADA DE DADOS | AC9: As empresas tributadas pelo Lucro Real pagam 1,65% de PIS e 7,60% de COFINS
G10: Data ANP | H10: ='Transporte Cap 50-70'!H9 -> 2024-07-01
C11: DATA-BASE | D11: PRODUTOS | E11: LOCALIDADES | J11: CUSTO ANP (R$/Kg) | L11: CUSTO ANP | M11: IMPOSTOS DO PRODUTO | N11: CUSTO DO PRODUTO COM IMPOSTOS | O11: DMT's | P11: DMT'S FLUVIAL | Q11: CUSTO DO TRANSPORTE RODOVIA PAVIMENTADA | R11: CUSTO DO TRANSPORTE FLUVIAL | S11: CUSTO DO TRANSPORTE TOTAL | T11: ICMS | U11: ATUALIZAÇÃO DO CUSTO DE TRANSPORTE | V11: CUSTO DO TRANSPORTE RODOVIA PAVIMENTADA COM IMPOSTOS E ATUALIZAÇÃO MONETÁRIA | W11: PEDÁGIO | Y11: TOTAL TRANSPORTE | Z11: AQUISIÇÃO DO PRODUTO | AA11: TOTAL GERAL ( TRANSP + AQUISIÇÃO) | AC11: 1 | AD11: 2 | AE11: 3
C12: =H9 -> 2024-07-01 | E12: REFINARIAS | F12: ENDEREÇO | G12: ESTADO | H12: CIDADE | I12: DESTINO | J12: ESTADO | K12: REGIÃO | L12: R$/t | M12: R$/t | N12: R$/t | O12: KM | P12: KM | Q12: R$/t | R12: R$/t | S12: R$/t | T12: R$/t | U12: R$/t | V12: R$/t | W12: CUSTO | X12: R$/t | Y12: R$/t | Z12: R$/t | AA12: R$/t | AC12: TOTAL GERAL ( TRANSP + AQUISIÇÃO) | AD12: TOTAL TRANSPORTE | AE12: AQUISIÇÃO DO PRODUTO
B13: =AA13 -> 5214.512699 | C13: 1 | D13: =I7 -> EMULSÃO ASFÁLTICA PARA SERVIÇO DE IMPRIMAÇÃO | E13: 'CENTRO OESTE ASFALTOS LTDA. | F13: SETOR DE INFLAMÁVEIS, S/N TRECHO 02 - LOTE 1.100 - GUARÁ - CEP:71225-000 | G13: Distrito Federal | H13: BRASÍLIA - DF | I13: Porto Grande -AP | J13: =VLOOKUP(G13,OFFSET('ANP ESTADO'!$A$1,MATCH($I$7,'ANP ESTADO'!B:B,0)+MATCH($H$10,OFFSET('ANP ESTADO'!$A$1,MATCH($I$7,'ANP ESTADO'!B:B,0),0,100000,1),0),2,100000,2),2,FALSE) -> - | K13: =VLOOKUP($H$10,OFFSET('ANP REGIÃO'!$A$9,MATCH('Transporte EAI'!$I$7,'ANP REGIÃO'!A:A,0),1,10000,10000),MATCH('Transporte EAI'!AH13,'ANP REGIÃO'!$B$8:$G$8,0),FALSE) -> 2.730876265 | L13: =IF(AND(J13="-",K13="-"),"",IF(AND(J13<>0,K13="-"),J13*1000,IF(AND(J13="-",K13<>0),K13*1000,IF(AND(J13<>0,K13<>0),J13*1000,"")))) -> 2730.876265 | M13: =ROUND(((L13/(1-$O$7-$O$8-$O$9))-L13),2) -> 754.61 | N13: =L13+M13 -> 3485.486265 | O13: 2051 | P13: 547 | Q13: =ROUND((26.939+0.253*O13),2) -> 545.84 | R13: =ROUND((20.7256+0.1603*P13),2) -> 108.41 | S13: =Q13+R13 -> 654.25 | T13: =TRUNC(S13*($O$9/(1-$O$9)),2) -> 143.61 | U13: =TRUNC(IF($J$8="","",(($J$9-$J$8)/$J$8)*(S13+T13)),2) -> 897.6 | V13: =S13+T13+U13 -> 1695.46 | W13: 420 | X13: =EVEN(' CONSUMO DE MAT. B TOTAL'!$P$8*2/28)*W13/' CONSUMO DE MAT. B TOTAL'!$P$8 -> 33.56643357 | Y13: =IF(AND(Q13="",T13=""),"",V13+X13) -> 1729.026434 | Z13: =IF(OR(L13="",M13=""),"",L13+M13) -> 3485.486265 | AA13: =IF(OR(Y13="",Z13=""),"",Y13+Z13) -> 5214.512699 | AC13: =AA13 -> 5214.512699 | AD13: =Y13 -> 1729.026434 | AE13: =Z13 -> 3485.486265 | AH13: =IF(OR(G13=$D$59,G13=$D$60,G13=$D$62,G13=$D$68,G13=$D$52,G13=$D$48,G13=$D$44,G13=$D$57,G13=$D$47),"NORDESTE",IF(OR(G13=$D$43,G13=$D$45,G13=$D$46,G13=$D$56,G13=$D$64,G13=$D$65,G13=$D$69),"NORTE",IF(OR(G13=$D$49,G13=$D$51,G13=$D$53,G13=$D$54),"CENTRO-OESTE",IF(OR(G13=$D$67,G13=$D$61,G13=$D$55,G13=$D$50),"SUDESTE",IF(OR(G13=$D$66,G13=$D$58,G13=$D$63),"SUL",""))))) -> CENTRO-OESTE
B14: =AA14 -> 5650.674463 | C14: 2 | E14: ISAC SAABA | F14: Rua Rio Quixito, 1, Vila Buriti - Distrito Industrial - Manaus - AM CEP: 69072-070 | G14: Amazonas | H14: MANAUS - AM | I14: Porto Grande -AP | J14: =VLOOKUP(G14,OFFSET('ANP ESTADO'!$A$1,MATCH($I$7,'ANP ESTADO'!B:B,0)+MATCH($H$10,OFFSET('ANP ESTADO'!$A$1,MATCH($I$7,'ANP ESTADO'!B:B,0),0,100000,1),0),2,100000,2),2,FALSE) -> - | K14: =VLOOKUP($H$10,OFFSET('ANP REGIÃO'!$A$9,MATCH('Transporte EAI'!$I$7,'ANP REGIÃO'!A:A,0),1,10000,10000),MATCH('Transporte EAI'!AH14,'ANP REGIÃO'!$B$8:$G$8,0),FALSE) -> 2.846784463 | L14: =IF(AND(J14="-",K14="-"),"",IF(AND(J14<>0,K14="-"),J14*1000,IF(AND(J14="-",K14<>0),K14*1000,IF(AND(J14<>0,K14<>0),J14*1000,"")))) -> 2846.784463 | M14: =ROUND(((L14/(1-$O$7-$O$8-$O$9))-L14),2) -> 786.64 | N14: =L14+M14 -> 3633.424463 | O14: 2882 | P14: 10 | Q14: =ROUND((26.939+0.253*O14),2) -> 756.09 | R14: =ROUND((20.7256+0.1603*P14),2) -> 22.33 | S14: =Q14+R14 -> 778.42 | T14: =TRUNC(S14*($O$9/(1-$O$9)),2) -> 170.87 | U14: =TRUNC(IF($J$8="","",(($J$9-$J$8)/$J$8)*(S14+T14)),2) -> 1067.96 | V14: =S14+T14+U14 -> 2017.25 | W14: 0 | X14: =EVEN(' CONSUMO DE MAT. B TOTAL'!$P$8*2/28)*W14/' CONSUMO DE MAT. B TOTAL'!$P$8 -> 0 | Y14: 2017.25 | Z14: 3633.424463 | AA14: =IF(OR(Y14="",Z14=""),"",Y14+Z14) -> 5650.674463 | AC14: =AA14 -> 5650.674463 | AD14: =Y14 -> 2017.25 | AE14: 3633.424463 | AH14: =IF(OR(G14=$D$59,G14=$D$60,G14=$D$62,G14=$D$68,G14=$D$52,G14=$D$48,G14=$D$44,G14=$D$57,G14=$D$47),"NORDESTE",IF(OR(G14=$D$43,G14=$D$45,G14=$D$46,G14=$D$56,G14=$D$64,G14=$D$65,G14=$D$69),"NORTE",IF(OR(G14=$D$49,G14=$D$51,G14=$D$53,G14=$D$54),"CENTRO-OESTE",IF(OR(G14=$D$67,G14=$D$61,G14=$D$55,G14=$D$50),"SUDESTE",IF(OR(G14=$D$66,G14=$D$58,G14=$D$63),"SUL",""))))) -> NORTE
B15: 4789.265109 | C15: 2 | E15: STRATURA ASFALTOS S/A | F15: AVENIDA PRESIDENTE WILSON, 08 - JUNDIAÍ - CEP:75115-100 | G15: Goiás | H15: ANÁPOLIS - GO | I15: Porto Grande -AP | J15: =VLOOKUP(G15,OFFSET('ANP ESTADO'!$A$1,MATCH($I$7,'ANP ESTADO'!B:B,0)+MATCH($H$10,OFFSET('ANP ESTADO'!$A$1,MATCH($I$7,'ANP ESTADO'!B:B,0),0,100000,1),0),2,100000,2),2,FALSE) -> 2.412151773 | K15: =VLOOKUP($H$10,OFFSET('ANP REGIÃO'!$A$9,MATCH('Transporte EAI'!$I$7,'ANP REGIÃO'!A:A,0),1,10000,10000),MATCH('Transporte EAI'!AH15,'ANP REGIÃO'!$B$8:$G$8,0),FALSE) -> 2.730876265 | L15: 2412.151773 | M15: 666.54 | N15: 3078.691773 | O15: 2012 | P15: 547 | Q15: 535.98 | R15: 108.41 | S15: 644.39 | T15: 141.45 | U15: 884.07 | V15: 1669.91 | W15: 508.8 | X15: =EVEN(' CONSUMO DE MAT. B TOTAL'!$P$8*2/28)*W15/' CONSUMO DE MAT. B TOTAL'!$P$8 -> 40.66333666 | Y15: 1710.573337 | Z15: 3078.691773 | AA15: 4789.265109 | AC15: 4789.265109 | AD15: 1710.573337 | AE15: 3078.691773 | AH15: CENTRO-OESTE
B16: 4822.695109 | C16: 3 | E16: DISTRIBUIDORA BRASILEIRA DE ASFALTO SA - DISBRAL | F16: VIA PRIMARIA 8, S/N QD-18, MODS. 24/47 - DAIAG - CEP:74980-970 | G16: Goiás | H16: APARECIDA DE GOIANIA - GO | I16: Porto Grande -AP | J16: =VLOOKUP(G16,OFFSET('ANP ESTADO'!$A$1,MATCH($I$7,'ANP ESTADO'!B:B,0)+MATCH($H$10,OFFSET('ANP ESTADO'!$A$1,MATCH($I$7,'ANP ESTADO'!B:B,0),0,100000,1),0),2,100000,2),2,FALSE) -> 2.412151773 | K16: =VLOOKUP($H$10,OFFSET('ANP REGIÃO'!$A$9,MATCH('Transporte EAI'!$I$7,'ANP REGIÃO'!A:A,0),1,10000,10000),MATCH('Transporte EAI'!AH16,'ANP REGIÃO'!$B$8:$G$8,0),FALSE) -> 2.730876265 | L16: 2412.151773 | M16: 666.54 | N16: 3078.691773 | O16: 2063 | P16: 547 | Q16: 548.88 | R16: 108.41 | S16: 657.29 | T16: 144.28 | U16: 901.77 | V16: 1703.34 | W16: 508.8 | X16: =EVEN(' CONSUMO DE MAT. B TOTAL'!$P$8*2/28)*W16/' CONSUMO DE MAT. B TOTAL'!$P$8 -> 40.66333666 | Y16: 1744.003337 | Z16: 3078.691773 | AA16: 4822.695109 | AC16: 4822.695109 | AD16: 1744.003337 | AE16: 3078.691773 | AH16: CENTRO-OESTE
A17: 2403 | B17: 4803.675109 | C17: 4 | E17: INDÚSTRIA NACIONAL DE ASFALTOS LTDA. | F17: VIA PRIMEIRA E SEGUNDA 3, S/N.º LOTES 01 A 10 - DISTRITO AGROINDUSTRIAL - CEP:75370-000 | G17: Goiás | H17: GOIANIRA - GO | I17: Porto Grande -AP | J17: =VLOOKUP(G17,OFFSET('ANP ESTADO'!$A$1,MATCH($I$7,'ANP ESTADO'!B:B,0)+MATCH($H$10,OFFSET('ANP ESTADO'!$A$1,MATCH($I$7,'ANP ESTADO'!B:B,0),0,100000,1),0),2,100000,2),2,FALSE) -> 2.412151773 | K17: =VLOOKUP($H$10,OFFSET('ANP REGIÃO'!$A$9,MATCH('Transporte EAI'!$I$7,'ANP REGIÃO'!A:A,0),1,10000,10000),MATCH('Transporte EAI'!AH17,'ANP REGIÃO'!$B$8:$G$8,0),FALSE) -> 2.730876265 | L17: 2412.151773 | M17: 666.54 | N17: 3078.691773 | O17: 2034 | P17: 547 | Q17: 541.54 | R17: 108.41 | S17: 649.95 | T17: 142.67 | U17: 891.7 | V17: 1684.32 | W17: 508.8 | X17: =EVEN(' CONSUMO DE MAT. B TOTAL'!$P$8*2/28)*W17/' CONSUMO DE MAT. B TOTAL'!$P$8 -> 40.66333666 | Y17: 1724.983337 | Z17: 3078.691773 | AA17: 4803.675109 | AC17: 4803.675109 | AD17: 1724.983337 | AE17: 3078.691773 | AH17: CENTRO-OESTE
B18: 4716.111032 | C18: 5 | E18: STRATURA ASFALTOS S/A | F18: RUA VICTOR RODRIGUES RESENDE, 333 - DISTRITO IND. DE UBERLÂNDIA - CEP:38405-440 | G18: Minas Gerais | H18: UBERLANDIA - MG | I18: Porto Grande -AP | J18: =VLOOKUP(G18,OFFSET('ANP ESTADO'!$A$1,MATCH($I$7,'ANP ESTADO'!B:B,0)+MATCH($H$10,OFFSET('ANP ESTADO'!$A$1,MATCH($I$7,'ANP ESTADO'!B:B,0),0,100000,1),0),2,100000,2),2,FALSE) -> 2.153413519 | K18: =VLOOKUP($H$10,OFFSET('ANP REGIÃO'!$A$9,MATCH('Transporte EAI'!$I$7,'ANP REGIÃO'!A:A,0),1,10000,10000),MATCH('Transporte EAI'!AH18,'ANP REGIÃO'!$B$8:$G$8,0),FALSE) -> 2.248773515 | L18: 2153.413519 | M18: 595.04 | N18: 2748.453519 | O18: 2380 | P18: 547 | Q18: 629.08 | R18: 108.41 | S18: 737.49 | T18: 161.88 | U18: 1011.8 | V18: 1911.17 | W18: 706.8 | X18: =EVEN(' CONSUMO DE MAT. B TOTAL'!$P$8*2/28)*W18/' CONSUMO DE MAT. B TOTAL'!$P$8 -> 56.48751249 | Y18: 1967.657512 | Z18: 2748.453519 | AA18: 4716.111032 | AC18: 4716.111032 | AD18: 1967.657512 | AE18: 2748.453519 | AH18: SUDESTE
B19: 4715.471032 | C19: 6 | E19: BETUNEL INDÚSTRIA E COMÉRCIO LTDA. | F19: RUA VICTOR RODRIGUES DE REZENDE, 185 - DISTRITO INDUSTRIAL - CEP:38402-334 | G19: Minas Gerais | H19: UBERLANDIA - MG | I19: Porto Grande -AP | J19: =VLOOKUP(G19,OFFSET('ANP ESTADO'!$A$1,MATCH($I$7,'ANP ESTADO'!B:B,0)+MATCH($H$10,OFFSET('ANP ESTADO'!$A$1,MATCH($I$7,'ANP ESTADO'!B:B,0),0,100000,1),0),2,100000,2),2,FALSE) -> 2.153413519 | K19: =VLOOKUP($H$10,OFFSET('ANP REGIÃO'!$A$9,MATCH('Transporte EAI'!$I$7,'ANP REGIÃO'!A:A,0),1,10000,10000),MATCH('Transporte EAI'!AH19,'ANP REGIÃO'!$B$8:$G$8,0),FALSE) -> 2.248773515 | L19: 2153.413519 | M19: 595.04 | N19: 2748.453519 | O19: 2379 | P19: 547 | Q19: 628.83 | R19: 108.41 | S19: 737.24 | T19: 161.83 | U19: 1011.46 | V19: 1910.53 | W19: 706.8 | X19: =EVEN(' CONSUMO DE MAT. B TOTAL'!$P$8*2/28)*W19/' CONSUMO DE MAT. B TOTAL'!$P$8 -> 56.48751249 | Y19: 1967.017512 | Z19: 2748.453519 | AA19: 4715.471032 | AC19: 4715.471032 | AD19: 1967.017512 | AE19: 2748.453519 | AH19: SUDESTE
B20: 5410.226776 | C20: 7 | E20: ARAPETRO DISTRIBUIDORA DE PETRÓLEO LTDA. | F20: RUA 04, S/N° LOTES 17 A 20. - DISTRITO INDUSTRIAL 1/8 - CEP:78600-000 | G20: Mato grosso | H20: BARRA DO GARCAS - MT | I20: Porto Grande -AP | J20: =VLOOKUP(G20,OFFSET('ANP ESTADO'!$A$1,MATCH($I$7,'ANP ESTADO'!B:B,0)+MATCH($H$10,OFFSET('ANP ESTADO'!$A$1,MATCH($I$7,'ANP ESTADO'!B:B,0),0,100000,1),0),2,100000,2),2,FALSE) -> 2.813416776 | K20: =VLOOKUP($H$10,OFFSET('ANP REGIÃO'!$A$9,MATCH('Transporte EAI'!$I$7,'ANP REGIÃO'!A:A,0),1,10000,10000),MATCH('Transporte EAI'!AH20,'ANP REGIÃO'!$B$8:$G$8,0),FALSE) -> 2.730876265 | L20: =IF(AND(J20="-",K20="-"),"",IF(AND(J20<>0,K20="-"),J20*1000,IF(AND(J20="-",K20<>0),K20*1000,IF(AND(J20<>0,K20<>0),J20*1000,"")))) -> 2813.416776 | M20: =ROUND(((L20/(1-$O$7-$O$8-$O$9))-L20),2) -> 777.42 | N20: 3590.836776 | O20: 2240 | P20: 547 | Q20: 593.66 | R20: 108.41 | S20: 702.07 | T20: 154.11 | U20: 963.21 | V20: 1819.39 | W20: 0 | X20: =EVEN(' CONSUMO DE MAT. B TOTAL'!$P$8*2/28)*W20/' CONSUMO DE MAT. B TOTAL'!$P$8 -> 0 | Y20: 1819.39 | Z20: 3590.836776 | AA20: 5410.226776 | AH20: CENTRO-OESTE
B21: 5017.637785 | C21: 8 | E21: DISTRIBUIDORA BRASILEIRA DE ASFALTO SA - DISBRAL | F21: SÃO JUDAS TADEU, 288 - DISTRITO INDUSTRIAL - CEP:32450-000 | G21: Minas Gerais | H21: SARZEDO - MG | I21: Porto Grande -AP | J21: =VLOOKUP(G21,OFFSET('ANP ESTADO'!$A$1,MATCH($I$7,'ANP ESTADO'!B:B,0)+MATCH($H$10,OFFSET('ANP ESTADO'!$A$1,MATCH($I$7,'ANP ESTADO'!B:B,0),0,100000,1),0),2,100000,2),2,FALSE) -> 2.153413519 | K21: =VLOOKUP($H$10,OFFSET('ANP REGIÃO'!$A$9,MATCH('Transporte EAI'!$I$7,'ANP REGIÃO'!A:A,0),1,10000,10000),MATCH('Transporte EAI'!AH21,'ANP REGIÃO'!$B$8:$G$8,0),FALSE) -> 2.248773515 | L21: 2153.413519 | M21: 595.04 | N21: 2748.453519 | O21: 2838 | P21: 547 | Q21: 744.95 | R21: 108.41 | S21: 853.36 | T21: 187.32 | U21: 1170.77 | V21: 2211.45 | W21: 722.4 | X21: =EVEN(' CONSUMO DE MAT. B TOTAL'!$P$8*2/28)*W21/' CONSUMO DE MAT. B TOTAL'!$P$8 -> 57.73426573 | Y21: 2269.184266 | Z21: 2748.453519 | AA21: 5017.637785 | AH21: SUDESTE
B22: 4827.334463 | C22: 9 | E22: 'INDÚSTRIA NACIONAL DE ASFALTOS LTDA. | F22: INDÚSTRIA NACIONAL DE ASFALTOS LTDA - CEP:77053-080 | G22: Tocantins | H22: PALMAS - TO | I22: Porto Grande -AP | J22: =VLOOKUP(G22,OFFSET('ANP ESTADO'!$A$1,MATCH($I$7,'ANP ESTADO'!B:B,0)+MATCH($H$10,OFFSET('ANP ESTADO'!$A$1,MATCH($I$7,'ANP ESTADO'!B:B,0),0,100000,1),0),2,100000,2),2,FALSE) -> - | K22: =VLOOKUP($H$10,OFFSET('ANP REGIÃO'!$A$9,MATCH('Transporte EAI'!$I$7,'ANP REGIÃO'!A:A,0),1,10000,10000),MATCH('Transporte EAI'!AH22,'ANP REGIÃO'!$B$8:$G$8,0),FALSE) -> 2.846784463 | L22: 2846.784463 | M22: 786.64 | N22: 3633.424463 | O22: 1286 | P22: 547 | Q22: 352.3 | R22: 108.41 | S22: 460.71 | T22: 101.13 | U22: 632.07 | V22: 1193.91 | W22: 0 | X22: =EVEN(' CONSUMO DE MAT. B TOTAL'!$P$8*2/28)*W22/' CONSUMO DE MAT. B TOTAL'!$P$8 -> 0 | Y22: 1193.91 | Z22: 3633.424463 | AA22: 4827.334463 | AH22: NORTE
B23: 5423.178816 | C23: 10 | E23: 'NTA - NOVAS TÉCNICAS DE ASFALTOS S/A | F23: RUA SOFIA ATAURI FADIN, 150 SALA A - B. SANTA TEREZINHA - CEP:13140-000 | G23: São Paulo | H23: PAULINIA - SP | I23: Porto Grande -AP | J23: =VLOOKUP(G23,OFFSET('ANP ESTADO'!$A$1,MATCH($I$7,'ANP ESTADO'!B:B,0)+MATCH($H$10,OFFSET('ANP ESTADO'!$A$1,MATCH($I$7,'ANP ESTADO'!B:B,0),0,100000,1),0),2,100000,2),2,FALSE) -> 2.437887617 | K23: =VLOOKUP($H$10,OFFSET('ANP REGIÃO'!$A$9,MATCH('Transporte EAI'!$I$7,'ANP REGIÃO'!A:A,0),1,10000,10000),MATCH('Transporte EAI'!AH23,'ANP REGIÃO'!$B$8:$G$8,0),FALSE) -> 2.248773515 | L23: 2437.887617 | M23: =ROUND(((L23/(1-$O$7-$O$8-$O$9))-L23),2) -> 673.65 | N23: 3111.537617 | O23: 2834 | P23: 547 | Q23: 743.94 | R23: 108.41 | S23: 852.35 | T23: 187.1 | U23: 1169.39 | V23: 2208.84 | W23: 1286.3 | X23: =EVEN(' CONSUMO DE MAT. B TOTAL'!$P$8*2/28)*W23/' CONSUMO DE MAT. B TOTAL'!$P$8 -> 102.8011988 | Y23: 2311.641199 | Z23: 3111.537617 | AA23: 5423.178816 | AC23: 5423.178816 | AD23: 2311.641199 | AE23: 3111.537617 | AH23: SUDESTE
B24: 5501.249006 | C24: 11 | E24: COMPANHIA BRASILEIRA DE ASFALTOS DA AMAZÔNIA - IMPORTAÇÃO E EXPORTAÇÃO | F24: Avenida Doutor Olindo Dártora 2451, Galpão 02, Morro Grande - CEP:07726-555 | G24: São Paulo | H24: CAIEIRAS - SP | I24: Porto Grande -AP | J24: =VLOOKUP(G24,OFFSET('ANP ESTADO'!$A$1,MATCH($I$7,'ANP ESTADO'!B:B,0)+MATCH($H$10,OFFSET('ANP ESTADO'!$A$1,MATCH($I$7,'ANP ESTADO'!B:B,0),0,100000,1),0),2,100000,2),2,FALSE) -> 2.437887617 | K24: =VLOOKUP($H$10,OFFSET('ANP REGIÃO'!$A$9,MATCH('Transporte EAI'!$I$7,'ANP REGIÃO'!A:A,0),1,10000,10000),MATCH('Transporte EAI'!AH24,'ANP REGIÃO'!$B$8:$G$8,0),FALSE) -> 2.248773515 | L24: 2437.887617 | M24: =ROUND(((L24/(1-$O$7-$O$8-$O$9))-L24),2) -> 673.65 | N24: 3111.537617 | O24: 2932 | P24: 547 | Q24: 768.74 | R24: 108.41 | S24: 877.15 | T24: 192.54 | U24: 1203.41 | V24: 2273.1 | W24: 1459.1 | X24: =EVEN(' CONSUMO DE MAT. B TOTAL'!$P$8*2/28)*W24/' CONSUMO DE MAT. B TOTAL'!$P$8 -> 116.6113886 | Y24: 2389.711389 | Z24: 3111.537617 | AA24: 5501.249006 | AH24: SUDESTE
B25: 5730.789017 | C25: 12 | E25: BETUNEL INDÚSTRIA E COMÉRCIO LTDA. | F25: R 16 , 82, Vila Nova Campo Grande - CEP:79.103-834 | G25: Mato Grosso do Sul | H25: CAMPO GRANDE - MS | I25: Porto Grande -AP | J25: =VLOOKUP(G25,OFFSET('ANP ESTADO'!$A$1,MATCH($I$7,'ANP ESTADO'!B:B,0)+MATCH($H$10,OFFSET('ANP ESTADO'!$A$1,MATCH($I$7,'ANP ESTADO'!B:B,0),0,100000,1),0),2,100000,2),2,FALSE) -> 2.642237768 | K25: =VLOOKUP($H$10,OFFSET('ANP REGIÃO'!$A$9,MATCH('Transporte EAI'!$I$7,'ANP REGIÃO'!A:A,0),1,10000,10000),MATCH('Transporte EAI'!AH25,'ANP REGIÃO'!$B$8:$G$8,0),FALSE) -> 2.730876265 | L25: 2642.237768 | M25: =ROUND(((L25/(1-$O$7-$O$8-$O$9))-L25),2) -> 730.11 | N25: 3372.347768 | O25: 2939 | P25: 547 | Q25: 770.51 | R25: 108.41 | S25: 878.92 | T25: 192.93 | U25: 1205.84 | V25: 2277.69 | W25: 1010.4 | X25: =EVEN(' CONSUMO DE MAT. B TOTAL'!$P$8*2/28)*W25/' CONSUMO DE MAT. B TOTAL'!$P$8 -> 80.75124875 | Y25: 2358.441249 | Z25: 3372.347768 | AA25: 5730.789017 | AH25: CENTRO-OESTE
B26: 5622.060302 | C26: 13 | E26: CENTRO OESTE ASFALTOS LTDA. | F26: RUA N, S/N.º LOTES 39/43 E LOTES 129/133 - DISTRITO INDUSTRIAL - CEP:78098-400 | G26: Mato Grosso | H26: CUIABA - MT | I26: Porto Grande -AP | J26: =VLOOKUP(G26,OFFSET('ANP ESTADO'!$A$1,MATCH($I$7,'ANP ESTADO'!B:B,0)+MATCH($H$10,OFFSET('ANP ESTADO'!$A$1,MATCH($I$7,'ANP ESTADO'!B:B,0),0,100000,1),0),2,100000,2),2,FALSE) -> 2.813416776 | K26: =VLOOKUP($H$10,OFFSET('ANP REGIÃO'!$A$9,MATCH('Transporte EAI'!$I$7,'ANP REGIÃO'!A:A,0),1,10000,10000),MATCH('Transporte EAI'!AH26,'ANP REGIÃO'!$B$8:$G$8,0),FALSE) -> 2.730876265 | L26: 2813.416776 | M26: 777.42 | N26: 3590.836776 | O26: 2480 | P26: 547 | Q26: 654.38 | R26: 108.41 | S26: 762.79 | T26: 167.44 | U26: 1046.52 | V26: 1976.75 | W26: 681.6 | X26: =EVEN(' CONSUMO DE MAT. B TOTAL'!$P$8*2/28)*W26/' CONSUMO DE MAT. B TOTAL'!$P$8 -> 54.47352647 | Y26: 2031.223526 | Z26: 3590.836776 | AA26: 5622.060302 | AH26: CENTRO-OESTE
B27: 5618.100302 | C27: 14 | E27: BETUNEL INDÚSTRIA E COMÉRCIO LTDA. | F27: RUA N ESQUINA COM RUA X, S/N QD. IND. 7 L 01/08 - DIST. IND. - CEP:78015-285 | G27: Mato Grosso | H27: CUIABA - MT | I27: Porto Grande -AP | J27: =VLOOKUP(G27,OFFSET('ANP ESTADO'!$A$1,MATCH($I$7,'ANP ESTADO'!B:B,0)+MATCH($H$10,OFFSET('ANP ESTADO'!$A$1,MATCH($I$7,'ANP ESTADO'!B:B,0),0,100000,1),0),2,100000,2),2,FALSE) -> 2.813416776 | K27: =VLOOKUP($H$10,OFFSET('ANP REGIÃO'!$A$9,MATCH('Transporte EAI'!$I$7,'ANP REGIÃO'!A:A,0),1,10000,10000),MATCH('Transporte EAI'!AH27,'ANP REGIÃO'!$B$8:$G$8,0),FALSE) -> 2.730876265 | L27: 2813.416776 | M27: 777.42 | N27: 3590.836776 | O27: 2474 | P27: 547 | Q27: 652.86 | R27: 108.41 | S27: 761.27 | T27: 167.1 | U27: 1044.42 | V27: 1972.79 | W27: 681.6 | X27: =EVEN(' CONSUMO DE MAT. B TOTAL'!$P$8*2/28)*W27/' CONSUMO DE MAT. B TOTAL'!$P$8 -> 54.47352647 | Y27: 2027.263526 | Z27: 3590.836776 | AA27: 5618.100302 | AH27: CENTRO-OESTE
B28: 5622.690302 | C28: 15 | E28: EMAM - EMULSÕES E TRANSPORTES LTDA. | F28: RODOVIA DOS IMIGRANTES, S/Nº KM 8,6 - - CEP:60035-351 | G28: Mato Grosso | H28: VARZEA GRANDE - MT | I28: Porto Grande -AP | J28: =VLOOKUP(G28,OFFSET('ANP ESTADO'!$A$1,MATCH($I$7,'ANP ESTADO'!B:B,0)+MATCH($H$10,OFFSET('ANP ESTADO'!$A$1,MATCH($I$7,'ANP ESTADO'!B:B,0),0,100000,1),0),2,100000,2),2,FALSE) -> 2.813416776 | K28: =VLOOKUP($H$10,OFFSET('ANP REGIÃO'!$A$9,MATCH('Transporte EAI'!$I$7,'ANP REGIÃO'!A:A,0),1,10000,10000),MATCH('Transporte EAI'!AH28,'ANP REGIÃO'!$B$8:$G$8,0),FALSE) -> 2.730876265 | L28: 2813.416776 | M28: 777.42 | N28: 3590.836776 | O28: 2481 | P28: 547 | Q28: 654.63 | R28: 108.41 | S28: 763.04 | T28: 167.49 | U28: 1046.85 | V28: 1977.38 | W28: 681.6 | X28: =EVEN(' CONSUMO DE MAT. B TOTAL'!$P$8*2/28)*W28/' CONSUMO DE MAT. B TOTAL'!$P$8 -> 54.47352647 | Y28: 2031.853526 | Z28: 3590.836776 | AA28: 5622.690302 | AC28: 5622.690302 | AD28: 2031.853526 | AE28: 3590.836776 | AH28: CENTRO-OESTE
B29: 5567.276628 | C29: 16 | E29: VIAPOL LTDA. | F29: VITO ARDITO, 6401 KM 118,5 - JARDIM CAMPO GRANDE - CEP:12282-535 | G29: São Paulo | H29: CACAPAVA - SP | I29: Porto Grande -AP | J29: =VLOOKUP(G29,OFFSET('ANP ESTADO'!$A$1,MATCH($I$7,'ANP ESTADO'!B:B,0)+MATCH($H$10,OFFSET('ANP ESTADO'!$A$1,MATCH($I$7,'ANP ESTADO'!B:B,0),0,100000,1),0),2,100000,2),2,FALSE) -> 2.437887617 | K29: =VLOOKUP($H$10,OFFSET('ANP REGIÃO'!$A$9,MATCH('Transporte EAI'!$I$7,'ANP REGIÃO'!A:A,0),1,10000,10000),MATCH('Transporte EAI'!AH29,'ANP REGIÃO'!$B$8:$G$8,0),FALSE) -> 2.248773515 | L29: 2437.887617 | M29: 673.65 | N29: 3111.537617 | O29: 3023 | P29: 547 | Q29: 791.76 | R29: 108.41 | S29: 900.17 | T29: 197.59 | U29: 1234.99 | V29: 2332.75 | W29: 1538.9 | X29: =EVEN(' CONSUMO DE MAT. B TOTAL'!$P$8*2/28)*W29/' CONSUMO DE MAT. B TOTAL'!$P$8 -> 122.989011 | Y29: 2455.739011 | Z29: 3111.537617 | AA29: 5567.276628 | AC29: 5567.276628 | AD29: 2455.739011 | AE29: 3111.537617 | AH29: SUDESTE
B30: 5432.199859 | C30: 17 | E30: STRATURA ASFALTOS S/A | F30: RUA LUIS DE CAMÕES, 26 - CAMPOS ELÍSEOS - CEP:25225-030 | G30: Rio de Janeiro | H30: DUQUE DE CAXIAS - RJ | I30: Porto Grande -AP | J30: =VLOOKUP(G30,OFFSET('ANP ESTADO'!$A$1,MATCH($I$7,'ANP ESTADO'!B:B,0)+MATCH($H$10,OFFSET('ANP ESTADO'!$A$1,MATCH($I$7,'ANP ESTADO'!B:B,0),0,100000,1),0),2,100000,2),2,FALSE) -> - | K30: =VLOOKUP($H$10,OFFSET('ANP REGIÃO'!$A$9,MATCH('Transporte EAI'!$I$7,'ANP REGIÃO'!A:A,0),1,10000,10000),MATCH('Transporte EAI'!AH30,'ANP REGIÃO'!$B$8:$G$8,0),FALSE) -> 2.248773515 | L30: 2248.773515 | M30: 621.39 | N30: 2870.163515 | O30: 3239 | P30: 547 | Q30: 846.41 | R30: 108.41 | S30: 954.82 | T30: 209.59 | U30: 1309.97 | V30: 2474.38 | W30: 1096.8 | X30: =EVEN(' CONSUMO DE MAT. B TOTAL'!$P$8*2/28)*W30/' CONSUMO DE MAT. B TOTAL'!$P$8 -> 87.65634366 | Y30: 2562.036344 | Z30: 2870.163515 | AA30: 5432.199859 | AC30: 5432.199859 | AD30: =Y30 -> 2562.036344 | AE30: 2870.163515 | AH30: SUDESTE
B31: 5441.379859 | C31: 18 | E31: PROBITEC - PRODUTOS BETUMINOSOS E TECNOLOGIA DE APLICAÇÃO LTDA. | F31: AVENIDA CANAL DA PAVUNA, 620 - PAVUNA - CEP:21535-630 | G31: Rio de Janeiro | H31: RIO DE JANEIRO - RJ | I31: Porto Grande -AP | J31: =VLOOKUP(G31,OFFSET('ANP ESTADO'!$A$1,MATCH($I$7,'ANP ESTADO'!B:B,0)+MATCH($H$10,OFFSET('ANP ESTADO'!$A$1,MATCH($I$7,'ANP ESTADO'!B:B,0),0,100000,1),0),2,100000,2),2,FALSE) -> - | K31: =VLOOKUP($H$10,OFFSET('ANP REGIÃO'!$A$9,MATCH('Transporte EAI'!$I$7,'ANP REGIÃO'!A:A,0),1,10000,10000),MATCH('Transporte EAI'!AH31,'ANP REGIÃO'!$B$8:$G$8,0),FALSE) -> 2.248773515 | L31: 2248.773515 | M31: 621.39 | N31: 2870.163515 | O31: 3253 | P31: 547 | Q31: 849.95 | R31: 108.41 | S31: 958.36 | T31: 210.37 | U31: 1314.83 | V31: 2483.56 | W31: 1096.8 | X31: =EVEN(' CONSUMO DE MAT. B TOTAL'!$P$8*2/28)*W31/' CONSUMO DE MAT. B TOTAL'!$P$8 -> 87.65634366 | Y31: 2571.216344 | Z31: 2870.163515 | AA31: 5441.379859 | AC31: 5441.379859 | AD31: 2571.216344 | AE31: 2870.163515 | AH31: SUDESTE
B32: 5840.601729 | C32: 19 | E32: CASA DO ASFALTO DISTRIBUIDORA, INDÚSTRIA E COMÉRCIO DE ASFALTO LTDA. | F32: BR 376, PARQUE INDUSTRIAL, S/N LOTE 6/7/7-A-3-1 - GL.PATR.MARIALVA - CEP:86990-000 | G32: Paraná | H32: MARIALVA - PR | I32: Porto Grande -AP | J32: =VLOOKUP(G32,OFFSET('ANP ESTADO'!$A$1,MATCH($I$7,'ANP ESTADO'!B:B,0)+MATCH($H$10,OFFSET('ANP ESTADO'!$A$1,MATCH($I$7,'ANP ESTADO'!B:B,0),0,100000,1),0),2,100000,2),2,FALSE) -> 2.677074017 | K32: =VLOOKUP($H$10,OFFSET('ANP REGIÃO'!$A$9,MATCH('Transporte EAI'!$I$7,'ANP REGIÃO'!A:A,0),1,10000,10000),MATCH('Transporte EAI'!AH32,'ANP REGIÃO'!$B$8:$G$8,0),FALSE) -> 2.671186452 | L32: 2677.074017 | M32: 739.74 | N32: 3416.814017 | O32: 3015 | P32: 547 | Q32: 789.73 | R32: 108.41 | S32: 898.14 | T32: 197.15 | U32: 1232.21 | V32: 2327.5 | W32: 1204.8 | X32: =EVEN(' CONSUMO DE MAT. B TOTAL'!$P$8*2/28)*W32/' CONSUMO DE MAT. B TOTAL'!$P$8 -> 96.28771229 | Y32: 2423.787712 | Z32: 3416.814017 | AA32: 5840.601729 | AC32: 5840.601729 | AD32: 2423.787712 | AE32: 3416.814017 | AH32: SUL
B33: 5946.2705 | C33: 20 | E33: PETROBRAS DISTRIBUIDORA S.A. | F33: RUA MAQUINISTA ELEODORO JACINTO, 100 - OFICINAS - CEP:84045-170 | G33: Paraná | H33: PONTA GROSSA - PR | I33: Porto Grande -AP | J33: =VLOOKUP(G33,OFFSET('ANP ESTADO'!$A$1,MATCH($I$7,'ANP ESTADO'!B:B,0)+MATCH($H$10,OFFSET('ANP ESTADO'!$A$1,MATCH($I$7,'ANP ESTADO'!B:B,0),0,100000,1),0),2,100000,2),2,FALSE) -> 2.677074017 | K33: =VLOOKUP($H$10,OFFSET('ANP REGIÃO'!$A$9,MATCH('Transporte EAI'!$I$7,'ANP REGIÃO'!A:A,0),1,10000,10000),MATCH('Transporte EAI'!AH33,'ANP REGIÃO'!$B$8:$G$8,0),FALSE) -> 2.671186452 | L33: 2677.074017 | M33: 739.74 | N33: 3416.814017 | O33: 3159 | P33: 547 | Q33: 826.17 | R33: 108.41 | S33: 934.58 | T33: 205.15 | U33: 1282.21 | V33: 2421.94 | W33: 1345.3 | X33: =EVEN(' CONSUMO DE MAT. B TOTAL'!$P$8*2/28)*W33/' CONSUMO DE MAT. B TOTAL'!$P$8 -> 107.5164835 | Y33: 2529.456484 | Z33: 3416.814017 | AA33: 5946.2705 | AC33: 5946.2705 | AD33: 2529.456484 | AE33: 3416.814017 | AH33: SUL
D43: Acre
D44: Alagoas
D45: Amapá
D46: Amazonas
D47: Bahia
D48: Ceará
D49: Distrito Federal
D50: Espírito Santo
D51: Goiás
D52: Maranhão
D53: Mato Grosso
D54: Mato Grosso do Sul
D55: Minas Gerais
D56: Pará
D57: Paraíba
D58: Paraná
D59: Pernambuco
D60: Piauí
D61: Rio de Janeiro
D62: Rio Grande do Norte
D63: Rio Grande do Sul
D64: Rondônia
D65: Roraima
D66: Santa Catarina
D67: São Paulo
D68: Sergipe
D69: Tocantins
D73: ASFALTOS DILUÍDOS CM-30
D74: ASFALTOS DILUÍDOS CM-70
D75: ASFALTOS DILUÍDOS CR-250
D76: ASFALTOS DILUÍDOS CR-70
D77: CAP MODIFICADO POR BORRACHA DE PNEU AB22
D78: CAP MODIFICADO POR BORRACHA DE PNEU AB8
D79: CAP MODIFICADO POR POLÍMERO 55-75-E
D80: CAP MODIFICADO POR POLÍMERO 60-85-E
D81: CAP MODIFICADO POR POLÍMERO 65-90-E
D82: CIMENTOS ASFÁLTICOS CAP-150-200
D83: CIMENTOS ASFÁLTICOS CAP-30-45
D84: CIMENTOS ASFÁLTICOS CAP-50-70
D85: CIMENTOS ASFÁLTICOS CAP-85-100
D86: EMULSÃO ASFÁLTICA CATIÔNICA DE RUPTURA CONTROLADA PARA SERVIÇO DE LAMA ASFÁLTICA
D87: EMULSÃO ASFÁLTICA DE RUPTURA LENTA CATIÔNICA PARA SERVIÇO DE LAMA ASFÁLTICA
D88: EMULSÃO ASFÁLTICA DE RUPTURA LENTA DE CARGA NEUTRA PARA SERVIÇO DE LAMA ASFÁLTICA
D89: EMULSÃO ASFÁLTICA PARA SERVIÇO DE IMPRIMAÇÃO
D90: EMULSÕES ASF. MOD. POR POLÍMEROS RC1C-E
D91: EMULSÕES ASF. MOD. POR POLÍMEROS RL1C-E
D92: EMULSÕES ASF. MOD. POR POLÍMEROS RM1C-E
D93: EMULSÕES ASF. MOD. POR POLÍMEROS RR1C-E
D94: EMULSÕES ASF. MOD. POR POLÍMEROS RR2C-E
D95: EMULSÕES ASFÁLTICAS RL-1C
D96: EMULSÕES ASFÁLTICAS RM-1C
D97: EMULSÕES ASFÁLTICAS RM-2C
D98: EMULSÕES ASFÁLTICAS RR-1C
D99: EMULSÕES ASFÁLTICAS RR-2C

Sheet Transporte RR-1C
C2: MEMÓRIA DE CÁLCULO
C7: REAJUSTE | F7: TIPOLOGIA DO MATERIAL | I7: EMULSÕES ASFÁLTICAS RR-1C | M7: IMPOSTOS | N7: COFINS | O7: 0.0065 | P7: 0.0065
G8: ÍNDICE DE PAVIMENTAÇÃO DNIT | H8: 2014-07-01 | I8: ÍNDICE INICIAL | J8: 270.237 | N8: PIS | O8: 0.03 | P8: 0.03 | T8: LEGENDA | AC8: As empresas tributadas pelo Lucro Presumido pagam 0,65% de PIS e 3% de COFINS
H9: ='Transporte Cap 50-70'!H9 -> 2024-07-01 | I9: ÍNDICE FINAL | J9: ='Transporte Cap 50-70'!J9 -> 574.257 | N9: ICMS | O9: 0.18 | P9: 0.18 | Q9: =1-(O9/1) -> 0.82 | R9: =1-(P9/1) -> 0.82 | S9: =1-(Q9/1) -> 0.18 | T9: ENTRADA DE DADOS | AC9: As empresas tributadas pelo Lucro Real pagam 1,65% de PIS e 7,60% de COFINS
G10: Data ANP | H10: ='Transporte Cap 50-70'!H9 -> 2024-07-01
C11: DATA-BASE | D11: PRODUTOS | E11: LOCALIDADES | J11: CUSTO ANP (R$/Kg) | L11: CUSTO ANP | M11: IMPOSTOS DO PRODUTO | N11: CUSTO DO PRODUTO COM IMPOSTOS | O11: DMT's | P11: DMT'S FLUVIAL | Q11: CUSTO DO TRANSPORTE RODOVIA PAVIMENTADA | R11: CUSTO DO TRANSPORTE FLUVIAL | S11: CUSTO DO TRANSPORTE TOTAL | T11: ICMS | U11: ATUALIZAÇÃO DO CUSTO DE TRANSPORTE | V11: CUSTO DO TRANSPORTE RODOVIA PAVIMENTADA COM IMPOSTOS E ATUALIZAÇÃO MONETÁRIA | W11: PEDÁGIO | Y11: TOTAL TRANSPORTE | Z11: AQUISIÇÃO DO PRODUTO | AA11: TOTAL GERAL ( TRANSP + AQUISIÇÃO) | AC11: 1 | AD11: 2 | AE11: 3
C12: =H9 -> 2024-07-01 | E12: REFINARIAS | F12: ENDEREÇO | G12: ESTADO | H12: CIDADE | I12: DESTINO | J12: ESTADO | K12: REGIÃO | L12: R$/t | M12: R$/t | N12: R$/t | O12: KM | P12: KM | Q12: R$/t | R12: R$/t | S12: R$/t | T12: R$/t | U12: R$/t | V12: R$/t | W12: CUSTO | X12: R$/t | Y12: R$/t | Z12: R$/t | AA12: R$/t | AC12: TOTAL GERAL ( TRANSP + AQUISIÇÃO) | AD12: TOTAL TRANSPORTE | AE12: AQUISIÇÃO DO PRODUTO
B13: =AA13 -> 5276.493276 | C13: 1 | D13: =I7 -> EMULSÕES ASFÁLTICAS RR-1C | E13: 'CENTRO OESTE ASFALTOS LTDA. | F13: SETOR DE INFLAMÁVEIS, S/N TRECHO 02 - LOTE 1.100 - GUARÁ - CEP:71225-000 | G13: Distrito Federal | H13: BRASÍLIA - DF | I13: ='Transporte Cap 50-70'!I13 -> Porto Grande -AP | J13: =VLOOKUP(G13,OFFSET('ANP ESTADO'!$A$1,MATCH($I$7,'ANP ESTADO'!B:B,0)+MATCH($H$10,OFFSET('ANP ESTADO'!$A$1,MATCH($I$7,'ANP ESTADO'!B:B,0),0,100000,1),0),2,100000,2),2,FALSE) -> - | K13: =VLOOKUP($H$10,OFFSET('ANP REGIÃO'!$A$9,MATCH('Transporte RR-1C'!$I$7,'ANP REGIÃO'!A:A,0),1,10000,10000),MATCH('Transporte RR-1C'!AH13,'ANP REGIÃO'!$B$8:$G$8,0),FALSE) -> 2.777249639 | L13: =IF(AND(J13="-",K13="-"),"",IF(AND(J13<>0,K13="-"),J13*1000,IF(AND(J13="-",K13<>0),K13*1000,IF(AND(J13<>0,K13<>0),J13*1000,"")))) -> 2777.249639 | M13: =ROUND(((L13/(1-$O$7-$O$8-$O$9))-L13),2) -> 767.42 | N13: =L13+M13 -> 3544.669639 | O13: ='Transporte EAI'!O13 -> 2051 | P13: ='Transporte EAI'!P13 -> 547 | Q13: =ROUND((26.939+0.253*O13),2) -> 545.84 | R13: =ROUND((20.7256+0.1603*P13),2) -> 108.41 | S13: =Q13+R13 -> 654.25 | T13: =TRUNC(S13*($O$9/(1-$O$9)),2) -> 143.61 | U13: =TRUNC(IF($J$8="","",(($J$9-$J$8)/$J$8)*(S13+T13)),2) -> 897.6 | V13: =S13+T13+U13 -> 1695.46 | W13: ='Transporte EAI'!W13 -> 420 | X13: =EVEN(' CONSUMO DE MAT. B TOTAL'!$P$11*2/28)*W13/' CONSUMO DE MAT. B TOTAL'!$P$11 -> 36.36363636 | Y13: =IF(AND(Q13="",T13=""),"",V13+X13) -> 1731.823636 | Z13: =IF(OR(L13="",M13=""),"",L13+M13) -> 3544.669639 | AA13: =IF(OR(Y13="",Z13=""),"",Y13+Z13) -> 5276.493276 | AC13: =AA13 -> 5276.493276 | AD13: =Y13 -> 1731.823636 | AE13: =Z13 -> 3544.669639 | AH13: =IF(OR(G13=$D$59,G13=$D$60,G13=$D$62,G13=$D$68,G13=$D$52,G13=$D$48,G13=$D$44,G13=$D$57,G13=$D$47),"NORDESTE",IF(OR(G13=$D$43,G13=$D$45,G13=$D$46,G13=$D$56,G13=$D$64,G13=$D$65,G13=$D$69),"NORTE",IF(OR(G13=$D$49,G13=$D$51,G13=$D$53,G13=$D$54),"CENTRO-OESTE",IF(OR(G13=$D$67,G13=$D$61,G13=$D$55,G13=$D$50),"SUDESTE",IF(OR(G13=$D$66,G13=$D$58,G13=$D$63),"SUL",""))))) -> CENTRO-OESTE
B14: =AA14 -> 6612.948617 | C14: 2 | E14: ISAC SAABA | F14: Rua Rio Quixito, 1, Vila Buriti - Distrito Industrial - Manaus - AM CEP: 69072-070 | G14: Amazonas | H14: MANAUS - AM | I14: ='Transporte Cap 50-70'!I14 -> Porto Grande -AP | J14: =VLOOKUP(G14,OFFSET('ANP ESTADO'!$A$1,MATCH($I$7,'ANP ESTADO'!B:B,0)+MATCH($H$10,OFFSET('ANP ESTADO'!$A$1,MATCH($I$7,'ANP ESTADO'!B:B,0),0,100000,1),0),2,100000,2),2,FALSE) -> 3.600728617 | K14: =VLOOKUP($H$10,OFFSET('ANP REGIÃO'!$A$9,MATCH('Transporte RR-1C'!$I$7,'ANP REGIÃO'!A:A,0),1,10000,10000),MATCH('Transporte RR-1C'!AH14,'ANP REGIÃO'!$B$8:$G$8,0),FALSE) -> 3.601339327 | L14: =IF(AND(J14="-",K14="-"),"",IF(AND(J14<>0,K14="-"),J14*1000,IF(AND(J14="-",K14<>0),K14*1000,IF(AND(J14<>0,K14<>0),J14*1000,"")))) -> 3600.728617 | M14: =ROUND(((L14/(1-$O$7-$O$8-$O$9))-L14),2) -> 994.97 | N14: =L14+M14 -> 4595.698617 | O14: ='Transporte EAI'!O14 -> 2882 | P14: ='Transporte EAI'!P14 -> 10 | Q14: =ROUND((26.939+0.253*O14),2) -> 756.09 | R14: =ROUND((20.7256+0.1603*P14),2) -> 22.33 | S14: =Q14+R14 -> 778.42 | T14: =TRUNC(S14*($O$9/(1-$O$9)),2) -> 170.87 | U14: =TRUNC(IF($J$8="","",(($J$9-$J$8)/$J$8)*(S14+T14)),2) -> 1067.96 | V14: =S14+T14+U14 -> 2017.25 | W14: ='Transporte EAI'!W14 -> 0 | X14: =EVEN(' CONSUMO DE MAT. B TOTAL'!$P$11*2/28)*W14/' CONSUMO DE MAT. B TOTAL'!$P$11 -> 0 | Y14: 2017.25 | Z14: 4595.698617 | AA14: =IF(OR(Y14="",Z14=""),"",Y14+Z14) -> 6612.948617 | AC14: =AA14 -> 6612.948617 | AD14: =Y14 -> 2017.25 | AE14: 4595.698617 | AH14: =IF(OR(G14=$D$59,G14=$D$60,G14=$D$62,G14=$D$68,G14=$D$52,G14=$D$48,G14=$D$44,G14=$D$57,G14=$D$47),"NORDESTE",IF(OR(G14=$D$43,G14=$D$45,G14=$D$46,G14=$D$56,G14=$D$64,G14=$D$65,G14=$D$69),"NORTE",IF(OR(G14=$D$49,G14=$D$51,G14=$D$53,G14=$D$54),"CENTRO-OESTE",IF(OR(G14=$D$67,G14=$D$61,G14=$D$55,G14=$D$50),"SUDESTE",IF(OR(G14=$D$66,G14=$D$58,G14=$D$63),"SUL",""))))) -> NORTE
B15: 4988.268012 | C15: 2 | E15: STRATURA ASFALTOS S/A | F15: AVENIDA PRESIDENTE WILSON, 08 - JUNDIAÍ - CEP:75115-100 | G15: Goiás | H15: ANÁPOLIS - GO | I15: ='Transporte Cap 50-70'!I15 -> Porto Grande -AP | J15: =VLOOKUP(G15,OFFSET('ANP ESTADO'!$A$1,MATCH($I$7,'ANP ESTADO'!B:B,0)+MATCH($H$10,OFFSET('ANP ESTADO'!$A$1,MATCH($I$7,'ANP ESTADO'!B:B,0),0,100000,1),0),2,100000,2),2,FALSE) -> 2.565909441 | K15: =VLOOKUP($H$10,OFFSET('ANP REGIÃO'!$A$9,MATCH('Transporte RR-1C'!$I$7,'ANP REGIÃO'!A:A,0),1,10000,10000),MATCH('Transporte RR-1C'!AH15,'ANP REGIÃO'!$B$8:$G$8,0),FALSE) -> 2.777249639 | L15: 2565.909441 | M15: 709.02 | N15: 3274.929441 | O15: ='Transporte EAI'!O15 -> 2012 | P15: ='Transporte EAI'!P15 -> 547 | Q15: 535.98 | R15: 108.41 | S15: 644.39 | T15: 141.45 | U15: 884.07 | V15: 1669.91 | W15: 501.6 | X15: =EVEN(' CONSUMO DE MAT. B TOTAL'!$P$11*2/28)*W15/' CONSUMO DE MAT. B TOTAL'!$P$11 -> 43.42857143 | Y15: 1713.338571 | Z15: 3274.929441 | AA15: 4988.268012 | AC15: 4988.268012 | AD15: 1713.338571 | AE15: 3274.929441 | AH15: CENTRO-OESTE
B16: 5022.321389 | C16: 3 | E16: DISTRIBUIDORA BRASILEIRA DE ASFALTO SA - DISBRAL | F16: VIA PRIMARIA 8, S/N QD-18, MODS. 24/47 - DAIAG - CEP:74980-970 | G16: Goiás | H16: APARECIDA DE GOIANIA - GO | I16: ='Transporte Cap 50-70'!I16 -> Porto Grande -AP | J16: =VLOOKUP(G16,OFFSET('ANP ESTADO'!$A$1,MATCH($I$7,'ANP ESTADO'!B:B,0)+MATCH($H$10,OFFSET('ANP ESTADO'!$A$1,MATCH($I$7,'ANP ESTADO'!B:B,0),0,100000,1),0),2,100000,2),2,FALSE) -> 2.565909441 | K16: =VLOOKUP($H$10,OFFSET('ANP REGIÃO'!$A$9,MATCH('Transporte RR-1C'!$I$7,'ANP REGIÃO'!A:A,0),1,10000,10000),MATCH('Transporte RR-1C'!AH16,'ANP REGIÃO'!$B$8:$G$8,0),FALSE) -> 2.777249639 | L16: 2565.909441 | M16: 709.02 | N16: 3274.929441 | O16: ='Transporte EAI'!O16 -> 2063 | P16: ='Transporte EAI'!P16 -> 547 | Q16: 548.88 | R16: 108.41 | S16: 657.29 | T16: 144.28 | U16: 901.77 | V16: 1703.34 | W16: ='Transporte EAI'!W16 -> 508.8 | X16: =EVEN(' CONSUMO DE MAT. B TOTAL'!$P$11*2/28)*W16/' CONSUMO DE MAT. B TOTAL'!$P$11 -> 44.05194805 | Y16: 1747.391948 | Z16: 3274.929441 | AA16: 5022.321389 | AC16: 5022.321389 | AD16: 1747.391948 | AE16: 3274.929441 | AH16: CENTRO-OESTE
A17: 2403 | B17: 5003.301389 | C17: 4 | E17: INDÚSTRIA NACIONAL DE ASFALTOS LTDA. | F17: VIA PRIMEIRA E SEGUNDA 3, S/N.º LOTES 01 A 10 - DISTRITO AGROINDUSTRIAL - CEP:75370-000 | G17: Goiás | H17: GOIANIRA - GO | I17: ='Transporte Cap 50-70'!I17 -> Porto Grande -AP | J17: =VLOOKUP(G17,OFFSET('ANP ESTADO'!$A$1,MATCH($I$7,'ANP ESTADO'!B:B,0)+MATCH($H$10,OFFSET('ANP ESTADO'!$A$1,MATCH($I$7,'ANP ESTADO'!B:B,0),0,100000,1),0),2,100000,2),2,FALSE) -> 2.565909441 | K17: =VLOOKUP($H$10,OFFSET('ANP REGIÃO'!$A$9,MATCH('Transporte RR-1C'!$I$7,'ANP REGIÃO'!A:A,0),1,10000,10000),MATCH('Transporte RR-1C'!AH17,'ANP REGIÃO'!$B$8:$G$8,0),FALSE) -> 2.777249639 | L17: 2565.909441 | M17: 709.02 | N17: 3274.929441 | O17: ='Transporte EAI'!O17 -> 2034 | P17: ='Transporte EAI'!P17 -> 547 | Q17: 541.54 | R17: 108.41 | S17: 649.95 | T17: 142.67 | U17: 891.7 | V17: 1684.32 | W17: ='Transporte EAI'!W17 -> 508.8 | X17: =EVEN(' CONSUMO DE MAT. B TOTAL'!$P$11*2/28)*W17/' CONSUMO DE MAT. B TOTAL'!$P$11 -> 44.05194805 | Y17: 1728.371948 | Z17: 3274.929441 | AA17: 5003.301389 | AC17: 5003.301389 | AD17: 1728.371948 | AE17: 3274.929441 | AH17: CENTRO-OESTE
B18: 5054.216318 | C18: 5 | E18: STRATURA ASFALTOS S/A | F18: RUA VICTOR RODRIGUES RESENDE, 333 - DISTRITO IND. DE UBERLÂNDIA - CEP:38405-440 | G18: Minas Gerais | H18: UBERLANDIA - MG | I18: ='Transporte Cap 50-70'!I18 -> Porto Grande -AP | J18: =VLOOKUP(G18,OFFSET('ANP ESTADO'!$A$1,MATCH($I$7,'ANP ESTADO'!B:B,0)+MATCH($H$10,OFFSET('ANP ESTADO'!$A$1,MATCH($I$7,'ANP ESTADO'!B:B,0),0,100000,1),0),2,100000,2),2,FALSE) -> 2.414631513 | K18: =VLOOKUP($H$10,OFFSET('ANP REGIÃO'!$A$9,MATCH('Transporte RR-1C'!$I$7,'ANP REGIÃO'!A:A,0),1,10000,10000),MATCH('Transporte RR-1C'!AH18,'ANP REGIÃO'!$B$8:$G$8,0),FALSE) -> 2.55680471 | L18: 2414.631513 | M18: 667.22 | N18: 3081.851513 | O18: ='Transporte EAI'!O18 -> 2380 | P18: ='Transporte EAI'!P18 -> 547 | Q18: 629.08 | R18: 108.41 | S18: 737.49 | T18: 161.88 | U18: 1011.8 | V18: 1911.17 | W18: ='Transporte EAI'!W18 -> 706.8 | X18: =EVEN(' CONSUMO DE MAT. B TOTAL'!$P$11*2/28)*W18/' CONSUMO DE MAT. B TOTAL'!$P$11 -> 61.19480519 | Y18: 1972.364805 | Z18: 3081.851513 | AA18: 5054.216318 | AC18: 5054.216318 | AD18: 1972.364805 | AE18: 3081.851513 | AH18: SUDESTE
B19: 5053.576318 | C19: 6 | E19: BETUNEL INDÚSTRIA E COMÉRCIO LTDA. | F19: RUA VICTOR RODRIGUES DE REZENDE, 185 - DISTRITO INDUSTRIAL - CEP:38402-334 | G19: Minas Gerais | H19: UBERLANDIA - MG | I19: ='Transporte Cap 50-70'!I19 -> Porto Grande -AP | J19: =VLOOKUP(G19,OFFSET('ANP ESTADO'!$A$1,MATCH($I$7,'ANP ESTADO'!B:B,0)+MATCH($H$10,OFFSET('ANP ESTADO'!$A$1,MATCH($I$7,'ANP ESTADO'!B:B,0),0,100000,1),0),2,100000,2),2,FALSE) -> 2.414631513 | K19: =VLOOKUP($H$10,OFFSET('ANP REGIÃO'!$A$9,MATCH('Transporte RR-1C'!$I$7,'ANP REGIÃO'!A:A,0),1,10000,10000),MATCH('Transporte RR-1C'!AH19,'ANP REGIÃO'!$B$8:$G$8,0),FALSE) -> 2.55680471 | L19: 2414.631513 | M19: 667.22 | N19: 3081.851513 | O19: ='Transporte EAI'!O19 -> 2379 | P19: ='Transporte EAI'!P19 -> 547 | Q19: 628.83 | R19: 108.41 | S19: 737.24 | T19: 161.83 | U19: 1011.46 | V19: 1910.53 | W19: ='Transporte EAI'!W19 -> 706.8 | X19: =EVEN(' CONSUMO DE MAT. B TOTAL'!$P$11*2/28)*W19/' CONSUMO DE MAT. B TOTAL'!$P$11 -> 61.19480519 | Y19: 1971.724805 | Z19: 3081.851513 | AA19: 5053.576318 | AC19: 5053.576318 | AD19: 1971.724805 | AE19: 3081.851513 | AH19: SUDESTE
B20: 7135.918505 | C20: 7 | E20: ARAPETRO DISTRIBUIDORA DE PETRÓLEO LTDA. | F20: RUA 04, S/N° LOTES 17 A 20. - DISTRITO INDUSTRIAL 1/8 - CEP:78600-000 | G20: Mato grosso | H20: BARRA DO GARCAS - MT | I20: ='Transporte Cap 50-70'!I20 -> Porto Grande -AP | J20: =VLOOKUP(G20,OFFSET('ANP ESTADO'!$A$1,MATCH($I$7,'ANP ESTADO'!B:B,0)+MATCH($H$10,OFFSET('ANP ESTADO'!$A$1,MATCH($I$7,'ANP ESTADO'!B:B,0),0,100000,1),0),2,100000,2),2,FALSE) -> 4.165498505 | K20: =VLOOKUP($H$10,OFFSET('ANP REGIÃO'!$A$9,MATCH('Transporte RR-1C'!$I$7,'ANP REGIÃO'!A:A,0),1,10000,10000),MATCH('Transporte RR-1C'!AH20,'ANP REGIÃO'!$B$8:$G$8,0),FALSE) -> 2.777249639 | L20: =IF(AND(J20="-",K20="-"),"",IF(AND(J20<>0,K20="-"),J20*1000,IF(AND(J20="-",K20<>0),K20*1000,IF(AND(J20<>0,K20<>0),J20*1000,"")))) -> 4165.498505 | M20: =ROUND(((L20/(1-$O$7-$O$8-$O$9))-L20),2) -> 1151.03 | N20: 5316.528505 | O20: ='Transporte EAI'!O20 -> 2240 | P20: ='Transporte EAI'!P20 -> 547 | Q20: 593.66 | R20: 108.41 | S20: 702.07 | T20: 154.11 | U20: 963.21 | V20: 1819.39 | W20: ='Transporte EAI'!W20 -> 0 | X20: =EVEN(' CONSUMO DE MAT. B TOTAL'!$P$11*2/28)*W20/' CONSUMO DE MAT. B TOTAL'!$P$11 -> 0 | Y20: 1819.39 | Z20: 5316.528505 | AA20: 7135.918505 | AH20: CENTRO-OESTE
B21: 5355.846968 | C21: 8 | E21: DISTRIBUIDORA BRASILEIRA DE ASFALTO SA - DISBRAL | F21: SÃO JUDAS TADEU, 288 - DISTRITO INDUSTRIAL - CEP:32450-000 | G21: Minas Gerais | H21: SARZEDO - MG | I21: ='Transporte Cap 50-70'!I21 -> Porto Grande -AP | J21: =VLOOKUP(G21,OFFSET('ANP ESTADO'!$A$1,MATCH($I$7,'ANP ESTADO'!B:B,0)+MATCH($H$10,OFFSET('ANP ESTADO'!$A$1,MATCH($I$7,'ANP ESTADO'!B:B,0),0,100000,1),0),2,100000,2),2,FALSE) -> 2.414631513 | K21: =VLOOKUP($H$10,OFFSET('ANP REGIÃO'!$A$9,MATCH('Transporte RR-1C'!$I$7,'ANP REGIÃO'!A:A,0),1,10000,10000),MATCH('Transporte RR-1C'!AH21,'ANP REGIÃO'!$B$8:$G$8,0),FALSE) -> 2.55680471 | L21: 2414.631513 | M21: 667.22 | N21: 3081.851513 | O21: ='Transporte EAI'!O21 -> 2838 | P21: ='Transporte EAI'!P21 -> 547 | Q21: 744.95 | R21: 108.41 | S21: 853.36 | T21: 187.32 | U21: 1170.77 | V21: 2211.45 | W21: ='Transporte EAI'!W21 -> 722.4 | X21: =EVEN(' CONSUMO DE MAT. B TOTAL'!$P$11*2/28)*W21/' CONSUMO DE MAT. B TOTAL'!$P$11 -> 62.54545455 | Y21: 2273.995455 | Z21: 3081.851513 | AA21: 5355.846968 | AH21: SUDESTE
B22: 5790.389327 | C22: 9 | E22: 'INDÚSTRIA NACIONAL DE ASFALTOS LTDA. | F22: INDÚSTRIA NACIONAL DE ASFALTOS LTDA - CEP:77053-080 | G22: Tocantins | H22: PALMAS - TO | I22: ='Transporte Cap 50-70'!I22 -> Porto Grande -AP | J22: =VLOOKUP(G22,OFFSET('ANP ESTADO'!$A$1,MATCH($I$7,'ANP ESTADO'!B:B,0)+MATCH($H$10,OFFSET('ANP ESTADO'!$A$1,MATCH($I$7,'ANP ESTADO'!B:B,0),0,100000,1),0),2,100000,2),2,FALSE) -> - | K22: =VLOOKUP($H$10,OFFSET('ANP REGIÃO'!$A$9,MATCH('Transporte RR-1C'!$I$7,'ANP REGIÃO'!A:A,0),1,10000,10000),MATCH('Transporte RR-1C'!AH22,'ANP REGIÃO'!$B$8:$G$8,0),FALSE) -> 3.601339327 | L22: 3601.339327 | M22: 995.14 | N22: 4596.479327 | O22: ='Transporte EAI'!O22 -> 1286 | P22: ='Transporte EAI'!P22 -> 547 | Q22: 352.3 | R22: 108.41 | S22: 460.71 | T22: 101.13 | U22: 632.07 | V22: 1193.91 | W22: ='Transporte EAI'!W22 -> 0 | X22: =EVEN(' CONSUMO DE MAT. B TOTAL'!$P$11*2/28)*W22/' CONSUMO DE MAT. B TOTAL'!$P$11 -> 0 | Y22: 1193.91 | Z22: 4596.479327 | AA22: 5790.389327 | AH22: NORTE
B23: 5920.826267 | C23: 10 | E23: 'NTA - NOVAS TÉCNICAS DE ASFALTOS S/A | F23: RUA SOFIA ATAURI FADIN, 150 SALA A - B. SANTA TEREZINHA - CEP:13140-000 | G23: São Paulo | H23: PAULINIA - SP | I23: ='Transporte Cap 50-70'!I23 -> Porto Grande -AP | J23: =VLOOKUP(G23,OFFSET('ANP ESTADO'!$A$1,MATCH($I$7,'ANP ESTADO'!B:B,0)+MATCH($H$10,OFFSET('ANP ESTADO'!$A$1,MATCH($I$7,'ANP ESTADO'!B:B,0),0,100000,1),0),2,100000,2),2,FALSE) -> 2.821088302 | K23: =VLOOKUP($H$10,OFFSET('ANP REGIÃO'!$A$9,MATCH('Transporte RR-1C'!$I$7,'ANP REGIÃO'!A:A,0),1,10000,10000),MATCH('Transporte RR-1C'!AH23,'ANP REGIÃO'!$B$8:$G$8,0),FALSE) -> 2.55680471 | L23: 2821.088302 | M23: =ROUND(((L23/(1-$O$7-$O$8-$O$9))-L23),2) -> 779.53 | N23: 3600.618302 | O23: ='Transporte EAI'!O23 -> 2834 | P23: ='Transporte EAI'!P23 -> 547 | Q23: 743.94 | R23: 108.41 | S23: 852.35 | T23: 187.1 | U23: 1169.39 | V23: 2208.84 | W23: ='Transporte EAI'!W23 -> 1286.3 | X23: =EVEN(' CONSUMO DE MAT. B TOTAL'!$P$11*2/28)*W23/' CONSUMO DE MAT. B TOTAL'!$P$11 -> 111.3679654 | Y23: 2320.207965 | Z23: 3600.618302 | AA23: 5920.826267 | AC23: 5920.826267 | AD23: 2320.207965 | AE23: 3600.618302 | AH23: SUDESTE
B24: 6000.047306 | C24: 11 | E24: COMPANHIA BRASILEIRA DE ASFALTOS DA AMAZÔNIA - IMPORTAÇÃO E EXPORTAÇÃO | F24: Avenida Doutor Olindo Dártora 2451, Galpão 02, Morro Grande - CEP:07726-555 | G24: São Paulo | H24: CAIEIRAS - SP | I24: ='Transporte Cap 50-70'!I24 -> Porto Grande -AP | J24: =VLOOKUP(G24,OFFSET('ANP ESTADO'!$A$1,MATCH($I$7,'ANP ESTADO'!B:B,0)+MATCH($H$10,OFFSET('ANP ESTADO'!$A$1,MATCH($I$7,'ANP ESTADO'!B:B,0),0,100000,1),0),2,100000,2),2,FALSE) -> 2.821088302 | K24: =VLOOKUP($H$10,OFFSET('ANP REGIÃO'!$A$9,MATCH('Transporte RR-1C'!$I$7,'ANP REGIÃO'!A:A,0),1,10000,10000),MATCH('Transporte RR-1C'!AH24,'ANP REGIÃO'!$B$8:$G$8,0),FALSE) -> 2.55680471 | L24: 2821.088302 | M24: =ROUND(((L24/(1-$O$7-$O$8-$O$9))-L24),2) -> 779.53 | N24: 3600.618302 | O24: ='Transporte EAI'!O24 -> 2932 | P24: ='Transporte EAI'!P24 -> 547 | Q24: 768.74 | R24: 108.41 | S24: 877.15 | T24: 192.54 | U24: 1203.41 | V24: 2273.1 | W24: ='Transporte EAI'!W24 -> 1459.1 | X24: =EVEN(' CONSUMO DE MAT. B TOTAL'!$P$11*2/28)*W24/' CONSUMO DE MAT. B TOTAL'!$P$11 -> 126.3290043 | Y24: 2399.429004 | Z24: 3600.618302 | AA24: 6000.047306 | AH24: SUDESTE
B25: 5889.113995 | C25: 12 | E25: BETUNEL INDÚSTRIA E COMÉRCIO LTDA. | F25: R 16 , 82, Vila Nova Campo Grande - CEP:79.103-834 | G25: Mato Grosso do Sul | H25: CAMPO GRANDE - MS | I25: ='Transporte Cap 50-70'!I25 -> Porto Grande -AP | J25: =VLOOKUP(G25,OFFSET('ANP ESTADO'!$A$1,MATCH($I$7,'ANP ESTADO'!B:B,0)+MATCH($H$10,OFFSET('ANP ESTADO'!$A$1,MATCH($I$7,'ANP ESTADO'!B:B,0),0,100000,1),0),2,100000,2),2,FALSE) -> 2.761013475 | K25: =VLOOKUP($H$10,OFFSET('ANP REGIÃO'!$A$9,MATCH('Transporte RR-1C'!$I$7,'ANP REGIÃO'!A:A,0),1,10000,10000),MATCH('Transporte RR-1C'!AH25,'ANP REGIÃO'!$B$8:$G$8,0),FALSE) -> 2.777249639 | L25: 2761.013475 | M25: =ROUND(((L25/(1-$O$7-$O$8-$O$9))-L25),2) -> 762.93 | N25: 3523.943475 | O25: ='Transporte EAI'!O25 -> 2939 | P25: ='Transporte EAI'!P25 -> 547 | Q25: 770.51 | R25: 108.41 | S25: 878.92 | T25: 192.93 | U25: 1205.84 | V25: 2277.69 | W25: ='Transporte EAI'!W25 -> 1010.4 | X25: =EVEN(' CONSUMO DE MAT. B TOTAL'!$P$11*2/28)*W25/' CONSUMO DE MAT. B TOTAL'!$P$11 -> 87.48051948 | Y25: 2365.170519 | Z25: 3523.943475 | AA25: 5889.113995 | AH25: CENTRO-OESTE
B26: 7352.291492 | C26: 13 | E26: CENTRO OESTE ASFALTOS LTDA. | F26: RUA N, S/N.º LOTES 39/43 E LOTES 129/133 - DISTRITO INDUSTRIAL - CEP:78098-400 | G26: Mato Grosso | H26: CUIABA - MT | I26: ='Transporte Cap 50-70'!I26 -> Porto Grande -AP | J26: =VLOOKUP(G26,OFFSET('ANP ESTADO'!$A$1,MATCH($I$7,'ANP ESTADO'!B:B,0)+MATCH($H$10,OFFSET('ANP ESTADO'!$A$1,MATCH($I$7,'ANP ESTADO'!B:B,0),0,100000,1),0),2,100000,2),2,FALSE) -> 4.165498505 | K26: =VLOOKUP($H$10,OFFSET('ANP REGIÃO'!$A$9,MATCH('Transporte RR-1C'!$I$7,'ANP REGIÃO'!A:A,0),1,10000,10000),MATCH('Transporte RR-1C'!AH26,'ANP REGIÃO'!$B$8:$G$8,0),FALSE) -> 2.777249639 | L26: 4165.498505 | M26: 1151.03 | N26: 5316.528505 | O26: ='Transporte EAI'!O26 -> 2480 | P26: ='Transporte EAI'!P26 -> 547 | Q26: 654.38 | R26: 108.41 | S26: 762.79 | T26: 167.44 | U26: 1046.52 | V26: 1976.75 | W26: ='Transporte EAI'!W26 -> 681.6 | X26: =EVEN(' CONSUMO DE MAT. B TOTAL'!$P$11*2/28)*W26/' CONSUMO DE MAT. B TOTAL'!$P$11 -> 59.01298701 | Y26: 2035.762987 | Z26: 5316.528505 | AA26: 7352.291492 | AH26: CENTRO-OESTE
B27: 7348.331492 | C27: 14 | E27: BETUNEL INDÚSTRIA E COMÉRCIO LTDA. | F27: RUA N ESQUINA COM RUA X, S/N QD. IND. 7 L 01/08 - DIST. IND. - CEP:78015-285 | G27: Mato Grosso | H27: CUIABA - MT | I27: =I26 -> Porto Grande -AP | J27: =VLOOKUP(G27,OFFSET('ANP ESTADO'!$A$1,MATCH($I$7,'ANP ESTADO'!B:B,0)+MATCH($H$10,OFFSET('ANP ESTADO'!$A$1,MATCH($I$7,'ANP ESTADO'!B:B,0),0,100000,1),0),2,100000,2),2,FALSE) -> 4.165498505 | K27: =VLOOKUP($H$10,OFFSET('ANP REGIÃO'!$A$9,MATCH('Transporte RR-1C'!$I$7,'ANP REGIÃO'!A:A,0),1,10000,10000),MATCH('Transporte RR-1C'!AH27,'ANP REGIÃO'!$B$8:$G$8,0),FALSE) -> 2.777249639 | L27: 4165.498505 | M27: 1151.03 | N27: 5316.528505 | O27: ='Transporte EAI'!O27 -> 2474 | P27: ='Transporte EAI'!P27 -> 547 | Q27: 652.86 | R27: 108.41 | S27: 761.27 | T27: 167.1 | U27: 1044.42 | V27: 1972.79 | W27: ='Transporte EAI'!W27 -> 681.6 | X27: =EVEN(' CONSUMO DE MAT. B TOTAL'!$P$11*2/28)*W27/' CONSUMO DE MAT. B TOTAL'!$P$11 -> 59.01298701 | Y27: 2031.802987 | Z27: 5316.528505 | AA27: 7348.331492 | AH27: CENTRO-OESTE
B28: 7352.921492 | C28: 15 | E28: EMAM - EMULSÕES E TRANSPORTES LTDA. | F28: RODOVIA DOS IMIGRANTES, S/Nº KM 8,6 - - CEP:60035-351 | G28: Mato Grosso | H28: VARZEA GRANDE - MT | I28: =I27 -> Porto Grande -AP | J28: =VLOOKUP(G28,OFFSET('ANP ESTADO'!$A$1,MATCH($I$7,'ANP ESTADO'!B:B,0)+MATCH($H$10,OFFSET('ANP ESTADO'!$A$1,MATCH($I$7,'ANP ESTADO'!B:B,0),0,100000,1),0),2,100000,2),2,FALSE) -> 4.165498505 | K28: =VLOOKUP($H$10,OFFSET('ANP REGIÃO'!$A$9,MATCH('Transporte RR-1C'!$I$7,'ANP REGIÃO'!A:A,0),1,10000,10000),MATCH('Transporte RR-1C'!AH28,'ANP REGIÃO'!$B$8:$G$8,0),FALSE) -> 2.777249639 | L28: 4165.498505 | M28: 1151.03 | N28: 5316.528505 | O28: ='Transporte EAI'!O28 -> 2481 | P28: ='Transporte EAI'!P28 -> 547 | Q28: 654.63 | R28: 108.41 | S28: 763.04 | T28: 167.49 | U28: 1046.85 | V28: 1977.38 | W28: ='Transporte EAI'!W28 -> 681.6 | X28: =EVEN(' CONSUMO DE MAT. B TOTAL'!$P$11*2/28)*W28/' CONSUMO DE MAT. B TOTAL'!$P$11 -> 59.01298701 | Y28: 2036.392987 | Z28: 5316.528505 | AA28: 7352.921492 | AC28: 7352.921492 | AD28: 2036.392987 | AE28: 5316.528505 | AH28: CENTRO-OESTE
B29: 6066.606397 | C29: 16 | E29: VIAPOL LTDA. | F29: VITO ARDITO, 6401 KM 118,5 - JARDIM CAMPO GRANDE - CEP:12282-535 | G29: São Paulo | H29: CACAPAVA - SP | I29: Porto Grande -AP | J29: =VLOOKUP(G29,OFFSET('ANP ESTADO'!$A$1,MATCH($I$7,'ANP ESTADO'!B:B,0)+MATCH($H$10,OFFSET('ANP ESTADO'!$A$1,MATCH($I$7,'ANP ESTADO'!B:B,0),0,100000,1),0),2,100000,2),2,FALSE) -> 2.821088302 | K29: =VLOOKUP($H$10,OFFSET('ANP REGIÃO'!$A$9,MATCH('Transporte RR-1C'!$I$7,'ANP REGIÃO'!A:A,0),1,10000,10000),MATCH('Transporte RR-1C'!AH29,'ANP REGIÃO'!$B$8:$G$8,0),FALSE) -> 2.55680471 | L29: 2821.088302 | M29: 779.53 | N29: 3600.618302 | O29: ='Transporte EAI'!O29 -> 3023 | P29: ='Transporte EAI'!P29 -> 547 | Q29: 791.76 | R29: 108.41 | S29: 900.17 | T29: 197.59 | U29: 1234.99 | V29: 2332.75 | W29: ='Transporte EAI'!W29 -> 1538.9 | X29: =EVEN(' CONSUMO DE MAT. B TOTAL'!$P$11*2/28)*W29/' CONSUMO DE MAT. B TOTAL'!$P$11 -> 133.2380952 | Y29: 2465.988095 | Z29: 3600.618302 | AA29: 6066.606397 | AC29: 6066.606397 | AD29: 2465.988095 | AE29: 3600.618302 | AH29: SUDESTE
B30: 5832.655749 | C30: 17 | E30: STRATURA ASFALTOS S/A | F30: RUA LUIS DE CAMÕES, 26 - CAMPOS ELÍSEOS - CEP:25225-030 | G30: Rio de Janeiro | H30: DUQUE DE CAXIAS - RJ | I30: Porto Grande -AP | J30: =VLOOKUP(G30,OFFSET('ANP ESTADO'!$A$1,MATCH($I$7,'ANP ESTADO'!B:B,0)+MATCH($H$10,OFFSET('ANP ESTADO'!$A$1,MATCH($I$7,'ANP ESTADO'!B:B,0),0,100000,1),0),2,100000,2),2,FALSE) -> - | K30: =VLOOKUP($H$10,OFFSET('ANP REGIÃO'!$A$9,MATCH('Transporte RR-1C'!$I$7,'ANP REGIÃO'!A:A,0),1,10000,10000),MATCH('Transporte RR-1C'!AH30,'ANP REGIÃO'!$B$8:$G$8,0),FALSE) -> 2.55680471 | L30: 2556.80471 | M30: 706.51 | N30: 3263.31471 | O30: ='Transporte EAI'!O30 -> 3239 | P30: ='Transporte EAI'!P30 -> 547 | Q30: 846.41 | R30: 108.41 | S30: 954.82 | T30: 209.59 | U30: 1309.97 | V30: 2474.38 | W30: ='Transporte EAI'!W30 -> 1096.8 | X30: =EVEN(' CONSUMO DE MAT. B TOTAL'!$P$11*2/28)*W30/' CONSUMO DE MAT. B TOTAL'!$P$11 -> 94.96103896 | Y30: 2569.341039 | Z30: 3263.31471 | AA30: 5832.655749 | AC30: 5832.655749 | AD30: =Y30 -> 2569.341039 | AE30: 3263.31471 | AH30: SUDESTE
B31: 5841.835749 | C31: 18 | E31: PROBITEC - PRODUTOS BETUMINOSOS E TECNOLOGIA DE APLICAÇÃO LTDA. | F31: AVENIDA CANAL DA PAVUNA, 620 - PAVUNA - CEP:21535-630 | G31: Rio de Janeiro | H31: RIO DE JANEIRO - RJ | I31: Porto Grande -AP | J31: =VLOOKUP(G31,OFFSET('ANP ESTADO'!$A$1,MATCH($I$7,'ANP ESTADO'!B:B,0)+MATCH($H$10,OFFSET('ANP ESTADO'!$A$1,MATCH($I$7,'ANP ESTADO'!B:B,0),0,100000,1),0),2,100000,2),2,FALSE) -> - | K31: =VLOOKUP($H$10,OFFSET('ANP REGIÃO'!$A$9,MATCH('Transporte RR-1C'!$I$7,'ANP REGIÃO'!A:A,0),1,10000,10000),MATCH('Transporte RR-1C'!AH31,'ANP REGIÃO'!$B$8:$G$8,0),FALSE) -> 2.55680471 | L31: 2556.80471 | M31: 706.51 | N31: 3263.31471 | O31: ='Transporte EAI'!O31 -> 3253 | P31: ='Transporte EAI'!P31 -> 547 | Q31: 849.95 | R31: 108.41 | S31: 958.36 | T31: 210.37 | U31: 1314.83 | V31: 2483.56 | W31: ='Transporte EAI'!W31 -> 1096.8 | X31: =EVEN(' CONSUMO DE MAT. B TOTAL'!$P$11*2/28)*W31/' CONSUMO DE MAT. B TOTAL'!$P$11 -> 94.96103896 | Y31: 2578.521039 | Z31: 3263.31471 | AA31: 5841.835749 | AC31: 5841.835749 | AD31: 2578.521039 | AE31: 3263.31471 | AH31: SUDESTE
B32: 5579.747582 | C32: 19 | E32: CASA DO ASFALTO DISTRIBUIDORA, INDÚSTRIA E COMÉRCIO DE ASFALTO LTDA. | F32: BR 376, PARQUE INDUSTRIAL, S/N LOTE 6/7/7-A-3-1 - GL.PATR.MARIALVA - CEP:86990-000 | G32: Paraná | H32: MARIALVA - PR | I32: Porto Grande -AP | J32: =VLOOKUP(G32,OFFSET('ANP ESTADO'!$A$1,MATCH($I$7,'ANP ESTADO'!B:B,0)+MATCH($H$10,OFFSET('ANP ESTADO'!$A$1,MATCH($I$7,'ANP ESTADO'!B:B,0),0,100000,1),0),2,100000,2),2,FALSE) -> 2.466405894 | K32: =VLOOKUP($H$10,OFFSET('ANP REGIÃO'!$A$9,MATCH('Transporte RR-1C'!$I$7,'ANP REGIÃO'!A:A,0),1,10000,10000),MATCH('Transporte RR-1C'!AH32,'ANP REGIÃO'!$B$8:$G$8,0),FALSE) -> 2.468814007 | L32: 2466.405894 | M32: 681.53 | N32: 3147.935894 | O32: ='Transporte EAI'!O32 -> 3015 | P32: ='Transporte EAI'!P32 -> 547 | Q32: 789.73 | R32: 108.41 | S32: 898.14 | T32: 197.15 | U32: 1232.21 | V32: 2327.5 | W32: ='Transporte EAI'!W32 -> 1204.8 | X32: =EVEN(' CONSUMO DE MAT. B TOTAL'!$P$11*2/28)*W32/' CONSUMO DE MAT. B TOTAL'!$P$11 -> 104.3116883 | Y32: 2431.811688 | Z32: 3147.935894 | AA32: 5579.747582 | AC32: 5579.747582 | AD32: 2431.811688 | AE32: 3147.935894 | AH32: SUL
B33: 5686.352085 | C33: 20 | E33: PETROBRAS DISTRIBUIDORA S.A. | F33: RUA MAQUINISTA ELEODORO JACINTO, 100 - OFICINAS - CEP:84045-170 | G33: Paraná | H33: PONTA GROSSA - PR | I33: Porto Grande -AP | J33: =VLOOKUP(G33,OFFSET('ANP ESTADO'!$A$1,MATCH($I$7,'ANP ESTADO'!B:B,0)+MATCH($H$10,OFFSET('ANP ESTADO'!$A$1,MATCH($I$7,'ANP ESTADO'!B:B,0),0,100000,1),0),2,100000,2),2,FALSE) -> 2.466405894 | K33: =VLOOKUP($H$10,OFFSET('ANP REGIÃO'!$A$9,MATCH('Transporte RR-1C'!$I$7,'ANP REGIÃO'!A:A,0),1,10000,10000),MATCH('Transporte RR-1C'!AH33,'ANP REGIÃO'!$B$8:$G$8,0),FALSE) -> 2.468814007 | L33: 2466.405894 | M33: 681.53 | N33: 3147.935894 | O33: ='Transporte EAI'!O33 -> 3159 | P33: ='Transporte EAI'!P33 -> 547 | Q33: 826.17 | R33: 108.41 | S33: 934.58 | T33: 205.15 | U33: 1282.21 | V33: 2421.94 | W33: ='Transporte EAI'!W33 -> 1345.3 | X33: =EVEN(' CONSUMO DE MAT. B TOTAL'!$P$11*2/28)*W33/' CONSUMO DE MAT. B TOTAL'!$P$11 -> 116.4761905 | Y33: 2538.41619 | Z33: 3147.935894 | AA33: 5686.352085 | AC33: 5686.352085 | AD33: 2538.41619 | AE33: 3147.935894 | AH33: SUL
D43: Acre
D44: Alagoas
D45: Amapá
D46: Amazonas
D47: Bahia
D48: Ceará
D49: Distrito Federal
D50: Espírito Santo
D51: Goiás
D52: Maranhão
D53: Mato Grosso
D54: Mato Grosso do Sul
D55: Minas Gerais
D56: Pará
D57: Paraíba
D58: Paraná
D59: Pernambuco
D60: Piauí
D61: Rio de Janeiro
D62: Rio Grande do Norte
D63: Rio Grande do Sul
D64: Rondônia
D65: Roraima
D66: Santa Catarina
D67: São Paulo
D68: Sergipe
D69: Tocantins
D73: ASFALTOS DILUÍDOS CM-30
D74: ASFALTOS DILUÍDOS CM-70
D75: ASFALTOS DILUÍDOS CR-250
D76: ASFALTOS DILUÍDOS CR-70
D77: CAP MODIFICADO POR BORRACHA DE PNEU AB22
D78: CAP MODIFICADO POR BORRACHA DE PNEU AB8
D79: CAP MODIFICADO POR POLÍMERO 55-75-E
D80: CAP MODIFICADO POR POLÍMERO 60-85-E
D81: CAP MODIFICADO POR POLÍMERO 65-90-E
D82: CIMENTOS ASFÁLTICOS CAP-150-200
D83: CIMENTOS ASFÁLTICOS CAP-30-45
D84: CIMENTOS ASFÁLTICOS CAP-50-70
D85: CIMENTOS ASFÁLTICOS CAP-85-100
D86: EMULSÃO ASFÁLTICA CATIÔNICA DE RUPTURA CONTROLADA PARA SERVIÇO DE LAMA ASFÁLTICA
D87: EMULSÃO ASFÁLTICA DE RUPTURA LENTA CATIÔNICA PARA SERVIÇO DE LAMA ASFÁLTICA
D88: EMULSÃO ASFÁLTICA DE RUPTURA LENTA DE CARGA NEUTRA PARA SERVIÇO DE LAMA ASFÁLTICA
D89: EMULSÃO ASFÁLTICA PARA SERVIÇO DE IMPRIMAÇÃO
D90: EMULSÕES ASF. MOD. POR POLÍMEROS RC1C-E
D91: EMULSÕES ASF. MOD. POR POLÍMEROS RL1C-E
D92: EMULSÕES ASF. MOD. POR POLÍMEROS RM1C-E
D93: EMULSÕES ASF. MOD. POR POLÍMEROS RR1C-E
D94: EMULSÕES ASF. MOD. POR POLÍMEROS RR2C-E
D95: EMULSÕES ASFÁLTICAS RL-1C
D96: EMULSÕES ASFÁLTICAS RM-1C
D97: EMULSÕES ASFÁLTICAS RM-2C
D98: EMULSÕES ASFÁLTICAS RR-1C
D99: EMULSÕES ASFÁLTICAS RR-2C

Sheet RESUMO_Transp
B11: ÍNDICE DE PAVIMENTAÇÃO DNIT | E11: TIPOLOGIA DO MATERIAL | G11: LIGANTE BETUMINOSO | K11: IMPOSTOS | L11: COFINS | M11: ='Transporte Cap 50-70'!O7 -> 0.0065 | N11: ='Transporte Cap 50-70'!P7 -> 0.0065
C12: DATA INICIAL | F12: 2014-07-01 | G12: ÍNDICE INICIAL | H12: ='Transporte Cap 50-70'!J8 -> 270.237 | L12: PIS | M12: ='Transporte Cap 50-70'!O8 -> 0.03 | N12: ='Transporte Cap 50-70'!P8 -> 0.03 | P12: LEGENDA
C13: DATA FINAL | F13: ='Transporte Cap 50-70'!H10 -> 2024-07-01 | G13: ÍNDICE FINAL | H13: ='Transporte Cap 50-70'!J9 -> 574.257 | L13: ICMS | M13: ='Transporte Cap 50-70'!O9 -> 0.18 | N13: ='Transporte Cap 50-70'!P9 -> 0.18 | P13: ENTRADA DE DADOS
B15: DATA-BASE | C15: PRODUTOS | D15: LOCALIDADES | H15: CUSTO ANP (R$/Kg) | J15: CUSTO ANP | K15: IMPOSTOS DO PRODUTO | L15: CUSTO DO PRODUTO COM IMPOSTOS | M15: DMT's | N15: DMT's | O15: CUSTO DO TRANSPORTE TOTAL | P15: ICMS | Q15: ATUALIZAÇÃO DO CUSTO DE TRANSPORTE | R15: CUSTO DO TRANSPORTE RODOVIA PAVIMENTADA COM IMPOSTOS E ATUALIZAÇÃO MONETÁRIA | S15: PEDÁGIO | U15: TOTAL TRANSPORTE | V15: TOTAL PRODUTO | W15: TOTAL GERAL
B16: =F13 -> 2024-07-01 | D16: REFINARIAS | E16: ENDEREÇO | F16: ORIGEM REFINARIAS / DISTRIBUIDORAS | G16: DESTINO | H16: ESTADO | I16: REGIÃO | J16: R$/t | K16: R$/t | L16: R$/t | M16: KM | N16: KM | O16: R$/t | P16: R$/t | Q16: R$/t | R16: R$/t | S16: CUSTO POR EIXO | T16: R$/t | U16: R$/t | V16: R$/t | W16: R$/t
B17: 1 | C17: CAP 50/70 | D17: Refinaria Abreu e Lima | E17: Rodovia PE 60, Km 10 - Ipojuca - PE CEP:55590-000 | F17: =VLOOKUP($W17,'Transporte Cap 50-70'!$B:$AA,7,FALSE) -> FORTALEZA - CE | G17: =VLOOKUP($W17,'Transporte Cap 50-70'!$B:$AA,8,FALSE) -> Porto Grande -AP | H17: =VLOOKUP($W17,'Transporte Cap 50-70'!$B:$AA,9,FALSE) -> 3.601011062 | I17: =VLOOKUP($W17,'Transporte Cap 50-70'!$B:$AA,10,FALSE) -> 3.823804987 | J17: =VLOOKUP($W17,'Transporte Cap 50-70'!$B:$AA,11,FALSE) -> 3601.011062 | K17: =VLOOKUP($W17,'Transporte Cap 50-70'!$B:$AA,12,FALSE) -> 995.05 | L17: =VLOOKUP($W17,'Transporte Cap 50-70'!$B:$AA,13,FALSE) -> 4596.061062 | M17: =VLOOKUP($W17,'Transporte Cap 50-70'!$B:$AA,14,FALSE) -> 1586 | N17: =VLOOKUP($W17,'Transporte Cap 50-70'!$B:$AA,15,FALSE) -> 547 | O17: =VLOOKUP($W17,'Transporte Cap 50-70'!$B:$AA,18,FALSE) -> 540.27 | P17: =VLOOKUP($W17,'Transporte Cap 50-70'!$B:$AA,19,FALSE) -> 118.59 | Q17: =VLOOKUP($W17,'Transporte Cap 50-70'!$B:$AA,20,FALSE) -> 741.22 | R17: =VLOOKUP($W17,'Transporte Cap 50-70'!$B:$AA,21,FALSE) -> 1400.08 | S17: =VLOOKUP($W17,'Transporte Cap 50-70'!$B:$AA,22,FALSE) -> 0 | T17: =VLOOKUP($W17,'Transporte Cap 50-70'!$B:$AA,23,FALSE) -> 0 | U17: =VLOOKUP($W17,'Transporte Cap 50-70'!$B:$AA,24,FALSE) -> 1400.08 | V17: =VLOOKUP($W17,'Transporte Cap 50-70'!$B:$AA,25,FALSE) -> 4596.061062 | W17: =SMALL('Transporte Cap 50-70'!$AA$13:$AA$26,1) -> 5996.141062
B18: 2 | D18: Refinaria Potiguar Clara Camarão | E18: Rodovia RN 221, KM 25 - Guamaré - RN CEP:59598-000 | F18: =VLOOKUP($W18,'Transporte Cap 50-70'!$B:$AA,7,FALSE) -> BETIM - MG | G18: =VLOOKUP($W18,'Transporte Cap 50-70'!$B:$AA,8,FALSE) -> Porto Grande -AP | H18: =VLOOKUP($W18,'Transporte Cap 50-70'!$B:$AA,9,FALSE) -> 3.307833193 | I18: =VLOOKUP($W18,'Transporte Cap 50-70'!$B:$AA,10,FALSE) -> 3.343745889 | J18: =VLOOKUP($W18,'Transporte Cap 50-70'!$B:$AA,11,FALSE) -> 3307.833193 | K18: =VLOOKUP($W18,'Transporte Cap 50-70'!$B:$AA,12,FALSE) -> 914.03 | L18: =VLOOKUP($W18,'Transporte Cap 50-70'!$B:$AA,13,FALSE) -> 4221.863193 | M18: =VLOOKUP($W18,'Transporte Cap 50-70'!$B:$AA,14,FALSE) -> 2831 | N18: =VLOOKUP($W18,'Transporte Cap 50-70'!$B:$AA,15,FALSE) -> 547 | O18: =VLOOKUP($W18,'Transporte Cap 50-70'!$B:$AA,18,FALSE) -> 855.25 | P18: =VLOOKUP($W18,'Transporte Cap 50-70'!$B:$AA,19,FALSE) -> 187.73 | Q18: =VLOOKUP($W18,'Transporte Cap 50-70'!$B:$AA,20,FALSE) -> 1173.36 | R18: =VLOOKUP($W18,'Transporte Cap 50-70'!$B:$AA,21,FALSE) -> 2216.34 | S18: =VLOOKUP($W18,'Transporte Cap 50-70'!$B:$AA,22,FALSE) -> 722.4 | T18: =VLOOKUP($W18,'Transporte Cap 50-70'!$B:$AA,23,FALSE) -> 51.93163827 | U18: =VLOOKUP($W18,'Transporte Cap 50-70'!$B:$AA,24,FALSE) -> 2268.271638 | V18: =VLOOKUP($W18,'Transporte Cap 50-70'!$B:$AA,25,FALSE) -> 4221.863193 | W18: =SMALL('Transporte Cap 50-70'!$AA$13:$AA$26,2) -> 6490.134831
B19: 3 | D19: Complexo Petroquímico do Rio de Janeiro (Comperj) | E19: Rodovia Estadual RJ-116 - Km 5,2 - Acesso A-1, s/n, Complemento Sambaetiba - Zona Urbana do 4º Distrito de Itaboraí - RJ CEP:24841-203 | F19: =VLOOKUP($W19,'Transporte Cap 50-70'!$B:$AA,7,FALSE) -> GUAMARÉ - RN | G19: =VLOOKUP($W19,'Transporte Cap 50-70'!$B:$AA,8,FALSE) -> Porto Grande -AP | H19: =VLOOKUP($W19,'Transporte Cap 50-70'!$B:$AA,9,FALSE) -> - | I19: =VLOOKUP($W19,'Transporte Cap 50-70'!$B:$AA,10,FALSE) -> 3.823804987 | J19: =VLOOKUP($W19,'Transporte Cap 50-70'!$B:$AA,11,FALSE) -> 3823.804987 | K19: =VLOOKUP($W19,'Transporte Cap 50-70'!$B:$AA,12,FALSE) -> 1056.61 | L19: =VLOOKUP($W19,'Transporte Cap 50-70'!$B:$AA,13,FALSE) -> 4880.414987 | M19: =VLOOKUP($W19,'Transporte Cap 50-70'!$B:$AA,14,FALSE) -> 1912 | N19: =VLOOKUP($W19,'Transporte Cap 50-70'!$B:$AA,15,FALSE) -> 547 | O19: =VLOOKUP($W19,'Transporte Cap 50-70'!$B:$AA,18,FALSE) -> 622.75 | P19: =VLOOKUP($W19,'Transporte Cap 50-70'!$B:$AA,19,FALSE) -> 136.7 | Q19: =VLOOKUP($W19,'Transporte Cap 50-70'!$B:$AA,20,FALSE) -> 854.39 | R19: =VLOOKUP($W19,'Transporte Cap 50-70'!$B:$AA,21,FALSE) -> 1613.84 | S19: =VLOOKUP($W19,'Transporte Cap 50-70'!$B:$AA,22,FALSE) -> 0 | T19: =VLOOKUP($W19,'Transporte Cap 50-70'!$B:$AA,23,FALSE) -> 0 | U19: =VLOOKUP($W19,'Transporte Cap 50-70'!$B:$AA,24,FALSE) -> 1613.84 | V19: =VLOOKUP($W19,'Transporte Cap 50-70'!$B:$AA,25,FALSE) -> 4880.414987 | W19: =SMALL('Transporte Cap 50-70'!$AA$13:$AA$26,3) -> 6494.254987
B20: 4 | F20: =VLOOKUP($W20,'Transporte Cap 50-70'!$B:$AA,7,FALSE) -> PAULÍNIA - SP | G20: =VLOOKUP($W20,'Transporte Cap 50-70'!$B:$AA,8,FALSE) -> Porto Grande -AP | H20: =VLOOKUP($W20,'Transporte Cap 50-70'!$B:$AA,9,FALSE) -> 3.341281628 | I20: =VLOOKUP($W20,'Transporte Cap 50-70'!$B:$AA,10,FALSE) -> 3.343745889 | J20: =VLOOKUP($W20,'Transporte Cap 50-70'!$B:$AA,11,FALSE) -> 3341.281628 | K20: =VLOOKUP($W20,'Transporte Cap 50-70'!$B:$AA,12,FALSE) -> 923.28 | L20: =VLOOKUP($W20,'Transporte Cap 50-70'!$B:$AA,13,FALSE) -> 4264.561628 | M20: =VLOOKUP($W20,'Transporte Cap 50-70'!$B:$AA,14,FALSE) -> 2834 | N20: =VLOOKUP($W20,'Transporte Cap 50-70'!$B:$AA,15,FALSE) -> 547 | O20: =VLOOKUP($W20,'Transporte Cap 50-70'!$B:$AA,18,FALSE) -> 856.01 | P20: =VLOOKUP($W20,'Transporte Cap 50-70'!$B:$AA,19,FALSE) -> 187.9 | Q20: =VLOOKUP($W20,'Transporte Cap 50-70'!$B:$AA,20,FALSE) -> 1174.41 | R20: =VLOOKUP($W20,'Transporte Cap 50-70'!$B:$AA,21,FALSE) -> 2218.32 | S20: =VLOOKUP($W20,'Transporte Cap 50-70'!$B:$AA,22,FALSE) -> 1286.3 | T20: =VLOOKUP($W20,'Transporte Cap 50-70'!$B:$AA,23,FALSE) -> 92.46908403 | U20: =VLOOKUP($W20,'Transporte Cap 50-70'!$B:$AA,24,FALSE) -> 2310.789084 | V20: =VLOOKUP($W20,'Transporte Cap 50-70'!$B:$AA,25,FALSE) -> 4264.561628 | W20: =SMALL('Transporte Cap 50-70'!$AA$13:$AA$26,4) -> 6575.350712
B21: 5 | F21: =VLOOKUP($W21,'Transporte Cap 50-70'!$B:$AA,7,FALSE) -> IPOJUCA - PE | G21: =VLOOKUP($W21,'Transporte Cap 50-70'!$B:$AA,8,FALSE) -> Porto Grande -AP | H21: =VLOOKUP($W21,'Transporte Cap 50-70'!$B:$AA,9,FALSE) -> - | I21: =VLOOKUP($W21,'Transporte Cap 50-70'!$B:$AA,10,FALSE) -> 3.823804987 | J21: =VLOOKUP($W21,'Transporte Cap 50-70'!$B:$AA,11,FALSE) -> 3823.804987 | K21: =VLOOKUP($W21,'Transporte Cap 50-70'!$B:$AA,12,FALSE) -> 1056.61 | L21: =VLOOKUP($W21,'Transporte Cap 50-70'!$B:$AA,13,FALSE) -> 4880.414987 | M21: =VLOOKUP($W21,'Transporte Cap 50-70'!$B:$AA,14,FALSE) -> 2118 | N21: =VLOOKUP($W21,'Transporte Cap 50-70'!$B:$AA,15,FALSE) -> 547 | O21: =VLOOKUP($W21,'Transporte Cap 50-70'!$B:$AA,18,FALSE) -> 674.86 | P21: =VLOOKUP($W21,'Transporte Cap 50-70'!$B:$AA,19,FALSE) -> 148.14 | Q21: =VLOOKUP($W21,'Transporte Cap 50-70'!$B:$AA,20,FALSE) -> 925.88 | R21: =VLOOKUP($W21,'Transporte Cap 50-70'!$B:$AA,21,FALSE) -> 1748.88 | S21: =VLOOKUP($W21,'Transporte Cap 50-70'!$B:$AA,22,FALSE) -> 0 | T21: =VLOOKUP($W21,'Transporte Cap 50-70'!$B:$AA,23,FALSE) -> 0 | U21: =VLOOKUP($W21,'Transporte Cap 50-70'!$B:$AA,24,FALSE) -> 1748.88 | V21: =VLOOKUP($W21,'Transporte Cap 50-70'!$B:$AA,25,FALSE) -> 4880.414987 | W21: =SMALL('Transporte Cap 50-70'!$AA$13:$AA$26,5) -> 6629.294987
B22: 6 | F22: =VLOOKUP($W22,'Transporte Cap 50-70'!$B:$AA,7,FALSE) -> DUQUE DE CAXIAS - RJ | G22: =VLOOKUP($W22,'Transporte Cap 50-70'!$B:$AA,8,FALSE) -> Porto Grande -AP | H22: =VLOOKUP($W22,'Transporte Cap 50-70'!$B:$AA,9,FALSE) -> 3.225667238 | I22: =VLOOKUP($W22,'Transporte Cap 50-70'!$B:$AA,10,FALSE) -> 3.343745889 | J22: =VLOOKUP($W22,'Transporte Cap 50-70'!$B:$AA,11,FALSE) -> 3225.667238 | K22: =VLOOKUP($W22,'Transporte Cap 50-70'!$B:$AA,12,FALSE) -> 891.33 | L22: =VLOOKUP($W22,'Transporte Cap 50-70'!$B:$AA,13,FALSE) -> 4116.997238 | M22: =VLOOKUP($W22,'Transporte Cap 50-70'!$B:$AA,14,FALSE) -> 3239 | N22: =VLOOKUP($W22,'Transporte Cap 50-70'!$B:$AA,15,FALSE) -> 547 | O22: =VLOOKUP($W22,'Transporte Cap 50-70'!$B:$AA,18,FALSE) -> 958.48 | P22: =VLOOKUP($W22,'Transporte Cap 50-70'!$B:$AA,19,FALSE) -> 210.39 | Q22: =VLOOKUP($W22,'Transporte Cap 50-70'!$B:$AA,20,FALSE) -> 1314.99 | R22: =VLOOKUP($W22,'Transporte Cap 50-70'!$B:$AA,21,FALSE) -> 2483.86 | S22: =VLOOKUP($W22,'Transporte Cap 50-70'!$B:$AA,22,FALSE) -> 1096.8 | T22: =VLOOKUP($W22,'Transporte Cap 50-70'!$B:$AA,23,FALSE) -> 78.84637438 | U22: =VLOOKUP($W22,'Transporte Cap 50-70'!$B:$AA,24,FALSE) -> 2562.706374 | V22: =VLOOKUP($W22,'Transporte Cap 50-70'!$B:$AA,25,FALSE) -> 4116.997238 | W22: =SMALL('Transporte Cap 50-70'!$AA$13:$AA$26,6) -> 6679.703612
O23: =VLOOKUP($W23,#REF!,18,FALSE) ->  | R23: =VLOOKUP($W23,#REF!,21,FALSE) -> 
O24: =VLOOKUP($W24,#REF!,18,FALSE) ->  | R24: =VLOOKUP($W24,#REF!,21,FALSE) -> 
O25: =VLOOKUP($W25,#REF!,18,FALSE) ->  | R25: =VLOOKUP($W25,#REF!,21,FALSE) -> 
O26: =VLOOKUP($W26,#REF!,18,FALSE) ->  | R26: =VLOOKUP($W26,#REF!,21,FALSE) -> 
O27: =VLOOKUP($W27,#REF!,18,FALSE) ->  | R27: =VLOOKUP($W27,#REF!,21,FALSE) -> 
B28: 1 | C28: CAP MODIF. C/ POLÍMERO 60/85 | D28: Refinaria Abreu e Lima | E28: Rodovia PE 60, Km 10 - Ipojuca - PE CEP:55590-000 | F28: Transporte EAI'! | G28: Palmas - TO | H28: 2.261894948 | I28: 2.353413905 | J28: 2261.894948 | K28: 393.19 | L28: 2655.084948 | M28: 1181 | N28: 1181 | O28: =VLOOKUP($W28,#REF!,18,FALSE) ->  | P28: 44.41 | Q28: 202.55 | R28: =VLOOKUP($W28,#REF!,21,FALSE) ->  | S28: 102 | T28: 102 | U28: 674.69 | V28: 2655.084948 | W28: 3329.774948
B29: 2 | D29: Refinaria Potiguar Clara Camarão | E29: Rodovia RN 221, KM 25 - Guamaré - RN CEP:59598-000 | F29: UBERLANDIA - MG | G29: Palmas - TO | H29: 2.261894948 | I29: 2.353413905 | J29: 2261.894948 | K29: 393.19 | L29: 2655.084948 | M29: 1182 | N29: 1182 | O29: =VLOOKUP($W29,#REF!,18,FALSE) ->  | P29: 44.45 | Q29: 202.71 | R29: =VLOOKUP($W29,#REF!,21,FALSE) ->  | S29: 102 | T29: 102 | U29: 675.14 | V29: 2655.084948 | W29: 3330.224948
B30: 3 | D30: Complexo Petroquímico do Rio de Janeiro (Comperj) | E30: Rodovia Estadual RJ-116 - Km 5,2 - Acesso A-1, s/n, Complemento Sambaetiba - Zona Urbana do 4º Distrito de Itaboraí - RJ CEP:24841-203 | F30: GOIANIRA - GO | G30: Palmas - TO | I30: 2.555206955 | J30: 2555.206955 | K30: 444.18 | L30: 2999.386955 | M30: 814 | N30: 814 | O30: =VLOOKUP($W30,#REF!,18,FALSE) ->  | P30: 31.75 | Q30: 144.81 | R30: =VLOOKUP($W30,#REF!,21,FALSE) ->  | S30: 0 | T30: 0 | U30: 409.44 | V30: 2999.386955 | W30: 3408.826955
B31: 4 | F31: BRASÍLIA - DF | G31: Palmas - TO | I31: 2.555206955 | J31: 2555.206955 | K31: 444.18 | L31: 2999.386955 | M31: 822 | N31: 822 | O31: =VLOOKUP($W31,#REF!,18,FALSE) ->  | P31: 32.03 | Q31: 146.07 | R31: =VLOOKUP($W31,#REF!,21,FALSE) ->  | S31: 0 | T31: 0 | U31: 413 | V31: 2999.386955 | W31: 3412.386955
B32: 5 | F32: APARECIDA DE GOIANIA - GO | G32: Palmas - TO | I32: 2.555206955 | J32: 2555.206955 | K32: 444.18 | L32: 2999.386955 | M32: 842 | N32: 842 | O32: =VLOOKUP($W32,#REF!,18,FALSE) ->  | P32: 32.72 | Q32: 149.22 | R32: =VLOOKUP($W32,#REF!,21,FALSE) ->  | S32: 0 | T32: 0 | U32: 421.9 | V32: 2999.386955 | W32: 3421.286955
B33: 6 | F33: ANÁPOLIS - GO | G33: Palmas - TO | I33: 2.555206955 | J33: 2555.206955 | K33: 444.18 | L33: 2999.386955 | M33: 950 | N33: 950 | O33: =VLOOKUP($W33,#REF!,18,FALSE) ->  | P33: 36.44 | Q33: 166.21 | R33: =VLOOKUP($W33,#REF!,21,FALSE) ->  | S33: 0 | T33: 0 | U33: 469.93 | V33: 2999.386955 | W33: 3469.316955
B35: 1 | C35: EAI | D35: Refinaria Abreu e Lima | E35: Rodovia PE 60, Km 10 - Ipojuca - PE CEP:55590-000 | F35: =VLOOKUP($W35,'Transporte EAI'!$B$13:$AA$33,7,FALSE) -> UBERLANDIA - MG | G35: =VLOOKUP($W35,'Transporte EAI'!$B$13:$AA$33,8,FALSE) -> Porto Grande -AP | H35: =VLOOKUP($W35,'Transporte EAI'!$B$13:$AA$33,9,FALSE) -> 2.153413519 | I35: =VLOOKUP($W35,'Transporte EAI'!$B$13:$AA$33,10,FALSE) -> 2.248773515 | J35: =VLOOKUP($W35,'Transporte EAI'!$B$13:$AA$33,11,FALSE) -> 2153.413519 | K35: =VLOOKUP($W35,'Transporte EAI'!$B$13:$AA$33,12,FALSE) -> 595.04 | L35: =VLOOKUP($W35,'Transporte EAI'!$B$13:$AA$33,13,FALSE) -> 2748.453519 | M35: =VLOOKUP($W35,'Transporte EAI'!$B$13:$AA$33,14,FALSE) -> 2379 | N35: =VLOOKUP($W35,'Transporte EAI'!$B$13:$AA$33,15,FALSE) -> 547 | O35: =VLOOKUP($W35,'Transporte EAI'!$B$13:$AA$33,18,FALSE) -> 737.24 | P35: =VLOOKUP($W35,'Transporte EAI'!$B$13:$AA$33,19,FALSE) -> 161.83 | Q35: =VLOOKUP($W35,'Transporte EAI'!$B$13:$AA$33,20,FALSE) -> 1011.46 | R35: =VLOOKUP($W35,'Transporte EAI'!$B$13:$AA$33,21,FALSE) -> 1910.53 | S35: =VLOOKUP($W35,'Transporte EAI'!$B$13:$AA$33,22,FALSE) -> 706.8 | T35: =VLOOKUP($W35,'Transporte EAI'!$B$13:$AA$33,23,FALSE) -> 56.48751249 | U35: =VLOOKUP($W35,'Transporte EAI'!$B$13:$AA$33,24,FALSE) -> 1967.017512 | V35: =VLOOKUP($W35,'Transporte EAI'!$B$13:$AA$33,25,FALSE) -> 2748.453519 | W35: =SMALL('Transporte EAI'!$AA$13:$AA$33,1) -> 4715.471032
B36: 2 | D36: Refinaria Potiguar Clara Camarão | E36: Rodovia RN 221, KM 25 - Guamaré - RN CEP:59598-000 | F36: =VLOOKUP($W36,'Transporte EAI'!$B$13:$AA$33,7,FALSE) -> UBERLANDIA - MG | G36: =VLOOKUP($W36,'Transporte EAI'!$B$13:$AA$33,8,FALSE) -> Porto Grande -AP | H36: =VLOOKUP($W36,'Transporte EAI'!$B$13:$AA$33,9,FALSE) -> 2.153413519 | I36: =VLOOKUP($W36,'Transporte EAI'!$B$13:$AA$33,10,FALSE) -> 2.248773515 | J36: =VLOOKUP($W36,'Transporte EAI'!$B$13:$AA$33,11,FALSE) -> 2153.413519 | K36: =VLOOKUP($W36,'Transporte EAI'!$B$13:$AA$33,12,FALSE) -> 595.04 | L36: =VLOOKUP($W36,'Transporte EAI'!$B$13:$AA$33,13,FALSE) -> 2748.453519 | M36: =VLOOKUP($W36,'Transporte EAI'!$B$13:$AA$33,14,FALSE) -> 2380 | N36: =VLOOKUP($W36,'Transporte EAI'!$B$13:$AA$33,15,FALSE) -> 547 | O36: =VLOOKUP($W36,'Transporte EAI'!$B$13:$AA$33,18,FALSE) -> 737.49 | P36: =VLOOKUP($W36,'Transporte EAI'!$B$13:$AA$33,19,FALSE) -> 161.88 | Q36: =VLOOKUP($W36,'Transporte EAI'!$B$13:$AA$33,20,FALSE) -> 1011.8 | R36: =VLOOKUP($W36,'Transporte EAI'!$B$13:$AA$33,21,FALSE) -> 1911.17 | S36: =VLOOKUP($W36,'Transporte EAI'!$B$13:$AA$33,22,FALSE) -> 706.8 | T36: =VLOOKUP($W36,'Transporte EAI'!$B$13:$AA$33,23,FALSE) -> 56.48751249 | U36: =VLOOKUP($W36,'Transporte EAI'!$B$13:$AA$33,24,FALSE) -> 1967.657512 | V36: =VLOOKUP($W36,'Transporte EAI'!$B$13:$AA$33,25,FALSE) -> 2748.453519 | W36: =SMALL('Transporte EAI'!$AA$13:$AA$33,2) -> 4716.111032
B37: 3 | D37: Complexo Petroquímico do Rio de Janeiro (Comperj) | E37: Rodovia Estadual RJ-116 - Km 5,2 - Acesso A-1, s/n, Complemento Sambaetiba - Zona Urbana do 4º Distrito de Itaboraí - RJ CEP:24841-203 | F37: =VLOOKUP($W37,'Transporte EAI'!$B$13:$AA$33,7,FALSE) -> ANÁPOLIS - GO | G37: =VLOOKUP($W37,'Transporte EAI'!$B$13:$AA$33,8,FALSE) -> Porto Grande -AP | H37: =VLOOKUP($W37,'Transporte EAI'!$B$13:$AA$33,9,FALSE) -> 2.412151773 | I37: =VLOOKUP($W37,'Transporte EAI'!$B$13:$AA$33,10,FALSE) -> 2.730876265 | J37: =VLOOKUP($W37,'Transporte EAI'!$B$13:$AA$33,11,FALSE) -> 2412.151773 | K37: =VLOOKUP($W37,'Transporte EAI'!$B$13:$AA$33,12,FALSE) -> 666.54 | L37: =VLOOKUP($W37,'Transporte EAI'!$B$13:$AA$33,13,FALSE) -> 3078.691773 | M37: =VLOOKUP($W37,'Transporte EAI'!$B$13:$AA$33,14,FALSE) -> 2012 | N37: =VLOOKUP($W37,'Transporte EAI'!$B$13:$AA$33,15,FALSE) -> 547 | O37: =VLOOKUP($W37,'Transporte EAI'!$B$13:$AA$33,18,FALSE) -> 644.39 | P37: =VLOOKUP($W37,'Transporte EAI'!$B$13:$AA$33,19,FALSE) -> 141.45 | Q37: =VLOOKUP($W37,'Transporte EAI'!$B$13:$AA$33,20,FALSE) -> 884.07 | R37: =VLOOKUP($W37,'Transporte EAI'!$B$13:$AA$33,21,FALSE) -> 1669.91 | S37: =VLOOKUP($W37,'Transporte EAI'!$B$13:$AA$33,22,FALSE) -> 508.8 | T37: =VLOOKUP($W37,'Transporte EAI'!$B$13:$AA$33,23,FALSE) -> 40.66333666 | U37: =VLOOKUP($W37,'Transporte EAI'!$B$13:$AA$33,24,FALSE) -> 1710.573337 | V37: =VLOOKUP($W37,'Transporte EAI'!$B$13:$AA$33,25,FALSE) -> 3078.691773 | W37: =SMALL('Transporte EAI'!$AA$13:$AA$33,3) -> 4789.265109
B38: 4 | F38: =VLOOKUP($W38,'Transporte EAI'!$B$13:$AA$33,7,FALSE) -> GOIANIRA - GO | G38: =VLOOKUP($W38,'Transporte EAI'!$B$13:$AA$33,8,FALSE) -> Porto Grande -AP | H38: =VLOOKUP($W38,'Transporte EAI'!$B$13:$AA$33,9,FALSE) -> 2.412151773 | I38: =VLOOKUP($W38,'Transporte EAI'!$B$13:$AA$33,10,FALSE) -> 2.730876265 | J38: =VLOOKUP($W38,'Transporte EAI'!$B$13:$AA$33,11,FALSE) -> 2412.151773 | K38: =VLOOKUP($W38,'Transporte EAI'!$B$13:$AA$33,12,FALSE) -> 666.54 | L38: =VLOOKUP($W38,'Transporte EAI'!$B$13:$AA$33,13,FALSE) -> 3078.691773 | M38: =VLOOKUP($W38,'Transporte EAI'!$B$13:$AA$33,14,FALSE) -> 2034 | N38: =VLOOKUP($W38,'Transporte EAI'!$B$13:$AA$33,15,FALSE) -> 547 | O38: =VLOOKUP($W38,'Transporte EAI'!$B$13:$AA$33,18,FALSE) -> 649.95 | P38: =VLOOKUP($W38,'Transporte EAI'!$B$13:$AA$33,19,FALSE) -> 142.67 | Q38: =VLOOKUP($W38,'Transporte EAI'!$B$13:$AA$33,20,FALSE) -> 891.7 | R38: =VLOOKUP($W38,'Transporte EAI'!$B$13:$AA$33,21,FALSE) -> 1684.32 | S38: =VLOOKUP($W38,'Transporte EAI'!$B$13:$AA$33,22,FALSE) -> 508.8 | T38: =VLOOKUP($W38,'Transporte EAI'!$B$13:$AA$33,23,FALSE) -> 40.66333666 | U38: =VLOOKUP($W38,'Transporte EAI'!$B$13:$AA$33,24,FALSE) -> 1724.983337 | V38: =VLOOKUP($W38,'Transporte EAI'!$B$13:$AA$33,25,FALSE) -> 3078.691773 | W38: =SMALL('Transporte EAI'!$AA$13:$AA$33,4) -> 4803.675109
B39: 5 | F39: =VLOOKUP($W39,'Transporte EAI'!$B$13:$AA$33,7,FALSE) -> APARECIDA DE GOIANIA - GO | G39: =VLOOKUP($W39,'Transporte EAI'!$B$13:$AA$33,8,FALSE) -> Porto Grande -AP | H39: =VLOOKUP($W39,'Transporte EAI'!$B$13:$AA$33,9,FALSE) -> 2.412151773 | I39: =VLOOKUP($W39,'Transporte EAI'!$B$13:$AA$33,10,FALSE) -> 2.730876265 | J39: =VLOOKUP($W39,'Transporte EAI'!$B$13:$AA$33,11,FALSE) -> 2412.151773 | K39: =VLOOKUP($W39,'Transporte EAI'!$B$13:$AA$33,12,FALSE) -> 666.54 | L39: =VLOOKUP($W39,'Transporte EAI'!$B$13:$AA$33,13,FALSE) -> 3078.691773 | M39: =VLOOKUP($W39,'Transporte EAI'!$B$13:$AA$33,14,FALSE) -> 2063 | N39: =VLOOKUP($W39,'Transporte EAI'!$B$13:$AA$33,15,FALSE) -> 547 | O39: =VLOOKUP($W39,'Transporte EAI'!$B$13:$AA$33,18,FALSE) -> 657.29 | P39: =VLOOKUP($W39,'Transporte EAI'!$B$13:$AA$33,19,FALSE) -> 144.28 | Q39: =VLOOKUP($W39,'Transporte EAI'!$B$13:$AA$33,20,FALSE) -> 901.77 | R39: =VLOOKUP($W39,'Transporte EAI'!$B$13:$AA$33,21,FALSE) -> 1703.34 | S39: =VLOOKUP($W39,'Transporte EAI'!$B$13:$AA$33,22,FALSE) -> 508.8 | T39: =VLOOKUP($W39,'Transporte EAI'!$B$13:$AA$33,23,FALSE) -> 40.66333666 | U39: =VLOOKUP($W39,'Transporte EAI'!$B$13:$AA$33,24,FALSE) -> 1744.003337 | V39: =VLOOKUP($W39,'Transporte EAI'!$B$13:$AA$33,25,FALSE) -> 3078.691773 | W39: =SMALL('Transporte EAI'!$AA$13:$AA$33,5) -> 4822.695109
B40: 6 | F40: =VLOOKUP($W40,'Transporte EAI'!$B$13:$AA$33,7,FALSE) -> PALMAS - TO | G40: =VLOOKUP($W40,'Transporte EAI'!$B$13:$AA$33,8,FALSE) -> Porto Grande -AP | H40: =VLOOKUP($W40,'Transporte EAI'!$B$13:$AA$33,9,FALSE) -> - | I40: =VLOOKUP($W40,'Transporte EAI'!$B$13:$AA$33,10,FALSE) -> 2.846784463 | J40: =VLOOKUP($W40,'Transporte EAI'!$B$13:$AA$33,11,FALSE) -> 2846.784463 | K40: =VLOOKUP($W40,'Transporte EAI'!$B$13:$AA$33,12,FALSE) -> 786.64 | L40: =VLOOKUP($W40,'Transporte EAI'!$B$13:$AA$33,13,FALSE) -> 3633.424463 | M40: =VLOOKUP($W40,'Transporte EAI'!$B$13:$AA$33,14,FALSE) -> 1286 | N40: =VLOOKUP($W40,'Transporte EAI'!$B$13:$AA$33,15,FALSE) -> 547 | O40: =VLOOKUP($W40,'Transporte EAI'!$B$13:$AA$33,18,FALSE) -> 460.71 | P40: =VLOOKUP($W40,'Transporte EAI'!$B$13:$AA$33,19,FALSE) -> 101.13 | Q40: =VLOOKUP($W40,'Transporte EAI'!$B$13:$AA$33,20,FALSE) -> 632.07 | R40: =VLOOKUP($W40,'Transporte EAI'!$B$13:$AA$33,21,FALSE) -> 1193.91 | S40: =VLOOKUP($W40,'Transporte EAI'!$B$13:$AA$33,22,FALSE) -> 0 | T40: =VLOOKUP($W40,'Transporte EAI'!$B$13:$AA$33,23,FALSE) -> 0 | U40: =VLOOKUP($W40,'Transporte EAI'!$B$13:$AA$33,24,FALSE) -> 1193.91 | V40: =VLOOKUP($W40,'Transporte EAI'!$B$13:$AA$33,25,FALSE) -> 3633.424463 | W40: =SMALL('Transporte EAI'!$AA$13:$AA$33,6) -> 4827.334463
B42: 1 | C42: RR1-C | D42: Refinaria Abreu e Lima | E42: Rodovia PE 60, Km 10 - Ipojuca - PE CEP:55590-000 | F42: =VLOOKUP($W42,'Transporte RR-1C'!$B:$AA,7,FALSE) -> ANÁPOLIS - GO | G42: =VLOOKUP($W42,'Transporte RR-1C'!$B:$AA,8,FALSE) -> Porto Grande -AP | H42: =VLOOKUP($W42,'Transporte RR-1C'!$B:$AA,9,FALSE) -> 2.565909441 | I42: =VLOOKUP($W42,'Transporte RR-1C'!$B:$AA,10,FALSE) -> 2.777249639 | J42: =VLOOKUP($W42,'Transporte RR-1C'!$B:$AA,11,FALSE) -> 2565.909441 | K42: =VLOOKUP($W42,'Transporte RR-1C'!$B:$AA,12,FALSE) -> 709.02 | L42: =VLOOKUP($W42,'Transporte RR-1C'!$B:$AA,13,FALSE) -> 3274.929441 | M42: =VLOOKUP($W42,'Transporte RR-1C'!$B:$AA,14,FALSE) -> 2012 | N42: =VLOOKUP($W42,'Transporte RR-1C'!$B:$AA,15,FALSE) -> 547 | O42: =VLOOKUP($W42,'Transporte RR-1C'!$B:$AA,18,FALSE) -> 644.39 | P42: =VLOOKUP($W42,'Transporte RR-1C'!$B:$AA,19,FALSE) -> 141.45 | Q42: =VLOOKUP($W42,'Transporte RR-1C'!$B:$AA,20,FALSE) -> 884.07 | R42: =VLOOKUP($W42,'Transporte RR-1C'!$B:$AA,21,FALSE) -> 1669.91 | S42: =VLOOKUP($W42,'Transporte RR-1C'!$B:$AA,22,FALSE) -> 501.6 | T42: =VLOOKUP($W42,'Transporte RR-1C'!$B:$AA,23,FALSE) -> 43.42857143 | U42: =VLOOKUP($W42,'Transporte RR-1C'!$B:$AA,24,FALSE) -> 1713.338571 | V42: =VLOOKUP($W42,'Transporte RR-1C'!$B:$AA,25,FALSE) -> 3274.929441 | W42: =SMALL('Transporte RR-1C'!$AA$13:$AA$33,1) -> 4988.268012
B43: 2 | D43: Refinaria Potiguar Clara Camarão | E43: Rodovia RN 221, KM 25 - Guamaré - RN CEP:59598-000 | F43: =VLOOKUP($W43,'Transporte RR-1C'!$B:$AA,7,FALSE) -> GOIANIRA - GO | G43: =VLOOKUP($W43,'Transporte RR-1C'!$B:$AA,8,FALSE) -> Porto Grande -AP | H43: =VLOOKUP($W43,'Transporte RR-1C'!$B:$AA,9,FALSE) -> 2.565909441 | I43: =VLOOKUP($W43,'Transporte RR-1C'!$B:$AA,10,FALSE) -> 2.777249639 | J43: =VLOOKUP($W43,'Transporte RR-1C'!$B:$AA,11,FALSE) -> 2565.909441 | K43: =VLOOKUP($W43,'Transporte RR-1C'!$B:$AA,12,FALSE) -> 709.02 | L43: =VLOOKUP($W43,'Transporte RR-1C'!$B:$AA,13,FALSE) -> 3274.929441 | M43: =VLOOKUP($W43,'Transporte RR-1C'!$B:$AA,14,FALSE) -> 2034 | N43: =VLOOKUP($W43,'Transporte RR-1C'!$B:$AA,15,FALSE) -> 547 | O43: =VLOOKUP($W43,'Transporte RR-1C'!$B:$AA,18,FALSE) -> 649.95 | P43: =VLOOKUP($W43,'Transporte RR-1C'!$B:$AA,19,FALSE) -> 142.67 | Q43: =VLOOKUP($W43,'Transporte RR-1C'!$B:$AA,20,FALSE) -> 891.7 | R43: =VLOOKUP($W43,'Transporte RR-1C'!$B:$AA,21,FALSE) -> 1684.32 | S43: =VLOOKUP($W43,'Transporte RR-1C'!$B:$AA,22,FALSE) -> 508.8 | T43: =VLOOKUP($W43,'Transporte RR-1C'!$B:$AA,23,FALSE) -> 44.05194805 | U43: =VLOOKUP($W43,'Transporte RR-1C'!$B:$AA,24,FALSE) -> 1728.371948 | V43: =VLOOKUP($W43,'Transporte RR-1C'!$B:$AA,25,FALSE) -> 3274.929441 | W43: =SMALL('Transporte RR-1C'!$AA$13:$AA$33,2) -> 5003.301389
B44: 3 | D44: Complexo Petroquímico do Rio de Janeiro (Comperj) | E44: Rodovia Estadual RJ-116 - Km 5,2 - Acesso A-1, s/n, Complemento Sambaetiba - Zona Urbana do 4º Distrito de Itaboraí - RJ CEP:24841-203 | F44: =VLOOKUP($W44,'Transporte RR-1C'!$B:$AA,7,FALSE) -> APARECIDA DE GOIANIA - GO | G44: =VLOOKUP($W44,'Transporte RR-1C'!$B:$AA,8,FALSE) -> Porto Grande -AP | H44: =VLOOKUP($W44,'Transporte RR-1C'!$B:$AA,9,FALSE) -> 2.565909441 | I44: =VLOOKUP($W44,'Transporte RR-1C'!$B:$AA,10,FALSE) -> 2.777249639 | J44: =VLOOKUP($W44,'Transporte RR-1C'!$B:$AA,11,FALSE) -> 2565.909441 | K44: =VLOOKUP($W44,'Transporte RR-1C'!$B:$AA,12,FALSE) -> 709.02 | L44: =VLOOKUP($W44,'Transporte RR-1C'!$B:$AA,13,FALSE) -> 3274.929441 | M44: =VLOOKUP($W44,'Transporte RR-1C'!$B:$AA,14,FALSE) -> 2063 | N44: =VLOOKUP($W44,'Transporte RR-1C'!$B:$AA,15,FALSE) -> 547 | O44: =VLOOKUP($W44,'Transporte RR-1C'!$B:$AA,18,FALSE) -> 657.29 | P44: =VLOOKUP($W44,'Transporte RR-1C'!$B:$AA,19,FALSE) -> 144.28 | Q44: =VLOOKUP($W44,'Transporte RR-1C'!$B:$AA,20,FALSE) -> 901.77 | R44: =VLOOKUP($W44,'Transporte RR-1C'!$B:$AA,21,FALSE) -> 1703.34 | S44: =VLOOKUP($W44,'Transporte RR-1C'!$B:$AA,22,FALSE) -> 508.8 | T44: =VLOOKUP($W44,'Transporte RR-1C'!$B:$AA,23,FALSE) -> 44.05194805 | U44: =VLOOKUP($W44,'Transporte RR-1C'!$B:$AA,24,FALSE) -> 1747.391948 | V44: =VLOOKUP($W44,'Transporte RR-1C'!$B:$AA,25,FALSE) -> 3274.929441 | W44: =SMALL('Transporte RR-1C'!$AA$13:$AA$33,3) -> 5022.321389
B45: 4 | D45: Refinaria Abreu e Lima | E45: Rodovia PE 60, Km 10 - Ipojuca - PE CEP:55590-000 | F45: =VLOOKUP($W45,'Transporte RR-1C'!$B:$AA,7,FALSE) -> UBERLANDIA - MG | G45: =VLOOKUP($W45,'Transporte RR-1C'!$B:$AA,8,FALSE) -> Porto Grande -AP | H45: =VLOOKUP($W45,'Transporte RR-1C'!$B:$AA,9,FALSE) -> 2.414631513 | I45: =VLOOKUP($W45,'Transporte RR-1C'!$B:$AA,10,FALSE) -> 2.55680471 | J45: =VLOOKUP($W45,'Transporte RR-1C'!$B:$AA,11,FALSE) -> 2414.631513 | K45: =VLOOKUP($W45,'Transporte RR-1C'!$B:$AA,12,FALSE) -> 667.22 | L45: =VLOOKUP($W45,'Transporte RR-1C'!$B:$AA,13,FALSE) -> 3081.851513 | M45: =VLOOKUP($W45,'Transporte RR-1C'!$B:$AA,14,FALSE) -> 2379 | N45: =VLOOKUP($W45,'Transporte RR-1C'!$B:$AA,15,FALSE) -> 547 | O45: =VLOOKUP($W45,'Transporte RR-1C'!$B:$AA,18,FALSE) -> 737.24 | P45: =VLOOKUP($W45,'Transporte RR-1C'!$B:$AA,19,FALSE) -> 161.83 | Q45: =VLOOKUP($W45,'Transporte RR-1C'!$B:$AA,20,FALSE) -> 1011.46 | R45: =VLOOKUP($W45,'Transporte RR-1C'!$B:$AA,21,FALSE) -> 1910.53 | S45: =VLOOKUP($W45,'Transporte RR-1C'!$B:$AA,22,FALSE) -> 706.8 | T45: =VLOOKUP($W45,'Transporte RR-1C'!$B:$AA,23,FALSE) -> 61.19480519 | U45: =VLOOKUP($W45,'Transporte RR-1C'!$B:$AA,24,FALSE) -> 1971.724805 | V45: =VLOOKUP($W45,'Transporte RR-1C'!$B:$AA,25,FALSE) -> 3081.851513 | W45: =SMALL('Transporte RR-1C'!$AA$13:$AA$33,4) -> 5053.576318
B46: 5 | D46: Refinaria Potiguar Clara Camarão | E46: Rodovia RN 221, KM 25 - Guamaré - RN CEP:59598-000 | F46: =VLOOKUP($W46,'Transporte RR-1C'!$B:$AA,7,FALSE) -> UBERLANDIA - MG | G46: =VLOOKUP($W46,'Transporte RR-1C'!$B:$AA,8,FALSE) -> Porto Grande -AP | H46: =VLOOKUP($W46,'Transporte RR-1C'!$B:$AA,9,FALSE) -> 2.414631513 | I46: =VLOOKUP($W46,'Transporte RR-1C'!$B:$AA,10,FALSE) -> 2.55680471 | J46: =VLOOKUP($W46,'Transporte RR-1C'!$B:$AA,11,FALSE) -> 2414.631513 | K46: =VLOOKUP($W46,'Transporte RR-1C'!$B:$AA,12,FALSE) -> 667.22 | L46: =VLOOKUP($W46,'Transporte RR-1C'!$B:$AA,13,FALSE) -> 3081.851513 | M46: =VLOOKUP($W46,'Transporte RR-1C'!$B:$AA,14,FALSE) -> 2380 | N46: =VLOOKUP($W46,'Transporte RR-1C'!$B:$AA,15,FALSE) -> 547 | O46: =VLOOKUP($W46,'Transporte RR-1C'!$B:$AA,18,FALSE) -> 737.49 | P46: =VLOOKUP($W46,'Transporte RR-1C'!$B:$AA,19,FALSE) -> 161.88 | Q46: =VLOOKUP($W46,'Transporte RR-1C'!$B:$AA,20,FALSE) -> 1011.8 | R46: =VLOOKUP($W46,'Transporte RR-1C'!$B:$AA,21,FALSE) -> 1911.17 | S46: =VLOOKUP($W46,'Transporte RR-1C'!$B:$AA,22,FALSE) -> 706.8 | T46: =VLOOKUP($W46,'Transporte RR-1C'!$B:$AA,23,FALSE) -> 61.19480519 | U46: =VLOOKUP($W46,'Transporte RR-1C'!$B:$AA,24,FALSE) -> 1972.364805 | V46: =VLOOKUP($W46,'Transporte RR-1C'!$B:$AA,25,FALSE) -> 3081.851513 | W46: =SMALL('Transporte RR-1C'!$AA$13:$AA$33,5) -> 5054.216318
B47: 6 | D47: Complexo Petroquímico do Rio de Janeiro (Comperj) | E47: Rodovia Estadual RJ-116 - Km 5,2 - Acesso A-1, s/n, Complemento Sambaetiba - Zona Urbana do 4º Distrito de Itaboraí - RJ CEP:24841-203 | F47: =VLOOKUP($W47,'Transporte RR-1C'!$B:$AA,7,FALSE) -> BRASÍLIA - DF | G47: =VLOOKUP($W47,'Transporte RR-1C'!$B:$AA,8,FALSE) -> Porto Grande -AP | H47: =VLOOKUP($W47,'Transporte RR-1C'!$B:$AA,9,FALSE) -> - | I47: =VLOOKUP($W47,'Transporte RR-1C'!$B:$AA,10,FALSE) -> 2.777249639 | J47: =VLOOKUP($W47,'Transporte RR-1C'!$B:$AA,11,FALSE) -> 2777.249639 | K47: =VLOOKUP($W47,'Transporte RR-1C'!$B:$AA,12,FALSE) -> 767.42 | L47: =VLOOKUP($W47,'Transporte RR-1C'!$B:$AA,13,FALSE) -> 3544.669639 | M47: =VLOOKUP($W47,'Transporte RR-1C'!$B:$AA,14,FALSE) -> 2051 | N47: =VLOOKUP($W47,'Transporte RR-1C'!$B:$AA,15,FALSE) -> 547 | O47: =VLOOKUP($W47,'Transporte RR-1C'!$B:$AA,18,FALSE) -> 654.25 | P47: =VLOOKUP($W47,'Transporte RR-1C'!$B:$AA,19,FALSE) -> 143.61 | Q47: =VLOOKUP($W47,'Transporte RR-1C'!$B:$AA,20,FALSE) -> 897.6 | R47: =VLOOKUP($W47,'Transporte RR-1C'!$B:$AA,21,FALSE) -> 1695.46 | S47: =VLOOKUP($W47,'Transporte RR-1C'!$B:$AA,22,FALSE) -> 420 | T47: =VLOOKUP($W47,'Transporte RR-1C'!$B:$AA,23,FALSE) -> 36.36363636 | U47: =VLOOKUP($W47,'Transporte RR-1C'!$B:$AA,24,FALSE) -> 1731.823636 | V47: =VLOOKUP($W47,'Transporte RR-1C'!$B:$AA,25,FALSE) -> 3544.669639 | W47: =SMALL('Transporte RR-1C'!$AA$13:$AA$33,6) -> 5276.493276

Sheet MOMENTO DE TRANSPORTE - PRINC
B5: ='RESUMO MODULO TOTAL'!B1 -> CONTRATAÇÃO DE SERVIÇOS DE PAVIMENTAÇÃO ASFÁLTICA COM CONCRETO BETUMINOSO USINADO A QUENTE (CBUQ) EM VIAS URBANAS E RURAIS INSERIDAS NA ÁREA DE ATUAÇÃO DA CODEVASF, NO ESTADO DO AMAPÁ (REGIÃO PORTO GRANDE)
B6: DATA BASE: | C6: ='RESUMO MODULO TOTAL'!N2 -> Amapá - Abril/2024
C8: RESUMO DO TRANSPORTE PRINCIPAL
B9: CODIGO | C9: DESCRIÇÃO | D9: TKM
B10: 5914359 | C10: =VLOOKUP(B10,'SINTÉTICO SICRO'!$A:$D,2,0) -> Transporte com caminhão basculante de 10 m³ - rodovia em leito natural | D10: =ROUND(SUMIF('MOMENTO DE TRANSPORTE - PRINC'!A:A,B10,'MOMENTO DE TRANSPORTE - PRINC'!K:K),2) -> 125291.63
B11: 5914374 | C11: =VLOOKUP(B11,'SINTÉTICO SICRO'!$A:$D,2,0) -> Transporte com caminhão basculante de 10 m³ - rodovia em revestimento primário | D11: =ROUND(SUMIF('MOMENTO DE TRANSPORTE - PRINC'!A:A,B11,'MOMENTO DE TRANSPORTE - PRINC'!K:K),2) -> 0
B12: 5914389 | C12: =VLOOKUP(B12,'SINTÉTICO SICRO'!$A:$D,2,0) -> Transporte com caminhão basculante de 10 m³ - rodovia pavimentada | D12: =ROUND(SUMIF('MOMENTO DE TRANSPORTE - PRINC'!A:A,B12,'MOMENTO DE TRANSPORTE - PRINC'!K:K),2) -> 1151375.15
B13: 5914449 | C13: =VLOOKUP(B13,'SINTÉTICO SICRO'!$A:$D,2,0) -> Transporte com caminhão carroceria de 15 t - rodovia em leito natural | D13: =ROUND(SUMIF('MOMENTO DE TRANSPORTE - PRINC'!A:A,B13,'MOMENTO DE TRANSPORTE - PRINC'!K:K),2) -> 0
B14: 5914464 | C14: =VLOOKUP(B14,'SINTÉTICO SICRO'!$A:$D,2,0) -> Transporte com caminhão carroceria de 15 t - rodovia em revestimento primário | D14: =ROUND(SUMIF('MOMENTO DE TRANSPORTE - PRINC'!A:A,B14,'MOMENTO DE TRANSPORTE - PRINC'!K:K),2) -> 0
B15: 5914479 | C15: =VLOOKUP(B15,'SINTÉTICO SICRO'!$A:$D,2,0) -> Transporte com caminhão carroceria de 15 t - rodovia pavimentada | D15: =ROUND(SUMIF('MOMENTO DE TRANSPORTE - PRINC'!A:A,B15,'MOMENTO DE TRANSPORTE - PRINC'!K:K),2) -> 0
B16: 5914364 | C16: =VLOOKUP(B16,'SINTÉTICO SICRO'!$A:$D,2,0) -> Transporte de cimento ou cal hidratada a granel com caminhão silo de 30 m³ - rodovia em leito natural | D16: =ROUND(SUMIF('MOMENTO DE TRANSPORTE - PRINC'!A:A,B16,'MOMENTO DE TRANSPORTE - PRINC'!K:K),2) -> 0
B17: 5914365 | C17: =VLOOKUP(B17,'SINTÉTICO SICRO'!$A:$D,2,0) -> Transporte de cimento ou cal hidratada a granel com caminhão silo de 30 m³ - rodovia em revestimento primário | D17: =ROUND(SUMIF('MOMENTO DE TRANSPORTE - PRINC'!A:A,B17,'MOMENTO DE TRANSPORTE - PRINC'!K:K),2) -> 0
B18: 5914366 | C18: =VLOOKUP(B18,'SINTÉTICO SICRO'!$A:$D,2,0) -> Transporte de cimento ou cal hidratada a granel com caminhão silo de 30 m³ - rodovia pavimentada | D18: =ROUND(SUMIF('MOMENTO DE TRANSPORTE - PRINC'!A:A,B18,'MOMENTO DE TRANSPORTE - PRINC'!K:K),2) -> 0
B19: 5914539 | C19: =VLOOKUP(B19,'SINTÉTICO SICRO'!$A:$D,2,0) -> Transporte com caminhão betoneira - rodovia em leito natural | D19: =ROUND(SUMIF('MOMENTO DE TRANSPORTE - PRINC'!A:A,B19,'MOMENTO DE TRANSPORTE - PRINC'!K:K),2) -> 6652.8
B20: 5914554 | C20: =VLOOKUP(B20,'SINTÉTICO SICRO'!$A:$D,2,0) -> Transporte com caminhão betoneira - rodovia em revestimento primário | D20: =ROUND(SUMIF('MOMENTO DE TRANSPORTE - PRINC'!A:A,B20,'MOMENTO DE TRANSPORTE - PRINC'!K:K),2) -> 0
B21: 5914569 | C21: =VLOOKUP(B21,'SINTÉTICO SICRO'!$A:$D,2,0) -> Transporte com caminhão betoneira - rodovia pavimentada | D21: =ROUND(SUMIF('MOMENTO DE TRANSPORTE - PRINC'!A:A,B21,'MOMENTO DE TRANSPORTE - PRINC'!K:K),2) -> 59875.2
B23: TIPO (P, RP ou LN) | C23: DMT ESTIMADA (DISTRIBUIÇÃO DO ITEM NA PISTA
B24: P | D24: Fica a cargo de cada SR colocar a distancia de distribuição
B26: SISTEMA DE CUSTOS REFERENCIAIS DE OBRAS - SICRO
B27: Custo Unitário de Referência | I27: Quantitativo | K27: t
B28: 4011463 | C28: Concreto asfáltico - faixa C - areia e brita comerciais | I28: =SUMIF('RESUMO MODULO TOTAL'!D:D,B28,'RESUMO MODULO TOTAL'!J:J)*0.9 -> 16632
B29: D - ATIVIDADES AUXILIARES | D29: Quantidade | E29: Unidade
B30: 6416078 | C30: Usinagem de concreto asfáltico - faixa C - areia e brita comerciais | D30: 1.02 | E30: t
B32: F - MOMENTO DE TRANSPORTE | D32: Quantidade | E32: Unidade | F32: CÓDIGO TRANSPORTE
F33: LN | G33: RP | H33: P | I33: TIPO (P, RP ou LN) | J33: DMT ESTIMADA (km) | K33: QUANTITATIVO TOTAL DE TRANSPORTE (tkm)
A34: =IF(I34="P",H34,IF(I34="RP",G34,IF(I34="LN",F34,""))) -> 5914389 | B34: 6416078 | C34: Usinagem de concreto asfáltico - faixa C - areia e brita comerciais - Caminhão basculante 10 m³ | D34: 1.02 | E34: tkm | F34: 5914359 | G34: 5914374 | H34: 5914389 | I34: =$B$24 -> P | J34: 3.4 | K34: =IF(ISBLANK(J34),"",J34*D34)*I28 -> 57679.776
B36: Obs.
B39: Custo Unitário de Referência | I39: Quantitativo | K39: m³
B40: CPU-20 | C40: Base estabilizada granulometricamente com mistura solo areia (70% - 30%) na pista com material de jazida e areia comercial | I40: =SUMIF('RESUMO MODULO TOTAL'!D:D,B40,'RESUMO MODULO TOTAL'!J:J)*0.9 -> 20790
B41: D - ATIVIDADES AUXILIARES | D41: Quantidade | E41: Unidade
B42: 4016096 | C42: =VLOOKUP(B42,'SINTÉTICO SICRO'!A:D,2,0) -> Escavação e carga de material de jazida com escavadeira hidráulica de 1,56 m³ | D42: 0,77019 | E42: m³
B44: F - MOMENTO DE TRANSPORTE | D44: Quantidade | E44: Unidade | F44: CÓDIGO TRANSPORTE
F45: LN | G45: RP | H45: P | I45: TIPO (P, RP ou LN) | J45: DMT ESTIMADA (km) | K45: QUANTITATIVO TOTAL DE TRANSPORTE (tkm)
A46: =IF(I46="P",H46,IF(I46="RP",G46,IF(I46="LN",F46,""))) -> 5914389 | B46: 4016096 | C46: =VLOOKUP(B46,'SINTÉTICO SICRO'!A:D,2,0) -> Escavação e carga de material de jazida com escavadeira hidráulica de 1,56 m³ | D46: 1,44411 | E46: tkm | F46: 5914359 | G46: 5914374 | H46: 5914389 | I46: =$B$24 -> P | J46: 15 | K46: =IF(ISBLANK(J46),"",J46*D46)*I40 -> 450345.7035
B48: Obs.
B50: SISTEMA DE CUSTOS REFERENCIAIS DE OBRAS - SICRO
B51: Custo Unitário de Referência | I51: Quantitativo | K51: m³
B52: 4011227 | C52: =VLOOKUP(B52,'SINTÉTICO SICRO'!A:D,2,0) -> Sub-base de solo estabilizado granulometricamente sem mistura com material de jazida | I52: =SUMIF('RESUMO MODULO TOTAL'!D:D,B52,'RESUMO MODULO TOTAL'!J:J)*0.9 -> 20790
B53: D - ATIVIDADES AUXILIARES | D53: Quantidade | E53: Unidade
B54: 4016096 | C54: =VLOOKUP(B54,'SINTÉTICO SICRO'!A:D,2,0) -> Escavação e carga de material de jazida com escavadeira hidráulica de 1,56 m³ | D54: 1.10027 | E54: m³
B56: F - MOMENTO DE TRANSPORTE | D56: Quantidade | E56: Unidade | F56: CÓDIGO TRANSPORTE
F57: LN | G57: RP | H57: P | I57: TIPO (P, RP ou LN) | J57: DMT ESTIMADA (km) | K57: QUANTITATIVO TOTAL DE TRANSPORTE (tkm)
A58: =IF(I58="P",H58,IF(I58="RP",G58,IF(I58="LN",F58,""))) -> 5914389 | B58: 4016096 | C58: =VLOOKUP(B58,'SINTÉTICO SICRO'!A:D,2,0) -> Escavação e carga de material de jazida com escavadeira hidráulica de 1,56 m³ | D58: 2.06301 | E58: tkm | F58: 5914359 | G58: 5914374 | H58: 5914389 | I58: =$B$24 -> P | J58: 15 | K58: =IF(ISBLANK(J58),"",J58*D58)*I52 -> 643349.6685
B60: Obs.
B62: SISTEMA DE CUSTOS REFERENCIAIS DE OBRAS - SICRO
B63: Custo Unitário de Referência | I63: Quantitativo | K63: m
B64: 2003943 | C64: =VLOOKUP(B64,'SINTÉTICO SICRO'!A:D,2,0) -> Meio-fio de concreto - MFC 03 moldado no local com extrusora e concreto usinado - areia e brita comerciais | I64: =SUMIF('RESUMO MODULO TOTAL'!D:D,B64,'RESUMO MODULO TOTAL'!J:J)*0.9 -> 39600
B65: D - ATIVIDADES AUXILIARES | D65: Quantidade | E65: Unidade
B66: 1107928 | C66: =VLOOKUP(B66,'SINTÉTICO SICRO'!A:D,2,0) -> Concreto fck = 20 MPa - confecção em central dosadora de 30 m³/h - areia e brita comerciais | D66: 0.042 | E66: m³
B67: 2003842 | C67: =VLOOKUP(B67,'SINTÉTICO SICRO'!A:D,2,0) -> Enchimento de junta de concreto com argamassa asfáltica de densidade 1.700 kg/m³ - espessura de 1 cm | D67: 0.0595 | E67: kg
B68: 4805750 | C68: =VLOOKUP(B68,'SINTÉTICO SICRO'!A:D,2,0) -> Escavação manual em material de 1ª categoria na profundidade de até 1 m | D68: 0.03 | E68: m³
B70: F - MOMENTO DE TRANSPORTE | D70: Quantidade | E70: Unidade | F70: CÓDIGO TRANSPORTE
F71: LN | G71: RP | H71: P | I71: TIPO (P, RP ou LN) | J71: DMT ESTIMADA (km) | K71: QUANTITATIVO TOTAL DE TRANSPORTE (tkm)
A72: =IF(I72="P",H72,IF(I72="RP",G72,IF(I72="LN",F72,""))) -> 5914569 | B72: 1107928 | C72: =VLOOKUP(B72,'SINTÉTICO SICRO'!A:D,2,0) -> Concreto fck = 20 MPa - confecção em central dosadora de 30 m³/h - areia e brita comerciais | D72: 0.1008 | E72: tkm | F72: 5914539 | G72: 5914554 | H72: 5914569 | I72: =$B$24 -> P | J72: 15 | K72: =IF(ISBLANK(J72),"",J72*D72)*I64 -> 59875.2
B73: Obs.
B74: TIPO (P, RP ou LN) | C74: DMT ESTIMADA (DISTRIBUIÇÃO DO ITEM NA PISTA
B75: RP | C75: =$C$24 -> 0 | D75: Fica a cargo de cada SR colocar a distancia de distribuição
B77: SISTEMA DE CUSTOS REFERENCIAIS DE OBRAS - SICRO
B78: Custo Unitário de Referência | I78: Quantitativo | K78: t
B79: 4011463 | C79: Concreto asfáltico - faixa C - areia e brita comerciais | I79: =SUMIF('RESUMO MODULO TOTAL'!D:D,B79,'RESUMO MODULO TOTAL'!J:J)*0 -> 0
B80: D - ATIVIDADES AUXILIARES | D80: Quantidade | E80: Unidade
B81: 6416078 | C81: Usinagem de concreto asfáltico - faixa C - areia e brita comerciais | D81: 1.02 | E81: t
B83: F - MOMENTO DE TRANSPORTE | D83: Quantidade | E83: Unidade | F83: CÓDIGO TRANSPORTE
F84: LN | G84: RP | H84: P | I84: TIPO (P, RP ou LN) | J84: DMT ESTIMADA (km) | K84: QUANTITATIVO TOTAL DE TRANSPORTE (tkm)
A85: =IF(I85="P",H85,IF(I85="RP",G85,IF(I85="LN",F85,""))) -> 5914374 | B85: 6416078 | C85: Usinagem de concreto asfáltico - faixa C - areia e brita comerciais - Caminhão basculante 10 m³ | D85: 1.02 | E85: tkm | F85: 5914359 | G85: 5914374 | H85: 5914389 | I85: =$B$75 -> RP | J85: 0 | K85: =IF(ISBLANK(J85),"",J85*D85)*I79 -> 0
B87: Obs.
B90: Custo Unitário de Referência | I90: Quantitativo | K90: m³
B91: CPU-20 | C91: Base estabilizada granulometricamente com mistura solo areia (70% - 30%) na pista com material de jazida e areia comercial | I91: =SUMIF('RESUMO MODULO TOTAL'!D:D,B91,'RESUMO MODULO TOTAL'!J:J)*0 -> 0
B92: D - ATIVIDADES AUXILIARES | D92: Quantidade | E92: Unidade
B93: 4016096 | C93: =VLOOKUP(B93,'SINTÉTICO SICRO'!A:D,2,0) -> Escavação e carga de material de jazida com escavadeira hidráulica de 1,56 m³ | D93: 0,77019 | E93: m³
B95: F - MOMENTO DE TRANSPORTE | D95: Quantidade | E95: Unidade | F95: CÓDIGO TRANSPORTE
F96: LN | G96: RP | H96: P | I96: TIPO (P, RP ou LN) | J96: DMT ESTIMADA (km) | K96: QUANTITATIVO TOTAL DE TRANSPORTE (tkm)
A97: =IF(I97="P",H97,IF(I97="RP",G97,IF(I97="LN",F97,""))) -> 5914374 | B97: 4016096 | C97: =VLOOKUP(B97,'SINTÉTICO SICRO'!A:D,2,0) -> Escavação e carga de material de jazida com escavadeira hidráulica de 1,56 m³ | D97: 1,44411 | E97: tkm | F97: 5914359 | G97: 5914374 | H97: 5914389 | I97: =$B$75 -> RP | J97: 0 | K97: =IF(ISBLANK(J97),"",J97*D97)*I91 -> 0
B99: Obs.
B101: SISTEMA DE CUSTOS REFERENCIAIS DE OBRAS - SICRO
B102: Custo Unitário de Referência | I102: Quantitativo | K102: m³
B103: 4011227 | C103: =VLOOKUP(B103,'SINTÉTICO SICRO'!A:D,2,0) -> Sub-base de solo estabilizado granulometricamente sem mistura com material de jazida | I103: =SUMIF('RESUMO MODULO TOTAL'!D:D,B103,'RESUMO MODULO TOTAL'!J:J)*0 -> 0
B104: D - ATIVIDADES AUXILIARES | D104: Quantidade | E104: Unidade
B105: 4016096 | C105: =VLOOKUP(B105,'SINTÉTICO SICRO'!A:D,2,0) -> Escavação e carga de material de jazida com escavadeira hidráulica de 1,56 m³ | D105: 1.10027 | E105: m³
B107: F - MOMENTO DE TRANSPORTE | D107: Quantidade | E107: Unidade | F107: CÓDIGO TRANSPORTE
F108: LN | G108: RP | H108: P | I108: TIPO (P, RP ou LN) | J108: DMT ESTIMADA (km) | K108: QUANTITATIVO TOTAL DE TRANSPORTE (tkm)
A109: =IF(I109="P",H109,IF(I109="RP",G109,IF(I109="LN",F109,""))) -> 5914374 | B109: 4016096 | C109: =VLOOKUP(B109,'SINTÉTICO SICRO'!A:D,2,0) -> Escavação e carga de material de jazida com escavadeira hidráulica de 1,56 m³ | D109: 2.06301 | E109: tkm | F109: 5914359 | G109: 5914374 | H109: 5914389 | I109: =$B$75 -> RP | J109: 0 | K109: =IF(ISBLANK(J109),"",J109*D109)*I103 -> 0
B111: Obs.
B113: SISTEMA DE CUSTOS REFERENCIAIS DE OBRAS - SICRO
B114: Custo Unitário de Referência | I114: Quantitativo | K114: m
B115: 2003943 | C115: =VLOOKUP(B115,'SINTÉTICO SICRO'!A:D,2,0) -> Meio-fio de concreto - MFC 03 moldado no local com extrusora e concreto usinado - areia e brita comerciais | I115: =SUMIF('RESUMO MODULO TOTAL'!D:D,B115,'RESUMO MODULO TOTAL'!J:J)*0 -> 0
B116: D - ATIVIDADES AUXILIARES | D116: Quantidade | E116: Unidade
B117: 1107928 | C117: =VLOOKUP(B117,'SINTÉTICO SICRO'!A:D,2,0) -> Concreto fck = 20 MPa - confecção em central dosadora de 30 m³/h - areia e brita comerciais | D117: 0.042 | E117: m³
B118: 2003842 | C118: =VLOOKUP(B118,'SINTÉTICO SICRO'!A:D,2,0) -> Enchimento de junta de concreto com argamassa asfáltica de densidade 1.700 kg/m³ - espessura de 1 cm | D118: 0.0595 | E118: kg
B119: 4805750 | C119: =VLOOKUP(B119,'SINTÉTICO SICRO'!A:D,2,0) -> Escavação manual em material de 1ª categoria na profundidade de até 1 m | D119: 0.03 | E119: m³
B121: F - MOMENTO DE TRANSPORTE | D121: Quantidade | E121: Unidade | F121: CÓDIGO TRANSPORTE
F122: LN | G122: RP | H122: P | I122: TIPO (P, RP ou LN) | J122: DMT ESTIMADA (km) | K122: QUANTITATIVO TOTAL DE TRANSPORTE (tkm)
A123: =IF(I123="P",H123,IF(I123="RP",G123,IF(I123="LN",F123,""))) -> 5914554 | B123: 1107928 | C123: =VLOOKUP(B123,'SINTÉTICO SICRO'!A:D,2,0) -> Concreto fck = 20 MPa - confecção em central dosadora de 30 m³/h - areia e brita comerciais | D123: 0.1008 | E123: tkm | F123: 5914539 | G123: 5914554 | H123: 5914569 | I123: =$B$75 -> RP | J123: 0 | K123: =IF(ISBLANK(J123),"",J123*D123)*I115 -> 0
B124: Obs.
B125: TIPO (P, RP ou LN) | C125: DMT ESTIMADA (DISTRIBUIÇÃO DO ITEM NA PISTA
B126: LN | D126: Fica a cargo de cada SR colocar a distancia de distribuição
B128: SISTEMA DE CUSTOS REFERENCIAIS DE OBRAS - SICRO
B129: Custo Unitário de Referência | I129: Quantitativo | K129: t
B130: 4011463 | C130: Concreto asfáltico - faixa C - areia e brita comerciais | I130: =SUMIF('RESUMO MODULO TOTAL'!D:D,B130,'RESUMO MODULO TOTAL'!J:J)*0.1 -> 1848
B131: D - ATIVIDADES AUXILIARES | D131: Quantidade | E131: Unidade
B132: 6416078 | C132: Usinagem de concreto asfáltico - faixa C - areia e brita comerciais | D132: 1.02 | E132: t
B134: F - MOMENTO DE TRANSPORTE | D134: Quantidade | E134: Unidade | F134: CÓDIGO TRANSPORTE
F135: LN | G135: RP | H135: P | I135: TIPO (P, RP ou LN) | J135: DMT ESTIMADA (km) | K135: QUANTITATIVO TOTAL DE TRANSPORTE (tkm)
A136: =IF(I136="P",H136,IF(I136="RP",G136,IF(I136="LN",F136,""))) -> 5914359 | B136: 6416078 | C136: Usinagem de concreto asfáltico - faixa C - areia e brita comerciais - Caminhão basculante 10 m³ | D136: 1.02 | E136: tkm | F136: 5914359 | G136: 5914374 | H136: 5914389 | I136: =$B$126 -> LN | J136: 2 | K136: =IF(ISBLANK(J136),"",J136*D136)*I130 -> 3769.92
B138: Obs.
B141: Custo Unitário de Referência | I141: Quantitativo | K141: m³
B142: CPU-20 | C142: Base estabilizada granulometricamente com mistura solo areia (70% - 30%) na pista com material de jazida e areia comercial | I142: =SUMIF('RESUMO MODULO TOTAL'!D:D,B142,'RESUMO MODULO TOTAL'!J:J)*0.1 -> 2310
B143: D - ATIVIDADES AUXILIARES | D143: Quantidade | E143: Unidade
B144: 4016096 | C144: =VLOOKUP(B144,'SINTÉTICO SICRO'!A:D,2,0) -> Escavação e carga de material de jazida com escavadeira hidráulica de 1,56 m³ | D144: 0,77019 | E144: m³
B146: F - MOMENTO DE TRANSPORTE | D146: Quantidade | E146: Unidade | F146: CÓDIGO TRANSPORTE
F147: LN | G147: RP | H147: P | I147: TIPO (P, RP ou LN) | J147: DMT ESTIMADA (km) | K147: QUANTITATIVO TOTAL DE TRANSPORTE (tkm)
A148: =IF(I148="P",H148,IF(I148="RP",G148,IF(I148="LN",F148,""))) -> 5914359 | B148: 4016096 | C148: =VLOOKUP(B148,'SINTÉTICO SICRO'!A:D,2,0) -> Escavação e carga de material de jazida com escavadeira hidráulica de 1,56 m³ | D148: 1,44411 | E148: tkm | F148: 5914359 | G148: 5914374 | H148: 5914389 | I148: =$B$126 -> LN | J148: 15 | K148: =IF(ISBLANK(J148),"",J148*D148)*I142 -> 50038.4115
B150: Obs.
B152: SISTEMA DE CUSTOS REFERENCIAIS DE OBRAS - SICRO
B153: Custo Unitário de Referência | I153: Quantitativo | K153: m³
B154: 4011227 | C154: =VLOOKUP(B154,'SINTÉTICO SICRO'!A:D,2,0) -> Sub-base de solo estabilizado granulometricamente sem mistura com material de jazida | I154: =SUMIF('RESUMO MODULO TOTAL'!D:D,B154,'RESUMO MODULO TOTAL'!J:J)*0.1 -> 2310
B155: D - ATIVIDADES AUXILIARES | D155: Quantidade | E155: Unidade
B156: 4016096 | C156: =VLOOKUP(B156,'SINTÉTICO SICRO'!A:D,2,0) -> Escavação e carga de material de jazida com escavadeira hidráulica de 1,56 m³ | D156: 1.10027 | E156: m³
B158: F - MOMENTO DE TRANSPORTE | D158: Quantidade | E158: Unidade | F158: CÓDIGO TRANSPORTE
F159: LN | G159: RP | H159: P | I159: TIPO (P, RP ou LN) | J159: DMT ESTIMADA (km) | K159: QUANTITATIVO TOTAL DE TRANSPORTE (tkm)
A160: =IF(I160="P",H160,IF(I160="RP",G160,IF(I160="LN",F160,""))) -> 5914359 | B160: 4016096 | C160: =VLOOKUP(B160,'SINTÉTICO SICRO'!A:D,2,0) -> Escavação e carga de material de jazida com escavadeira hidráulica de 1,56 m³ | D160: 2.06301 | E160: tkm | F160: 5914359 | G160: 5914374 | H160: 5914389 | I160: =$B$126 -> LN | J160: 15 | K160: =IF(ISBLANK(J160),"",J160*D160)*I154 -> 71483.2965
B162: Obs.
B164: SISTEMA DE CUSTOS REFERENCIAIS DE OBRAS - SICRO
B165: Custo Unitário de Referência | I165: Quantitativo | K165: m
B166: 2003943 | C166: =VLOOKUP(B166,'SINTÉTICO SICRO'!A:D,2,0) -> Meio-fio de concreto - MFC 03 moldado no local com extrusora e concreto usinado - areia e brita comerciais | I166: =SUMIF('RESUMO MODULO TOTAL'!D:D,B166,'RESUMO MODULO TOTAL'!J:J)*0.1 -> 4400
B167: D - ATIVIDADES AUXILIARES | D167: Quantidade | E167: Unidade
B168: 1107928 | C168: =VLOOKUP(B168,'SINTÉTICO SICRO'!A:D,2,0) -> Concreto fck = 20 MPa - confecção em central dosadora de 30 m³/h - areia e brita comerciais | D168: 0.042 | E168: m³
B169: 2003842 | C169: =VLOOKUP(B169,'SINTÉTICO SICRO'!A:D,2,0) -> Enchimento de junta de concreto com argamassa asfáltica de densidade 1.700 kg/m³ - espessura de 1 cm | D169: 0.0595 | E169: kg
B170: 4805750 | C170: =VLOOKUP(B170,'SINTÉTICO SICRO'!A:D,2,0) -> Escavação manual em material de 1ª categoria na profundidade de até 1 m | D170: 0.03 | E170: m³
B172: F - MOMENTO DE TRANSPORTE | D172: Quantidade | E172: Unidade | F172: CÓDIGO TRANSPORTE
F173: LN | G173: RP | H173: P | I173: TIPO (P, RP ou LN) | J173: DMT ESTIMADA (km) | K173: QUANTITATIVO TOTAL DE TRANSPORTE (tkm)
A174: =IF(I174="P",H174,IF(I174="RP",G174,IF(I174="LN",F174,""))) -> 5914539 | B174: 1107928 | C174: =VLOOKUP(B174,'SINTÉTICO SICRO'!A:D,2,0) -> Concreto fck = 20 MPa - confecção em central dosadora de 30 m³/h - areia e brita comerciais | D174: 0.1008 | E174: tkm | F174: 5914539 | G174: 5914554 | H174: 5914569 | I174: =$B$126 -> LN | J174: 15 | K174: =IF(ISBLANK(J174),"",J174*D174)*I166 -> 6652.8
B175: Obs.

Sheet MOMENTO DE TRANSPORTE - AUX
B5: ='RESUMO MODULO TOTAL'!B1 -> CONTRATAÇÃO DE SERVIÇOS DE PAVIMENTAÇÃO ASFÁLTICA COM CONCRETO BETUMINOSO USINADO A QUENTE (CBUQ) EM VIAS URBANAS E RURAIS INSERIDAS NA ÁREA DE ATUAÇÃO DA CODEVASF, NO ESTADO DO AMAPÁ (REGIÃO PORTO GRANDE)
B6: DATA BASE: | C6: ='RESUMO MODULO TOTAL'!N2 -> Amapá - Abril/2024
C8: RESUMO DO TRANSPORTE AUXILIAR
B9: CODIGO | C9: DESCRIÇÃO | D9: TKM
B10: 5914359 | C10: =VLOOKUP(B10,'SINTÉTICO SICRO'!$A:$D,2,0) -> Transporte com caminhão basculante de 10 m³ - rodovia em leito natural | D10: =ROUND(SUMIF($A:$A,B10,$K:$K),2) -> 0
B11: 5914374 | C11: =VLOOKUP(B11,'SINTÉTICO SICRO'!$A:$D,2,0) -> Transporte com caminhão basculante de 10 m³ - rodovia em revestimento primário | D11: 0
B12: 5914389 | C12: =VLOOKUP(B12,'SINTÉTICO SICRO'!$A:$D,2,0) -> Transporte com caminhão basculante de 10 m³ - rodovia pavimentada | D12: 0
B13: 5914449 | C13: =VLOOKUP(B13,'SINTÉTICO SICRO'!$A:$D,2,0) -> Transporte com caminhão carroceria de 15 t - rodovia em leito natural | D13: 0
B14: 5914464 | C14: =VLOOKUP(B14,'SINTÉTICO SICRO'!$A:$D,2,0) -> Transporte com caminhão carroceria de 15 t - rodovia em revestimento primário | D14: 0
B15: 5914479 | C15: =VLOOKUP(B15,'SINTÉTICO SICRO'!$A:$D,2,0) -> Transporte com caminhão carroceria de 15 t - rodovia pavimentada | D15: 713.73
B16: 5914364 | C16: =VLOOKUP(B16,'SINTÉTICO SICRO'!$A:$D,2,0) -> Transporte de cimento ou cal hidratada a granel com caminhão silo de 30 m³ - rodovia em leito natural | D16: 0
B17: 5914365 | C17: =VLOOKUP(B17,'SINTÉTICO SICRO'!$A:$D,2,0) -> Transporte de cimento ou cal hidratada a granel com caminhão silo de 30 m³ - rodovia em revestimento primário | D17: 0
B18: 5914366 | C18: =VLOOKUP(B18,'SINTÉTICO SICRO'!$A:$D,2,0) -> Transporte de cimento ou cal hidratada a granel com caminhão silo de 30 m³ - rodovia pavimentada | D18: 0
B20: TIPO (P, RP ou LN) | C20: DMT ATÉ 50 KM NÃO DEVE SER PAGA | D20: SOMENTE DEVE SER ADICIONADO A DISTÂNCIA EXCEDENTE A 50 KM
B21: P | D21: 0
B23: SISTEMA DE CUSTOS REFERENCIAIS DE OBRAS - SICRO | I23: Quantitivo
B24: Custo Unitário de Referência | E24: =$C$6 -> Amapá - Abril/2024 | I24: (Coeficiente na composição principal) x (quantidade da principal no orçamento) | K24: t
B25: 6416078 | C25: =VLOOKUP(B25,'SINTÉTICO SICRO'!A:D,2,0) -> Usinagem de concreto asfáltico - faixa C - areia e brita comerciais | I25: ='MOMENTO DE TRANSPORTE - PRINC'!D30*(VLOOKUP(C34,'RESUMO MODULO TOTAL'!D:O,7,FALSE)) -> 18849.6
B26: F - MOMENTO DE TRANSPORTE | D26: Quantidade | E26: Unidade | F26: DMT
F27: LN | G27: RP | H27: P | I27: TIPO (P, RP ou LN) | J27: DMT ESTIMADA (km) | K27: QUANTITATIVO TOTAL DE TRANSPORTE DE MATERIAL (tkm)
A28: =IF(I28="P",H28,IF(I28="RP",G28,IF(I28="LN",F28,""))) -> 5914389 | B28: M0028 | C28: Areia média - Caminhão basculante 10 m³ | D28: 0.48713 | E28: tkm | F28: 5914359 | G28: 5914374 | H28: 5914389 | I28: =$B$21 -> P | J28: 0 | K28: =IF(ISBLANK(J28),"",J28*(D28*$I$25)) -> 0
A29: =IF(I29="P",H29,IF(I29="RP",G29,IF(I29="LN",F29,""))) -> 5914389 | B29: M0005 | C29: Brita 0 - Caminhão basculante 10 m³ | D29: 0.09368 | E29: tkm | F29: 5914359 | G29: 5914374 | H29: 5914389 | I29: =$B$21 -> P | J29: 0 | K29: =IF(ISBLANK(J29),"",J29*(D29*$I$25)) -> 0
A30: 5914389 | B30: M0191 | C30: Brita 1 - Caminhão basculante 10 m³ | D30: 0.09368 | E30: tkm | F30: 5914359 | G30: 5914374 | H30: 5914389 | I30: P | J30: =J29 -> 0 | K30: =IF(ISBLANK(J30),"",J30*(D30*$I$25)) -> 0
A31: 5914366 | B31: M0344 | C31: Cal hidratada - a granel - Caminhão silo 30 m³ | D31: 0.0562 | E31: tkm | F31: 5914364 | G31: 5914365 | H31: 5914366 | I31: P | J31: =J29 -> 0 | K31: =IF(ISBLANK(J31),"",J31*(D31*$I$25)) -> 0
A32: 5914389 | B32: M1103 | C32: Pedrisco - Caminhão basculante 10 m³ | D32: 0.20609 | E32: tkm | F32: 5914359 | G32: 5914374 | H32: 5914389 | I32: P | J32: =J29 -> 0 | K32: =IF(ISBLANK(J32),"",J32*(D32*$I$25)) -> 0
B34: PRINCIPAL: | C34: 4011463
B35: SISTEMA DE CUSTOS REFERENCIAIS DE OBRAS - SICRO | I35: Quantitivo
B36: Custo Unitário de Referência | E36: =$C$6 -> Amapá - Abril/2024 | I36: (Coeficiente na composição principal) x (quantidade da principal no orçamento) | K36: m³
B37: 1107892 | C37: Concreto fck = 20 MPa - confecção em betoneira e lançamento manual - areia e brita comerciais | I37: ='MOMENTO DE TRANSPORTE - PRINC'!D66*(VLOOKUP(C46,'RESUMO MODULO TOTAL'!D:O,7,FALSE)) -> 1848
B38: F - MOMENTO DE TRANSPORTE | D38: Quantidade | E38: Unidade | F38: DMT
F39: LN | G39: RP | H39: P | I39: TIPO (P, RP ou LN) | J39: DMT ESTIMADA (km) | K39: QUANTITATIVO TOTAL DE TRANSPORTE DE MATERIAL (tkm)
A40: =IF(I40="P",H40,IF(I40="RP",G40,IF(I40="LN",F40,""))) -> 5914479 | B40: M0030 | C40: Aditivo plastificante e retardador de pega para concreto e argamassa - Caminhão carroceria 15 t | D40: 0.00082 | E40: tkm | F40: 5914449 | G40: 5914464 | H40: 5914479 | I40: =$B$21 -> P | J40: =521-50 -> 471 | K40: =IF(ISBLANK(J40),"",J40*(D40*$I$37)) -> 713.73456
A41: =IF(I41="P",H41,IF(I41="RP",G41,IF(I41="LN",F41,""))) -> 5914389 | B41: M0082 | C41: Areia média lavada - Caminhão basculante 10 m³ | D41: 0.95639 | E41: tkm | F41: 5914359 | G41: 5914374 | H41: 5914389 | I41: =$B$21 -> P | J41: =J28 -> 0 | K41: =IF(ISBLANK(J41),"",J41*(D41*$I$37)) -> 0
A42: 5914389 | B42: M0191 | C42: Brita 1 - Caminhão basculante 10 m³ | D42: 0.55131 | E42: tkm | F42: 5914359 | G42: 5914374 | H42: 5914389 | I42: P | J42: =J29 -> 0 | K42: =IF(ISBLANK(J42),"",J42*(D42*$I$37)) -> 0
A43: 5914389 | B43: M0192 | C43: Brita 2 - Caminhão basculante 10 m³ | D43: 0.55131 | E43: tkm | F43: 5914359 | G43: 5914374 | H43: 5914389 | I43: P | J43: =J29 -> 0 | K43: =IF(ISBLANK(J43),"",J43*(D43*$I$37)) -> 0
A44: 5914479 | B44: M0424 | C44: Cimento Portland CP II - 32 - saco - Caminhão carroceria 15 t | D44: 0.27464 | E44: tkm | F44: 5914449 | G44: 5914464 | H44: 5914479 | I44: P | J44: 0 | K44: =IF(ISBLANK(J44),"",J44*(D44*$I$37)) -> 0
B46: PRINCIPAL: | C46: 2003943
B47: SISTEMA DE CUSTOS REFERENCIAIS DE OBRAS - SICRO | I47: Quantitivo
B48: Custo Unitário de Referência | E48: =$C$6 -> Amapá - Abril/2024 | I48: (Coeficiente na composição principal) x (quantidade da principal no orçamento) | K48: kg
B49: 2003842 | C49: Enchimento de junta de concreto com argamassa asfáltica de densidade 1.700 kg/m³ - espessura de 1 cm | I49: ='MOMENTO DE TRANSPORTE - PRINC'!D67*(VLOOKUP(C54,'RESUMO MODULO TOTAL'!D:O,7,FALSE)) -> 2618
B50: F - MOMENTO DE TRANSPORTE | D50: Quantidade | E50: Unidade | F50: DMT
F51: LN | G51: RP | H51: P | I51: TIPO (P, RP ou LN) | J51: DMT ESTIMADA (km) | K51: QUANTITATIVO TOTAL DE TRANSPORTE DE MATERIAL (tkm)
A52: =IF(I52="P",H52,IF(I52="RP",G52,IF(I52="LN",F52,""))) -> 5914479 | B52: M2158 | C52: Argamassa asfáltica - Caminhão carroceria com capacidade de 15 t - 188 Kw | D52: 0.001 | E52: tkm | F52: 5914449 | G52: 5914464 | H52: 5914479 | I52: =$B$21 -> P | J52: =$D$21 -> 0 | K52: =IF(ISBLANK(J52),"",J52*(D52*$I$49)) -> 0
B54: PRINCIPAL: | C54: 2003943
B55: TIPO (P, RP ou LN) | C55: DMT ATÉ 50 KM NÃO DEVE SER PAGA | D55: SOMENTE DEVE SER ADICIONADO A DISTÂNCIA EXCEDENTE A 50 KM
B56: RP | D56: 0
B58: SISTEMA DE CUSTOS REFERENCIAIS DE OBRAS - SICRO | I58: Quantitivo
B59: Custo Unitário de Referência | E59: =$C$6 -> Amapá - Abril/2024 | I59: (Coeficiente na composição principal) x (quantidade da principal no orçamento) | K59: t
B60: 6416078 | C60: =VLOOKUP(B60,'SINTÉTICO SICRO'!A:D,2,0) -> Usinagem de concreto asfáltico - faixa C - areia e brita comerciais | I60: ='MOMENTO DE TRANSPORTE - PRINC'!D81*(VLOOKUP(C69,'RESUMO MODULO TOTAL'!D:O,7,FALSE)*0) -> 0
B61: F - MOMENTO DE TRANSPORTE | D61: Quantidade | E61: Unidade | F61: DMT
F62: LN | G62: RP | H62: P | I62: TIPO (P, RP ou LN) | J62: DMT ESTIMADA (km) | K62: QUANTITATIVO TOTAL DE TRANSPORTE DE MATERIAL (tkm)
A63: =IF(I63="P",H63,IF(I63="RP",G63,IF(I63="LN",F63,""))) -> 5914374 | B63: M0028 | C63: Areia média - Caminhão basculante 10 m³ | D63: 0.48713 | E63: tkm | F63: 5914359 | G63: 5914374 | H63: 5914389 | I63: =$B$56 -> RP | J63: =$D$56 -> 0 | K63: =IF(ISBLANK(J63),"",J63*(D63*$I$60)) -> 0
A64: =IF(I64="P",H64,IF(I64="RP",G64,IF(I64="LN",F64,""))) -> 5914374 | B64: M0005 | C64: Brita 0 - Caminhão basculante 10 m³ | D64: 0.09368 | E64: tkm | F64: 5914359 | G64: 5914374 | H64: 5914389 | I64: =$B$56 -> RP | J64: =$D$56 -> 0 | K64: =IF(ISBLANK(J64),"",J64*(D64*$I$60)) -> 0
A65: 5914374 | B65: M0191 | C65: Brita 1 - Caminhão basculante 10 m³ | D65: 0.09368 | E65: tkm | F65: 5914359 | G65: 5914374 | H65: 5914389 | I65: RP | J65: 0 | K65: 0
A66: 5914365 | B66: M0344 | C66: Cal hidratada - a granel - Caminhão silo 30 m³ | D66: 0.0562 | E66: tkm | F66: 5914364 | G66: 5914365 | H66: 5914366 | I66: RP | J66: 0 | K66: 0
A67: 5914374 | B67: M1103 | C67: Pedrisco - Caminhão basculante 10 m³ | D67: 0.20609 | E67: tkm | F67: 5914359 | G67: 5914374 | H67: 5914389 | I67: RP | J67: 0 | K67: 0
B69: PRINCIPAL: | C69: 4011463
B70: SISTEMA DE CUSTOS REFERENCIAIS DE OBRAS - SICRO | I70: Quantitivo
B71: Custo Unitário de Referência | E71: =$C$6 -> Amapá - Abril/2024 | I71: (Coeficiente na composição principal) x (quantidade da principal no orçamento) | K71: m³
B72: 1107892 | C72: Concreto fck = 20 MPa - confecção em betoneira e lançamento manual - areia e brita comerciais | I72: ='MOMENTO DE TRANSPORTE - PRINC'!D117*(VLOOKUP(C81,'RESUMO MODULO TOTAL'!D:O,7,FALSE)*0) -> 0
B73: F - MOMENTO DE TRANSPORTE | D73: Quantidade | E73: Unidade | F73: DMT
F74: LN | G74: RP | H74: P | I74: TIPO (P, RP ou LN) | J74: DMT ESTIMADA (km) | K74: QUANTITATIVO TOTAL DE TRANSPORTE DE MATERIAL (tkm)
A75: =IF(I75="P",H75,IF(I75="RP",G75,IF(I75="LN",F75,""))) -> 5914464 | B75: M0030 | C75: Aditivo plastificante e retardador de pega para concreto e argamassa - Caminhão carroceria 15 t | D75: 0.00082 | E75: tkm | F75: 5914449 | G75: 5914464 | H75: 5914479 | I75: =$B$56 -> RP | J75: =$D$56 -> 0 | K75: =IF(ISBLANK(J75),"",J75*(D75*$I$72)) -> 0
A76: =IF(I76="P",H76,IF(I76="RP",G76,IF(I76="LN",F76,""))) -> 5914374 | B76: M0082 | C76: Areia média lavada - Caminhão basculante 10 m³ | D76: 0.95639 | E76: tkm | F76: 5914359 | G76: 5914374 | H76: 5914389 | I76: RP | J76: 0 | K76: =IF(ISBLANK(J76),"",J76*(D76*$I$72)) -> 0
A77: 5914374 | B77: M0191 | C77: Brita 1 - Caminhão basculante 10 m³ | D77: 0.55131 | E77: tkm | F77: 5914359 | G77: 5914374 | H77: 5914389 | I77: RP | J77: 0 | K77: 0
A78: 5914374 | B78: M0192 | C78: Brita 2 - Caminhão basculante 10 m³ | D78: 0.55131 | E78: tkm | F78: 5914359 | G78: 5914374 | H78: 5914389 | I78: RP | J78: 0 | K78: 0
A79: 5914464 | B79: M0424 | C79: Cimento Portland CP II - 32 - saco - Caminhão carroceria 15 t | D79: 0.27464 | E79: tkm | F79: 5914449 | G79: 5914464 | H79: 5914479 | I79: RP | J79: 0 | K79: 0
B81: PRINCIPAL: | C81: 2003943
B82: SISTEMA DE CUSTOS REFERENCIAIS DE OBRAS - SICRO | I82: Quantitivo
B83: Custo Unitário de Referência | E83: =$C$6 -> Amapá - Abril/2024 | I83: (Coeficiente na composição principal) x (quantidade da principal no orçamento) | K83: kg
B84: 2003842 | C84: Enchimento de junta de concreto com argamassa asfáltica de densidade 1.700 kg/m³ - espessura de 1 cm | I84: ='MOMENTO DE TRANSPORTE - PRINC'!D118*(VLOOKUP(C89,'RESUMO MODULO TOTAL'!D:O,7,FALSE)*0) -> 0
B85: F - MOMENTO DE TRANSPORTE | D85: Quantidade | E85: Unidade | F85: DMT
F86: LN | G86: RP | H86: P | I86: TIPO (P, RP ou LN) | J86: DMT ESTIMADA (km) | K86: QUANTITATIVO TOTAL DE TRANSPORTE DE MATERIAL (tkm)
A87: =IF(I87="P",H87,IF(I87="RP",G87,IF(I87="LN",F87,""))) -> 5914464 | B87: M2158 | C87: Argamassa asfáltica - Caminhão carroceria com capacidade de 15 t - 188 Kw | D87: 0.001 | E87: tkm | F87: 5914449 | G87: 5914464 | H87: 5914479 | I87: =$B$56 -> RP | J87: =$D$56 -> 0 | K87: =IF(ISBLANK(J87),"",J87*(D87*$I$84)) -> 0
B89: PRINCIPAL: | C89: 2003943
B90: TIPO (P, RP ou LN) | C90: DMT ATÉ 50 KM NÃO DEVE SER PAGA | D90: SOMENTE DEVE SER ADICIONADO A DISTÂNCIA EXCEDENTE A 50 KM
B91: LN | D91: 0
B93: SISTEMA DE CUSTOS REFERENCIAIS DE OBRAS - SICRO | I93: Quantitivo
B94: Custo Unitário de Referência | E94: =$C$6 -> Amapá - Abril/2024 | I94: (Coeficiente na composição principal) x (quantidade da principal no orçamento) | K94: t
B95: 6416078 | C95: =VLOOKUP(B95,'SINTÉTICO SICRO'!A:D,2,0) -> Usinagem de concreto asfáltico - faixa C - areia e brita comerciais | I95: ='MOMENTO DE TRANSPORTE - PRINC'!D132*(VLOOKUP(C104,'RESUMO MODULO TOTAL'!D:O,7,FALSE)*0) -> 0
B96: F - MOMENTO DE TRANSPORTE | D96: Quantidade | E96: Unidade | F96: DMT
F97: LN | G97: RP | H97: P | I97: TIPO (P, RP ou LN) | J97: DMT ESTIMADA (km) | K97: QUANTITATIVO TOTAL DE TRANSPORTE DE MATERIAL (tkm)
A98: =IF(I98="P",H98,IF(I98="RP",G98,IF(I98="LN",F98,""))) -> 5914359 | B98: M0028 | C98: Areia média - Caminhão basculante 10 m³ | D98: 0.48713 | E98: tkm | F98: 5914359 | G98: 5914374 | H98: 5914389 | I98: =$B$91 -> LN | J98: =$D$91 -> 0 | K98: =IF(ISBLANK(J98),"",J98*(D98*$I$95)) -> 0
A99: =IF(I99="P",H99,IF(I99="RP",G99,IF(I99="LN",F99,""))) -> 5914359 | B99: M0005 | C99: Brita 0 - Caminhão basculante 10 m³ | D99: 0.09368 | E99: tkm | F99: 5914359 | G99: 5914374 | H99: 5914389 | I99: =$B$91 -> LN | J99: =$D$91 -> 0 | K99: =IF(ISBLANK(J99),"",J99*(D99*$I$95)) -> 0
A100: 5914359 | B100: M0191 | C100: Brita 1 - Caminhão basculante 10 m³ | D100: 0.09368 | E100: tkm | F100: 5914359 | G100: 5914374 | H100: 5914389 | I100: LN | J100: 0 | K100: 0
A101: 5914364 | B101: M0344 | C101: Cal hidratada - a granel - Caminhão silo 30 m³ | D101: 0.0562 | E101: tkm | F101: 5914364 | G101: 5914365 | H101: 5914366 | I101: LN | J101: 0 | K101: 0
A102: 5914359 | B102: M1103 | C102: Pedrisco - Caminhão basculante 10 m³ | D102: 0.20609 | E102: tkm | F102: 5914359 | G102: 5914374 | H102: 5914389 | I102: LN | J102: 0 | K102: 0
B104: PRINCIPAL: | C104: 4011463
B105: SISTEMA DE CUSTOS REFERENCIAIS DE OBRAS - SICRO | I105: Quantitivo
B106: Custo Unitário de Referência | E106: =$C$6 -> Amapá - Abril/2024 | I106: (Coeficiente na composição principal) x (quantidade da principal no orçamento) | K106: m³
B107: 1107892 | C107: Concreto fck = 20 MPa - confecção em betoneira e lançamento manual - areia e brita comerciais | I107: ='MOMENTO DE TRANSPORTE - PRINC'!D168*(VLOOKUP(C116,'RESUMO MODULO TOTAL'!D:O,7,FALSE)*0) -> 0
B108: F - MOMENTO DE TRANSPORTE | D108: Quantidade | E108: Unidade | F108: DMT
F109: LN | G109: RP | H109: P | I109: TIPO (P, RP ou LN) | J109: DMT ESTIMADA (km) | K109: QUANTITATIVO TOTAL DE TRANSPORTE DE MATERIAL (tkm)
A110: =IF(I110="P",H110,IF(I110="RP",G110,IF(I110="LN",F110,""))) -> 5914449 | B110: M0030 | C110: Aditivo plastificante e retardador de pega para concreto e argamassa - Caminhão carroceria 15 t | D110: 0.00082 | E110: tkm | F110: 5914449 | G110: 5914464 | H110: 5914479 | I110: =$B$91 -> LN | J110: =$D$91 -> 0 | K110: =IF(ISBLANK(J110),"",J110*(D110*$I$107)) -> 0
A111: =IF(I111="P",H111,IF(I111="RP",G111,IF(I111="LN",F111,""))) -> 5914359 | B111: M0082 | C111: Areia média lavada - Caminhão basculante 10 m³ | D111: 0.95639 | E111: tkm | F111: 5914359 | G111: 5914374 | H111: 5914389 | I111: LN | J111: 0 | K111: =IF(ISBLANK(J111),"",J111*(D111*$I$107)) -> 0
A112: 5914359 | B112: M0191 | C112: Brita 1 - Caminhão basculante 10 m³ | D112: 0.55131 | E112: tkm | F112: 5914359 | G112: 5914374 | H112: 5914389 | I112: LN | J112: 0 | K112: 0
A113: 5914359 | B113: M0192 | C113: Brita 2 - Caminhão basculante 10 m³ | D113: 0.55131 | E113: tkm | F113: 5914359 | G113: 5914374 | H113: 5914389 | I113: LN | J113: 0 | K113: 0
A114: 5914449 | B114: M0424 | C114: Cimento Portland CP II - 32 - saco - Caminhão carroceria 15 t | D114: 0.27464 | E114: tkm | F114: 5914449 | G114: 5914464 | H114: 5914479 | I114: LN | J114: 0 | K114: 0
B116: PRINCIPAL: | C116: 2003943
B117: SISTEMA DE CUSTOS REFERENCIAIS DE OBRAS - SICRO | I117: Quantitivo
B118: Custo Unitário de Referência | E118: =$C$6 -> Amapá - Abril/2024 | I118: (Coeficiente na composição principal) x (quantidade da principal no orçamento) | K118: kg
B119: 2003842 | C119: Enchimento de junta de concreto com argamassa asfáltica de densidade 1.700 kg/m³ - espessura de 1 cm | I119: ='MOMENTO DE TRANSPORTE - PRINC'!D169*(VLOOKUP(C124,'RESUMO MODULO TOTAL'!D:O,7,FALSE)) -> 2618
B120: F - MOMENTO DE TRANSPORTE | D120: Quantidade | E120: Unidade | F120: DMT
F121: LN | G121: RP | H121: P | I121: TIPO (P, RP ou LN) | J121: DMT ESTIMADA (km) | K121: QUANTITATIVO TOTAL DE TRANSPORTE DE MATERIAL (tkm)
A122: =IF(I122="P",H122,IF(I122="RP",G122,IF(I122="LN",F122,""))) -> 5914449 | B122: M2158 | C122: Argamassa asfáltica - Caminhão carroceria com capacidade de 15 t - 188 Kw | D122: 0.001 | E122: tkm | F122: 5914449 | G122: 5914464 | H122: 5914479 | I122: =$B$91 -> LN | J122: =$D$91 -> 0 | K122: =IF(ISBLANK(J122),"",J122*(D122*$I$119)) -> 0
B124: PRINCIPAL: | C124: 2003943
A127: =IF(I127="P",H127,IF(I127="RP",G127,IF(I127="LN",F127,""))) -> 

Sheet MC MODULO
A1: Extensão | B1: = | C1: 2000 | D1: m | F1: QUANTIDADE DE MODULOS | G1: 11
A2: Largura | B2: = | C2: 7 | D2: m
A4: Extensão | B4: = | C4: 2 | D4: km
B6: MOBUILIZAÇÃO
A7: 1 | B7: Implantação da obra
B9: Módulos(un) | D9: Módulos(un)
B10: =G1 -> 11 | C10: = | D10: =B10 -> 11
A12: 2 | B12: Administração da obra
B14: Módulos(un) | D14: Módulos(un)
B15: =G1 -> 11 | C15: = | D15: =B15 -> 11
A17: 3 | B17: Canteiro de Obras e Almoxarifado
B19: Módulos(un) | D19: Módulos(un)
B20: =G1 -> 11 | C20: = | D20: =B20 -> 11
A22: 4 | B22: Placa de Obra em Chapa de Aço Galvanizado
B24: Módulos(un) | C24: Comprimento(m) | D24: Largura (m) | H24: Total de Area de placa (m²)
B25: =G1 -> 11 | C25: 2 | D25: 4 | H25: =C25*D25*B25*2 -> 176
B27: TERRAPLENAGEM
A29: 5 | B29: serviços topográficos para pavimentação, inclusive notas de serviços, acompanhamento e greide
B31: Extensão (m) | D31: Largura (m) | H31: area (m2)
B32: =C1*$G$1 -> 22000 | C32: x | D32: =$C$2 -> 7 | G32: = | H32: =B32*D32 -> 154000
A34: 6 | B34: Escavação, carga e transporte de material de 1ª categoria - DMT de 1.000 a 1.200 m - caminho de serviço em leito natural - com escavadeira e caminhão basculante de 14 m³
B36: Extensão (m) | D36: Largura (m) | F36: Espessura (m) | H36: Volume (m3)
B37: =C1*$G$1 -> 22000 | C37: x | D37: =$C$2 -> 7 | E37: x | F37: 0.35 | G37: = | H37: =B37*D37*F37 -> 53900
A41: 7 | B41: Espalhamento de material em bota-fora
B43: Extensão (m) | D43: Largura (m) | F43: Espessura (m) | H43: Volume (m3)
B44: =C1*$G$1 -> 22000 | C44: x | D44: =$C$2 -> 7 | E44: x | F44: 0.35 | G44: = | H44: =B44*D44*F44 -> 53900
B46: PAVIMENTAÇÃO
A48: 8 | B48: Concreto asfáltico - faixa C - areia e brita comerciais
B50: Extensão (m) | C50: Largura (m) | D50: Espessura (m) | E50: Densidade (t/m³) | H50: Volume (t)
B51: =$C$1*G1 -> 22000 | C51: =$C$2 -> 7 | D51: 0.05 | E51: 2.4 | G51: = | H51: =B51*C51*D51*E51 -> 18480
A54: 9 | B54: Imprimação com emulsão asfáltica
B56: Extensão (m) | D56: Largura (m) | H56: area (m2)
B57: =$C$1*G1 -> 22000 | C57: x | D57: =$C$2 -> 7 | G57: = | H57: =B57*D57 -> 154000
A60: 10 | B60: Pintura de ligação
B62: Extensão (m) | D62: Largura (m) | H62: area (m2)
B63: =$C$1*G1 -> 22000 | C63: x | D63: =$C$2 -> 7 | G63: = | H63: =B63*D63 -> 154000
A65: 11 | B65: Base ou sub-base de brita graduada com brita comercial
B67: Extensão (m) | D67: Largura (m) | F67: Espessura (m) | H67: Volume (m3)
B68: =C1*$G$1 -> 22000 | C68: x | D68: =$C$2 -> 7 | E68: x | F68: 0.15 | G68: = | H68: =B68*D68*F68 -> 23100
A71: 12 | B71: Sub-base estabilizada granulometricamente com mistura de solos na pista com material de jazida
B73: Extensão (m) | D73: Largura (m) | F73: Espessura (m) | H73: Volume (m3)
B74: =C1*$G$1 -> 22000 | C74: x | D74: =$C$2 -> 7 | E74: x | F74: 0.15 | G74: = | H74: =B74*D74*F74 -> 23100
A77: 13 | B77: Regularização do subleito
B79: Extensão (m) | D79: Largura (m) | H79: area (m2)
B80: =C1*$G$1 -> 22000 | C80: x | D80: =$C$2 -> 7 | G80: = | H80: =B80*D80 -> 154000
B82: SINALIZAÇÃO
A84: 20 | B84: Fornecimento e implantação de placa de regulamentação em aço D = 0,60 m - película retrorrefletiva tipo I + SI
B86: Extensão (km) | D86: Quant. (un) | H86: Quant. (un)
B87: =$C$4*$G$1 -> 22 | C87: x | D87: 3 | G87: = | H87: =B87*D87 -> 66
A89: 20 | B89: Placa de advertência em aço, lado de 0,60 m - película retrorrefletiva tipo I + SI - fornecimento e implantação
B91: Extensão (km) | D91: Quant. (un) | H91: Quant. (un)
B92: =$C$4*$G$1 -> 22 | C92: x | D92: 3 | G92: = | H92: =B92*D92 -> 66
A95: 21 | B95: Fornecimento e implantação de suporte metálico galvanizado para placa de regulamentação - D = 0,60 m
B97: Extensão (km) | D97: Quant. (un) | H97: Quant. (un)
B98: =$C$4*$G$1 -> 22 | C98: x | D98: =D87 -> 3 | G98: = | H98: =H87+H92 -> 132
A100: 22 | B100: Pintura de faixa com tinta acrílica - espessura de 0,4 mm (bordos)
B102: Extensão (m) | D102: Espessura (m) | H102: Quant. (m²)
B103: =C1*G1 -> 22000 | C103: x | D103: 0.1 | G103: = | H103: =B103*D103*2 -> 4400
B105: Pintura de faixa com tinta acrílica - espessura de 0,4 mm (faixa central)
H107: Quant. (m²)
H108: =H103*0.4 -> 1760
B111: DRENAGEM
A112: 23 | B112: Meio-fio de concreto - MFC 03 - areia e brita comerciais - fôrma de madeira
B114: Extensão (m) | D114: Quant. (un) | H114: Extensão(m)
B115: =$C$1*$G$1 -> 22000 | C115: x | D115: 2 | G115: = | H115: =B115*D115 -> 44000
A117: 19 | B117: Caiação mecanizada com fixador de cal
B119: Extensão (m) | D119: Perimetro (m) | H119: Area (m²)
B120: =$C$1*$G$1 -> 22000 | C120: x | D120: =0.24 -> 0.24 | G120: = | H120: =B120*D120 -> 5280
B123: SERVIÇOS COMPLEMENTARES
A124: 24
B126: Extensão (m) | D126: Largura (m) | G126: 0.1 | H126: extensão (m)
B127: =$C$1*G1 -> 22000 | C127: x | D127: 1 | E127: x | G127: = | H127: =G126*B127 -> 2200
B130: PROJETO EXECUTIVO
A131: 25 | B131: Projeto Executivo
B133: Extensão (m) | D133: Largura (m) | F133: Quant. (un) | H133: Área (m²)
B134: =$C$1*G1 -> 22000 | C134: x | D134: =C2 -> 7 | E134: x | F134: 1 | G134: = | H134: =B134*D134 -> 154000
B136: CONTROLE TECNOLOGICO - OBRA
A137: 26 | B137: Projeto Executivo
B139: Extensão (m) | D139: Largura (m) | F139: Quant. (un) | H139: meses
G140: = | H140: =0.5*G1 -> 5.5
F145: Perímetro caiação = 0,09 + 0,15

Sheet ANP ESTADO
A1: Agência Nacional do Petróleo, Gás Natural e Biocombustíveis
A2: Superintendência de Defesa da Concorrência
A5: PREÇO MÉDIO MENSAL PONDERADO PRATICADO PELOS DISTRIBUIDORES DE PRODUTOS ASFÁLTICOS (R$/KG)
A7: Importante: | B7: Quando não houver declaração de venda do produto selecionado, ou quando a declaração de venda do produto ocorrer por menos de 03 (três) distribuidoras, a tabela indicará campo vazio.
A8: Mês | B8: Produto | C8: Estado | D8: Preço
A9: 2013-01-01 | B9: ASFALTOS DILUÍDOS CM-30 | C9: Acre | D9: -
A10: 2013-01-01 | B10: ASFALTOS DILUÍDOS CM-30 | C10: Alagoas | D10: -
A11: 2013-01-01 | B11: ASFALTOS DILUÍDOS CM-30 | C11: Amapá | D11: -
A12: 2013-01-01 | B12: ASFALTOS DILUÍDOS CM-30 | C12: Amazonas | D12: 1.453527021
A13: 2013-01-01 | B13: ASFALTOS DILUÍDOS CM-30 | C13: Bahia | D13: 1.464044142
A14: 2013-01-01 | B14: ASFALTOS DILUÍDOS CM-30 | C14: Ceará | D14: 1.447997934
A15: 2013-01-01 | B15: ASFALTOS DILUÍDOS CM-30 | C15: Distrito Federal | D15: -
A16: 2013-01-01 | B16: ASFALTOS DILUÍDOS CM-30 | C16: Espírito Santo | D16: -
A17: 2013-01-01 | B17: ASFALTOS DILUÍDOS CM-30 | C17: Goiás | D17: 1.686383065
A18: 2013-01-01 | B18: ASFALTOS DILUÍDOS CM-30 | C18: Maranhão | D18: -
A19: 2013-01-01 | B19: ASFALTOS DILUÍDOS CM-30 | C19: Mato Grosso | D19: -
A20: 2013-01-01 | B20: ASFALTOS DILUÍDOS CM-30 | C20: Mato Grosso do Sul | D20: -
A21: 2013-01-01 | B21: ASFALTOS DILUÍDOS CM-30 | C21: Minas Gerais | D21: 1.451106114
A22: 2013-01-01 | B22: ASFALTOS DILUÍDOS CM-30 | C22: Pará | D22: -
A23: 2013-01-01 | B23: ASFALTOS DILUÍDOS CM-30 | C23: Paraíba | D23: -
A24: 2013-01-01 | B24: ASFALTOS DILUÍDOS CM-30 | C24: Paraná | D24: 1.520125031
A25: 2013-01-01 | B25: ASFALTOS DILUÍDOS CM-30 | C25: Pernambuco | D25: -
A26: 2013-01-01 | B26: ASFALTOS DILUÍDOS CM-30 | C26: Piauí | D26: -
A27: 2013-01-01 | B27: ASFALTOS DILUÍDOS CM-30 | C27: Rio de Janeiro | D27: 1.330475106
A28: 2013-01-01 | B28: ASFALTOS DILUÍDOS CM-30 | C28: Rio Grande do Norte | D28: -
A29: 2013-01-01 | B29: ASFALTOS DILUÍDOS CM-30 | C29: Rio Grande do Sul | D29: 1.598611074
A30: 2013-01-01 | B30: ASFALTOS DILUÍDOS CM-30 | C30: Rondônia | D30: -
A31: 2013-01-01 | B31: ASFALTOS DILUÍDOS CM-30 | C31: Roraima | D31: -
A32: 2013-01-01 | B32: ASFALTOS DILUÍDOS CM-30 | C32: Santa Catarina | D32: -
A33: 2013-01-01 | B33: ASFALTOS DILUÍDOS CM-30 | C33: São Paulo | D33: 1.471008423
A34: 2013-01-01 | B34: ASFALTOS DILUÍDOS CM-30 | C34: Sergipe | D34: -
A35: 2013-01-01 | B35: ASFALTOS DILUÍDOS CM-30 | C35: Tocantins | D35: -
A36: 2013-02-01 | B36: ASFALTOS DILUÍDOS CM-30 | C36: Acre | D36: -
A37: 2013-02-01 | B37: ASFALTOS DILUÍDOS CM-30 | C37: Alagoas | D37: -
A38: 2013-02-01 | B38: ASFALTOS DILUÍDOS CM-30 | C38: Amapá | D38: -
A39: 2013-02-01 | B39: ASFALTOS DILUÍDOS CM-30 | C39: Amazonas | D39: 1.485578179
A40: 2013-02-01 | B40: ASFALTOS DILUÍDOS CM-30 | C40: Bahia | D40: 1.457014101
A41: 2013-02-01 | B41: ASFALTOS DILUÍDOS CM-30 | C41: Ceará | D41: 1.413192336
A42: 2013-02-01 | B42: ASFALTOS DILUÍDOS CM-30 | C42: Distrito Federal | D42: -
A43: 2013-02-01 | B43: ASFALTOS DILUÍDOS CM-30 | C43: Espírito Santo | D43: -
A44: 2013-02-01 | B44: ASFALTOS DILUÍDOS CM-30 | C44: Goiás | D44: 1.667459711
A45: 2013-02-01 | B45: ASFALTOS DILUÍDOS CM-30 | C45: Maranhão | D45: -
A46: 2013-02-01 | B46: ASFALTOS DILUÍDOS CM-30 | C46: Mato Grosso | D46: -
A47: 2013-02-01 | B47: ASFALTOS DILUÍDOS CM-30 | C47: Mato Grosso do Sul | D47: -
A48: 2013-02-01 | B48: ASFALTOS DILUÍDOS CM-30 | C48: Minas Gerais | D48: 1.452121117
A49: 2013-02-01 | B49: ASFALTOS DILUÍDOS CM-30 | C49: Pará | D49: -
A50: 2013-02-01 | B50: ASFALTOS DILUÍDOS CM-30 | C50: Paraíba | D50: -
A51: 2013-02-01 | B51: ASFALTOS DILUÍDOS CM-30 | C51: Paraná | D51: 1.493783173
A52: 2013-02-01 | B52: ASFALTOS DILUÍDOS CM-30 | C52: Pernambuco | D52: -
A53: 2013-02-01 | B53: ASFALTOS DILUÍDOS CM-30 | C53: Piauí | D53: -
A54: 2013-02-01 | B54: ASFALTOS DILUÍDOS CM-30 | C54: Rio de Janeiro | D54: 1.418234901
A55: 2013-02-01 | B55: ASFALTOS DILUÍDOS CM-30 | C55: Rio Grande do Norte | D55: -
A56: 2013-02-01 | B56: ASFALTOS DILUÍDOS CM-30 | C56: Rio Grande do Sul | D56: 1.435861782
A57: 2013-02-01 | B57: ASFALTOS DILUÍDOS CM-30 | C57: Rondônia | D57: -
A58: 2013-02-01 | B58: ASFALTOS DILUÍDOS CM-30 | C58: Roraima | D58: -
A59: 2013-02-01 | B59: ASFALTOS DILUÍDOS CM-30 | C59: Santa Catarina | D59: -
A60: 2013-02-01 | B60: ASFALTOS DILUÍDOS CM-30 | C60: São Paulo | D60: 1.434190204
A61: 2013-02-01 | B61: ASFALTOS DILUÍDOS CM-30 | C61: Sergipe | D61: -
A62: 2013-02-01 | B62: ASFALTOS DILUÍDOS CM-30 | C62: Tocantins | D62: -
A63: 2013-03-01 | B63: ASFALTOS DILUÍDOS CM-30 | C63: Acre | D63: -
A64: 2013-03-01 | B64: ASFALTOS DILUÍDOS CM-30 | C64: Alagoas | D64: -
A65: 2013-03-01 | B65: ASFALTOS DILUÍDOS CM-30 | C65: Amapá | D65: -
A66: 2013-03-01 | B66: ASFALTOS DILUÍDOS CM-30 | C66: Amazonas | D66: 1.507923921
A67: 2013-03-01 | B67: ASFALTOS DILUÍDOS CM-30 | C67: Bahia | D67: 1.449440325
A68: 2013-03-01 | B68: ASFALTOS DILUÍDOS CM-30 | C68: Ceará | D68: 1.401607485
A69: 2013-03-01 | B69: ASFALTOS DILUÍDOS CM-30 | C69: Distrito Federal | D69: -
A70: 2013-03-01 | B70: ASFALTOS DILUÍDOS CM-30 | C70: Espírito Santo | D70: -
A71: 2013-03-01 | B71: ASFALTOS DILUÍDOS CM-30 | C71: Goiás | D71: 1.661758701
A72: 2013-03-01 | B72: ASFALTOS DILUÍDOS CM-30 | C72: Maranhão | D72: -
A73: 2013-03-01 | B73: ASFALTOS DILUÍDOS CM-30 | C73: Mato Grosso | D73: -
A74: 2013-03-01 | B74: ASFALTOS DILUÍDOS CM-30 | C74: Mato Grosso do Sul | D74: -
A75: 2013-03-01 | B75: ASFALTOS DILUÍDOS CM-30 | C75: Minas Gerais | D75: 1.44324333
A76: 2013-03-01 | B76: ASFALTOS DILUÍDOS CM-30 | C76: Pará | D76: -
A77: 2013-03-01 | B77: ASFALTOS DILUÍDOS CM-30 | C77: Paraíba | D77: -
A78: 2013-03-01 | B78: ASFALTOS DILUÍDOS CM-30 | C78: Paraná | D78: 1.468995996
A79: 2013-03-01 | B79: ASFALTOS DILUÍDOS CM-30 | C79: Pernambuco | D79: -
A80: 2013-03-01 | B80: ASFALTOS DILUÍDOS CM-30 | C80: Piauí | D80: -
A81: 2013-03-01 | B81: ASFALTOS DILUÍDOS CM-30 | C81: Rio de Janeiro | D81: 1.438055574
A82: 2013-03-01 | B82: ASFALTOS DILUÍDOS CM-30 | C82: Rio Grande do Norte | D82: -
A83: 2013-03-01 | B83: ASFALTOS DILUÍDOS CM-30 | C83: Rio Grande do Sul | D83: 1.581425878
A84: 2013-03-01 | B84: ASFALTOS DILUÍDOS CM-30 | C84: Rondônia | D84: -
A85: 2013-03-01 | B85: ASFALTOS DILUÍDOS CM-30 | C85: Roraima | D85: -
A86: 2013-03-01 | B86: ASFALTOS DILUÍDOS CM-30 | C86: Santa Catarina | D86: -
A87: 2013-03-01 | B87: ASFALTOS DILUÍDOS CM-30 | C87: São Paulo | D87: 1.466061702
A88: 2013-03-01 | B88: ASFALTOS DILUÍDOS CM-30 | C88: Sergipe | D88: -
A89: 2013-03-01 | B89: ASFALTOS DILUÍDOS CM-30 | C89: Tocantins | D89: -
A90: 2013-04-01 | B90: ASFALTOS DILUÍDOS CM-30 | C90: Acre | D90: -
A91: 2013-04-01 | B91: ASFALTOS DILUÍDOS CM-30 | C91: Alagoas | D91: -
A92: 2013-04-01 | B92: ASFALTOS DILUÍDOS CM-30 | C92: Amapá | D92: -
A93: 2013-04-01 | B93: ASFALTOS DILUÍDOS CM-30 | C93: Amazonas | D93: 1.484796656
A94: 2013-04-01 | B94: ASFALTOS DILUÍDOS CM-30 | C94: Bahia | D94: 1.454836546
A95: 2013-04-01 | B95: ASFALTOS DILUÍDOS CM-30 | C95: Ceará | D95: 1.387073962
A96: 2013-04-01 | B96: ASFALTOS DILUÍDOS CM-30 | C96: Distrito Federal | D96: -
A97: 2013-04-01 | B97: ASFALTOS DILUÍDOS CM-30 | C97: Espírito Santo | D97: -
A98: 2013-04-01 | B98: ASFALTOS DILUÍDOS CM-30 | C98: Goiás | D98: 1.673481836
A99: 2013-04-01 | B99: ASFALTOS DILUÍDOS CM-30 | C99: Maranhão | D99: -
A100: 2013-04-01 | B100: ASFALTOS DILUÍDOS CM-30 | C100: Mato Grosso | D100: 1.921938422
A101: 2013-04-01 | B101: ASFALTOS DILUÍDOS CM-30 | C101: Mato Grosso do Sul | D101: -
A102: 2013-04-01 | B102: ASFALTOS DILUÍDOS CM-30 | C102: Minas Gerais | D102: 1.456556683
A103: 2013-04-01 | B103: ASFALTOS DILUÍDOS CM-30 | C103: Pará | D103: -
A104: 2013-04-01 | B104: ASFALTOS DILUÍDOS CM-30 | C104: Paraíba | D104: -
A105: 2013-04-01 | B105: ASFALTOS DILUÍDOS CM-30 | C105: Paraná | D105: 1.534419498
A106: 2013-04-01 | B106: ASFALTOS DILUÍDOS CM-30 | C106: Pernambuco | D106: -
A107: 2013-04-01 | B107: ASFALTOS DILUÍDOS CM-30 | C107: Piauí | D107: -
A108: 2013-04-01 | B108: ASFALTOS DILUÍDOS CM-30 | C108: Rio de Janeiro | D108: 1.418419516
A109: 2013-04-01 | B109: ASFALTOS DILUÍDOS CM-30 | C109: Rio Grande do Norte | D109: -
A110: 2013-04-01 | B110: ASFALTOS DILUÍDOS CM-30 | C110: Rio Grande do Sul | D110: 1.572582456
A111: 2013-04-01 | B111: ASFALTOS DILUÍDOS CM-30 | C111: Rondônia | D111: -
A112: 2013-04-01 | B112: ASFALTOS DILUÍDOS CM-30 | C112: Roraima | D112: -
A113: 2013-04-01 | B113: ASFALTOS DILUÍDOS CM-30 | C113: Santa Catarina | D113: -
A114: 2013-04-01 | B114: ASFALTOS DILUÍDOS CM-30 | C114: São Paulo | D114: 1.475764348
A115: 2013-04-01 | B115: ASFALTOS DILUÍDOS CM-30 | C115: Sergipe | D115: -
A116: 2013-04-01 | B116: ASFALTOS DILUÍDOS CM-30 | C116: Tocantins | D116: -
A117: 2013-05-01 | B117: ASFALTOS DILUÍDOS CM-30 | C117: Acre | D117: -
A118: 2013-05-01 | B118: ASFALTOS DILUÍDOS CM-30 | C118: Alagoas | D118: -
A119: 2013-05-01 | B119: ASFALTOS DILUÍDOS CM-30 | C119: Amapá | D119: -
A120: 2013-05-01 | B120: ASFALTOS DILUÍDOS CM-30 | C120: Amazonas | D120: -
A121: 2013-05-01 | B121: ASFALTOS DILUÍDOS CM-30 | C121: Bahia | D121: 1.492587424
A122: 2013-05-01 | B122: ASFALTOS DILUÍDOS CM-30 | C122: Ceará | D122: 1.376263021
A123: 2013-05-01 | B123: ASFALTOS DILUÍDOS CM-30 | C123: Distrito Federal | D123: -
A124: 2013-05-01 | B124: ASFALTOS DILUÍDOS CM-30 | C124: Espírito Santo | D124: -
A125: 2013-05-01 | B125: ASFALTOS DILUÍDOS CM-30 | C125: Goiás | D125: 1.668214819
A126: 2013-05-01 | B126: ASFALTOS DILUÍDOS CM-30 | C126: Maranhão | D126: -
A127: 2013-05-01 | B127: ASFALTOS DILUÍDOS CM-30 | C127: Mato Grosso | D127: 1.903098159
A128: 2013-05-01 | B128: ASFALTOS DILUÍDOS CM-30 | C128: Mato Grosso do Sul | D128: -
A129: 2013-05-01 | B129: ASFALTOS DILUÍDOS CM-30 | C129: Minas Gerais | D129: 1.464709716
A130: 2013-05-01 | B130: ASFALTOS DILUÍDOS CM-30 | C130: Pará | D130: -
A131: 2013-05-01 | B131: ASFALTOS DILUÍDOS CM-30 | C131: Paraíba | D131: -
A132: 2013-05-01 | B132: ASFALTOS DILUÍDOS CM-30 | C132: Paraná | D132: 1.489027849
A133: 2013-05-01 | B133: ASFALTOS DILUÍDOS CM-30 | C133: Pernambuco | D133: -
A134: 2013-05-01 | B134: ASFALTOS DILUÍDOS CM-30 | C134: Piauí | D134: -
A135: 2013-05-01 | B135: ASFALTOS DILUÍDOS CM-30 | C135: Rio de Janeiro | D135: 1.399256048
A136: 2013-05-01 | B136: ASFALTOS DILUÍDOS CM-30 | C136: Rio Grande do Norte | D136: -
A137: 2013-05-01 | B137: ASFALTOS DILUÍDOS CM-30 | C137: Rio Grande do Sul | D137: 1.539636961
A138: 2013-05-01 | B138: ASFALTOS DILUÍDOS CM-30 | C138: Rondônia | D138: -
A139: 2013-05-01 | B139: ASFALTOS DILUÍDOS CM-30 | C139: Roraima | D139: -
A140: 2013-05-01 | B140: ASFALTOS DILUÍDOS CM-30 | C140: Santa Catarina | D140: -
A141: 2013-05-01 | B141: ASFALTOS DILUÍDOS CM-30 | C141: São Paulo | D141: 1.451215936
A142: 2013-05-01 | B142: ASFALTOS DILUÍDOS CM-30 | C142: Sergipe | D142: -
A143: 2013-05-01 | B143: ASFALTOS DILUÍDOS CM-30 | C143: Tocantins | D143: -
A144: 2013-06-01 | B144: ASFALTOS DILUÍDOS CM-30 | C144: Acre | D144: -
A145: 2013-06-01 | B145: ASFALTOS DILUÍDOS CM-30 | C145: Alagoas | D145: -
A146: 2013-06-01 | B146: ASFALTOS DILUÍDOS CM-30 | C146: Amapá | D146: -
A147: 2013-06-01 | B147: ASFALTOS DILUÍDOS CM-30 | C147: Amazonas | D147: 1.586325818
A148: 2013-06-01 | B148: ASFALTOS DILUÍDOS CM-30 | C148: Bahia | D148: 1.44812907
A149: 2013-06-01 | B149: ASFALTOS DILUÍDOS CM-30 | C149: Ceará | D149: 1.382700989
A150: 2013-06-01 | B150: ASFALTOS DILUÍDOS CM-30 | C150: Distrito Federal | D150: -
A151: 2013-06-01 | B151: ASFALTOS DILUÍDOS CM-30 | C151: Espírito Santo | D151: -
A152: 2013-06-01 | B152: ASFALTOS DILUÍDOS CM-30 | C152: Goiás | D152: 1.699613867
A153: 2013-06-01 | B153: ASFALTOS DILUÍDOS CM-30 | C153: Maranhão | D153: -
A154: 2013-06-01 | B154: ASFALTOS DILUÍDOS CM-30 | C154: Mato Grosso | D154: 1.915975658
A155: 2013-06-01 | B155: ASFALTOS DILUÍDOS CM-30 | C155: Mato Grosso do Sul | D155: -
A156: 2013-06-01 | B156: ASFALTOS DILUÍDOS CM-30 | C156: Minas Gerais | D156: 1.475366896
A157: 2013-06-01 | B157: ASFALTOS DILUÍDOS CM-30 | C157: Pará | D157: -
A158: 2013-06-01 | B158: ASFALTOS DILUÍDOS CM-30 | C158: Paraíba | D158: -
A159: 2013-06-01 | B159: ASFALTOS DILUÍDOS CM-30 | C159: Paraná | D159: 1.432166974
A160: 2013-06-01 | B160: ASFALTOS DILUÍDOS CM-30 | C160: Pernambuco | D160: -
A161: 2013-06-01 | B161: ASFALTOS DILUÍDOS CM-30 | C161: Piauí | D161: -
A162: 2013-06-01 | B162: ASFALTOS DILUÍDOS CM-30 | C162: Rio de Janeiro | D162: 1.527420226
A163: 2013-06-01 | B163: ASFALTOS DILUÍDOS CM-30 | C163: Rio Grande do Norte | D163: -
A164: 2013-06-01 | B164: ASFALTOS DILUÍDOS CM-30 | C164: Rio Grande do Sul | D164: 1.59868349
A165: 2013-06-01 | B165: ASFALTOS DILUÍDOS CM-30 | C165: Rondônia | D165: -
A166: 2013-06-01 | B166: ASFALTOS DILUÍDOS CM-30 | C166: Roraima | D166: -
A167: 2013-06-01 | B167: ASFALTOS DILUÍDOS CM-30 | C167: Santa Catarina | D167: -
A168: 2013-06-01 | B168: ASFALTOS DILUÍDOS CM-30 | C168: São Paulo | D168: 1.432748187
A169: 2013-06-01 | B169: ASFALTOS DILUÍDOS CM-30 | C169: Sergipe | D169: -
A170: 2013-06-01 | B170: ASFALTOS DILUÍDOS CM-30 | C170: Tocantins | D170: -
A171: 2013-07-01 | B171: ASFALTOS DILUÍDOS CM-30 | C171: Acre | D171: -
A172: 2013-07-01 | B172: ASFALTOS DILUÍDOS CM-30 | C172: Alagoas | D172: -
A173: 2013-07-01 | B173: ASFALTOS DILUÍDOS CM-30 | C173: Amapá | D173: -
A174: 2013-07-01 | B174: ASFALTOS DILUÍDOS CM-30 | C174: Amazonas | D174: 1.509890931
A175: 2013-07-01 | B175: ASFALTOS DILUÍDOS CM-30 | C175: Bahia | D175: 1.436150016
A176: 2013-07-01 | B176: ASFALTOS DILUÍDOS CM-30 | C176: Ceará | D176: 1.424835845
A177: 2013-07-01 | B177: ASFALTOS DILUÍDOS CM-30 | C177: Distrito Federal | D177: -
A178: 2013-07-01 | B178: ASFALTOS DILUÍDOS CM-30 | C178: Espírito Santo | D178: -
A179: 2013-07-01 | B179: ASFALTOS DILUÍDOS CM-30 | C179: Goiás | D179: 1.663778454
A180: 2013-07-01 | B180: ASFALTOS DILUÍDOS CM-30 | C180: Maranhão | D180: -
A181: 2013-07-01 | B181: ASFALTOS DILUÍDOS CM-30 | C181: Mato Grosso | D181: 1.930589551
A182: 2013-07-01 | B182: ASFALTOS DILUÍDOS CM-30 | C182: Mato Grosso do Sul | D182: -
A183: 2013-07-01 | B183: ASFALTOS DILUÍDOS CM-30 | C183: Minas Gerais | D183: 1.476572352
A184: 2013-07-01 | B184: ASFALTOS DILUÍDOS CM-30 | C184: Pará | D184: -
A185: 2013-07-01 | B185: ASFALTOS DILUÍDOS CM-30 | C185: Paraíba | D185: -
A186: 2013-07-01 | B186: ASFALTOS DILUÍDOS CM-30 | C186: Paraná | D186: 1.477167274
A187: 2013-07-01 | B187: ASFALTOS DILUÍDOS CM-30 | C187: Pernambuco | D187: -
A188: 2013-07-01 | B188: ASFALTOS DILUÍDOS CM-30 | C188: Piauí | D188: -
A189: 2013-07-01 | B189: ASFALTOS DILUÍDOS CM-30 | C189: Rio de Janeiro | D189: 1.584464713
A190: 2013-07-01 | B190: ASFALTOS DILUÍDOS CM-30 | C190: Rio Grande do Norte | D190: -
A191: 2013-07-01 | B191: ASFALTOS DILUÍDOS CM-30 | C191: Rio Grande do Sul | D191: 1.612487925
A192: 2013-07-01 | B192: ASFALTOS DILUÍDOS CM-30 | C192: Rondônia | D192: -
A193: 2013-07-01 | B193: ASFALTOS DILUÍDOS CM-30 | C193: Roraima | D193: -
A194: 2013-07-01 | B194: ASFALTOS DILUÍDOS CM-30 | C194: Santa Catarina | D194: -
A195: 2013-07-01 | B195: ASFALTOS DILUÍDOS CM-30 | C195: São Paulo | D195: 1.507844909
A196: 2013-07-01 | B196: ASFALTOS DILUÍDOS CM-30 | C196: Sergipe | D196: -
A197: 2013-07-01 | B197: ASFALTOS DILUÍDOS CM-30 | C197: Tocantins | D197: -
A198: 2013-08-01 | B198: ASFALTOS DILUÍDOS CM-30 | C198: Acre | D198: -
A199: 2013-08-01 | B199: ASFALTOS DILUÍDOS CM-30 | C199: Alagoas | D199: -
A200: 2013-08-01 | B200: ASFALTOS DILUÍDOS CM-30 | C200: Amapá | D200: -
A201: 2013-08-01 | B201: ASFALTOS DILUÍDOS CM-30 | C201: Amazonas | D201: 1.509275641
A202: 2013-08-01 | B202: ASFALTOS DILUÍDOS CM-30 | C202: Bahia | D202: 1.416699323
A203: 2013-08-01 | B203: ASFALTOS DILUÍDOS CM-30 | C203: Ceará | D203: 1.447403364
... 4297 more rows

Sheet ANP REGIÃO
A1: Agência Nacional do Petróleo, Gás Natural e Biocombustíveis
A2: Superintendência de Defesa da Concorrência
A6: PREÇO MÉDIO MENSAL PONDERADO PRATICADO PELOS DISTRIBUIDORES DE PRODUTOS ASFÁLTICOS (R$/KG)
A8: Produto | B8: Mês | C8: Norte | D8: Nordeste | E8: Centro-Oeste | F8: Sudeste | G8: Sul | H8: Brasil
A9: ASFALTOS DILUÍDOS CM-30 | B9: 2008-11-01 | C9: 1.775468292 | D9: 1.55087853 | E9: 2.022143291 | F9: 1.55449367 | G9: 1.584532899 | H9: 1.64286837
A10: ASFALTOS DILUÍDOS CM-30 | B10: 2008-12-01 | C10: 1.806837667 | D10: 1.509118192 | E10: 2.013020124 | F10: 1.610902223 | G10: 1.607187591 | H10: 1.637581471
A11: ASFALTOS DILUÍDOS CM-30 | B11: 2009-01-01 | C11: 1.497052858 | D11: 1.504296346 | E11: 1.963097671 | F11: 1.524672247 | G11: 1.585137209 | H11: 1.564945876
A12: ASFALTOS DILUÍDOS CM-30 | B12: 2009-02-01 | C12: 1.42787112 | D12: 1.497693283 | E12: 1.981065098 | F12: 1.583490231 | G12: 1.595924062 | H12: 1.565451036
A13: ASFALTOS DILUÍDOS CM-30 | B13: 2009-03-01 | C13: 1.404941405 | D13: 1.497647987 | E13: 1.893430263 | F13: 1.52754782 | G13: 1.588720029 | H13: 1.532713147
A14: ASFALTOS DILUÍDOS CM-30 | B14: 2009-04-01 | C14: 1.410510748 | D14: 1.484826261 | E14: 1.909226429 | F14: 1.464149371 | G14: 1.553831928 | H14: 1.516717648
A15: ASFALTOS DILUÍDOS CM-30 | B15: 2009-05-01 | C15: 1.480355678 | D15: 1.466898928 | E15: 1.891590435 | F15: 1.435443718 | G15: 1.54161118 | H15: 1.537574371
A16: ASFALTOS DILUÍDOS CM-30 | B16: 2009-06-01 | C16: 1.580751039 | D16: 1.444888837 | E16: 1.842074119 | F16: 1.424264315 | G16: 1.501526696 | H16: 1.541315575
A17: ASFALTOS DILUÍDOS CM-30 | B17: 2009-07-01 | C17: 1.905432476 | D17: 1.482618211 | E17: 1.949046345 | F17: 1.584435299 | G17: 1.610310436 | H17: 1.651032523
A18: ASFALTOS DILUÍDOS CM-30 | B18: 2009-08-01 | C18: 1.716995184 | D18: 1.423854915 | E18: 1.712385478 | F18: 1.418000805 | G18: 1.520643497 | H18: 1.504911469
A19: ASFALTOS DILUÍDOS CM-30 | B19: 2009-09-01 | C19: 1.64329494 | D19: 1.445317761 | E19: 1.731518803 | F19: 1.419374251 | G19: 1.500735895 | H19: 1.50552312
A20: ASFALTOS DILUÍDOS CM-30 | B20: 2009-10-01 | C20: 1.588031924 | D20: 1.458932649 | E20: 1.762015056 | F20: 1.429024419 | G20: 1.513753831 | H20: 1.511681904
A21: ASFALTOS DILUÍDOS CM-30 | B21: 2009-11-01 | C21: 1.639348604 | D21: 1.449059777 | E21: 1.772650817 | F21: 1.434122677 | G21: 1.526043188 | H21: 1.499657392
A22: ASFALTOS DILUÍDOS CM-30 | B22: 2009-12-01 | C22: 1.664266853 | D22: 1.441966636 | E22: 1.890574802 | F22: 1.429077727 | G22: 1.520539334 | H22: 1.508864598
A23: ASFALTOS DILUÍDOS CM-30 | B23: 2010-01-01 | C23: 1.842506144 | D23: 1.454977129 | E23: 1.865022447 | F23: 1.414817608 | G23: 1.474450765 | H23: 1.497735227
A24: ASFALTOS DILUÍDOS CM-30 | B24: 2010-02-01 | C24: 1.709886915 | D24: 1.442956487 | E24: 1.919844741 | F24: 1.433146251 | G24: 1.500882448 | H24: 1.496542251
A25: ASFALTOS DILUÍDOS CM-30 | B25: 2010-03-01 | C25: 1.535743416 | D25: 1.448880499 | E25: 1.935062728 | F25: 1.435026116 | G25: 1.480618635 | H25: 1.486789802
A26: ASFALTOS DILUÍDOS CM-30 | B26: 2010-04-01 | C26: 1.710046479 | D26: 1.440300254 | E26: 1.911935961 | F26: 1.421102153 | G26: 1.481270937 | H26: 1.511086431
A27: ASFALTOS DILUÍDOS CM-30 | B27: 2010-05-01 | C27: 1.755610465 | D27: 1.435277221 | E27: 1.873293889 | F27: 1.406944432 | G27: 1.48177605 | H27: 1.537170565
A28: ASFALTOS DILUÍDOS CM-30 | B28: 2010-06-01 | C28: 1.602224314 | D28: 1.396004336 | E28: 1.731734721 | F28: 1.399996227 | G28: 1.49193962 | H28: 1.498073418
A29: ASFALTOS DILUÍDOS CM-30 | B29: 2010-07-01 | C29: 1.559901627 | D29: 1.381016708 | E29: 1.732688214 | F29: 1.402904856 | G29: 1.473854427 | H29: 1.490075269
A30: ASFALTOS DILUÍDOS CM-30 | B30: 2010-08-01 | C30: 1.526639389 | D30: 1.38817836 | E30: 1.738946087 | F30: 1.398751236 | G30: 1.455749849 | H30: 1.495828516
A31: ASFALTOS DILUÍDOS CM-30 | B31: 2010-09-01 | C31: 1.565378829 | D31: 1.408204664 | E31: 1.757027378 | F31: 1.411642875 | G31: 1.487257745 | H31: 1.512257128
A32: ASFALTOS DILUÍDOS CM-30 | B32: 2010-10-01 | C32: 1.481711294 | D32: 1.404357715 | E32: 1.751159947 | F32: 1.403489437 | G32: 1.469340847 | H32: 1.49988826
A33: ASFALTOS DILUÍDOS CM-30 | B33: 2010-11-01 | C33: 1.519267672 | D33: 1.410130904 | E33: 1.779405625 | F33: 1.421283822 | G33: 1.458559112 | H33: 1.481658635
A34: ASFALTOS DILUÍDOS CM-30 | B34: 2010-12-01 | C34: 1.559287556 | D34: 1.40982051 | E34: 1.825185618 | F34: 1.417673572 | G34: 1.473243884 | H34: 1.469113031
A35: ASFALTOS DILUÍDOS CM-30 | B35: 2011-01-01 | C35: 1.525923305 | D35: 1.445794092 | E35: 1.774600924 | F35: 1.403274235 | G35: 1.466002814 | H35: 1.457256066
A36: ASFALTOS DILUÍDOS CM-30 | B36: 2011-02-01 | C36: 1.552825112 | D36: 1.392094259 | E36: 1.763836123 | F36: 1.385194937 | G36: 1.44955884 | H36: 1.426250478
A37: ASFALTOS DILUÍDOS CM-30 | B37: 2011-03-01 | C37: 1.469219693 | D37: 1.369442916 | E37: 1.696017922 | F37: 1.353812804 | G37: 1.435170694 | H37: 1.400130249
A38: ASFALTOS DILUÍDOS CM-30 | B38: 2011-04-01 | C38: 1.470570262 | D38: 1.373220492 | E38: 1.650829394 | F38: 1.345928103 | G38: 1.42199894 | H38: 1.400493522
A39: ASFALTOS DILUÍDOS CM-30 | B39: 2011-05-01 | C39: 1.428528955 | D39: 1.322646267 | E39: 1.700380913 | F39: 1.345068163 | G39: 1.439361431 | H39: 1.428058019
A40: ASFALTOS DILUÍDOS CM-30 | B40: 2011-06-01 | C40: 1.407622163 | D40: 1.305708657 | E40: 1.741843669 | F40: 1.354620495 | G40: 1.399501693 | H40: 1.44029982
A41: ASFALTOS DILUÍDOS CM-30 | B41: 2011-07-01 | C41: 1.259234065 | D41: 1.312033305 | E41: 1.737489696 | F41: 1.33656388 | G41: 1.422474887 | H41: 1.420839252
A42: ASFALTOS DILUÍDOS CM-30 | B42: 2011-08-01 | C42: 1.470680061 | D42: 1.299778765 | E42: 1.727443485 | F42: 1.341477821 | G42: 1.353018352 | H42: 1.425675534
A43: ASFALTOS DILUÍDOS CM-30 | B43: 2011-09-01 | C43: 1.56132872 | D43: 1.321196084 | E43: 1.729821548 | F43: 1.357451483 | G43: 1.395684798 | H43: 1.455202413
A44: ASFALTOS DILUÍDOS CM-30 | B44: 2011-10-01 | C44: 1.520569722 | D44: 1.326218736 | E44: 1.71738046 | F44: 1.332691392 | G44: 1.3577774 | H44: 1.442295871
A45: ASFALTOS DILUÍDOS CM-30 | B45: 2011-11-01 | C45: 1.465886334 | D45: 1.337041154 | E45: 1.741004886 | F45: 1.345486103 | G45: 1.447580565 | H45: 1.445354137
A46: ASFALTOS DILUÍDOS CM-30 | B46: 2011-12-01 | C46: 1.470883899 | D46: 1.335587636 | E46: 1.778724141 | F46: 1.408293068 | G46: 1.428112306 | H46: 1.422418604
A47: ASFALTOS DILUÍDOS CM-30 | B47: 2012-01-01 | C47: 1.384955015 | D47: 1.350130156 | E47: 1.780783883 | F47: 1.421354107 | G47: 1.430352474 | H47: 1.394658167
A48: ASFALTOS DILUÍDOS CM-30 | B48: 2012-02-01 | C48: 1.332181678 | D48: 1.368143891 | E48: 1.741020394 | F48: 1.400200985 | G48: 1.425400986 | H48: 1.410605707
A49: ASFALTOS DILUÍDOS CM-30 | B49: 2012-03-01 | C49: 1.411621867 | D49: 1.349122214 | E49: 1.620096006 | F49: 1.393295764 | G49: 1.406130569 | H49: 1.409768786
A50: ASFALTOS DILUÍDOS CM-30 | B50: 2012-04-01 | C50: 1.549007912 | D50: 1.383976456 | E50: 1.640712752 | F50: 1.404716397 | G50: 1.440617793 | H50: 1.45608482
A51: ASFALTOS DILUÍDOS CM-30 | B51: 2012-05-01 | C51: 1.596178941 | D51: 1.386362272 | E51: 1.712061183 | F51: 1.39923955 | G51: 1.448350887 | H51: 1.498461969
A52: ASFALTOS DILUÍDOS CM-30 | B52: 2012-06-01 | C52: 1.701432576 | D52: 1.388053518 | E52: 1.740352007 | F52: 1.422118749 | G52: 1.449196072 | H52: 1.527722717
A53: ASFALTOS DILUÍDOS CM-30 | B53: 2012-07-01 | C53: 1.652026742 | D53: 1.39436857 | E53: 1.718644846 | F53: 1.439670261 | G53: 1.46187567 | H53: 1.523069159
A54: ASFALTOS DILUÍDOS CM-30 | B54: 2012-08-01 | C54: 1.689998835 | D54: 1.40333785 | E54: 1.741895041 | F54: 1.421723369 | G54: 1.445685799 | H54: 1.536533078
A55: ASFALTOS DILUÍDOS CM-30 | B55: 2012-09-01 | C55: 1.690177972 | D55: 1.421500003 | E55: 1.780920724 | F55: 1.445180432 | G55: 1.483645866 | H55: 1.549410653
A56: ASFALTOS DILUÍDOS CM-30 | B56: 2012-10-01 | C56: 1.574840342 | D56: 1.417066109 | E56: 1.794832036 | F56: 1.451304526 | G56: 1.482037109 | H56: 1.550631802
A57: ASFALTOS DILUÍDOS CM-30 | B57: 2012-11-01 | C57: 1.655163526 | D57: 1.455878748 | E57: 1.840129766 | F57: 1.461204615 | G57: 1.483499722 | H57: 1.552500776
A58: ASFALTOS DILUÍDOS CM-30 | B58: 2012-12-01 | C58: 1.714876125 | D58: 1.435854741 | E58: 1.804066573 | F58: 1.45222765 | G58: 1.509417648 | H58: 1.523411999
A59: ASFALTOS DILUÍDOS CM-30 | B59: 2013-01-01 | C59: 1.495776335 | D59: 1.449494588 | E59: 1.854050525 | F59: 1.44638752 | G59: 1.563753675 | H59: 1.502137259
A60: ASFALTOS DILUÍDOS CM-30 | B60: 2013-02-01 | C60: 1.635067666 | D60: 1.420609638 | E60: 1.731071498 | F60: 1.442746356 | G60: 1.461828405 | H60: 1.4739561
A61: ASFALTOS DILUÍDOS CM-30 | B61: 2013-03-01 | C61: 1.646229098 | D61: 1.413299983 | E61: 1.83828087 | F61: 1.450015152 | G61: 1.525760413 | H61: 1.506542904
A62: ASFALTOS DILUÍDOS CM-30 | B62: 2013-04-01 | C62: 1.581864474 | D62: 1.399189564 | E62: 1.793825113 | F62: 1.458704755 | G62: 1.551913702 | H62: 1.523623636
A63: ASFALTOS DILUÍDOS CM-30 | B63: 2013-05-01 | C63: 1.815646773 | D63: 1.390143517 | E63: 1.812783313 | F63: 1.44951052 | G63: 1.504233457 | H63: 1.549918592
A64: ASFALTOS DILUÍDOS CM-30 | B64: 2013-06-01 | C64: 1.631101583 | D64: 1.383186536 | E64: 1.816642105 | F64: 1.474232641 | G64: 1.503043689 | H64: 1.581049429
A65: ASFALTOS DILUÍDOS CM-30 | B65: 2013-07-01 | C65: 1.86596563 | D65: 1.422051117 | E65: 1.793072753 | F65: 1.498018808 | G65: 1.533391901 | H65: 1.59880513
A66: ASFALTOS DILUÍDOS CM-30 | B66: 2013-08-01 | C66: 1.700325546 | D66: 1.435094415 | E66: 1.821452614 | F66: 1.511722868 | G66: 1.530793596 | H66: 1.606176585
A67: ASFALTOS DILUÍDOS CM-30 | B67: 2013-09-01 | C67: 1.562873733 | D67: 1.472197748 | E67: 1.879842712 | F67: 1.542652867 | G67: 1.490667543 | H67: 1.627945893
A68: ASFALTOS DILUÍDOS CM-30 | B68: 2013-10-01 | C68: 1.648504013 | D68: 1.472152345 | E68: 1.825494997 | F68: 1.501177682 | G68: 1.48378912 | H68: 1.597538775
A69: ASFALTOS DILUÍDOS CM-30 | B69: 2013-11-01 | C69: 1.619179062 | D69: 1.486413317 | E69: 1.844012679 | F69: 1.496326809 | G69: 1.506096878 | H69: 1.581665844
A70: ASFALTOS DILUÍDOS CM-30 | B70: 2013-12-01 | C70: 1.633358293 | D70: 1.494818097 | E70: 1.897197176 | F70: 1.502864538 | G70: 1.517074296 | H70: 1.572475244
A71: ASFALTOS DILUÍDOS CM-30 | B71: 2014-01-01 | C71: 1.688311265 | D71: 1.494181305 | E71: 1.798355903 | F71: 1.484202293 | G71: 1.533353813 | H71: 1.542909737
A72: ASFALTOS DILUÍDOS CM-30 | B72: 2014-02-01 | C72: 1.598304434 | D72: 1.479706587 | E72: 1.814390215 | F72: 1.514829392 | G72: 1.522800588 | H72: 1.528970287
A73: ASFALTOS DILUÍDOS CM-30 | B73: 2014-03-01 | C73: 1.648287687 | D73: 1.472852501 | E73: 1.76657319 | F73: 1.513020673 | G73: 1.506185248 | H73: 1.530181178
A74: ASFALTOS DILUÍDOS CM-30 | B74: 2014-04-01 | C74: 1.534459987 | D74: 1.493898767 | E74: 1.757271278 | F74: 1.533021309 | G74: 1.524275274 | H74: 1.550566305
A75: ASFALTOS DILUÍDOS CM-30 | B75: 2014-05-01 | C75: 1.58658327 | D75: 1.490834685 | E75: 1.804339251 | F75: 1.501138131 | G75: 1.567043824 | H75: 1.586452272
A76: ASFALTOS DILUÍDOS CM-30 | B76: 2014-06-01 | C76: 1.658277164 | D76: 1.505801121 | E76: 1.839593445 | F76: 1.5068632 | G76: 1.523776953 | H76: 1.636070702
A77: ASFALTOS DILUÍDOS CM-30 | B77: 2014-07-01 | C77: 1.890299542 | D77: 1.500730514 | E77: 1.708277865 | F77: 1.487293964 | G77: 1.505956069 | H77: 1.587065158
A78: ASFALTOS DILUÍDOS CM-30 | B78: 2014-08-01 | C78: 1.632741832 | D78: 1.501945324 | E78: 1.671203189 | F78: 1.482359341 | G78: 1.506327366 | H78: 1.557910377
A79: ASFALTOS DILUÍDOS CM-30 | B79: 2014-09-01 | C79: 1.66956717 | D79: 1.546830427 | E79: 1.864797016 | F79: 1.496764585 | G79: 1.570533242 | H79: 1.639281057
A80: ASFALTOS DILUÍDOS CM-30 | B80: 2014-10-01 | C80: 1.742876916 | D80: 1.508978569 | E80: 1.746650466 | F80: 1.470773645 | G80: 1.454273462 | H80: 1.57912022
A81: ASFALTOS DILUÍDOS CM-30 | B81: 2014-11-01 | C81: 1.864723419 | D81: 1.57943059 | E81: 1.749156218 | F81: 1.465084479 | G81: 1.529147988 | H81: 1.601359821
A82: ASFALTOS DILUÍDOS CM-30 | B82: 2014-12-01 | C82: 1.812671914 | D82: 1.704844348 | E82: 1.963310066 | F82: 1.623676702 | G82: 1.649644659 | H82: 1.718826981
A83: ASFALTOS DILUÍDOS CM-30 | B83: 2015-01-01 | C83: 2.154807062 | D83: 2.023760447 | E83: 2.318863736 | F83: 1.866588967 | G83: 1.898380434 | H83: 2.007792032
A84: ASFALTOS DILUÍDOS CM-30 | B84: 2015-02-01 | C84: 2.260238625 | D84: 2.005673765 | E84: 2.393875762 | F84: 1.854519766 | G84: 1.927395107 | H84: 2.007653781
A85: ASFALTOS DILUÍDOS CM-30 | B85: 2015-03-01 | C85: 2.124176462 | D85: 1.968822849 | E85: 2.279643254 | F85: 1.887760911 | G85: 1.930217145 | H85: 1.984816916
A86: ASFALTOS DILUÍDOS CM-30 | B86: 2015-04-01 | C86: 2.030049505 | D86: 2.001506448 | E86: 2.379118903 | F86: 1.85245167 | G86: 1.949025254 | H86: 1.98064321
A87: ASFALTOS DILUÍDOS CM-30 | B87: 2015-05-01 | C87: 2.507271651 | D87: 1.946869908 | E87: 2.254758192 | F87: 1.807470001 | G87: 2.016929536 | H87: 2.005474234
A88: ASFALTOS DILUÍDOS CM-30 | B88: 2015-06-01 | C88: 2.248320042 | D88: 1.944259736 | E88: 2.314331796 | F88: 1.846998595 | G88: 1.968565125 | H88: 2.042581344
A89: ASFALTOS DILUÍDOS CM-30 | B89: 2015-07-01 | C89: 1.992222758 | D89: 1.992791635 | E89: 2.046769953 | F89: 1.782648603 | G89: 1.931671385 | H89: 1.942627362
A90: ASFALTOS DILUÍDOS CM-30 | B90: 2015-08-01 | C90: 2.307605931 | D90: 2.038089127 | E90: 2.252748105 | F90: 1.828097705 | G90: 1.939824481 | H90: 2.08193616
A91: ASFALTOS DILUÍDOS CM-30 | B91: 2015-09-01 | C91: 2.314289704 | D91: 2.095307531 | E91: 2.344561987 | F91: 1.942551091 | G91: 2.005352614 | H91: 2.168175541
A92: ASFALTOS DILUÍDOS CM-30 | B92: 2015-10-01 | C92: 2.329456663 | D92: 2.170570012 | E92: 2.43273012 | F92: 2.035624751 | G92: 2.110261148 | H92: 2.237533782
A93: ASFALTOS DILUÍDOS CM-30 | B93: 2015-11-01 | C93: 2.606056566 | D93: 2.437098304 | E93: 2.711612141 | F93: 2.280113896 | G93: 2.326446297 | H93: 2.474998781
A94: ASFALTOS DILUÍDOS CM-30 | B94: 2015-12-01 | C94: 2.635374006 | D94: 2.395920309 | E94: 2.693528386 | F94: 2.272528129 | G94: 2.330740659 | H94: 2.452848156
A95: ASFALTOS DILUÍDOS CM-30 | B95: 2016-01-01 | C95: 2.715863993 | D95: 2.373861647 | E95: 2.844670602 | F95: 2.263650658 | G95: 2.232631691 | H95: 2.400563394
A96: ASFALTOS DILUÍDOS CM-30 | B96: 2016-02-01 | C96: 2.80468316 | D96: 2.466846816 | E96: 2.791787007 | F96: 2.295637115 | G96: 2.346556173 | H96: 2.464348548
A97: ASFALTOS DILUÍDOS CM-30 | B97: 2016-03-01 | C97: 2.5805021 | D97: 2.470678753 | E97: 2.707688025 | F97: 2.235301999 | G97: 2.383115972 | H97: 2.423563924
A98: ASFALTOS DILUÍDOS CM-30 | B98: 2016-04-01 | C98: 2.942006312 | D98: 2.740742032 | E98: 2.759071855 | F98: 2.544439178 | G98: 2.710751632 | H98: 2.680274833
A99: ASFALTOS DILUÍDOS CM-30 | B99: 2016-05-01 | C99: 3.010579472 | D99: 2.650277047 | E99: 2.857121361 | F99: 2.575583152 | G99: 2.770413362 | H99: 2.70973327
A100: ASFALTOS DILUÍDOS CM-30 | B100: 2016-06-01 | C100: 2.909179844 | D100: 2.621385041 | E100: 2.943487281 | F100: 2.659109515 | G100: 2.684759555 | H100: 2.743619517
A101: ASFALTOS DILUÍDOS CM-30 | B101: 2016-07-01 | C101: 2.985740381 | D101: 2.591644045 | E101: 2.98927803 | F101: 2.604396599 | G101: 2.660884423 | H101: 2.745135539
A102: ASFALTOS DILUÍDOS CM-30 | B102: 2016-08-01 | C102: 2.935243919 | D102: 2.623917329 | E102: 2.970490854 | F102: 2.679486504 | G102: 2.727025649 | H102: 2.781385962
A103: ASFALTOS DILUÍDOS CM-30 | B103: 2016-09-01 | C103: 2.649136821 | D103: 2.521054851 | E103: 2.781583925 | F103: 2.51393313 | G103: 2.371271501 | H103: 2.595617128
A104: ASFALTOS DILUÍDOS CM-30 | B104: 2016-10-01 | C104: 2.626109257 | D104: 2.444469093 | E104: 2.781617873 | F104: 2.507383127 | G104: 2.38325399 | H104: 2.566999037
A105: ASFALTOS DILUÍDOS CM-30 | B105: 2016-11-01 | C105: 2.535087408 | D105: 2.374145527 | E105: 2.952768674 | F105: 2.481263765 | G105: 2.382206771 | H105: 2.542842366
A106: ASFALTOS DILUÍDOS CM-30 | B106: 2016-12-01 | C106: 2.50039107 | D106: 2.253413483 | E106: 3.038519458 | F106: 2.589438892 | G106: 2.395593424 | H106: 2.476439295
A107: ASFALTOS DILUÍDOS CM-30 | B107: 2017-01-01 | C107: 2.392875504 | D107: 2.232695674 | E107: 3.089080971 | F107: 2.535744039 | G107: 2.378694833 | H107: 2.374216192
A108: ASFALTOS DILUÍDOS CM-30 | B108: 2017-02-01 | C108: 2.68039414 | D108: 2.271897225 | E108: 2.764408032 | F108: 2.573933685 | G108: 2.384644398 | H108: 2.470721466
A109: ASFALTOS DILUÍDOS CM-30 | B109: 2017-03-01 | C109: 2.23884121 | D109: 2.386958079 | E109: 2.667220252 | F109: 2.372165947 | G109: 2.30121887 | H109: 2.378796986
A110: ASFALTOS DILUÍDOS CM-30 | B110: 2017-04-01 | C110: 2.420191398 | D110: 2.307969596 | E110: 2.794093014 | F110: 2.258409912 | G110: 2.256434297 | H110: 2.380268484
A111: ASFALTOS DILUÍDOS CM-30 | B111: 2017-05-01 | C111: 2.432106692 | D111: 2.167919128 | E111: 2.699836936 | F111: 2.255387192 | G111: 2.204026958 | H111: 2.361515909
A112: ASFALTOS DILUÍDOS CM-30 | B112: 2017-06-01 | C112: 2.428301776 | D112: 2.181938689 | E112: 2.756672055 | F112: 2.234549022 | G112: 2.305778546 | H112: 2.44553453
A113: ASFALTOS DILUÍDOS CM-30 | B113: 2017-07-01 | C113: 2.453752061 | D113: 2.218075334 | E113: 2.694625022 | F113: 2.414329247 | G113: 2.269601102 | H113: 2.473436106
A114: ASFALTOS DILUÍDOS CM-30 | B114: 2017-08-01 | C114: 2.447930976 | D114: 2.153112031 | E114: 2.595349952 | F114: 2.302919065 | G114: 2.170148667 | H114: 2.380876423
A115: ASFALTOS DILUÍDOS CM-30 | B115: 2017-09-01 | C115: 2.494551504 | D115: 2.14243989 | E115: 2.623166503 | F115: 2.371308095 | G115: 2.303698507 | H115: 2.393542204
A116: ASFALTOS DILUÍDOS CM-30 | B116: 2017-10-01 | C116: 2.349953944 | D116: 2.18056004 | E116: 2.614160957 | F116: 2.415254962 | G116: 2.20079573 | H116: 2.367947121
A117: ASFALTOS DILUÍDOS CM-30 | B117: 2017-11-01 | C117: 2.670126991 | D117: 2.433169195 | E117: 2.908627464 | F117: 2.58469482 | G117: 2.415192709 | H117: 2.602101348
A118: ASFALTOS DILUÍDOS CM-30 | B118: 2017-12-01 | C118: 2.587352645 | D118: 2.425358882 | E118: 2.906633765 | F118: 2.602890298 | G118: 2.42288976 | H118: 2.531764464
A119: ASFALTOS DILUÍDOS CM-30 | B119: 2018-01-01 | C119: 2.950360755 | D119: 2.662862923 | E119: 2.875953993 | F119: 2.620738484 | G119: 2.646955252 | H119: 2.735956369
A120: ASFALTOS DILUÍDOS CM-30 | B120: 2018-02-01 | C120: 2.677899567 | D120: 2.672498164 | E120: 2.942595474 | F120: 2.62043113 | G120: 2.567885662 | H120: 2.668369933
A121: ASFALTOS DILUÍDOS CM-30 | B121: 2018-03-01 | C121: 2.733363025 | D121: 2.589050022 | E121: 2.809172556 | F121: 2.561928393 | G121: 2.575946067 | H121: 2.634876584
A122: ASFALTOS DILUÍDOS CM-30 | B122: 2018-04-01 | C122: 2.75780112 | D122: 2.669553602 | E122: 2.773908242 | F122: 2.59547006 | G122: 2.556042394 | H122: 2.6643302
A123: ASFALTOS DILUÍDOS CM-30 | B123: 2018-05-01 | C123: 2.841213362 | D123: 2.672025877 | E123: 2.884501482 | F123: 2.686718021 | G123: 2.736485103 | H123: 2.77737896
A124: ASFALTOS DILUÍDOS CM-30 | B124: 2018-06-01 | C124: 3.008444789 | D124: 2.919605178 | E124: 3.158454886 | F124: 2.84673108 | G124: 2.953523993 | H124: 2.982291635
A125: ASFALTOS DILUÍDOS CM-30 | B125: 2018-07-01 | C125: 3.268237549 | D125: 3.036524094 | E125: 3.399360399 | F125: 3.026467598 | G125: 3.19779631 | H125: 3.164126546
A126: ASFALTOS DILUÍDOS CM-30 | B126: 2018-08-01 | C126: 3.56441315 | D126: 3.415193769 | E126: 3.707706206 | F126: 3.425079349 | G126: 3.356722461 | H126: 3.515558112
A127: ASFALTOS DILUÍDOS CM-30 | B127: 2018-09-01 | C127: 3.173913778 | D127: 3.445064118 | E127: 3.73526324 | F127: 3.385816186 | G127: 3.607309454 | H127: 3.483238429
A128: ASFALTOS DILUÍDOS CM-30 | B128: 2018-10-01 | C128: 3.487778119 | D128: 3.460508804 | E128: 3.721444057 | F128: 3.432525565 | G128: 3.60602088 | H128: 3.545390344
A129: ASFALTOS DILUÍDOS CM-30 | B129: 2018-11-01 | C129: 4.047272484 | D129: 3.814893312 | E129: 4.280131586 | F129: 4.178126777 | G129: 3.967681367 | H129: 3.990147183
A130: ASFALTOS DILUÍDOS CM-30 | B130: 2018-12-01 | C130: 3.951491146 | D130: 3.967113195 | E130: 4.341144202 | F130: 3.916766066 | G130: 3.911993357 | H130: 3.999742654
A131: ASFALTOS DILUÍDOS CM-30 | B131: 2019-01-01 | C131: 3.796855325 | D131: 3.870018889 | E131: 4.201901762 | F131: 3.954196997 | G131: 3.976786028 | H131: 3.933951911
A132: ASFALTOS DILUÍDOS CM-30 | B132: 2019-02-01 | C132: 3.516584073 | D132: 4.090361178 | E132: 4.498422953 | F132: 4.469942475 | G132: 4.254590254 | H132: 4.188544679
A133: ASFALTOS DILUÍDOS CM-30 | B133: 2019-03-01 | C133: 4.216758117 | D133: 4.361910728 | E133: 4.907194889 | F133: 4.398717729 | G133: 4.290823922 | H133: 4.360295279
A134: ASFALTOS DILUÍDOS CM-30 | B134: 2019-04-01 | C134: 4.281648205 | D134: 4.234661428 | E134: 4.531627215 | F134: 4.43722653 | G134: 4.466881471 | H134: 4.38082044
A135: ASFALTOS DILUÍDOS CM-30 | B135: 2019-05-01 | C135: 4.287644659 | D135: 4.190699738 | E135: 4.857910872 | F135: 4.267461963 | G135: 4.633806379 | H135: 4.366402151
A136: ASFALTOS DILUÍDOS CM-30 | B136: 2019-06-01 | C136: 4.475609892 | D136: 3.965052934 | E136: 4.66272934 | F136: 4.350600604 | G136: 4.211229921 | H136: 4.319323669
A137: ASFALTOS DILUÍDOS CM-30 | B137: 2019-07-01 | C137: 4.394498989 | D137: 4.058039305 | E137: 4.834221945 | F137: 4.094659414 | G137: 4.233003281 | H137: 4.346977757
A138: ASFALTOS DILUÍDOS CM-30 | B138: 2019-08-01 | C138: 4.48173504 | D138: 3.910662496 | E138: 4.576329081 | F138: 4.11161654 | G138: 4.255419985 | H138: 4.258345083
A139: ASFALTOS DILUÍDOS CM-30 | B139: 2019-09-01 | C139: 4.439578796 | D139: 3.859904896 | E139: 4.495256968 | F139: 4.111321475 | G139: 4.117359152 | H139: 4.251607085
A140: ASFALTOS DILUÍDOS CM-30 | B140: 2019-10-01 | C140: 4.335888631 | D140: 3.772324962 | E140: 4.459242357 | F140: 4.056084115 | G140: 3.942458011 | H140: 4.07740702
A141: ASFALTOS DILUÍDOS CM-30 | B141: 2019-11-01 | C141: 4.316238692 | D141: 3.910245509 | E141: 4.581841077 | F141: 4.07902404 | G141: 4.106621274 | H141: 4.094561212
A142: ASFALTOS DILUÍDOS CM-30 | B142: 2019-12-01 | C142: 4.199435972 | D142: 3.980119663 | E142: 4.673774805 | F142: 4.434268142 | G142: 3.986410312 | H142: 4.164691616
A143: ASFALTOS DILUÍDOS CM-30 | B143: 2020-01-01 | C143: 3.59298003 | D143: 3.895320617 | E143: 4.685420623 | F143: 4.387074674 | G143: 4.124467668 | H143: 4.053338937
A144: ASFALTOS DILUÍDOS CM-30 | B144: 2020-02-01 | C144: 3.642667016 | D144: 3.877395187 | E144: 4.438194543 | F144: 3.699944607 | G144: 3.778164011 | H144: 3.839010438
A145: ASFALTOS DILUÍDOS CM-30 | B145: 2020-03-01 | C145: 4.676668339 | D145: 3.791138977 | E145: 4.289222343 | F145: 3.718402734 | G145: 3.60908619 | H145: 3.93117068
A146: ASFALTOS DILUÍDOS CM-30 | B146: 2020-04-01 | C146: 4.313362837 | D146: 3.6957655 | E146: 4.255395321 | F146: 3.865895531 | G146: 3.732253382 | H146: 3.964125211
A147: ASFALTOS DILUÍDOS CM-30 | B147: 2020-05-01 | C147: 3.249134658 | D147: 3.637769912 | E147: 4.113544882 | F147: 3.760550026 | G147: 3.710618099 | H147: 3.65617504
A148: ASFALTOS DILUÍDOS CM-30 | B148: 2020-06-01 | C148: 4.017903076 | D148: 3.567031492 | E148: 4.277369171 | F148: 3.937886485 | G148: 3.625830069 | H148: 3.924524506
A149: ASFALTOS DILUÍDOS CM-30 | B149: 2020-07-01 | C149: 3.840497509 | D149: 3.51327048 | E149: 4.21549069 | F149: 3.954223886 | G149: 3.688841275 | H149: 3.843774448
A150: ASFALTOS DILUÍDOS CM-30 | B150: 2020-08-01 | C150: 4.174467203 | D150: 3.465394219 | E150: 4.277710211 | F150: 4.06746494 | G150: 3.62858863 | H150: 3.947166917
A151: ASFALTOS DILUÍDOS CM-30 | B151: 2020-09-01 | C151: 4.167371331 | D151: 3.746360816 | E151: 4.167424356 | F151: 3.795621791 | G151: 3.627729935 | H151: 3.973129945
A152: ASFALTOS DILUÍDOS CM-30 | B152: 2020-10-01 | C152: 4.408099527 | D152: 3.718989878 | E152: 4.278979192 | F152: 4.008746906 | G152: 3.591048183 | H152: 4.03964377
A153: ASFALTOS DILUÍDOS CM-30 | B153: 2020-11-01 | C153: 4.056306006 | D153: 3.969209281 | E153: 4.547900893 | F153: 4.27945542 | G153: 3.973347244 | H153: 4.175826149
A154: ASFALTOS DILUÍDOS CM-30 | B154: 2020-12-01 | C154: 4.132064138 | D154: 3.851632751 | E154: 4.426704386 | F154: 3.906236422 | G154: 3.8709398 | H154: 4.035347374
A155: ASFALTOS DILUÍDOS CM-30 | B155: 2021-01-01 | C155: 3.489836333 | D155: 3.951525937 | E155: 4.628269702 | F155: 4.011577011 | G155: 3.935136638 | H155: 3.917092391
A156: ASFALTOS DILUÍDOS CM-30 | B156: 2021-02-01 | C156: 4.099318116 | D156: 4.267109523 | E156: 4.832061615 | F156: 4.414202706 | G156: 4.149048932 | H156: 4.26819704
A157: ASFALTOS DILUÍDOS CM-30 | B157: 2021-03-01 | C157: 4.528355792 | D157: 4.239831731 | E157: 4.926314562 | F157: 4.269697839 | G157: 4.130655409 | H157: 4.377833785
A158: ASFALTOS DILUÍDOS CM-30 | B158: 2021-04-01 | C158: 4.349271867 | D158: 4.086995154 | E158: 4.477597522 | F158: 4.156113398 | G158: 4.044189822 | H158: 4.253361798
A159: ASFALTOS DILUÍDOS CM-30 | B159: 2021-05-01 | C159: 4.488889413 | D159: 4.707945815 | E159: 5.101489686 | F159: 4.784034896 | G159: 4.523986615 | H159: 4.790548085
A160: ASFALTOS DILUÍDOS CM-30 | B160: 2021-06-01 | C160: 4.010467711 | D160: 4.479592126 | E160: 5.113041212 | F160: 4.779739905 | G160: 4.721214307 | H160: 4.764890884
A161: ASFALTOS DILUÍDOS CM-30 | B161: 2021-07-01 | C161: 4.752234128 | D161: 4.559350506 | E161: 5.004758283 | F161: 4.80272972 | G161: 4.748550678 | H161: 4.817586047
A162: ASFALTOS DILUÍDOS CM-30 | B162: 2021-08-01 | C162: 5.085284532 | D162: 4.772501255 | E162: 5.198537142 | F162: 5.244735259 | G162: 4.76131175 | H162: 5.0981692
A163: ASFALTOS DILUÍDOS CM-30 | B163: 2021-09-01 | C163: 5.110300267 | D163: 4.538072365 | E163: 5.241721185 | F163: 5.017144197 | G163: 4.862861245 | H163: 5.016958886
A164: ASFALTOS DILUÍDOS CM-30 | B164: 2021-10-01 | C164: 5.080697261 | D164: 4.66826742 | E164: 5.119544199 | F164: 5.384779065 | G164: 4.658516432 | H164: 5.021294312
A165: ASFALTOS DILUÍDOS CM-30 | B165: 2021-11-01 | C165: 5.436518753 | D165: 5.08776781 | E165: 5.150063985 | F165: 5.634257884 | G165: 5.174530131 | H165: 5.228141289
A166: ASFALTOS DILUÍDOS CM-30 | B166: 2021-12-01 | C166: 5.184291386 | D166: 4.975486975 | E166: 5.572122251 | F166: 6.135655205 | G166: 5.01180992 | H166: 5.339565801
A167: ASFALTOS DILUÍDOS CM-30 | B167: 2022-01-01 | C167: 4.928191974 | D167: 5.023555623 | E167: 6.018407512 | F167: 5.214773026 | G167: 5.481979244 | H167: 5.250789679
A168: ASFALTOS DILUÍDOS CM-30 | B168: 2022-02-01 | C168: 5.545684189 | D168: 5.708628413 | E168: 6.011065894 | F168: 4.8651 | G168: 5.763367147 | H168: 5.736057428
A169: ASFALTOS DILUÍDOS CM-30 | B169: 2022-03-01 | C169: 6.326844735 | D169: 5.644687904 | E169: 5.930807225 | F169: 6.181141143 | G169: 5.498041682 | H169: 5.922781038
A170: ASFALTOS DILUÍDOS CM-30 | B170: 2022-04-01 | C170: 5.974220681 | D170: 5.832747324 | E170: 6.206692615 | F170: 5.720329997 | G170: 6.17800291 | H170: 6.012354229
A171: ASFALTOS DILUÍDOS CM-30 | B171: 2022-05-01 | C171: 5.354015586 | D171: 5.464335309 | E171: 6.007611639 | F171: 5.995095583 | G171: 5.49095009 | H171: 5.670722744
A172: ASFALTOS DILUÍDOS CM-30 | B172: 2022-06-01 | C172: 5.802443798 | D172: 5.316964203 | E172: 5.25267889 | F172: 5.813931518 | G172: 5.644996328 | H172: 5.469498687
A173: ASFALTOS DILUÍDOS CM-30 | B173: 2022-07-01 | C173: 5.965614765 | D173: 5.829314879 | E173: 5.919099711 | F173: 5.742484775 | G173: 5.674430543 | H173: 5.862020702
A174: ASFALTOS DILUÍDOS CM-30 | B174: 2022-08-01 | C174: 6.424230463 | D174: 5.758256878 | E174: 5.752352843 | F174: 5.791905352 | G174: 5.31271724 | H174: 5.823186051
A175: ASFALTOS DILUÍDOS CM-30 | B175: 2022-09-01 | C175: 5.540097074 | D175: 5.609921619 | E175: 5.963592489 | F175: 5.302181194 | G175: 4.977929161 | H175: 5.699429921
A176: ASFALTOS DILUÍDOS CM-30 | B176: 2022-10-01 | C176: 4.785670999 | D176: 4.727521094 | E176: 5.339105147 | F176: 4.851160007 | G176: 4.532580513 | H176: 5.041661715
A177: ASFALTOS DILUÍDOS CM-30 | B177: 2022-11-01 | C177: 7.765855923 | D177: 4.775654982 | E177: 5.237626127 | F177: 4.636383138 | G177: 4.460593179 | H177: 5.074993862
A178: ASFALTOS DILUÍDOS CM-30 | B178: 2022-12-01 | C178: 4.65725 | D178: 4.966905362 | E178: 5.655161554 | F178: 4.840935672 | G178: 4.661007861 | H178: 5.11324949
A179: ASFALTOS DILUÍDOS CM-30 | B179: 2023-01-01 | C179: 4.948950319 | D179: 5.056264922 | E179: 5.359597966 | F179: 4.426497959 | G179: 4.103267888 | H179: 4.715605129
A180: ASFALTOS DILUÍDOS CM-30 | B180: 2023-02-01 | C180: 5.407494667 | D180: 4.335771195 | E180: 4.746646601 | F180: 4.674884727 | G180: 4.014547173 | H180: 4.417800736
A181: ASFALTOS DILUÍDOS CM-30 | B181: 2023-03-01 | C181: 4.99131 | D181: 4.01354912 | E181: 4.74625028 | F181: 4.08071937 | G181: 4.082484954 | H181: 4.270345723
A182: ASFALTOS DILUÍDOS CM-30 | B182: 2023-04-01 | C182: 4.438479015 | D182: 4.094201354 | E182: 5.135816186 | F182: 4.368265095 | G182: 3.859308149 | H182: 4.153818797
A183: ASFALTOS DILUÍDOS CM-30 | B183: 2023-05-01 | C183: 5.018589297 | D183: 4.506282643 | E183: 5.616638293 | F183: 4.034756925 | G183: 4.063701717 | H183: 4.686492725
A184: ASFALTOS DILUÍDOS CM-30 | B184: 2023-06-01 | C184: 4.439644526 | D184: 4.495805354 | E184: 5.228174524 | F184: 3.772028745 | G184: 4.009042073 | H184: 4.588045148
A185: ASFALTOS DILUÍDOS CM-30 | B185: 2023-07-01 | C185: 4.360399352 | D185: 4.250187634 | E185: 6.188049155 | F185: 3.699216781 | G185: 4.315773768 | H185: 4.790717553
A186: ASFALTOS DILUÍDOS CM-30 | B186: 2023-08-01 | C186: 4.043215999 | D186: 4.100901709 | E186: 5.414198228 | F186: 3.964297949 | G186: 4.055989778 | H186: 4.607810697
A187: ASFALTOS DILUÍDOS CM-30 | B187: 2023-09-01 | C187: 5.69501625 | D187: 4.358586276 | E187: 5.187252517 | F187: 4.112508656 | G187: 4.211646236 | H187: 4.748640211
A188: ASFALTOS DILUÍDOS CM-30 | B188: 2023-10-01 | C188: 5.685185 | D188: 4.294075647 | E188: 4.912919476 | F188: 4.365095101 | G188: 4.257370162 | H188: 4.609445905
A189: ASFALTOS DILUÍDOS CM-30 | B189: 2023-11-01 | C189: 4.815085397 | D189: 4.345599447 | E189: 5.404502747 | F189: 4.045271104 | G189: 4.164697405 | H189: 4.781498943
A190: ASFALTOS DILUÍDOS CM-30 | B190: 2023-12-01 | C190: 5.411492308 | D190: 4.700043896 | E190: 5.306415734 | F190: 4.313216862 | G190: 4.188732062 | H190: 4.664845353
A191: ASFALTOS DILUÍDOS CM-30 | B191: 2024-01-01 | C191: 3.716178391 | D191: 4.395163811 | E191: 4.888126947 | F191: 3.977196797 | G191: 4.057095331 | H191: 4.290228903
A192: ASFALTOS DILUÍDOS CM-30 | B192: 2024-02-01 | C192: 5.349588571 | D192: 4.281881871 | E192: 5.36118056 | F192: 4.287786155 | G192: 4.151112946 | H192: 4.366194996
A193: ASFALTOS DILUÍDOS CM-30 | B193: 2024-03-01 | C193: 6.437624165 | D193: 4.512948358 | E193: 4.994035932 | F193: 4.680610304 | G193: 4.197388123 | H193: 4.725137967
A194: ASFALTOS DILUÍDOS CM-30 | B194: 2024-04-01 | C194: 6.524010018 | D194: 5.333668875 | E194: 5.011370357 | F194: 3.991999626 | G194: 4.15116124 | H194: 4.439406986
A195: ASFALTOS DILUÍDOS CM-30 | B195: 2024-05-01 | C195: 6.61993633 | D195: *** | E195: 5.21538288 | F195: 4.24855796 | G195: 4.478170767 | H195: 4.960078568
A196: ASFALTOS DILUÍDOS CM-30 | B196: 2024-06-01 | C196: 6.461820806 | D196: 4.288169263 | E196: 4.921606124 | F196: 4.517339741 | G196: 4.897585787 | H196: 4.922850803
A197: ASFALTOS DILUÍDOS CM-30 | B197: 2024-07-01 | C197: 6.120612239 | D197: 4.599255433 | E197: 5.497451069 | F197: 4.667838533 | G197: 4.514452653 | H197: 4.962740397
A198: ASFALTOS DILUÍDOS CM-70 | B198: 2008-11-01 | C198: *** | D198: *** | E198: *** | F198: *** | G198: *** | H198: ***
A199: ASFALTOS DILUÍDOS CM-70 | B199: 2008-12-01 | C199: *** | D199: *** | E199: *** | F199: *** | G199: *** | H199: ***
A200: ASFALTOS DILUÍDOS CM-70 | B200: 2009-01-01 | C200: *** | D200: *** | E200: *** | F200: *** | G200: *** | H200: ***
A201: ASFALTOS DILUÍDOS CM-70 | B201: 2009-02-01 | C201: *** | D201: *** | E201: *** | F201: *** | G201: *** | H201: ***
A202: ASFALTOS DILUÍDOS CM-70 | B202: 2009-03-01 | C202: *** | D202: *** | E202: *** | F202: *** | G202: *** | H202: ***
A203: ASFALTOS DILUÍDOS CM-70 | B203: 2009-04-01 | C203: *** | D203: *** | E203: *** | F203: *** | G203: *** | H203: ***
A204: ASFALTOS DILUÍDOS CM-70 | B204: 2009-05-01 | C204: *** | D204: *** | E204: *** | F204: *** | G204: *** | H204: ***
... 4600 more rows

Sheet MATERIAL SICRO
A1: CGCIT | B1: SISTEMA DE CUSTOS REFERENCIAIS DE OBRAS - SICRO | D1: DNIT
B2: Amapá - Abril/2024
A3: Código | B3: Descrição | C3: Unidade | D3: Preço Unitário (R$)
A4: M0003 | B4: Aço CA 25 | C4: kg | D4: 7.4579
A5: M0004 | B5: Aço CA 50 | C5: kg | D5: 7.1914
A6: M0005 | B6: Brita 0 | C6: m³ | D6: 216.8953
A7: M0006 | B7: Fibra de poliamida para concreto | C7: kg | D7: 27.9577
A8: M0007 | B8: Fibra de aço para concreto | C8: kg | D8: 13.695
A9: M0008 | B9: Detergente líquido neutro | C9: l | D9: 4.4113
A10: M0009 | B10: Aço CP 175 RB | C10: kg | D10: 9.0918
A11: M0010 | B11: Aditivo superplastificante para concreto e argamassa | C11: kg | D11: 18.1736
A12: M0011 | B12: Aditivo modificador de viscosidade para concreto e argamassa | C12: kg | D12: 11.9572
A13: M0012 | B13: Silicato de alumínio | C13: kg | D13: 2.2035
A14: M0013 | B14: Grampo de ancoragem em aço CA 50 - D = 12,5 mm | C14: kg | D14: 7.1914
A15: M0014 | B15: Aço CA 60 | C15: kg | D15: 9.0441
A16: M0015 | B16: Espoleta elétrica Nº 8 - D = 6,0 mm | C16: un | D16: 23.505
A17: M0016 | B17: Grampo sargento em ferro fundido tipo C com abertura útil de 105 mm (4") | C17: un | D17: 50.2201
A18: M0017 | B18: Saco de aniagem ou de ráfia de 50 kg - C = 95 cm e L = 65 cm | C18: un | D18: 2.9309
A19: M0018 | B19: Grampo pesado em aço-carbono para cabo de aço - D = 13 mm (1/2") | C19: un | D19: 22.7274
A20: M0019 | B20: Esticador em aço tipo olhal x olhal para cabo de aço - D = 13 mm | C20: un | D20: 157.779
A21: M0020 | B21: Grampo de ancoragem em aço CA 50 - D = 6,3 mm | C21: kg | D21: 8.0778
A22: M0021 | B22: Herbicida glifosato para áreas contínuas | C22: l | D22: 31.3598
A23: M0025 | B23: Adesivo plástico para tubos de PVC | C23: kg | D23: 51.0767
A24: M0026 | B24: Aditivo aglutinante para argamassa | C24: l | D24: 9.9371
A25: M0028 | B25: Areia média | C25: m³ | D25: 149.3157
A26: M0029 | B26: Sílica ativa para concreto e argamassa (microssílica) | C26: kg | D26: 1.9884
A27: M0030 | B27: Aditivo plastificante e retardador de pega para concreto e argamassa | C27: kg | D27: 8.6077
A28: M0032 | B28: Adesivo de contato para laminado elastoplástico | C28: kg | D28: 46.9671
A29: M0035 | B29: Diluente tipo aguarrás para tintas e vernizes | C29: l | D29: 15.194
A30: M0039 | B30: Gasolina comum | C30: l | D30: 5.1357
A31: M0041 | B31: Contêiner com 2 banheiros - L = 2,44 m e C = 6,09 m (1 TEU) | C31: un | D31: 90670.1977
A32: M0042 | B32: Contêiner com janela - L = 2,44 m e C = 6,09 m (1 TEU) | C32: un | D32: 68102.5255
A33: M0043 | B33: Óleo diesel | C33: l | D33: 5.4825
A34: M0044 | B34: Abrasivo de vidro com granulometria de 210 a 420 micra | C34: kg | D34: 9.46
A35: M0045 | B35: Barreira plástica monobloco para canalização de trânsito - C = 100 cm, L = 50 cm e H = 55 cm | C35: un | D35: 505.0821
A36: M0046 | B36: Barreira plástica para canalização de trânsito - C = 60 cm, L = 45 cm e H = 60 cm | C36: un | D36: 322.7198
A37: M0047 | B37: Cone de sinalização em polietileno - H = 75 cm e base quadrada de 40 x 40 cm | C37: un | D37: 102.95
A38: M0048 | B38: Balizador cônico refletivo em polietileno semiflexível - H = 114 cm e base octogonal de D = 40 cm | C38: un | D38: 148.8579
A39: M0049 | B39: Delimitador de tráfego flexível com chumbador e duas faixas refletivas - H = 77 cm e D = 21 cm | C39: un | D39: 181.8914
A40: M0050 | B40: Aditivo natural tipo goma xantana para hidrossemeadura | C40: kg | D40: 103.5502
A41: M0051 | B41: Cilindro canalizador de tráfego em polietileno - H = 117 cm e base quadrada de 60 x 60 cm | C41: un | D41: 214.1103
A42: M0052 | B42: Fita adesiva de PVC - L = 50 mm e C = 50 m | C42: m | D42: 0.1123
A43: M0053 | B43: Tela plástica em polipropileno na cor laranja para tapume - L = 1,2 m | C43: m | D43: 1.9406
A44: M0054 | B44: Fita zebrada de cor laranja e branca - L = 7 a 8 cm | C44: m | D44: 0.0742
A45: M0055 | B45: Barreira plástica articulável modular - C = 240 cm e H = 100 cm | C45: un | D45: 1279.349
A46: M0056 | B46: Ferramenta de corte para removedora de faixa de sinalização (Smith Cutter) | C46: un | D46: 7262.1788
A47: M0057 | B47: Contêiner com janela - L = 4,88 m e C = 6,09 m (1 TEU duplo) | C47: un | D47: 122742.211
A48: M0058 | B48: Contêiner com janela e 2 banheiros - L = 4,88 m e C = 6,09 m (1 TEU duplo) | C48: un | D48: 127131.8632
A49: M0059 | B49: Contêiner com revestimento térmico, janela e banheiro - L = 2,44 m e C = 6,09 m (1 TEU) | C49: un | D49: 88817.2632
A50: M0060 | B50: Contêiner com janela - L = 2,44 m e C = 4,58 m (3/4 TEU) | C50: un | D50: 61782.3012
A51: M0065 | B51: Contêiner com janela e banheiro - L = 2,44 m e 4,58 m (3/4 TEU) | C51: un | D51: 74609.1041
A52: M0066 | B52: Contêiner com revestimento térmico, janela e banheiro - L = 2,44 m e C = 12,90 m (2 TEU) | C52: un | D52: 121469.3355
A53: M0067 | B53: Tubo PEAD PE 100 PN 10 com flanges - D = 160 mm | C53: m | D53: 183.3275
A54: M0068 | B54: Caibro de pinho - L = 7,5 cm e E = 10,0 cm | C54: m | D54: 15.369
A55: M0069 | B55: Arame farpado em aço galvanizado - D = 1,60 mm | C55: m | D55: 0.8465
A56: M0071 | B56: Contêiner com 3 janelas para guarita - L = 2,44 m e C = 3,05 m (1/2 TEU) | C56: un | D56: 42695.3609
A57: M0072 | B57: Arame liso em aço galvanizado - D = 2,10 mm (14 BWG) | C57: kg | D57: 18.9222
A58: M0073 | B58: Muda de árvore com altura de 0,30 a 0,80 m | C58: un | D58: 14.6944
A59: M0074 | B59: Muda de arbusto com altura até 0,50 m | C59: un | D59: 27.8034
A60: M0075 | B60: Arame liso recozido em aço-carbono - D = 1,24 mm (18 BWG) | C60: kg | D60: 12.1451
A61: M0076 | B61: Disco de corte abrasivo para policorte - D = 300 mm | C61: un | D61: 15.4416
A62: M0080 | B62: Areia fina | C62: m³ | D62: 155.6751
A63: M0081 | B63: Areia grossa | C63: m³ | D63: 145.0884
A64: M0082 | B64: Areia média lavada | C64: m³ | D64: 159.6782
A65: M0083 | B65: Argamassa pré-dosada para grauteamento | C65: kg | D65: 2.6286
A66: M0084 | B66: Argamassa pré-dosada autoadensável para grauteamento | C66: kg | D66: 2.6459
A67: M0085 | B67: Ancoragem ativa para 4 cordoalhas - D = 12,7 mm | C67: un | D67: 382.3551
A68: M0086 | B68: Ancoragem ativa para 6 cordoalhas - D = 12,7 mm | C68: un | D68: 495.963
A69: M0087 | B69: Ancoragem ativa para 7 cordoalhas - D = 12,7 mm | C69: un | D69: 572.7025
A70: M0088 | B70: Ancoragem ativa para 8 cordoalhas - D = 12,7 mm | C70: un | D70: 668.9504
A71: M0089 | B71: Ancoragem ativa para 9 cordoalhas - D = 12,7 mm | C71: un | D71: 755.409
A72: M0091 | B72: Ancoragem ativa para 10 cordoalhas - D = 12,7 mm | C72: un | D72: 841.1023
A73: M0092 | B73: Ancoragem ativa para 12 cordoalhas - D = 12,7 mm | C73: un | D73: 1062.2237
A74: M0093 | B74: Ancoragem ativa para 15 cordoalhas - D = 12,7 mm | C74: un | D74: 1474.4514
A75: M0094 | B75: Ancoragem ativa para 19 cordoalhas - D = 12,7 mm | C75: un | D75: 1873.5503
A76: M0098 | B76: Bambu com diâmetro médio de 10 cm | C76: m | D76: 21.3573
A77: M0099 | B77: Equipamentos para a fábrica de dormentes de concreto protendido | C77: ISF | D77: 567.856
A78: M0100 | B78: Ancoragem ativa para 22 cordoalhas - D = 12,7 mm | C78: un | D78: 2427.3902
A79: M0101 | B79: Ancoragem ativa para 27 cordoalhas - D = 12,7 mm | C79: un | D79: 2973.9883
A80: M0102 | B80: Ancoragem ativa para 31 cordoalhas - D = 12,7 mm | C80: un | D80: 3206.728
A81: M0103 | B81: Aditivo acelerador de pega para concreto e argamassa projetados | C81: kg | D81: 7.5537
A82: M0104 | B82: Asfalto diluído de petróleo - CM-30 | C82: t | D82: -
A83: M0105 | B83: Ancoragem ativa para 4 cordoalhas - D = 15,2 mm | C83: un | D83: 475.3891
A84: M0106 | B84: Ancoragem ativa para 6 cordoalhas - D = 15,2 mm | C84: un | D84: 633.9624
A85: M0107 | B85: Geocomposto para drenagem | C85: m² | D85: 43.5713
A86: M0108 | B86: Ancoragem ativa para 7 cordoalhas - D = 15,2 mm | C86: un | D86: 745.496
A87: M0109 | B87: Geodreno vertical - L = 10 cm e E = 5 mm | C87: m | D87: 5.18
A88: M0110 | B88: Ancoragem ativa para 10 cordoalhas - D = 15,2 mm | C88: un | D88: 1152.0872
A89: M0111 | B89: Ancoragem ativa para 9 cordoalhas - D = 15,2 mm | C89: un | D89: 1027.5347
A90: M0112 | B90: Disco diamantado segmentado para corte de pavimento - D = 1.000 mm | C90: un | D90: 5881.1315
A91: M0113 | B91: Ancoragem ativa para 12 cordoalhas - D = 15,2 mm | C91: un | D91: 1406.3577
A92: M0114 | B92: Disco diamantado segmentado para corte de pavimento - D = 1.500 mm | C92: un | D92: 26165.8855
A93: M0115 | B93: Biomanta vegetal de fibras de coco entrelaçadas com fios de polipropileno biodegradáveis - densidade 0,4 kg/m² | C93: m² | D93: 6.51
A94: M0116 | B94: Mangote flangeado de borracha reforçada com lonas sintéticas - C = 1,80 m e D = 0,30 m | C94: un | D94: 16706.0104
A95: M0117 | B95: Mangote flangeado de borracha reforçada com lonas sintéticas - C = 1,80 m e D = 0,40 m | C95: un | D95: 22945.2316
A96: M0118 | B96: Mangote flangeado de borracha reforçada com lonas sintéticas - C = 1,80 m e D = 0,45 m | C96: un | D96: 25489.5332
A97: M0119 | B97: Mangote flangeado de borracha reforçada com lonas sintéticas - C = 1,80 m e D = 0,50 m | C97: un | D97: 28819.5034
A98: M0120 | B98: Tubo PEAD PE 100 PN 8 com flanges - D = 250 mm | C98: m | D98: 316.6971
A99: M0121 | B99: Tubo PEAD PE 100 PN 8 com flanges - D = 400 mm | C99: m | D99: 2029.3742
A100: M0122 | B100: Tubo PEAD PE 100 PN 8 com flanges - D = 450 mm | C100: m | D100: 2549.3992
A101: M0123 | B101: Tubo PEAD PE 100 PN 8 com flanges - D = 500 mm | C101: m | D101: 2855.0383
A102: M0124 | B102: Flutuador bipartido em polietileno com núcleo de espuma em poliuretano para tubos - D = 0,30 m | C102: un | D102: 4366.1567
A103: M0125 | B103: Flutuador bipartido em polietileno com núcleo de espuma em poliuretano para tubos - D = 0,40 m | C103: un | D103: 6031.5095
A104: M0126 | B104: Flutuador bipartido em polietileno com núcleo de espuma em poliuretano para tubos - D = 0,45 m | C104: un | D104: 6908.9594
A105: M0127 | B105: Flutuador bipartido em polietileno com núcleo de espuma em poliuretano para tubos - D = 0,50 m | C105: un | D105: 7482.1297
A106: M0128 | B106: Biomanta vegetal de fibras de palha entrelaçadas com fios de polipropileno biodegradáveis - densidade 0,6 kg/m² | C106: m² | D106: 5.71
A107: M0129 | B107: Retentor de sedimento em fibras vegetais - D = 20 cm | C107: m | D107: 62.1959
A108: M0130 | B108: Ancoragem ativa para 15 cordoalhas - D = 15,2 mm | C108: un | D108: 1853.9651
A109: M0131 | B109: Tubo PEAD corrugado com paredes estruturadas para drenagem - D = 400 mm | C109: m | D109: 240.2606
A110: M0132 | B110: Tubo PEAD corrugado com paredes estruturadas para drenagem - D = 450 mm | C110: m | D110: 293.9828
A111: M0133 | B111: Tubo PEAD corrugado com paredes estruturadas para drenagem - D = 500 mm | C111: m | D111: 395.7637
A112: M0134 | B112: Tubo PEAD corrugado com paredes estruturadas para drenagem - D = 600 mm | C112: m | D112: 576.6656
A113: M0135 | B113: Tubo PEAD corrugado com paredes estruturadas para drenagem - D = 750 mm | C113: m | D113: 783.4709
A114: M0136 | B114: Tubo PEAD corrugado com paredes estruturadas para drenagem - D = 800 mm | C114: m | D114: 862.7873
A115: M0137 | B115: Tubo PEAD corrugado com paredes estruturadas para drenagem - D = 900 mm | C115: m | D115: 1149.5487
A116: M0138 | B116: Ancoragem ativa para 19 cordoalhas - D = 15,2 mm | C116: un | D116: 2410.2088
A117: M0139 | B117: Tubo PEAD corrugado com paredes estruturadas para drenagem - D = 1.000 mm | C117: m | D117: 1512.1329
A118: M0140 | B118: Bentonita | C118: kg | D118: 4.2319
A119: M0141 | B119: Tubo PEAD corrugado com paredes estruturadas para drenagem - D = 1.050 mm | C119: m | D119: 1500.4716
A120: M0142 | B120: Tubo PEAD corrugado com paredes estruturadas para drenagem - D = 1.200 mm | C120: m | D120: 2137.4433
A121: M0143 | B121: Tubo PEAD corrugado com paredes estruturadas para drenagem - D = 1.500 mm | C121: m | D121: 2470.8146
A122: M0145 | B122: Ancoragem ativa para 22 cordoalhas - D = 15,2 mm | C122: un | D122: 3128.9619
A123: M0146 | B123: Ancoragem ativa para 27 cordoalhas - D = 15,2 mm | C123: un | D123: 4094.0606
A124: M0148 | B124: Ancoragem ativa para lajes para 1 cordoalha - D = 12,7 mm | C124: un | D124: 90.0762
A125: M0151 | B125: Ancoragem ativa para lajes para 2 cordoalhas - D = 12,7 mm | C125: un | D125: 167.4211
A126: M0152 | B126: Ancoragem ativa para lajes para 3 cordoalhas - D = 12,7 mm | C126: un | D126: 233.111
A127: M0153 | B127: Ancoragem ativa para lajes para 4 cordoalhas - D = 12,7 mm | C127: un | D127: 311.4924
A128: M0156 | B128: Bloco de concreto - L = 19 cm, A = 19 cm e C = 39 cm | C128: un | D128: 4.6446
A129: M0158 | B129: Tela metálica galvanizada dobrada em L - C = 2,0 m, L = 0,4 m e H = 0,4 m | C129: un | D129: 477.7123
A130: M0160 | B130: Extintor de incêndio tipo espuma mecânica - V = 10 l | C130: un | D130: 642.3617
A131: M0161 | B131: Barra de fibra de vidro (vergalhão) - D = 25,0 mm | C131: m | D131: 61.623
A132: M0162 | B132: Corrente de elo soldado em aço galvanizado com acabamento polido - D = 3,18 mm (1/8") | C132: m | D132: 7.1839
A133: M0163 | B133: Gonzo com aba em aço galvanizado - D = 12,7 mm (1/2") | C133: un | D133: 3.7017
A134: M0164 | B134: Tubo em aço galvanizado - E = 1,50 mm e seção de 20 x 20 mm | C134: m | D134: 12.5547
A135: M0166 | B135: Tubo em aço galvanizado - E = 2,25 mm e D = 20 mm (3/4") | C135: m | D135: 30.5644
A136: M0167 | B136: Tela de poliamida industrial - E = 0,40 mm e malha de 1,6 mm | C136: m² | D136: 16.4874
A137: M0168 | B137: Abraçadeira de poliamida - E = 3,6 mm e C = 200 mm | C137: un | D137: 0.2324
A138: M0169 | B138: Roda em aço e pneu com câmara de ar 83/203 mm (3,25"/8") para carrinho de mão | C138: un | D138: 65.0009
A139: M0173 | B139: Ancoragem ativa para lajes para 1 cordoalha - D = 15,2 mm | C139: un | D139: 101.3239
A140: M0178 | B140: Ancoragem ativa para lajes para 2 cordoalhas - D = 15,2 mm | C140: un | D140: 218.9561
A141: M0181 | B141: Ancoragem ativa para lajes para 3 cordoalhas - D = 15,2 mm | C141: un | D141: 285.4083
A142: M0184 | B142: Ancoragem ativa para lajes para 4 cordoalhas - D = 15,2 mm | C142: un | D142: 376.7544
A143: M0191 | B143: Brita 1 | C143: m³ | D143: 201.2817
A144: M0192 | B144: Brita 2 | C144: m³ | D144: 199.2347
A145: M0193 | B145: Brita 3 | C145: m³ | D145: 197.7402
A146: M0194 | B146: Escória de aciaria | C146: m³ | D146: 15.1882
A147: M0198 | B147: Parafuso de cabeça chata em aço - D = 4,5 mm e bucha plástica - D = 8 mm (S8) | C147: un | D147: 0.3322
A148: M0199 | B148: Coroa de botões cruzados linha R32 - D = 43 mm (1 11/16’’) | C148: un | D148: 321.2863
A149: M0201 | B149: Coroa de botões esféricos linha T38 - D = 89 mm (3 1/2") | C149: un | D149: 873.0327
A150: M0202 | B150: Coroa de botões esféricos linha T45 - D = 76 mm (3") | C150: un | D150: 675.0469
A151: M0204 | B151: Instalações físicas para a central de pré-moldagem de dormentes de concreto protendido | C151: CMCC | D151: 1823.81
A152: M0217 | B152: Enxofre | C152: kg | D152: 5.1055
A153: M0220 | B153: Adubo à base de nitrogênio, fósforo e potássio (NPK) | C153: kg | D153: 3.9967
A154: M0222 | B154: Filer calcário | C154: kg | D154: 0.2996
A155: M0223 | B155: Sementes para hidrossemeadura | C155: kg | D155: 30.7475
A156: M0224 | B156: Guia-chapéu pré-moldada - C = 120 cm | C156: un | D156: 53.9767
A157: M0225 | B157: Adubo orgânico composto | C157: kg | D157: 0.3006
A158: M0229 | B158: Gabião tipo colchão em liga de zinco e alumínio revestido com polímero de malha hexagonal - E = 0,17 m | C158: m² | D158: 216.1999
A159: M0230 | B159: Gabião tipo caixa em liga de zinco e alumínio de malha hexagonal - C = 2,00 m, L = 1,00 m e H = 0,50 m | C159: un | D159: 648.9717
A160: M0231 | B160: Gabião tipo caixa em liga de zinco e alumínio de malha hexagonal - C = 2,00 m, L = 1,00 m e H = 1,00 m | C160: un | D160: 961.4531
A161: M0232 | B161: Gabião tipo caixa em liga de zinco e alumínio revestido com polímero de malha hexagonal - C = 2,00 m, L = 1,00 m e H = 0,50 m | C161: un | D161: 802.5105
A162: M0233 | B162: Gabião tipo caixa em liga de zinco e alumínio revestido com polímero de malha hexagonal - C = 2,00 m, L = 1,00 m e H = 1,00 m | C162: un | D162: 1124.2733
